Workbook

Sheet Disclaimer
B14: DISCLAIMER, AUTHORISATION AND ACKNOWLEDGEMENT

Sheet Change Log
B14: Change Log
C15: Calculator Release | D15: Summary of Changes
B16: Green Star - Design & As Built NZv1.1 | C16: 2022-09-02 | D16: V1.1 release
B17: Green Star - Green Star Buildings NZ | C17: 2024-12-13 | D17: Green Star Buildings draft release
B31: SUMMARY OF CHANGES - INTERNAL USE ONLY
B32: Release Number | C32: Date | D32: Author | E32: Reviewer | F32: Approver | G32: Sheet | H32: Range | I32: New Value | J32: Old Value | K32: Comments
B33: GS-D&AB v1.2 Release 1 | C33: 2017-03-20 | D33: MA | E33: KD | F33: NS | G33: Potable Water Calculator | H33: E559 | I33: To =IF(OR(E558<=MIN($C$566:$C$578),E558>=MAX($C$566:$C$578)), NA(),FORECAST(E558,OFFSET($E$566:$E$578,MATCH(E558,$C$566:$C$578)-1,0,2),OFFSET($C$566:$C$578,MATCH(E558,$C$566:$C$578)-1,0,2))) | J33: From =IF(E557<0,0,VLOOKUP(E557,C565:E575,3,TRUE)) | K33: Project team submitted a request regarding interpolation about results instead of doing v lookup. The GBCA send this to Peer Review with the Author of the calculator and they agreed with the chnages. GBCA to implement in both interiors and D&AB in v1.2
B34: GS-D&AB v1.2 Release 1 | C34: 2017-05-23 | D34: MA | E34: SN | G34: Potable Water Calculator | H34: GZ1659: HC2023 | I34: Rain =SUM(AE1659,AT1659,BL1659,BZ1659,CN1659,DB1659,DP1659,ED1659,ER1659,FF1659,FT1659,GH1659,GV1659) Grey =SUM(AC1659,AR1659,BJ1659,BX1659,CL1659,CZ1659,DN1659,EB1659, EP1659,FD1659,FR1659,GF1659,GT1659) Black =SUM(AD1659,AS1659,BK1659,BY1659,CM1659,DA1659,DO1659,EC1659, EQ1659,FE1659,FS1659,GG1659,GU1659) Offsite =SUM(AF1659,AU1659,BM1659,CA1659,CO1659,DC1659,DQ1659,EE1659,ES1659,FG1659,FU1659,GI1659,GW1659) | J34: Rain =SUM(AE1659,AT1659,BL1659,BZ1659,CN1659,DB1659,DP1659,ED1659,FF1659,FT1659,GH1659,GV1659) Grey =SUM(AC1659,AR1659,BJ1659,BX1659,CL1659,CZ1659,DN1659,EB1659,FD1659,FR1659,GF1659,GT1659) Black =SUM(AD1659,AS1659,BK1659,BY1659,CM1659,DA1659,DO1659,EC1659,FE1659,FS1659,GG1659,GU1659) Offsite =SUM(AF1659,AU1659,BM1659,CA1659,CO1659,DC1659,DQ1659,EE1659,ES1659,FG1659,FU1659,GI1659,GW1659) | K34: Added Washdown usage for Rain, Grey , black and offsite reclaimed water for each day of the year in the final totals summation.
B35: GS-D&AB v1.2 Release 1 | C35: 2017-06-13 | D35: MA | E35: SN | G35: Potable Water Calculator | H35: X921:1284 | I35: IF($H$33="Yes",HLOOKUP(MONTH(M921),$T$262:$AE$264,3)*0.001,0) | J35: IF($H$33="Yes",HLOOKUP(MONTH(M921),$T$262:$AD$264,3)*0.001,0) | K35: we (Richard Stokes & Arup) noted a bug in the Green Star Potable Water calculator in the irrigation and washdown sections. I think the calculator was showing a significantly reduced the potable water shown in December and doubled counted irrigation in the washdown. Please see notes below recommending fixes to specific cells: • In the ‘Absolute water uses – proposed’ table, the landscape irrigation column formula is incorrect: X921:1284. The formula includes a lookup for the month, and the range for the lookup doesn’t include December, i.e. AD should be replaced with AE in the formula below. The mistake means that the values for December in X1255:1284 are incorrect. =IF($H$33="Yes",HLOOKUP(MONTH(M921),$T$262:$AD$264,3)*0.001,0) AGREE AND IMPLEMENTED • Under ‘9. Summary of Water Demand’, the washdown value for the Standard Practice Building is incorrect – it includes the landscape irrigation values. It gets this value from cell W915, which takes the sum of this column and the one next to it, i.e. =SUM(W550:X914) ALREADY UPDATED
B36: GS-D&AB v1.2 Release 1 | C36: 2017-06-13 | D36: MA | E36: SN | G36: Potable Water Calculator | H36: W915 | I36: =sum(W550:W914) | J36: =sum(W550:X914) | K36: Washdown calculation was previously including the consumption of Landscape Irrigation.

Sheet Potable Water Calculator
B1: Water Use, Performance Pathway (25) | M1: x | N1: x | O1: x | P1: x | Q1: x | R1: x | S1: x | T1: x | U1: x | V1: x | W1: x | X1: x | Y1: x | Z1: x | AA1: x | AB1: x | AC1: x | AD1: x | AE1: x | AG1: x | AH1: x | AI1: x | AJ1: x | AK1: x | AL1: x | AM1: x
G2: Weighted Points Achieved | I2: =IF(J52=0,"Incomplete",SUM(IFERROR(E642:E644,0))) -> Incomplete | M2: REFERENCE DATA
B3: Links to - Building and climate data: | D3: Building input, areas and operation | E3: 10-year rainfall data | M3: Reference Table 1: Constants used in multiple calculations
B4: Links to - Water demand: | D4: 1. Fixtures & Fittings | E4: 2. Whitegoods | F4: 3. Heat Rejection Water | G4: 4. Washdown Water | H4: 5. Landscape Irrigation | I4: 6. Swimming pools
D5: 7. Test Fire Water | E5: 8. Process Cooling | F5: 9. Dead Legs on Hot Water Runs | P5: Wks per year | Q5: =365/7 -> 52.14285714 | T5: Completion check
B6: Links to - Reclaimed water supply: | D6: 10. Reclaimed water use | E6: Rainwater collection | F6: Greywater collection | G6: Blackwater collection | H6: Condensate Recovery Collection | I6: Stormwater and off-site reclaimed water supply | M6: Specific Heat Capacity of Water (kJ/(kg.K)) @ 20 deg C | N6: 4.18 | T6: Complete | AR6: `
B7: Links to - Results: | D7: Project Checklist | E7: 11. Summary of Water Demand | F7: 12. Results | G7: Domestic hot water results | M7: Density of water (kg/l) | N7: 0.997 | T7: Incomplete
G8: For details on what information is required and how this information is used to calculate the reduction in potable water consumption against the Standard Practice Benchmark, please refer to the Green Star - Potable Water Calculator Guide, available from the NZGBC website.
B9: Instructions: | D9: Enter information into light blue cells
B12: 0. GENERAL
B13: BUILDING OCCUPANCY, AREAS AND OPERATION
C14: Space type description | D14: Area (m²) | E14: Peak days of operation (remaining days assumed off-peak) | F14: Occupancy profile | G14: Maximum design occupancy used in water use calculations (m²/person) (Enter manually OR use default) | I14: Percentage of building users who occupy the space continually for periods greater than one hour. | AP14: STANDARD OCCUPANCY PROFILES BASED ON PROFILES GIVEN IN SPECIFICATION J of THE NCC 2013 | BE14: USER ENTERED OCCUPANCY PROFILES
G15: Proposed Building design occupancy (m2/person) | H15: Default design occupancy (Not applicable for residential areas)
E16: Please Select | F16: Please Select | H16: Office (10m2/person) | J16: INSTRUCTIONS ON HOW TO ENTER CUSTOMISED PROFILES 1) Add a name for the profile (this will appear in the drop down box under 'Occupancy Profiles' 2) Add a description. This is for your own reference but also to help the Assessors keep track of what has been entered and why. 3) Enter the percentage of design occupancy that is typically present on a typical peak and off-peak day. | AP16: NCC Table 2b (Class 5, Class 8 or Class 9a) | AR16: NCC Table 2c (Class 6 shop or shopping centre) | AT16: NCC Table 2d (Class 6 restaurant or cafe) | AV16: NCC Table 2f (Class 9b theatre or cinema) | AX16: NCC Table 2a (Class 3 or class 9c aged care) | AZ16: NCC Table 2e (Class 9a ward) | BB16: Class 1, 2 or 3 residential | BG16: Enter name in this row (appears in 'Occupany profile' dropdown box) | BH16: <User entered occupancy profile 2> | BJ16: <User entered occupancy profile 2> | BL16: <User entered occupancy profile 3> | BN16: <User entered occupancy profile 4> | BP16: <User entered occupancy profile 5> | BR16: <User entered occupancy profile 6> | BT16: <User entered occupancy profile 7> | BV16: <User entered occupancy profile 8>
E17: Please Select | F17: Please Select | H17: Please select | AO17: Further description: | AP17: Class 5 building, Class 8 laboratory or Class 9a clinic, Day surgery or procedure unit. | BG17: Enter description here for reference | BH17: <Description> | BJ17: <Description> | BL17: <Description> | BN17: <Description> | BP17: <Description> | BR17: <Description> | BT17: <Description> | BV17: <Description>
E18: Please Select | F18: Please Select | H18: Please select | AO18: Time period (local standard time) | AP18: Peak | AQ18: Off-peak | AR18: Peak | AS18: Off-peak | AT18: Peak | AU18: Off-peak | AV18: Peak | AW18: Off-peak | AX18: Peak | AY18: Off-peak | AZ18: Peak | BA18: Off-peak | BB18: Peak | BC18: Off-peak | BG18: Time period (local standard time) | BH18: Peak | BI18: Off-peak | BJ18: Peak | BK18: Off-peak | BL18: Peak | BM18: Off-peak | BN18: Peak | BO18: Off-peak | BP18: Peak | BQ18: Off-peak | BR18: Peak | BS18: Off-peak | BT18: Peak | BU18: Off-peak | BV18: Peak | BW18: Off-peak
E19: Please Select | F19: Please Select | H19: Please select | AO19: 12:00am to 1:00am | AP19: 0 | AQ19: 0 | AR19: 0 | AS19: 0 | AT19: 0 | AU19: 0 | AV19: 0 | AW19: 0 | AX19: 0.85 | AY19: 0.85 | AZ19: 0.85 | BA19: 0.85 | BB19: 0 | BC19: 0 | BG19: 12:00am to 1:00am
E20: Please Select | F20: Please Select | H20: Please select | AO20: 1:00am to 2:00am | AP20: 0 | AQ20: 0 | AR20: 0 | AS20: 0 | AT20: 0 | AU20: 0 | AV20: 0 | AW20: 0 | AX20: 0.85 | AY20: 0.85 | AZ20: 0.85 | BA20: 0.85 | BB20: 0 | BC20: 0 | BG20: 1:00am to 2:00am
E21: Please Select | F21: Please Select | H21: Please select | AO21: 2:00am to 3:00am | AP21: 0 | AQ21: 0 | AR21: 0 | AS21: 0 | AT21: 0 | AU21: 0 | AV21: 0 | AW21: 0 | AX21: 0.85 | AY21: 0.85 | AZ21: 0.85 | BA21: 0.85 | BB21: 0 | BC21: 0 | BG21: 2:00am to 3:00am
E22: Please Select | F22: Please Select | H22: Please select | AO22: 3:00am to 4:00am | AP22: 0 | AQ22: 0 | AR22: 0 | AS22: 0 | AT22: 0 | AU22: 0 | AV22: 0 | AW22: 0 | AX22: 0.85 | AY22: 0.85 | AZ22: 0.85 | BA22: 0.85 | BB22: 0 | BC22: 0 | BG22: 3:00am to 4:00am
E23: Please Select | F23: Please Select | H23: Please select | AO23: 4:00am to 5:00am | AP23: 0 | AQ23: 0 | AR23: 0 | AS23: 0 | AT23: 0 | AU23: 0 | AV23: 0 | AW23: 0 | AX23: 0.85 | AY23: 0.85 | AZ23: 0.85 | BA23: 0.85 | BB23: 0 | BC23: 0 | BG23: 4:00am to 5:00am
E24: Please Select | F24: Please Select | H24: Please select | AO24: 5:00am to 6:00am | AP24: 0 | AQ24: 0 | AR24: 0 | AS24: 0 | AT24: 0 | AU24: 0 | AV24: 0 | AW24: 0 | AX24: 0.85 | AY24: 0.85 | AZ24: 0.85 | BA24: 0.85 | BB24: 0 | BC24: 0 | BG24: 5:00am to 6:00am
E25: Please Select | F25: Please Select | H25: Please select | AO25: 6:00am to 7:00am | AP25: 0 | AQ25: 0 | AR25: 0 | AS25: 0 | AT25: 0.05 | AU25: 0 | AV25: 0 | AW25: 0 | AX25: 0.85 | AY25: 0.85 | AZ25: 0.85 | BA25: 0.85 | BB25: 0 | BC25: 0 | BG25: 6:00am to 7:00am
C26: Non occupied areas | E26: n/a | F26: n/a | G26: 0 | AO26: 7:00am to 8:00am | AP26: 0.15 | AQ26: 0 | AR26: 0.1 | AS26: 0 | AT26: 0.05 | AU26: 0 | AV26: 0 | AW26: 0 | AX26: 0.85 | AY26: 0.8 | AZ26: 0.85 | BA26: 0.85 | BB26: 0.85 | BC26: 0 | BG26: 7:00am to 8:00am
C27: TOTAL AREA | D27: =SUM(D16:D26) -> 0 | AO27: 8:00am to 9:00am | AP27: 0.6 | AQ27: 0 | AR27: 0.2 | AS27: 0 | AT27: 0.05 | AU27: 0 | AV27: 0.2 | AW27: 0 | AX27: 0.5 | AY27: 0.1 | AZ27: 0.85 | BA27: 0.85 | BB27: 0.5 | BC27: 0 | BG27: 8:00am to 9:00am
AO28: 9:00am to 10:00am | AP28: 1 | AQ28: 0 | AR28: 0.2 | AS28: 0 | AT28: 0.05 | AU28: 0 | AV28: 0.8 | AW28: 0 | AX28: 0.2 | AY28: 0.1 | AZ28: 0.85 | BA28: 0.85 | BB28: 0.2 | BC28: 0.1 | BG28: 9:00am to 10:00am
B29: PROJECT CHECKLIST | D29: Please provide responses to the following questions. Detailed inputs will be requested further on in the calculator. | AO29: 10:00am to 11:00am | AP29: 1 | AQ29: 0 | AR29: 0.15 | AS29: 0 | AT29: 0.2 | AU29: 0 | AV29: 0.8 | AW29: 0 | AX29: 0.2 | AY29: 0.1 | AZ29: 0.85 | BA29: 0.85 | BB29: 0.2 | BC29: 0.1 | BG29: 10:00am to 11:00am
C30: WATER USES - ALL QUESTIONS MUST BE ANSWERED | AO30: 11:00am to 12:00pm | AP30: 1 | AQ30: 0 | AR30: 0.25 | AS30: 0 | AT30: 0.5 | AU30: 0 | AV30: 0.8 | AW30: 0 | AX30: 0.2 | AY30: 0.1 | AZ30: 0.85 | BA30: 0.85 | BB30: 0.2 | BC30: 0.1 | BG30: 11:00am to 12:00pm
C31: 1. Sanitation | G31: 6. Swimming Pools | M31: REFERENCE DATA | P31: Design occupancies from Table D1.13 of the BCA | V31: Design occupancies from Table D1.13 of the BCA | Z31: Usage rates of toilets, urinals and taps | AO31: 12:00pm to 1:00pm | AP31: 1 | AQ31: 0 | AR31: 0.25 | AS31: 0 | AT31: 0.8 | AU31: 0 | AV31: 0.2 | AW31: 0.2 | AX31: 0.2 | AY31: 0.1 | AZ31: 0.85 | BA31: 0.85 | BB31: 0.2 | BC31: 0.1 | BG31: 12:00pm to 1:00pm
C32: Are fixtures and fittings provided for building occupant sanitation? | D32: Please Select | G32: Are there any swimming pools within the project? | H32: Please Select | I32: =IF(H32="YES","Enter Data into Swimming Pool tab"," ") ->  | M32: Dropdown options for Days of Operation | P32: Schedule | Q32: Equivalent number of hours occupied at full occupancy (sum of occupancy %s) | S32: Maximum percentage of design occupancy present in typical day | V32: Space type | X32: Maximum design occupancy (m²/person) | AA32: Uses/person/day (for 9.5 hour office) | AB32: Uses per person per hour | AC32: Duration per use (mins) (used where the WELS rating is based on L/min) | AO32: 1:00pm to 2:00pm | AP32: 1 | AQ32: 0 | AR32: 0.15 | AS32: 0 | AT32: 0.7 | AU32: 0 | AV32: 0.8 | AW32: 0.8 | AX32: 0.2 | AY32: 0.1 | AZ32: 0.85 | BA32: 0.85 | BB32: 0.2 | BC32: 0.1 | BG32: 1:00pm to 2:00pm
C33: Does the project provide for sports activities? | D33: Please Select | M33: Please Select | Q33: PEAK | R33: OFF-PEAK | S33: PEAK | T33: OFF-PEAK | V33: Please select | X33: 0 | AO33: 2:00pm to 3:00pm | AP33: 1 | AQ33: 0 | AR33: 0.15 | AS33: 0 | AT33: 0.4 | AU33: 0 | AV33: 0.8 | AW33: 0.8 | AX33: 0.2 | AY33: 0.1 | AZ33: 0.85 | BA33: 0.85 | BB33: 0.2 | BC33: 0.1 | BG33: 2:00pm to 3:00pm
C34: Have showers been installed for post/pre activity use? | D34: Please Select | M34: 1 day a week | P34: Please Select | V34: Retail / Showroom (5m2/person) | X34: 5 | Z34: Toilet - no Urinals | AA34: 2.3 | AB34: =AA34/9.5 -> 0.2421052632 | AO34: 3:00pm to 4:00pm | AP34: 1 | AQ34: 0 | AR34: 0.15 | AS34: 0 | AT34: 0.2 | AU34: 0 | AV34: 0.8 | AW34: 0.8 | AX34: 0.3 | AY34: 0.1 | AZ34: 0.85 | BA34: 0.85 | BB34: 0.3 | BC34: 0.1 | BG34: 3:00pm to 4:00pm
M35: 2 days a week | P35: =BB16 -> Class 1, 2 or 3 residential | Q35: =$BB$44 -> 6.65 | R35: =$BC$44 -> 4.75 | S35: =$BB$46 -> 0.85 | T35: =$BC$46 -> 0.85 | V35: Office (10m2/person) | X35: 10 | Z35: Toilet - with Urinals | AA35: 1.3 | AB35: =AA35/9.5 -> 0.1368421053 | AO35: 4:00pm to 5:00pm | AP35: 1 | AQ35: 0 | AR35: 0.15 | AS35: 0 | AT35: 0.25 | AU35: 0 | AV35: 0.8 | AW35: 0.8 | AX35: 0.5 | AY35: 0.5 | AZ35: 0.85 | BA35: 0.85 | BB35: 0.5 | BC35: 0.5 | BG35: 4:00pm to 5:00pm
C36: 2. White Goods | G36: 7. Test Fire Water | M36: 3 days a week | P36: =AX16 -> NCC Table 2a (Class 3 or class 9c aged care) | Q36: =$AX$44 -> 14.3 | R36: =$AY$44 -> 13.3 | S36: =$AX$46 -> 0.85 | T36: =$AY$46 -> 0.85 | V36: Art gallery, exhibition area, museum (4m2) | X36: 4 | Z36: Urinal | AA36: =2*50% -> 1 | AB36: =AA36/9.5 -> 0.1052631579 | AO36: 5:00pm to 6:00pm | AP36: 0.5 | AQ36: 0 | AR36: 0.05 | AS36: 0 | AT36: 0.5 | AU36: 0 | AV36: 0.2 | AW36: 0.2 | AX36: 0.5 | AY36: 0.5 | AZ36: 0.85 | BA36: 0.85 | BB36: 0.5 | BC36: 0.5 | BG36: 5:00pm to 6:00pm
C37: Does the project include any dishwashers or washing machines? | D37: Please Select | G37: Is there a retention tank on site? | H37: Please Select | M37: 4 days a week | P37: =AP16 -> NCC Table 2b (Class 5, Class 8 or Class 9a) | Q37: =$AP$44 -> 9.5 | R37: =$AQ$44 -> 0 | S37: =$AP$46 -> 1 | T37: =$AQ$46 -> 0 | V37: To be selected | X37: 20 | Z37: Indoor taps | AA37: 2.5 | AB37: =AA37/9.5 -> 0.2631578947 | AC37: 0.15 | AO37: 6:00pm to 7:00pm | AP37: 0.15 | AQ37: 0 | AR37: 0.05 | AS37: 0 | AT37: 0.8 | AU37: 0 | AV37: 0.2 | AW37: 0.2 | AX37: 0.5 | AY37: 0.7 | AZ37: 0.85 | BA37: 0.85 | BB37: 0.5 | BC37: 0.7 | BG37: 6:00pm to 7:00pm
G38: Will test fire water be captured in the retention tank? | H38: Please Select
M39: 5 days a week | P39: =AR16 -> NCC Table 2c (Class 6 shop or shopping centre) | Q39: =$AR$44 -> 1.85 | R39: =$AS$44 -> 0 | S39: =$AR$46 -> 0.25 | T39: =$AS$46 -> 0 | V39: To be selected | X39: 30 | AO39: 7:00pm to 8:00pm | AP39: 0.05 | AQ39: 0 | AR39: 0 | AS39: 0 | AT39: 0.8 | AU39: 0 | AV39: 0.8 | AW39: 0.8 | AX39: 0.7 | AY39: 0.7 | AZ39: 0.85 | BA39: 0.85 | BB39: 0.7 | BC39: 0.7 | BG39: 7:00pm to 8:00pm
C40: 3. Heat Rejection | G40: 8. Process Cooling | M40: 6 days a week | P40: =AT16 -> NCC Table 2d (Class 6 restaurant or cafe) | Q40: =$AT$44 -> 7.2 | R40: =$AU$44 -> 0 | S40: =$AT$46 -> 0.8 | T40: =$AU$46 -> 0 | V40: To be selected | X40: 31 | Z40: Number of times an automatic urinal will flush in one day (Assumes every 30 mins for 24 hours a day) | AC40: =24*2 -> 48 | AO40: 8:00pm to 9:00pm | AP40: 0.05 | AQ40: 0 | AR40: 0 | AS40: 0 | AT40: 0.8 | AU40: 0 | AV40: 0.8 | AW40: 0.8 | AX40: 0.8 | AY40: 0.8 | AZ40: 0.85 | BA40: 0.85 | BB40: 0.8 | BC40: 0.8 | BG40: 8:00pm to 9:00pm
C41: Does the project utilise water based heat rejection (project cooling)? | D41: Please Select | G41: Does the project include any water based process cooling? | H41: Please Select | M41: 7 days a week | P41: =AZ16 -> NCC Table 2e (Class 9a ward) | Q41: =$AZ$44 -> 20.4 | R41: =$BA$44 -> 20.4 | S41: =$AZ$46 -> 0.85 | T41: =$BA$46 -> 0.85 | V41: To be selected | X41: 32 | AO41: 9:00pm to 10:00pm | AP41: 0 | AQ41: 0 | AR41: 0 | AS41: 0 | AT41: 0.5 | AU41: 0 | AV41: 0.8 | AW41: 0.8 | AX41: 0.8 | AY41: 0.85 | AZ41: 0.85 | BA41: 0.85 | BB41: 0.8 | BC41: 0.85 | BG41: 9:00pm to 10:00pm
C42: Does the project have cooling towers? | D42: Please Select | P42: =AV16 -> NCC Table 2f (Class 9b theatre or cinema) | Q42: =$AV$44 -> 9.7 | R42: =$AW$44 -> 7.1 | S42: =$AV$46 -> 0.8 | T42: =$AW$46 -> 0.8 | V42: To be selected | X42: 33 | AO42: 10:00pm to 11:00pm | AP42: 0 | AQ42: 0 | AR42: 0 | AS42: 0 | AT42: 0.35 | AU42: 0 | AV42: 0.8 | AW42: 0.8 | AX42: 0.85 | AY42: 0.85 | AZ42: 0.85 | BA42: 0.85 | BB42: 0 | BC42: 0 | BG42: 10:00pm to 11:00pm
C43: Does the project contain any other water cooled systems that are not conventional cooling towers? | D43: Please Select | P43: =BH16 -> <User entered occupancy profile 2> | Q43: =$BH$44 -> 0 | R43: =$BI$44 -> 0 | S43: =$BH$46 -> 0 | T43: =$BI$46 -> 0 | V43: To be selected | X43: 34 | Z43: Usage rates of showers | AO43: 11:00pm to 12:00am | AP43: 0 | AQ43: 0 | AR43: 0 | AS43: 0 | AT43: 0.2 | AU43: 0 | AV43: 0.1 | AW43: 0.1 | AX43: 0.85 | AY43: 0.85 | AZ43: 0.85 | BA43: 0.85 | BB43: 0 | BC43: 0 | BG43: 11:00pm to 12:00am
P44: =$BJ$16 -> <User entered occupancy profile 2> | Q44: =$BJ$44 -> 0 | R44: =$BK$44 -> 0 | S44: =$BJ$46 -> 0 | T44: =$BK$46 -> 0 | V44: To be selected | X44: 34 | AA44: % of occupants that shower - reference | AB44: % of occupants that shower - proposed | AC44: Duration per use (mins) | AO44: Hours per day at peak occupancy | AP44: =SUM(AP18:AP43) -> 9.5 | AQ44: =SUM(AQ18:AQ43) -> 0 | AR44: 1.85 | AS44: 0 | AT44: 7.2 | AU44: 0 | AV44: 9.7 | AW44: 7.1 | AX44: 14.3 | AY44: 13.3 | AZ44: 20.4 | BA44: 20.4 | BB44: =SUM(BB18:BB43) -> 6.65 | BC44: 4.75 | BG44: Hours per day at peak occupancy | BH44: =SUM(BH18:BH43) -> 0 | BI44: 0 | BJ44: 0 | BK44: 0 | BL44: 0 | BM44: 0 | BN44: 0 | BO44: 0 | BP44: 0 | BQ44: 0 | BR44: 0 | BS44: 0 | BT44: 0 | BU44: 0 | BV44: 0 | BW44: 0
C45: 4. Wash Down | G45: 9. Dead Legs on Hot Water Runs | P45: =$BN$16 -> <User entered occupancy profile 4> | Q45: =$BL$44 -> 0 | R45: =$BM$44 -> 0 | S45: =$BL$46 -> 0 | T45: =$BM$46 -> 0 | Z45: Showers by cyclists | AA45: =F96 -> 0 | AB45: =F97 -> 0 | AC45: 5
C46: Does the project include wash down areas? | D46: Please Select | G46: Has the position of the hot water flow been utilised to reduce wait time for hot water at the tap? | H46: Please Select | M46: Showers by cyclists and gym users | P46: =$BN$16 -> <User entered occupancy profile 4> | Q46: =$BN$44 -> 0 | R46: =$BO$44 -> 0 | S46: =$BN$46 -> 0 | T46: =$BO$46 -> 0 | Z46: Shower usage - Sports | AA46: 1 | AC46: 5 | AO46: Maximum occupancy during the day | AP46: =MAX(AP19:AP43) -> 1 | AQ46: 0 | AR46: 0.25 | AS46: 0 | AT46: 0.8 | AU46: 0 | AV46: 0.8 | AW46: 0.8 | AX46: 0.85 | AY46: 0.85 | AZ46: 0.85 | BA46: 0.85 | BB46: =MAX(BB19:BB43) -> 0.85 | BC46: 0.85 | BG46: Maximum occupancy during the day | BH46: =MAX(BH19:BH43) -> 0 | BI46: 0 | BJ46: 0 | BK46: 0 | BL46: 0 | BM46: 0 | BN46: 0 | BO46: 0 | BP46: 0 | BQ46: 0 | BR46: 0 | BS46: 0 | BT46: 0 | BU46: 0 | BV46: 0 | BW46: 0
G47: Have pipe diameters been reduced from standard? | H47: Please Select
M48: No showers installed | N48: 0 | P48: =$BP$16 -> <User entered occupancy profile 5> | Q48: =$BP$44 -> 0 | R48: =$BQ$44 -> 0 | S48: =$BP$46 -> 0 | T48: =$BQ$46 -> 0
C49: 5. Landscape Irrigation | M49: No significant cycling or gym facilities | N49: 0.05 | P49: =$BR$16 -> <User entered occupancy profile 6> | Q49: =$BR$44 -> 0 | R49: =$BS$44 -> 0 | S49: =$BR$46 -> 0 | T49: =$BS$46 -> 0
C50: Are there any landscaped areas within the project? | D50: Please Select | M50: Tra-3: 1 credit achieved (or gym provided) | N50: 0.1 | P50: =$BT$16 -> <User entered occupancy profile 7> | Q50: =$BT$44 -> 0 | R50: =$BU$44 -> 0 | S50: =$BT$46 -> 0 | T50: =$BU$46 -> 0
C51: Are any irrigation systems included in the project? | D51: Please Select | M51: Tra-3: 2 credits achieved | N51: 0.15 | P51: =$BV$16 -> <User entered occupancy profile 8> | Q51: =$BV$44 -> 0 | R51: =$BW$44 -> 0 | S51: =$BV$46 -> 0 | T51: =$BW$46 -> 0
J52: =IF(OR(D32="Please select",D33="Please select",D34="Please select",D37="Please select",D41="Please select",D42="Please Select",D43="Please select", D46="Please select",D56="Please select",D57="Please select",D58="Please select",D59="Please select",D60="Please select", D61="Please select",D50="Please select",D51="Please select",H32="Please select",H37="Please select",H38="Please Select",H41="Please select",H46="Please select",H47="Please select",H50="Please select",H51="Please select"),0,1) -> 0
C54: WATER REUSE - ALL QUESTIONS MUST BE ANSWERED
C55: 10. Water Reclamation
C56: Does any water collection, reclamation and/or reuse occur on the project site? | D56: Please Select
C57: Does the project include rainwater capture and reuse systems? | D57: Please Select
C58: Does the project include greywater capture, treatment and reuse systems? | D58: Please Select
C59: Does the project include blackwater capture, treatment and reuse systems? | D59: Please Select
C60: Does the project include condensate recovery capture, treatment and reuse systems? | D60: Please Select
C61: Does the project include other stormwater reuse or an off-site supply of non-potable water? | D61: Please Select
B65: 1. SANITATION FIXTURES AND FITTINGS | F65: =IF(AND(D32="No"),"THE PROJECT TEAM HAS INDICATED THAT SANITARY FIXTURES AND FITTINGS ARE NOT INCLUDED IN THE PROJECT, PLEASE PROCEED TO THE NEXT SECTION.","") ->  | M65: 1. Calculation of water demand from fittings
B66: WATER DEMAND FROM FIXTURES AND FITTINGS: | E66: (Annual water demand from fixtures and fittings is calculated using assumed usage rates based on the space types and occupancies entered above. Please see pages 10-13 of the Green Star - Potable Water Calculator Guide for further details.) | N66: Maximum design occupancy (m²/person) | O66: No. People in space (if occupied at maximum design occupancy) | P66: Days of Operation per week | Q66: Equivalent hours at max occupancy (hours per day) | S66: Maximum percentage of design occupancy present in typical day | U66: Person hours/YEAR for toilets, urinals and tap calcs. | V66: occupants present each day x no.work days per year (for work-place shower calcs.) | W66: Sportspeople present each day x number of days per year open | X66: Uses/YEAR
Q67: PEAK | R67: OFF-PEAK | S67: PEAK | T67: OFF-PEAK | X67: Toilet - No Urinals | Y67: Toilet - with Urinals | Z67: Urinals | AA67: Urinals on Auto Flush | AB67: Indoor Taps | AC67: Work place showering - reference | AD67: Work place showering - proposed | AE67: Sports showering
D68: Water efficiency (Enter manually OR nominate WELS Star Rating) | F68: Resulting water efficiency used in calculator (l/min, except for toilets, L/flush) | G68: Percentage of each type | H68: Proposed Building water demand (kL/year) | I68: Standard Practice Building water demand (kL/year) | M68: =C16 -> 0 | N68: =IF(G16="",VLOOKUP(H16,$V$33:$X$39,3,FALSE),G16) -> 10 | O68: =IF(TYPE(D16/N68)=16,0,D16/N68) -> 0 | P68: =IF(E16="1 day a week",1,IF(E16="2 days a week",2,IF(E16="3 days a week",3,IF(E16="4 days a week",4,IF(E16="5 days a week",5,IF(E16="6 days a week",6,IF(E16="7 days a week",7,IF(E16="Please Select",0,0)))))))) -> 0 | Q68: =IF(ISBLANK(F16),0,VLOOKUP(F16,$P$34:$T$51,2,FALSE)) -> 0 | R68: =IF(ISBLANK(F16),0,VLOOKUP(F16,$P$34:$T$51,3,FALSE)) -> 0 | S68: =IF(ISBLANK(F16),0,VLOOKUP(F16,$P$34:$T$51,4,FALSE)) -> 0 | T68: =IF(ISBLANK(F16),0,VLOOKUP(F16,$P$34:$T$51,5,FALSE)) -> 0 | U68: =(O68*P68*Q68*$Q$5)+(O68*(7-P68)*R68*$Q$5) -> 0 | V68: =I16*(O68*P68*S68*$Q$5+O68*(7-P68)*T68*$Q$5) -> 0 | W68: =$H$104*$F$104 -> 0 | X68: =U68*$AB$34 -> 0 | Y68: =U68*AB$35 -> 0 | Z68: =U68*AB$36 -> 0 | AB68: =U68*AB$37 -> 0 | AC68: =V68*AA$45 -> 0 | AD68: =V68*AB$45 -> 0 | AE68: =W68*AA46 -> 0
D69: Manual entry from manufacturer's data sheet (l/min, or L/flush for toilets) | E69: WELS Star Rating selection | M69: 0 | N69: 0 | O69: 0 | P69: 0 | Q69: 0 | R69: 0 | S69: 0 | T69: 0 | U69: =(O69*P69*Q69*$Q$5)+(O69*(7-P69)*R69*$Q$5) -> 0 | V69: 0 | X69: 0 | Y69: 0 | Z69: 0 | AB69: 0 | AC69: 0 | AD69: 0
C70: Toilets | M70: 0 | N70: 0 | O70: 0 | P70: 0 | Q70: 0 | R70: 0 | S70: 0 | T70: 0 | U70: =(O70*P70*Q70*$Q$5)+(O70*(7-P70)*R70*$Q$5) -> 0 | V70: 0 | X70: 0 | Y70: 0 | Z70: 0 | AB70: 0 | AC70: 0 | AD70: 0
C71: <enter description> | D71: 5 | E71: Select star rating | F71: =IF(NOT(D71=""),D71,IF(OR(E71="",E71=$M$100),"",HLOOKUP(E71,$N$100:$U$104,2,FALSE))) -> 5 | G71: 1 | M71: 0 | N71: 0 | O71: 0 | P71: 0 | Q71: 0 | R71: 0 | S71: 0 | T71: 0 | U71: 0 | V71: 0 | X71: 0 | Y71: 0 | Z71: 0 | AB71: 0 | AC71: 0 | AD71: 0
C72: <enter description> | E72: Select star rating | F72: =IF(NOT(D72=""),D72,IF(OR(E72="",E72=$M$100),"",HLOOKUP(E72,$N$100:$U$104,2,FALSE))) ->  | M72: 0 | N72: 0 | O72: 0 | P72: 0 | Q72: 0 | R72: 0 | S72: 0 | T72: 0 | U72: 0 | V72: 0 | X72: 0 | Y72: 0 | Z72: 0 | AB72: 0 | AC72: 0 | AD72: 0
C73: <enter description> | E73: Select star rating | F73: =IF(NOT(D73=""),D73,IF(OR(E73="",E73=$M$100),"",HLOOKUP(E73,$N$100:$U$104,2,FALSE))) ->  | M73: 0 | N73: 0 | O73: 0 | P73: 0 | Q73: 0 | R73: 0 | S73: 0 | T73: 0 | U73: 0 | V73: 0 | X73: 0 | Y73: 0 | Z73: 0 | AB73: 0 | AC73: 0 | AD73: 0
C74: <enter description> | E74: Select star rating | F74: =IF(NOT(D74=""),D74,IF(OR(E74="",E74=$M$100),"",HLOOKUP(E74,$N$100:$U$104,2,FALSE))) ->  | J74: =CONCATENATE("(The Standard Practice Benchmark is based on ",$N$91,"WELS rated toilets)") -> (The Standard Practice Benchmark is based on 3 StarWELS rated toilets) | M74: 0 | N74: 0 | O74: 0 | P74: 0 | Q74: 0 | R74: 0 | S74: 0 | T74: 0 | U74: 0 | V74: 0 | X74: 0 | Y74: 0 | Z74: 0 | AB74: 0 | AC74: 0 | AD74: 0
F75: Total | G75: =SUM(G71:G74) -> 1 | H75: =IF(Are_Urinals_installed?="yes",Y80,X80) -> 0 | I75: =IF(G77="yes",Y81,X81) -> 0 | M75: 0 | N75: 0 | O75: 0 | P75: 0 | Q75: 0 | R75: 0 | S75: 0 | T75: 0 | U75: 0 | V75: 0 | X75: 0 | Y75: 0 | Z75: 0 | AB75: 0 | AC75: 0 | AD75: 0
G76: =IF(G75=1,"","Please ensure the total equals 100%") ->  | M76: 0 | N76: 0 | O76: 0 | P76: 0 | Q76: 0 | R76: 0 | S76: 0 | T76: 0 | U76: 0 | V76: 0 | X76: 0 | Y76: 0 | Z76: 0 | AB76: 0 | AC76: 0 | AD76: 0
D77: Are urinals installed? | E77: Please select | F77: Would urinals normally be installed in the building type? | G77: Please select | H77: (Note: if "No" is selected, the project team should provide justification as to why the standard practice building does not have urinals.) | M77: 0 | N77: 0 | O77: 0 | P77: 0 | Q77: 0 | R77: 0 | S77: 0 | T77: 0 | U77: 0 | V77: 0 | X77: 0 | Y77: 0 | Z77: 0 | AB77: 0 | AC77: 0 | AD77: 0
C78: Urinals | M78: Non occupied areas | N78: =G26 -> 0 | W78: Total Usage per year | X78: =SUM(X68:X77) -> 0 | Y78: =SUM(Y68:Y77) -> 0 | Z78: =SUM(Z68:Z77) -> 0 | AA78: =F85*AC40*7 -> 0 | AB78: =SUM(AB68:AB77) -> 0 | AC78: =SUM(AC68:AC77) -> 0 | AD78: =SUM(AD68:AD77) -> 0 | AE78: =H104*F104 -> 0
C79: <enter description here> | E79: Select star rating | F79: =IF(NOT(D79=""),D79,IF(OR(E79="",E79=$M$100),"",HLOOKUP(E79,$N$100:$U$104,3,FALSE))) ->  | X79: Water consumption/year (kL/year) | AF79: TOTAL (kL/year)
C80: <enter description here> | E80: Select star rating | F80: =IF(NOT(D80=""),D80,IF(OR(E80="",E80=$M$100),"",HLOOKUP(E80,$N$100:$U$104,3,FALSE))) ->  | W80: Proposed Building | X80: =X78*P91/1000 -> 0 | Y80: =Y$78*P91/1000 -> 0 | Z80: =Z$78*P92*SUM(G79:G82)/1000 -> 0 | AA80: =P93*AA78/1000 -> 0 | AB80: =AB78*P94*AC$37/1000 -> 0 | AD80: =AD78*P95*AC$45/1000 -> 0 | AE80: =AE78*P96*AC$46/1000 -> 0 | AF80: =IF(E77="Yes",Y80+Z80+AA80+AB80+AC80,X80+AB80+AC80+AD80+AE80) -> 0
C81: <enter description here> | E81: Select star rating | F81: =IF(NOT(D81=""),D81,IF(OR(E81="",E81=$M$100),"",HLOOKUP(E81,$N$100:$U$104,3,FALSE))) ->  | W81: Standard Practice Building | X81: =X$78*O91/1000 -> 0 | Y81: =Y$78*O91/1000 -> 0 | Z81: =IF(G77="No",0,Z$78*O92/1000) -> 0 | AA81: 0 | AB81: =AB78*O94*AC$37/1000 -> 0 | AC81: =AC78*O95*AC$45/1000 -> 0 | AE81: =AE78*O96*AC$46/1000 -> 0 | AF81: =IF(E78="Yes",Y81+Z81+AA81+AB81+AC81,X81+AB81+AC81+AD81+AE81) -> 0
C82: <enter description here> | E82: Select star rating | F82: =IF(NOT(D82=""),D82,IF(OR(E82="",E82=$M$100),"",HLOOKUP(E82,$N$100:$U$104,3,FALSE))) -> 
C84: Urinals on auto timer | D84: Enter average L/flush
D85: Enter number of urinals on autotimer
D86: Percentage of total number of Urinals | J86: =CONCATENATE("(The Standard Practice Benchmark is based on ",$N$92," WELS rated urinals)") -> (The Standard Practice Benchmark is based on 3 Star WELS rated urinals) | M86: REFERENCE DATA
F87: Total | G87: =SUM(G79:G86) -> 0 | H87: =IF(Are_Urinals_installed?="Yes",(Z80+AA80),0) -> 0 | I87: =IF(G77="yes",Z81,0) -> 0 | M87: Standard Practice Water Efficiency of fixtures and fittings | O87: Water efficiency (L/use for toilets & urinals and L/min for taps & showers) | T87: DHW requirements - for Ene-Con and Ene-1
G88: =IF(G87=1,"","Please ensure the total equals 100%") -> Please ensure the total equals 100%
C89: Indoor taps | M89: Fixture/Fitting | N89: Stand. Practice WELS rating | O89: Standard Practice Building | P89: Proposed Building | R89: washing machines | S89: Dishwashers | T89: ANNUAL water usage (kL/year) from Taps and Showers | U89: % of water used from taps and showers that is assumed to be HOT. | V89: ANNUAL DHW usage (kL/year) from Taps and Showers
C90: <enter description> | E90: Select star rating | F90: =IF(NOT(D90=""),D90,IF(OR(E90="",E90=$M$100),"",HLOOKUP(E90,$N$100:$U$104,4,FALSE))) ->  | Q90: Proposed | R90: =$J$131*K131+$J$132*K132+$J$133*K133+$J$134*K134+$J$135*K135+$J$136*K136+$J$137*K137+$J$138*K138+$J$139*K139+$J$140*K140 -> 0 | S90: =$J$148*K148+$J$149*K149+$J$150*K150+$J$151*K151+$J$152*K152+$J$153*K153+$J$154*K154+$J$155*K155+$J$156*K156+$J$157*K157 -> 0 | T90: =(AD80+AB80+AE80) -> 0 | U90: 0.5 | V90: =(T90*U90)+R90+S90 -> 0
C91: <enter description> | E91: Select star rating | F91: =IF(NOT(D91=""),D91,IF(OR(E91="",E91=$M$100),"",HLOOKUP(E91,$N$100:$U$104,4,FALSE))) ->  | M91: Toilets | N91: 3 Star | O91: =HLOOKUP(N91,$N$100:$T$104,2,FALSE) -> 4 | P91: =IF(F71="",0,F71*G71)+IF(F72="",0,F72*G72)+IF(F73="",0,F73*G73)+IF(F74="",0,F74*G74) -> 5 | Q91: Standard practice | R91: =$J$131*L131+$J$132*L132+$J$133*L133+$J$134*L134+$J$135*L135+$J$136*L136+$J$137*L137+$J$138*L138+$J$139*L139+$J$140*L140 -> 0 | S91: =$J$148*L148+$J$149*L149+$J$150*L150+$J$151*L151+$J$152*L152+$J$153*L153+$J$154*L154+$J$155*L155+$J$156*L156+$J$157*L157 -> 0 | T91: =(AC81+AB81+AE81) -> 0 | U91: 0.5 | V91: =(T91*U91)+R91+S91 -> 0
C92: <enter description> | E92: Select star rating | F92: =IF(NOT(D92=""),D92,IF(OR(E92="",E92=$M$100),"",HLOOKUP(E92,$N$100:$U$104,4,FALSE))) ->  | M92: Urinals | N92: 3 Star | O92: =HLOOKUP(N92,$N$100:$U$104,3,FALSE) -> 2 | P92: =IF(SUM(G79:G82)=0,0,(IF(F79="",0,F79*G79)+IF(F80="",0,F80*G80)+IF(F81="",0,F81*G81)+IF(F82="",0,F82*G82))/SUM(G79:G82)) -> 0
C93: <enter description> | E93: Select star rating | F93: =IF(NOT(D93=""),D93,IF(OR(E93="",E93=$M$100),"",HLOOKUP(E93,$N$100:$U$104,4,FALSE))) ->  | J93: =CONCATENATE("(The Standard Practice Benchmark is based on ",$N$94," WELS rated taps)") -> (The Standard Practice Benchmark is based on 4 Star WELS rated taps) | M93: Urinals on Autoflush | N93: / | O93: / | P93: =F84 -> 0
F94: Total | G94: =SUM(G90:G93) -> 0 | H94: =AB80 -> 0 | I94: =AB81 -> 0 | M94: Indoor Taps | N94: 4 Star | O94: =HLOOKUP(N94,$N$100:$T$104,4,FALSE) -> 7.5 | P94: =IF(F90="",0,F90*G90)+IF(F91="",0,F91*G91)+IF(F92="",0,F92*G92)+IF(F93="",0,F93*G93) -> 0
G95: =IF(G94=1,"","Please ensure the total equals 100%") -> Please ensure the total equals 100% | M95: Showers - Cyclist | N95: 3 Star | O95: =HLOOKUP(N95,$N$100:$T$104,5,FALSE) -> 9 | P95: =IF(F98="",0,F98*G98)+IF(F99="",0,F99*G99)+IF(F100="",0,F100*G100)+IF(F101="",0,F101*G101) -> 0
D96: Shower demand by occupants (reference) | H96: For residential buildings Enter 100% for both "reference" and "current" shower demand For other building Types Use the reference and proposed building bicycle accommodation percentage from the Sustainable Transport Calculator, or percentages determined under 17.B.4 'Active Transport Facilities' criterion to determine the number of building occupants that are likely to shower each day. | M96: Showers - Sports | N96: 3 Star | O96: =HLOOKUP(N96,$N$100:$T$104,5,FALSE) -> 9 | P96: =IF(F107="",0,F107*G107)+IF(F108="",0,F108*G108)+IF(F109="",0,F109*G109)+IF(F110="",0,F110*G110) -> 0
C97: Showers - Occupants | D97: Shower demand by occupants (current)
C98: <enter description> | E98: Select star rating | F98: =IF(NOT(D98=""),D98,IF(OR(E98="",E98=$M$100),"",HLOOKUP(E98,$N$100:$U$104,5,FALSE))) ->  | M98: Water efficiency thresholds for WELS rated toilets, taps and shower. From AS/NZS 6400:2005
C99: <enter description> | E99: Select star rating | F99: =IF(NOT(D99=""),D99,IF(OR(E99="",E99=$M$100),"",HLOOKUP(E99,$N$100:$U$104,5,FALSE))) ->  | M99: Fixture/Fitting | N99: WELS Ratings
C100: <enter description> | E100: Select star rating | F100: =IF(NOT(D100=""),D100,IF(OR(E100="",E100=$M$100),"",HLOOKUP(E100,$N$100:$U$104,5,FALSE))) ->  | M100: Select star rating | N100: 0 Star | O100: 1 Star | P100: 2 Star | Q100: 3 Star | R100: 4 Star | S100: 5 Star | T100: 6 Star | U100: Waterless
C101: <enter description> | E101: Select star rating | F101: =IF(NOT(D101=""),D101,IF(OR(E101="",E101=$M$100),"",HLOOKUP(E101,$N$100:$U$104,5,FALSE))) ->  | J101: =CONCATENATE("(The Standard Practice Benchmark is based on ",$N$95," WELS rated showers)") -> (The Standard Practice Benchmark is based on 3 Star WELS rated showers) | M101: Toilets (L/use) | N101: n/a | O101: 5.5 | P101: 4.5 | Q101: 4 | R101: 3.5 | S101: 3 | T101: 2.5
F102: Total | G102: =SUM(G98:G101) -> 0 | H102: =AD80 -> 0 | I102: =AC81 -> 0 | M102: Urinals (L/use) | N102: 2.5 | O102: 2.5 | P102: 2.5 | Q102: 2 | R102: 1.5 | S102: 1 | T102: 1 | U102: 0
G103: =IF(G102=1,"","Please ensure the total equals 100%") -> Please ensure the total equals 100% | M103: Indoor Taps (L/min) | N103: 18 | O103: 16 | P103: 12 | Q103: 9 | R103: 7.5 | S103: 6 | T103: 4.5
D104: Indicate the number of people expected to participate in sporting activities each day. (Use an average based on weekly figures if required) | G104: Indicate the number of days/year that the sports facilities are in use | M104: Showers (L/min) | N104: 16 | O104: 16 | P104: 12 | Q104: 9 | R104: 9 | S104: 9 | T104: 9
C106: Showers - Sports facilities | D106: =IF(D34="No","THE PROJECT TEAM HAS INDICATED THAT THERE ARE NO WHITE GOODS INCLUDED IN THE PROJECT, PLEASE PROCEED TO THE NEXT SECTION.","") -> 
C107: <enter description> | E107: Select star rating | F107: =IF(NOT(D107=""),D107,IF(OR(E107="",E107=$M$100),"",HLOOKUP(E107,$N$100:$U$104,5,FALSE))) -> 
C108: <enter description> | E108: Select star rating | F108: =IF(NOT(D108=""),D108,IF(OR(E108="",E108=$M$100),"",HLOOKUP(E108,$N$100:$U$104,5,FALSE))) -> 
C109: <enter description> | E109: Select star rating | F109: =IF(NOT(D109=""),D109,IF(OR(E109="",E109=$M$100),"",HLOOKUP(E109,$N$100:$U$104,5,FALSE))) -> 
C110: <enter description> | E110: Select star rating | F110: =IF(NOT(D110=""),D110,IF(OR(E110="",E110=$M$100),"",HLOOKUP(E110,$N$100:$U$104,5,FALSE))) ->  | J110: =CONCATENATE("(The Standard Practice Benchmark is based on ",$N$96," WELS rated showers)") -> (The Standard Practice Benchmark is based on 3 Star WELS rated showers)
F111: Total | G111: =SUM(G107:G110) -> 0 | H111: =AE80 -> 0 | I111: =AE81 -> 0
G112: =IF(G111=1,"","Please ensure the total equals 100%") -> Please ensure the total equals 100%
C113: RESULTS: WATER DEMAND FROM FITTINGS
D115: Proposed Building water demand (kL/year) | E115: Standard Practice Building water demand (kL/year)
C116: =C70 -> Toilets | D116: =IF($D$32="Yes",H75,0) -> 0 | E116: =IF($D$32="Yes",I75,0) -> 0
C117: =C78 -> Urinals | D117: =IF($D$32="Yes",H87,0) -> 0 | E117: =IF($D$32="Yes",I87,0) -> 0
C118: =C89 -> Indoor taps | D118: =IF($D$32="Yes",H94,0) -> 0 | E118: =IF($D$32="Yes",I94,0) -> 0
C119: =C97 -> Showers - Occupants | D119: =IF($D$32="Yes",H102,0) -> 0 | E119: =IF($D$32="Yes",I102,0) -> 0
C120: =C106 -> Showers - Sports facilities | D120: =IF($D$34="Yes",H111,0) -> 0 | E120: =IF($D$34="Yes",I111,0) -> 0
C121: TOTAL | D121: =SUM(D116:D120) -> 0 | E121: =SUM(E116:E120) -> 0
B123: 2. WHITE GOODS | D123: =IF(D37="No","THE PROJECT TEAM HAS INDICATED THAT THERE ARE NO WHITE GOODS INCLUDED IN THE PROJECT, PLEASE PROCEED TO THE NEXT SECTION.","") ->  | M123: 2. Calculation of whitegoods consumption
B124: Water Demand from Washing Machines
M125: Select star rating | N125: 2 Star | O125: 2.5 Star | P125: 3 Star | Q125: 3.5 Star | R125: 4 Star | S125: 4.5 Star | T125: 5 Star | U125: 5.5 Star | V125: 6 Star
C126: The project team is to provide documentary evidence in accordance with the water calculator guide and technical manual to substantiate the number of cycles per year. Otherwise, leave blank and a default value will be applied. | M126: Washing machine (L/kg) | N126: =30*(1-0.3)^(2-1) -> 21 | O126: =30*(1-0.3)^(2.5-1) -> 17.56986056 | P126: =30*(1-0.3)^(3-1) -> 14.7 | Q126: =30*(1-0.3)^(3.5-1) -> 12.29890239 | R126: =30*(1-0.3)^(4-1) -> 10.29 | S126: =30*(1-0.3)^(4.5-1) -> 8.609231673 | T126: =30*(1-0.3)^(5-1) -> 7.203 | U126: =30*(1-0.3)^(5.5-1) -> 6.026462171 | V126: =30*(1-0.3)^(6-1) -> 5.0421
M127: Select star rating | N127: 1 Star | O127: 1.5 Star | P127: 2 Star | Q127: 2.5 Star | R127: 3 Star | S127: 3.5 Star | T127: 4 Star | U127: 4.5 Star | V127: 5 Star | W127: 5.5 Star | X127: 6 Star
D128: Water efficiency (Enter manually OR nominate WELS Star Rating) | F128: Machine capacity (kg) | G128: Resulting water efficiency used in calculator (L/kg) | H128: Number of each type | I128: Number of cycles per year (leave blank if unknown) | J128: Proportion of water per cycle that is sourced from DHW (%) | K128: Proposed Building water demand (kL/year) | L128: Standard Practice Building water demand (kL/year) | M128: Dishwashers (stars) | N128: 1 | O128: 1.5 | P128: 2 | Q128: 2.5 | R128: 3 | S128: 3.5 | T128: 4 | U128: 4.5 | V128: 5 | W128: 5.5 | X128: 6
D129: Manual entry from manufacturer's data sheet (L/kg) | E129: WELS Star Rating selection
C130: Clothes washing machines
C131: <enter description> | E131: Select star rating | G131: =IF(NOT(D131=""),D131,IF(OR(E131="",E131=$M$100),"",HLOOKUP(E131,$N$125:$V$126,2))) ->  | K131: =IF(TYPE(G131*H131*IF(ISBLANK(I131),365,I131)*F131)=16,0,G131*H131*IF(ISBLANK(I131),365,I131)*F131*0.001) -> 0 | L131: =IF(TYPE(HLOOKUP(M137,$N$125:$V$126,2)*H131*F131*IF(ISBLANK(I131),365,I131)*0.001)=16,0,HLOOKUP(M137,$N$125:$V$126,2)*H131*IF(ISBLANK(I131),365,I131)*F131*0.001) -> 0
C132: <enter description> | E132: Select star rating | K132: =IF(TYPE(G132*H132*IF(ISBLANK(I132),365,I132)*F132)=16,0,G132*H132*IF(ISBLANK(I132),365,I132)*F132*0.001) -> 0 | L132: =IF(TYPE(HLOOKUP(M138,$N$125:$V$126,2)*H132*F132*IF(ISBLANK(I132),365,I132)*0.001)=16,0,HLOOKUP(M138,$N$125:$V$126,2)*H132*IF(ISBLANK(I132),365,I132)*F132*0.001) -> 0
C133: <enter description> | E133: Select star rating | K133: 0 | L133: 0
C134: <enter description> | E134: Select star rating | K134: 0 | L134: 0 | M134: WASHING MACHINES | Y134: WASHING MACHINES
C135: <enter description> | E135: Select star rating | K135: 0 | L135: 0 | M135: Standard practice rating | N135: Standard practice for washing machines is based on the minimum star rating allowed by AS 6400:2005 | Y135: Standard practice rating | Z135: No minimum practice for dishwashers. Lowest WELS rating permissble is 1 star
C136: <enter description> | E136: Select star rating | K136: 0 | L136: 0
C137: <enter description> | E137: Select star rating | K137: 0 | L137: 0 | M137: =IF(F131="","",IF(F131>=5,"3 Star","2.5 Star")) ->  | Y137: =IF(F148="","",3.5) -> 
C138: <enter description> | E138: Select star rating | K138: 0 | L138: 0 | M138: =IF(F132="","",IF(F132>=5,"3 Star","2.5 Star")) ->  | Y138: =IF(F149="","",3.5) -> 
C139: <enter description> | E139: Select star rating | K139: 0 | L139: 0
C140: <enter description> | E140: Select star rating | K140: 0 | L140: 0
G141: Total | H141: =SUM(H131:H140) -> 0 | K141: =IF(D37="No",0,SUM(K131:K140)) -> 0 | L141: =IF(D37="No",0,SUM(L131:L140)) -> 0
B143: Water Demand from Dishwashers
D145: Water efficiency (Enter manually OR nominate WELS Star Rating) | F145: Machine capacity (number of place settings) | G145: Resulting water efficiency used in calculator (L/cycle) | H145: Number of each type | I145: Number of cycles per year (leave blank if unknown) | J145: Proportion of water per cycle that is sourced from DHW (%) | K145: Proposed Building water demand (kL/year) | L145: Standard Practice Building water demand (kL/year)
D146: Manual entry from manufacturer's data sheet (L/cycle) | E146: WELS Star Rating selection
C147: Dishwashers
C148: <enter description> | E148: Select star rating | G148: =IF(NOT(D148=""),D148,IF(OR(E149="",E149=$M$100),"",(2.5*0.825^(HLOOKUP(E149,$N$127:$X$128,2)-1)+1.6*F148*0.825^(HLOOKUP(E149,$N$127:$X$128,2)-1)))) ->  | K148: =IF(TYPE(G148*IF(ISBLANK(I148),365,I148)*0.001*H148)=16,0,G148*IF(ISBLANK(I148),365,I148)*0.001*H148) -> 0 | L148: =IF(Y137="",0,IF(ISBLANK(I148),365,I148)*H148*(2.5*0.825^(Y137-1)+1.6*F148*0.825^(Y137-1))*0.001) -> 0
C149: <enter description> | E149: Select star rating | G149: =IF(NOT(D149=""),D149,IF(OR(E150="",E150=$M$100),"",(2.5*0.825^(HLOOKUP(E150,$N$127:$X$128,2)-1)+1.6*F149*0.825^(HLOOKUP(E150,$N$127:$X$128,2)-1)))) ->  | K149: =IF(TYPE(G149*IF(ISBLANK(I149),365,I149)*0.001*H149)=16,0,G149*IF(ISBLANK(I149),365,I149)*0.001*H149) -> 0 | L149: =IF(Y138="",0,IF(ISBLANK(I149),365,I149)*H149*(2.5*0.825^(Y138-1)+1.6*F149*0.825^(Y138-1))*0.001) -> 0
C150: <enter description> | E150: Select star rating | G150: =IF(NOT(D150=""),D150,IF(OR(E151="",E151=$M$100),"",(2.5*0.825^(HLOOKUP(E151,$N$127:$X$128,2)-1)+1.6*F150*0.825^(HLOOKUP(E151,$N$127:$X$128,2)-1)))) ->  | K150: 0 | L150: 0
C151: <enter description> | E151: Select star rating | G151: =IF(NOT(D151=""),D151,IF(OR(E152="",E152=$M$100),"",(2.5*0.825^(HLOOKUP(E152,$N$127:$X$128,2)-1)+1.6*F151*0.825^(HLOOKUP(E152,$N$127:$X$128,2)-1)))) ->  | K151: 0 | L151: 0
C152: <enter description> | E152: Select star rating | G152: =IF(NOT(D152=""),D152,IF(OR(E152="",E152=$M$100),"",(2.5*0.825^(HLOOKUP(E152,$N$127:$X$128,2)-1)+1.6*F152*0.825^(HLOOKUP(E152,$N$127:$X$128,2)-1)))) ->  | K152: 0 | L152: 0
C153: <enter description> | E153: Select star rating | K153: 0 | L153: 0
C154: <enter description> | E154: Select star rating | K154: 0 | L154: 0
C155: <enter description> | E155: Select star rating | K155: 0 | L155: 0
C156: <enter description> | E156: Select star rating | K156: 0 | L156: 0
C157: <enter description> | E157: Select star rating | K157: 0 | L157: 0
G158: Total | H158: =SUM(H148:H157) -> 0 | K158: =IF(D37="No",0,SUM(K148:K157)) -> 0 | L158: =IF(D37="No",0,SUM(L148:L157)) -> 0
B160: 3. HEAT REJECTION WATER | M160: 3. Calculation of water demand for heat rejection
B161: This section requires outputs from the energy simulation undertaken for Energy Use (Credit 22). | M161: REFERENCE DATA
C162: GENERAL INFORMATION | M162: Message to appear | V162: Standard Practice HVAC System Types (Table 6 from Appendix B of the GHG Emissions Calculator Guide)
C163: Site elevation (m above sea level) | G163: Standard Practice Building HVAC system | N163: Yes | Q163: No | V163: Building Type | W163: System type | Y163: Note | Z163: Reference
C164: Maximum combined cooling tower air flow (L/s) | G164: Select one of the following building types: | H164: Please select | J164: =VLOOKUP(H164,V163:Z167,5,FALSE) -> 0 | M164: Does the building have cooling towers? | N164: Enter the total monthly cooling load (in kWh) for all zones in the project conditioned with systems that use cooling towers below. Cooling load from zones which are naturally ventilated or conditioned by air-cooled systems should not be included in this figure. | Q164: Please enter the average air temperture, relative humidity and heat rejection load for the standard practice building. | V164: Please select | Z164: 0
C165: Peak building cooling load (kW) | G165: Standard Practice HVAC system type assumed for Energy and Water Category | H165: =VLOOKUP(H164,V164:W167,2,FALSE) ->  | J165: =IF(D42="No","THE PROJECT TEAM HAS INDICATED THAT THERE ARE NO WATER BASED HEAT REJECTION SYSTEMS INCLUDED IN THE PROJECT, PLEASE COMPLETE THE STANDARD PRACTICE BUILDING COOLING LOAD ONLY.","") ->  | M165: Does the building contain any other water cooled systems that are not conventional cooling towers? | N165: Enter the total monthly water consumption in kL. | Q165: Please proceed to following section. | V165: Non-residential and < 2,300m2 | W165: System type 1: Package/Split DX reverse cycle (heat pump) systems | Y165: The Standard Practice Building is assumed to install no water cooled systems. No further information is required for the Standard Practice Building. | Z165: 1
G166: Maximum combined cooling tower air flow (L/s) | V166: Non-residential > 2,300m2 and less than 1,000 kWr total cooling capacity | W166: System type 2: Air cooled chillers | Y166: The Standard Practice Building is assumed to install no water cooled systems. No further information is required for the Standard Practice Building. | Z166: 2
G167: Peak building cooling load (kW) | V167: Non-residential and more than 1,000 kWr total cooling capacity | W167: System type 3: Water cooled chillers | Y167: Enter the total monthly cooling load (in kWh) for all zones conditioned by the Standard Practice HVAC system below. | Z167: 3
B169: Water Demand from Cooling Towers | D169: =IF(D42="No","THE PROJECT TEAM HAS INDICATED THAT THERE ARE NO COOLING TOWERS INCLUDED IN THE PROJECT, PLEASE PROCEED TO THE NEXT SECTION.","") -> 
H170: =VLOOKUP(H164,V164:Y167,4,FALSE) ->  | O170: Proposed Building | U170: Standard Practice Building | Z170: METHODOLOGY
O171: Evaporation (kL) | P171: Drift (kL) | Q171: Bleed (kL) | R171: TOTAL kL/month | U171: Evaporation (kL) | V171: Drift (kL) | W171: Bleed (kL) | X171: TOTAL kL/month | Z171: Total make-up water = Evaporation (L)+ Drift (L) + Bleed (L)
C172: =IF(D42="Yes",N164,IF(D42="No",Q164,IF(OR(D42="Please Select",D42=""),"Does the project rely on cooling towers for heat rejection? Please respond in the general section."))) -> Does the project rely on cooling towers for heat rejection? Please respond in the general section. | M172: January | N172: 1 | O172: =AD208 -> 0 | P172: =IF(OR($D$42="No",$D$42="Please Select"),0,IF(TYPE(((D176)*3600/($N$6*$D$194))*$D$195)=16,0,((D176)*3600/($N$6*$D$194))*$D$195)/1000) -> 0 | Q172: =IF(TYPE((O172/($D$199-1)))=16,0,(O172/($D$199-1))) -> 0 | R172: =SUM(O172:Q172) -> 0 | S172: 31 | U172: =AD222 -> 0 | V172: =IF(NOT($H$165=$W$167),0,IF(TYPE(((G176)*3600/($N$6*$E$194))*$E$195)=16,0,((G176)*3600/($N$6*$E$194))*$E$195)/1000) -> 0 | W172: =IF(TYPE((U172/($E$199-1)))=16,0,(U172/($E$199-1))) -> 0 | X172: =SUM(U172:W172) -> 0 | Z172: Where
M173: February | N173: 2 | O173: 0 | P173: 0 | Q173: 0 | R173: =SUM(O173:Q173) -> 0 | S173: 28 | U173: 0 | V173: 0 | W173: 0 | X173: =SUM(U173:W173) -> 0 | Z173: Evaporation = derived from diference in moisture content of entering and leaving cooling tower air conditions and the mass flow rate of air into the tower. Refer Thermodynamics: an engineering approach, Cengel and Boles 6th ed for more information.
C174: Data required for calculation of EVAPORATION: | H174: =IF(AND(SUM(G176:G187)>0,H164="Please select"),"Please select building type above","") ->  | M174: March | N174: 3 | O174: 0 | P174: 0 | Q174: 0 | R174: =SUM(O174:Q174) -> 0 | S174: 31 | U174: 0 | V174: 0 | W174: 0 | X174: 0
C175: Inputs | D175: Proposed Project monthly cooling load (kWh/month) | E175: Average dry bulb temperature (°C) | F175: Average relative humidity (%) | G175: Standard Practice Project monthly cooling load (kWh/month) | M175: April | N175: 4 | O175: 0 | P175: 0 | Q175: 0 | R175: 0 | S175: 30 | U175: 0 | V175: 0 | W175: 0 | X175: 0 | Z175: Drift = Drift Coefficient x Total Condenser Water Flow for month (L) Where Total Condenser Water Flow for month (L) = (Total cooling load (kWh)+Total Compressor heat (kWh)) x 3600 (s/hour)) / (Specific Heat of Water (4.18 kJ/(kg.K) x Condenser Water Δt)
C176: January | M176: May | N176: 5 | O176: 0 | P176: 0 | Q176: 0 | R176: 0 | S176: 31 | U176: 0 | V176: 0 | W176: 0 | X176: 0
C177: February | M177: June | N177: 6 | O177: 0 | P177: 0 | Q177: 0 | R177: 0 | S177: 30 | U177: 0 | V177: 0 | W177: 0 | X177: 0
C178: March | M178: July | N178: 7 | O178: 0 | P178: 0 | Q178: 0 | R178: 0 | S178: 31 | U178: 0 | V178: 0 | W178: 0 | X178: 0 | Z178: Bleed = (Evaporated quantity/(Cycles of concentration - 1) ~~~Derived from AIRAH best practice guidelines and http://www.conservationmechsys.com/ worked examples~~~
C179: April | M179: August | N179: 8 | O179: 0 | P179: 0 | Q179: 0 | R179: 0 | S179: 31 | U179: 0 | V179: 0 | W179: 0 | X179: 0
C180: May | M180: September | N180: 9 | O180: 0 | P180: 0 | Q180: 0 | R180: 0 | S180: 30 | U180: 0 | V180: 0 | W180: 0 | X180: 0
C181: June | M181: October | N181: 10 | O181: 0 | P181: 0 | Q181: 0 | R181: 0 | S181: 31 | U181: 0 | V181: 0 | W181: 0 | X181: 0
C182: July | M182: November | N182: 11 | O182: 0 | P182: 0 | Q182: 0 | R182: 0 | S182: 30 | U182: 0 | V182: 0 | W182: 0 | X182: 0
C183: August | M183: December | N183: 12 | O183: 0 | P183: 0 | Q183: 0 | R183: 0 | S183: 31 | U183: 0 | V183: 0 | W183: 0 | X183: 0
C184: September | M184: TOTAL (L/year) | O184: =SUM(O172:O183) -> 0 | P184: =SUM(P172:P183) -> 0 | Q184: =SUM(Q172:Q183) -> 0 | R184: =SUM(R172:R183) -> 0 | U184: =SUM(U172:U183) -> 0 | V184: =SUM(V172:V183) -> 0 | W184: =SUM(W172:W183) -> 0 | X184: =SUM(X172:X183) -> 0
C185: October
C186: November
C187: December
D188: Visit the NIWA's website to obtain average dry bulb and relative humidity data relevant to your site:
D189: https://cliflo.niwa.co.nz/
C192: Data required for calculation of DRIFT:
D193: Proposed Building | E193: Standard Practice Building
C194: Condenser Water Δt (°C) | E194: =N200 -> 5.5 | F194: (as per the requirements of the Greenhouse Gas Emissions Calculator Guide)
C195: Drift coefficient (%) | E195: =N201 -> 2e-05 | F195: (as required in AS3666.1 clause 4.4) | M195: REFERENCE DATA
M196: Standard Practice Building Heat Rejection Characteristics | T196: Molar mass of water vapour | V196: 18.02 | W196: kg/kmol
C197: Data required for calculation of BLEED: | M197: Parameter | N197: Value | P197: Further comments | T197: Molar mass of dry air | V197: 28.97 | W197: kg/kmol
D198: Proposed building | E198: Standard Practice Building | M198: Monthly cooling load | N198: As per Standard Practice Benchmark building in Greenhouse Gas Calculator | T198: Ambient pressure | V198: =101.325*(1-(2.25577*10^-5*D163))^5.25588 -> 101.325 | W198: kPa
C199: Cycles of concentration | E199: 6 | F199: Standard practice cycles of concentration | M199: Total Compressor heat | T199: Ideal gas constant for air | V199: 0.287 | W199: kJ/kg.K
C200: =IF(AND(D42="Yes",OR(ISTEXT(D199),D199="")),"Please Input the design cycle of concentration for the project cooling towers.","") ->  | M200: Condenser Water Δt | N200: 5.5 | P200: °C (as per the requirements in the GHG guide)
M201: Drift coefficient (%) | N201: 2e-05 | P201: as required in AS3666.1 clause 4.4
M202: TDS in make-up water | N202: Mains water is used as make-up water; TDS ppm same as entered for location
M203: TDS set point in system | N203: 500 | P203: ppm (based on standard practice)
M205: EVAPORATION CALCULATION | AE205: H | AF205: H | AG205: temp | AH205: temp
C206: Proposed Building | G206: Standard Practice Building | M206: Proposed design | AE206: 9.473 | AF206: 11.203 | AG206: 0 | AH206: 1
C207: Evaporation (kL) | D207: Drift (kL) | E207: Bleed (kL) | F207: TOTAL kL/month | G207: Evaporation (kL) | H207: Drift (kL) | I207: Bleed (kL) | J207: TOTAL kL/month | N207: Days/month | O207: Temp, db | P207: RH % | Q207: Psat [Pa] | R207: Pw [Pa] | S207: w [kg/kg] | T207: h (kJ/kg) | U207: Specific volume (m3/kg) | V207: Volume air entering (L/s) | W207: Mass of air entering tower | X207: Average heat rejection (kJ/s) | Y207: Leaving air enthalpy, kJ/kg dry air | Z207: T leaving | AA207: Pw [Pa] | AB207: Moisture content of leaving air, kg H2O/kg dry air | AC207: water rejected L/s | AD207: Evaporation/ month (kL) | AE207: 11.203 | AF207: 12.982 | AG207: 1 | AH207: 2
B208: January | C208: =IF($D$42="Yes",O172,"") ->  | D208: =IF($D$42="Yes",P172,"") ->  | E208: =IF($D$42="Yes",Q172,"") ->  | F208: =IF($D$42="Yes",SUM(C208:E208),0) -> 0 | G208: =IF($H$165=$W$167,U172,0) -> 0 | H208: =IF($H$165=$W$167,V172,0) -> 0 | I208: =IF($H$165=$W$167,W172,0) -> 0 | J208: =IF($H$165=$W$167,SUM(G208:I208),0) -> 0 | M208: January | N208: 31 | O208: =E176 -> 0 | P208: =F176 -> 0 | Q208: =611.21*EXP((18.678-$O208/234.5)*($O208/(257.14+$O208))) -> 611.21 | R208: =$P208*$Q208/100 -> 0 | S208: =$V$196*$R208/($V$197*($V$198*1000-$R208)) -> 0 | T208: =1.006*$O208+$S208*(2501+1.805*$O208) -> 0 | U208: =$V$199*($O208+273.15)/$V$198 -> 0.7736891192 | V208: =$D$164*X208/$D$165 ->  | W208: =V208/1000/U208 ->  | X208: =IF(OR($D$42="No",$D$42="Please Select"),0,D176*3600/N208/(24*3600)) -> 0 | Y208: =IF(TYPE(T208+X208/W208)=16,"",T208+X208/W208) ->  | Z208: =VLOOKUP(Y208,$AE$206:$AH$256,4)+(Y208-VLOOKUP(Y208,$AE$206:$AF$256,2))*((VLOOKUP(Y208,$AE$206:$AH$256,4)-VLOOKUP(Y208,$AE$206:$AH$256,3))/(VLOOKUP(Y208,$AE$206:$AH$256,2)-VLOOKUP(Y208,$AE$206:$AH$256,1))) ->  | AA208: =611.21*EXP((18.678-$Z208/234.5)*($Z208/(257.14+$Z208))) ->  | AB208: =$V$196*$AA208/($V$197*($V$198*1000-$AA208)) ->  | AC208: =W208*(AB208-S208) ->  | AD208: =IF(TYPE(AC208*24*3600*N208*0.001)=16,0,AC208*24*3600*N208*0.001) -> 0 | AE208: 12.982 | AF208: 14.811 | AG208: 2 | AH208: 3
B209: February | F209: 0 | G209: 0 | H209: 0 | I209: 0 | J209: =IF($H$165=$W$167,SUM(G209:I209),0) -> 0 | M209: February | N209: 28 | O209: 0 | P209: 0 | Q209: 611.21 | R209: 0 | S209: 0 | T209: 0 | U209: 0.7736891192 | V209: =$D$164*X209/$D$165 ->  | W209: =V209/1000/U209 ->  | X209: =IF(OR($D$42="No",$D$42="Please Select"),0,D177*3600/N209/(24*3600)) -> 0 | Y209: =IF(TYPE(T209+X209/W209)=16,"",T209+X209/W209) ->  | AD209: 0 | AE209: 14.811 | AF209: 16.696 | AG209: 3 | AH209: 4
B210: March | F210: 0 | G210: 0 | H210: 0 | I210: 0 | J210: 0 | M210: March | N210: 31 | O210: 0 | P210: 0 | Q210: 611.21 | R210: 0 | S210: 0 | T210: 0 | U210: 0.7736891192 | X210: 0 | AD210: 0 | AE210: 16.696 | AF210: 18.639 | AG210: 4 | AH210: 5
B211: April | F211: 0 | G211: 0 | H211: 0 | I211: 0 | J211: 0 | M211: April | N211: 30 | O211: 0 | P211: 0 | Q211: 611.21 | R211: 0 | S211: 0 | T211: 0 | U211: 0.7736891192 | X211: 0 | AD211: 0 | AE211: 18.639 | AF211: 20.644 | AG211: 5 | AH211: 6
B212: May | F212: 0 | G212: 0 | H212: 0 | I212: 0 | J212: 0 | M212: May | N212: 31 | O212: 0 | P212: 0 | Q212: 611.21 | R212: 0 | S212: 0 | T212: 0 | U212: 0.7736891192 | X212: 0 | AD212: 0 | AE212: 20.644 | AF212: 22.713 | AG212: 6 | AH212: 7
B213: June | F213: 0 | G213: 0 | H213: 0 | I213: 0 | J213: 0 | M213: June | N213: 30 | O213: 0 | P213: 0 | Q213: 611.21 | R213: 0 | S213: 0 | T213: 0 | U213: 0.7736891192 | X213: 0 | AD213: 0 | AE213: 22.713 | AF213: 24.852 | AG213: 7 | AH213: 8
B214: July | F214: 0 | G214: 0 | H214: 0 | I214: 0 | J214: 0 | M214: July | N214: 31 | O214: 0 | P214: 0 | Q214: 611.21 | R214: 0 | S214: 0 | T214: 0 | U214: 0.7736891192 | X214: 0 | AD214: 0 | AE214: 24.852 | AF214: 27.064 | AG214: 8 | AH214: 9
B215: August | F215: 0 | G215: 0 | H215: 0 | I215: 0 | J215: 0 | M215: August | N215: 31 | O215: 0 | P215: 0 | Q215: 611.21 | R215: 0 | S215: 0 | T215: 0 | U215: 0.7736891192 | X215: 0 | AD215: 0 | AE215: 27.064 | AF215: 29.352 | AG215: 9 | AH215: 10
B216: September | F216: 0 | G216: 0 | H216: 0 | I216: 0 | J216: 0 | M216: September | N216: 30 | O216: 0 | P216: 0 | Q216: 611.21 | R216: 0 | S216: 0 | T216: 0 | U216: 0.7736891192 | X216: 0 | AD216: 0 | AE216: 29.352 | AF216: 31.724 | AG216: 10 | AH216: 11
B217: October | F217: 0 | G217: 0 | H217: 0 | I217: 0 | J217: 0 | M217: October | N217: 31 | O217: 0 | P217: 0 | Q217: 611.21 | R217: 0 | S217: 0 | T217: 0 | U217: 0.7736891192 | X217: 0 | AD217: 0 | AE217: 31.724 | AF217: 34.179 | AG217: 11 | AH217: 12
... 892 more rows

Sheet Raw Data (hidden)
B1: site | C1: date | D1: rainfall [mm]
A2: =_xlfn.CONCAT(B2,"-",DAY(C2),"-",MONTH(C2),"-",YEAR(C2)) -> Auckland (Auckland)-1-1-1960 | B2: Auckland (Auckland) | C2: 1960-01-01 | D2: 0
A3: =_xlfn.CONCAT(B3,"-",DAY(C3),"-",MONTH(C3),"-",YEAR(C3)) -> Auckland (Auckland)-2-1-1960 | B3: Auckland (Auckland) | C3: 1960-01-02 | D3: 0
A4: Auckland (Auckland)-3-1-1960 | B4: Auckland (Auckland) | C4: 1960-01-03 | D4: 9.2
A5: Auckland (Auckland)-4-1-1960 | B5: Auckland (Auckland) | C5: 1960-01-04 | D5: 0
A6: Auckland (Auckland)-5-1-1960 | B6: Auckland (Auckland) | C6: 1960-01-05 | D6: 0
A7: Auckland (Auckland)-6-1-1960 | B7: Auckland (Auckland) | C7: 1960-01-06 | D7: 1.6
A8: Auckland (Auckland)-7-1-1960 | B8: Auckland (Auckland) | C8: 1960-01-07 | D8: 0
A9: Auckland (Auckland)-8-1-1960 | B9: Auckland (Auckland) | C9: 1960-01-08 | D9: 0
A10: Auckland (Auckland)-9-1-1960 | B10: Auckland (Auckland) | C10: 1960-01-09 | D10: 0
A11: Auckland (Auckland)-10-1-1960 | B11: Auckland (Auckland) | C11: 1960-01-10 | D11: 0
A12: Auckland (Auckland)-11-1-1960 | B12: Auckland (Auckland) | C12: 1960-01-11 | D12: 0
A13: Auckland (Auckland)-12-1-1960 | B13: Auckland (Auckland) | C13: 1960-01-12 | D13: 0
A14: Auckland (Auckland)-13-1-1960 | B14: Auckland (Auckland) | C14: 1960-01-13 | D14: 0
A15: Auckland (Auckland)-14-1-1960 | B15: Auckland (Auckland) | C15: 1960-01-14 | D15: 0
A16: Auckland (Auckland)-15-1-1960 | B16: Auckland (Auckland) | C16: 1960-01-15 | D16: 0
A17: Auckland (Auckland)-16-1-1960 | B17: Auckland (Auckland) | C17: 1960-01-16 | D17: 0
A18: Auckland (Auckland)-17-1-1960 | B18: Auckland (Auckland) | C18: 1960-01-17 | D18: 1
A19: Auckland (Auckland)-18-1-1960 | B19: Auckland (Auckland) | C19: 1960-01-18 | D19: 0
A20: Auckland (Auckland)-19-1-1960 | B20: Auckland (Auckland) | C20: 1960-01-19 | D20: 0
A21: Auckland (Auckland)-20-1-1960 | B21: Auckland (Auckland) | C21: 1960-01-20 | D21: 0
A22: Auckland (Auckland)-21-1-1960 | B22: Auckland (Auckland) | C22: 1960-01-21 | D22: 0
A23: Auckland (Auckland)-22-1-1960 | B23: Auckland (Auckland) | C23: 1960-01-22 | D23: 0
A24: Auckland (Auckland)-23-1-1960 | B24: Auckland (Auckland) | C24: 1960-01-23 | D24: 0
A25: Auckland (Auckland)-24-1-1960 | B25: Auckland (Auckland) | C25: 1960-01-24 | D25: 8.2
A26: Auckland (Auckland)-25-1-1960 | B26: Auckland (Auckland) | C26: 1960-01-25 | D26: 1.2
A27: Auckland (Auckland)-26-1-1960 | B27: Auckland (Auckland) | C27: 1960-01-26 | D27: 0
A28: Auckland (Auckland)-27-1-1960 | B28: Auckland (Auckland) | C28: 1960-01-27 | D28: 0
A29: Auckland (Auckland)-28-1-1960 | B29: Auckland (Auckland) | C29: 1960-01-28 | D29: 0
A30: Auckland (Auckland)-29-1-1960 | B30: Auckland (Auckland) | C30: 1960-01-29 | D30: 0
A31: Auckland (Auckland)-30-1-1960 | B31: Auckland (Auckland) | C31: 1960-01-30 | D31: 0
A32: Auckland (Auckland)-31-1-1960 | B32: Auckland (Auckland) | C32: 1960-01-31 | D32: 0
A33: Auckland (Auckland)-1-2-1960 | B33: Auckland (Auckland) | C33: 1960-02-01 | D33: 0
A34: Auckland (Auckland)-2-2-1960 | B34: Auckland (Auckland) | C34: 1960-02-02 | D34: 2.3
A35: Auckland (Auckland)-3-2-1960 | B35: Auckland (Auckland) | C35: 1960-02-03 | D35: 23.5
A36: Auckland (Auckland)-4-2-1960 | B36: Auckland (Auckland) | C36: 1960-02-04 | D36: 42.9
A37: Auckland (Auckland)-5-2-1960 | B37: Auckland (Auckland) | C37: 1960-02-05 | D37: 0
A38: Auckland (Auckland)-6-2-1960 | B38: Auckland (Auckland) | C38: 1960-02-06 | D38: 0
A39: Auckland (Auckland)-7-2-1960 | B39: Auckland (Auckland) | C39: 1960-02-07 | D39: 0
A40: Auckland (Auckland)-8-2-1960 | B40: Auckland (Auckland) | C40: 1960-02-08 | D40: 0
A41: Auckland (Auckland)-9-2-1960 | B41: Auckland (Auckland) | C41: 1960-02-09 | D41: 0
A42: Auckland (Auckland)-10-2-1960 | B42: Auckland (Auckland) | C42: 1960-02-10 | D42: 0
A43: Auckland (Auckland)-11-2-1960 | B43: Auckland (Auckland) | C43: 1960-02-11 | D43: 3.3
A44: Auckland (Auckland)-12-2-1960 | B44: Auckland (Auckland) | C44: 1960-02-12 | D44: 0
A45: Auckland (Auckland)-13-2-1960 | B45: Auckland (Auckland) | C45: 1960-02-13 | D45: 0
A46: Auckland (Auckland)-14-2-1960 | B46: Auckland (Auckland) | C46: 1960-02-14 | D46: 2.8
A47: Auckland (Auckland)-15-2-1960 | B47: Auckland (Auckland) | C47: 1960-02-15 | D47: 0
A48: Auckland (Auckland)-16-2-1960 | B48: Auckland (Auckland) | C48: 1960-02-16 | D48: 0
A49: Auckland (Auckland)-17-2-1960 | B49: Auckland (Auckland) | C49: 1960-02-17 | D49: 0
A50: Auckland (Auckland)-18-2-1960 | B50: Auckland (Auckland) | C50: 1960-02-18 | D50: 0
A51: Auckland (Auckland)-19-2-1960 | B51: Auckland (Auckland) | C51: 1960-02-19 | D51: 0
A52: Auckland (Auckland)-20-2-1960 | B52: Auckland (Auckland) | C52: 1960-02-20 | D52: 0
A53: Auckland (Auckland)-21-2-1960 | B53: Auckland (Auckland) | C53: 1960-02-21 | D53: 2
A54: Auckland (Auckland)-22-2-1960 | B54: Auckland (Auckland) | C54: 1960-02-22 | D54: 8.4
A55: Auckland (Auckland)-23-2-1960 | B55: Auckland (Auckland) | C55: 1960-02-23 | D55: 19.4
A56: Auckland (Auckland)-24-2-1960 | B56: Auckland (Auckland) | C56: 1960-02-24 | D56: 19.3
A57: Auckland (Auckland)-25-2-1960 | B57: Auckland (Auckland) | C57: 1960-02-25 | D57: 13.7
A58: Auckland (Auckland)-26-2-1960 | B58: Auckland (Auckland) | C58: 1960-02-26 | D58: 11.5
A59: Auckland (Auckland)-27-2-1960 | B59: Auckland (Auckland) | C59: 1960-02-27 | D59: 5.3
A60: Auckland (Auckland)-28-2-1960 | B60: Auckland (Auckland) | C60: 1960-02-28 | D60: 1.1
A61: Auckland (Auckland)-29-2-1960 | B61: Auckland (Auckland) | C61: 1960-02-29 | D61: 0
A62: Auckland (Auckland)-1-3-1960 | B62: Auckland (Auckland) | C62: 1960-03-01 | D62: 0
A63: Auckland (Auckland)-2-3-1960 | B63: Auckland (Auckland) | C63: 1960-03-02 | D63: 0
A64: Auckland (Auckland)-3-3-1960 | B64: Auckland (Auckland) | C64: 1960-03-03 | D64: 0
A65: Auckland (Auckland)-4-3-1960 | B65: Auckland (Auckland) | C65: 1960-03-04 | D65: 0
A66: Auckland (Auckland)-5-3-1960 | B66: Auckland (Auckland) | C66: 1960-03-05 | D66: 0
A67: =_xlfn.CONCAT(B67,"-",DAY(C67),"-",MONTH(C67),"-",YEAR(C67)) -> Auckland (Auckland)-6-3-1960 | B67: Auckland (Auckland) | C67: 1960-03-06 | D67: 0
A68: Auckland (Auckland)-7-3-1960 | B68: Auckland (Auckland) | C68: 1960-03-07 | D68: 1.9
A69: Auckland (Auckland)-8-3-1960 | B69: Auckland (Auckland) | C69: 1960-03-08 | D69: 4.2
A70: Auckland (Auckland)-9-3-1960 | B70: Auckland (Auckland) | C70: 1960-03-09 | D70: 0
A71: Auckland (Auckland)-10-3-1960 | B71: Auckland (Auckland) | C71: 1960-03-10 | D71: 0
A72: Auckland (Auckland)-11-3-1960 | B72: Auckland (Auckland) | C72: 1960-03-11 | D72: 2.2
A73: Auckland (Auckland)-12-3-1960 | B73: Auckland (Auckland) | C73: 1960-03-12 | D73: 1.2
A74: Auckland (Auckland)-13-3-1960 | B74: Auckland (Auckland) | C74: 1960-03-13 | D74: 1
A75: Auckland (Auckland)-14-3-1960 | B75: Auckland (Auckland) | C75: 1960-03-14 | D75: 5.2
A76: Auckland (Auckland)-15-3-1960 | B76: Auckland (Auckland) | C76: 1960-03-15 | D76: 1.7
A77: Auckland (Auckland)-16-3-1960 | B77: Auckland (Auckland) | C77: 1960-03-16 | D77: 0
A78: Auckland (Auckland)-17-3-1960 | B78: Auckland (Auckland) | C78: 1960-03-17 | D78: 0
A79: Auckland (Auckland)-18-3-1960 | B79: Auckland (Auckland) | C79: 1960-03-18 | D79: 0
A80: Auckland (Auckland)-19-3-1960 | B80: Auckland (Auckland) | C80: 1960-03-19 | D80: 0
A81: Auckland (Auckland)-20-3-1960 | B81: Auckland (Auckland) | C81: 1960-03-20 | D81: 0
A82: Auckland (Auckland)-21-3-1960 | B82: Auckland (Auckland) | C82: 1960-03-21 | D82: 32.9
A83: Auckland (Auckland)-22-3-1960 | B83: Auckland (Auckland) | C83: 1960-03-22 | D83: 0
A84: Auckland (Auckland)-23-3-1960 | B84: Auckland (Auckland) | C84: 1960-03-23 | D84: 5
A85: Auckland (Auckland)-24-3-1960 | B85: Auckland (Auckland) | C85: 1960-03-24 | D85: 4.7
A86: Auckland (Auckland)-25-3-1960 | B86: Auckland (Auckland) | C86: 1960-03-25 | D86: 1.1
A87: Auckland (Auckland)-26-3-1960 | B87: Auckland (Auckland) | C87: 1960-03-26 | D87: 0
A88: Auckland (Auckland)-27-3-1960 | B88: Auckland (Auckland) | C88: 1960-03-27 | D88: 0
A89: Auckland (Auckland)-28-3-1960 | B89: Auckland (Auckland) | C89: 1960-03-28 | D89: 2
A90: Auckland (Auckland)-29-3-1960 | B90: Auckland (Auckland) | C90: 1960-03-29 | D90: 2.2
A91: Auckland (Auckland)-30-3-1960 | B91: Auckland (Auckland) | C91: 1960-03-30 | D91: 2.3
A92: Auckland (Auckland)-31-3-1960 | B92: Auckland (Auckland) | C92: 1960-03-31 | D92: 1.3
A93: Auckland (Auckland)-1-4-1960 | B93: Auckland (Auckland) | C93: 1960-04-01 | D93: 0
A94: Auckland (Auckland)-2-4-1960 | B94: Auckland (Auckland) | C94: 1960-04-02 | D94: 0
A95: Auckland (Auckland)-3-4-1960 | B95: Auckland (Auckland) | C95: 1960-04-03 | D95: 1
A96: Auckland (Auckland)-4-4-1960 | B96: Auckland (Auckland) | C96: 1960-04-04 | D96: 0
A97: Auckland (Auckland)-5-4-1960 | B97: Auckland (Auckland) | C97: 1960-04-05 | D97: 0
A98: Auckland (Auckland)-6-4-1960 | B98: Auckland (Auckland) | C98: 1960-04-06 | D98: 1.9
A99: Auckland (Auckland)-7-4-1960 | B99: Auckland (Auckland) | C99: 1960-04-07 | D99: 0
A100: Auckland (Auckland)-8-4-1960 | B100: Auckland (Auckland) | C100: 1960-04-08 | D100: 0
A101: Auckland (Auckland)-9-4-1960 | B101: Auckland (Auckland) | C101: 1960-04-09 | D101: 0
A102: Auckland (Auckland)-10-4-1960 | B102: Auckland (Auckland) | C102: 1960-04-10 | D102: 1.8
A103: Auckland (Auckland)-11-4-1960 | B103: Auckland (Auckland) | C103: 1960-04-11 | D103: 18.6
A104: Auckland (Auckland)-12-4-1960 | B104: Auckland (Auckland) | C104: 1960-04-12 | D104: 33.1
A105: Auckland (Auckland)-13-4-1960 | B105: Auckland (Auckland) | C105: 1960-04-13 | D105: 0
A106: Auckland (Auckland)-14-4-1960 | B106: Auckland (Auckland) | C106: 1960-04-14 | D106: 0
A107: Auckland (Auckland)-15-4-1960 | B107: Auckland (Auckland) | C107: 1960-04-15 | D107: 0
A108: Auckland (Auckland)-16-4-1960 | B108: Auckland (Auckland) | C108: 1960-04-16 | D108: 2
A109: Auckland (Auckland)-17-4-1960 | B109: Auckland (Auckland) | C109: 1960-04-17 | D109: 33.7
A110: Auckland (Auckland)-18-4-1960 | B110: Auckland (Auckland) | C110: 1960-04-18 | D110: 2.7
A111: Auckland (Auckland)-19-4-1960 | B111: Auckland (Auckland) | C111: 1960-04-19 | D111: 0
A112: Auckland (Auckland)-20-4-1960 | B112: Auckland (Auckland) | C112: 1960-04-20 | D112: 0
A113: Auckland (Auckland)-21-4-1960 | B113: Auckland (Auckland) | C113: 1960-04-21 | D113: 0
A114: Auckland (Auckland)-22-4-1960 | B114: Auckland (Auckland) | C114: 1960-04-22 | D114: 0
A115: Auckland (Auckland)-23-4-1960 | B115: Auckland (Auckland) | C115: 1960-04-23 | D115: 0
A116: Auckland (Auckland)-24-4-1960 | B116: Auckland (Auckland) | C116: 1960-04-24 | D116: 0
A117: Auckland (Auckland)-25-4-1960 | B117: Auckland (Auckland) | C117: 1960-04-25 | D117: 0
A118: Auckland (Auckland)-26-4-1960 | B118: Auckland (Auckland) | C118: 1960-04-26 | D118: 0
A119: Auckland (Auckland)-27-4-1960 | B119: Auckland (Auckland) | C119: 1960-04-27 | D119: 0
A120: Auckland (Auckland)-28-4-1960 | B120: Auckland (Auckland) | C120: 1960-04-28 | D120: 0
A121: Auckland (Auckland)-29-4-1960 | B121: Auckland (Auckland) | C121: 1960-04-29 | D121: 0
A122: Auckland (Auckland)-30-4-1960 | B122: Auckland (Auckland) | C122: 1960-04-30 | D122: 0
A123: Auckland (Auckland)-1-5-1960 | B123: Auckland (Auckland) | C123: 1960-05-01 | D123: 0
A124: Auckland (Auckland)-2-5-1960 | B124: Auckland (Auckland) | C124: 1960-05-02 | D124: 0
A125: Auckland (Auckland)-3-5-1960 | B125: Auckland (Auckland) | C125: 1960-05-03 | D125: 0
A126: Auckland (Auckland)-4-5-1960 | B126: Auckland (Auckland) | C126: 1960-05-04 | D126: 0
A127: Auckland (Auckland)-5-5-1960 | B127: Auckland (Auckland) | C127: 1960-05-05 | D127: 0
A128: Auckland (Auckland)-6-5-1960 | B128: Auckland (Auckland) | C128: 1960-05-06 | D128: 0
A129: Auckland (Auckland)-7-5-1960 | B129: Auckland (Auckland) | C129: 1960-05-07 | D129: 8.3
A130: Auckland (Auckland)-8-5-1960 | B130: Auckland (Auckland) | C130: 1960-05-08 | D130: 3.8
A131: =_xlfn.CONCAT(B131,"-",DAY(C131),"-",MONTH(C131),"-",YEAR(C131)) -> Auckland (Auckland)-9-5-1960 | B131: Auckland (Auckland) | C131: 1960-05-09 | D131: 10.8
A132: Auckland (Auckland)-10-5-1960 | B132: Auckland (Auckland) | C132: 1960-05-10 | D132: 8.5
A133: Auckland (Auckland)-11-5-1960 | B133: Auckland (Auckland) | C133: 1960-05-11 | D133: 2.9
A134: Auckland (Auckland)-12-5-1960 | B134: Auckland (Auckland) | C134: 1960-05-12 | D134: 0
A135: Auckland (Auckland)-13-5-1960 | B135: Auckland (Auckland) | C135: 1960-05-13 | D135: 0
A136: Auckland (Auckland)-14-5-1960 | B136: Auckland (Auckland) | C136: 1960-05-14 | D136: 2.8
A137: Auckland (Auckland)-15-5-1960 | B137: Auckland (Auckland) | C137: 1960-05-15 | D137: 23.2
A138: Auckland (Auckland)-16-5-1960 | B138: Auckland (Auckland) | C138: 1960-05-16 | D138: 2.8
A139: Auckland (Auckland)-17-5-1960 | B139: Auckland (Auckland) | C139: 1960-05-17 | D139: 1.4
A140: Auckland (Auckland)-18-5-1960 | B140: Auckland (Auckland) | C140: 1960-05-18 | D140: 0
A141: Auckland (Auckland)-19-5-1960 | B141: Auckland (Auckland) | C141: 1960-05-19 | D141: 0
A142: Auckland (Auckland)-20-5-1960 | B142: Auckland (Auckland) | C142: 1960-05-20 | D142: 0
A143: Auckland (Auckland)-21-5-1960 | B143: Auckland (Auckland) | C143: 1960-05-21 | D143: 16
A144: Auckland (Auckland)-22-5-1960 | B144: Auckland (Auckland) | C144: 1960-05-22 | D144: 0
A145: Auckland (Auckland)-23-5-1960 | B145: Auckland (Auckland) | C145: 1960-05-23 | D145: 1.4
A146: Auckland (Auckland)-24-5-1960 | B146: Auckland (Auckland) | C146: 1960-05-24 | D146: 0
A147: Auckland (Auckland)-25-5-1960 | B147: Auckland (Auckland) | C147: 1960-05-25 | D147: 1.9
A148: Auckland (Auckland)-26-5-1960 | B148: Auckland (Auckland) | C148: 1960-05-26 | D148: 0
A149: Auckland (Auckland)-27-5-1960 | B149: Auckland (Auckland) | C149: 1960-05-27 | D149: 0
A150: Auckland (Auckland)-28-5-1960 | B150: Auckland (Auckland) | C150: 1960-05-28 | D150: 0
A151: Auckland (Auckland)-29-5-1960 | B151: Auckland (Auckland) | C151: 1960-05-29 | D151: 2.8
A152: Auckland (Auckland)-30-5-1960 | B152: Auckland (Auckland) | C152: 1960-05-30 | D152: 14.8
A153: Auckland (Auckland)-31-5-1960 | B153: Auckland (Auckland) | C153: 1960-05-31 | D153: 6.7
A154: Auckland (Auckland)-1-6-1960 | B154: Auckland (Auckland) | C154: 1960-06-01 | D154: 3.9
A155: Auckland (Auckland)-2-6-1960 | B155: Auckland (Auckland) | C155: 1960-06-02 | D155: 0
A156: Auckland (Auckland)-3-6-1960 | B156: Auckland (Auckland) | C156: 1960-06-03 | D156: 0
A157: Auckland (Auckland)-4-6-1960 | B157: Auckland (Auckland) | C157: 1960-06-04 | D157: 5.8
A158: Auckland (Auckland)-5-6-1960 | B158: Auckland (Auckland) | C158: 1960-06-05 | D158: 2.1
A159: Auckland (Auckland)-6-6-1960 | B159: Auckland (Auckland) | C159: 1960-06-06 | D159: 4.6
A160: Auckland (Auckland)-7-6-1960 | B160: Auckland (Auckland) | C160: 1960-06-07 | D160: 18.3
A161: Auckland (Auckland)-8-6-1960 | B161: Auckland (Auckland) | C161: 1960-06-08 | D161: 18.1
A162: Auckland (Auckland)-9-6-1960 | B162: Auckland (Auckland) | C162: 1960-06-09 | D162: 5.8
A163: Auckland (Auckland)-10-6-1960 | B163: Auckland (Auckland) | C163: 1960-06-10 | D163: 2.2
A164: Auckland (Auckland)-11-6-1960 | B164: Auckland (Auckland) | C164: 1960-06-11 | D164: 0
A165: Auckland (Auckland)-12-6-1960 | B165: Auckland (Auckland) | C165: 1960-06-12 | D165: 12.2
A166: Auckland (Auckland)-13-6-1960 | B166: Auckland (Auckland) | C166: 1960-06-13 | D166: 1.2
A167: Auckland (Auckland)-14-6-1960 | B167: Auckland (Auckland) | C167: 1960-06-14 | D167: 0
A168: Auckland (Auckland)-15-6-1960 | B168: Auckland (Auckland) | C168: 1960-06-15 | D168: 0
A169: Auckland (Auckland)-16-6-1960 | B169: Auckland (Auckland) | C169: 1960-06-16 | D169: 0
A170: Auckland (Auckland)-17-6-1960 | B170: Auckland (Auckland) | C170: 1960-06-17 | D170: 0
A171: Auckland (Auckland)-18-6-1960 | B171: Auckland (Auckland) | C171: 1960-06-18 | D171: 13.1
A172: Auckland (Auckland)-19-6-1960 | B172: Auckland (Auckland) | C172: 1960-06-19 | D172: 5.3
A173: Auckland (Auckland)-20-6-1960 | B173: Auckland (Auckland) | C173: 1960-06-20 | D173: 10.2
A174: Auckland (Auckland)-21-6-1960 | B174: Auckland (Auckland) | C174: 1960-06-21 | D174: 5.6
A175: Auckland (Auckland)-22-6-1960 | B175: Auckland (Auckland) | C175: 1960-06-22 | D175: 0
A176: Auckland (Auckland)-23-6-1960 | B176: Auckland (Auckland) | C176: 1960-06-23 | D176: 0
A177: Auckland (Auckland)-24-6-1960 | B177: Auckland (Auckland) | C177: 1960-06-24 | D177: 15.2
A178: Auckland (Auckland)-25-6-1960 | B178: Auckland (Auckland) | C178: 1960-06-25 | D178: 2.6
A179: Auckland (Auckland)-26-6-1960 | B179: Auckland (Auckland) | C179: 1960-06-26 | D179: 5
A180: Auckland (Auckland)-27-6-1960 | B180: Auckland (Auckland) | C180: 1960-06-27 | D180: 1.1
A181: Auckland (Auckland)-28-6-1960 | B181: Auckland (Auckland) | C181: 1960-06-28 | D181: 2.3
A182: Auckland (Auckland)-29-6-1960 | B182: Auckland (Auckland) | C182: 1960-06-29 | D182: 7.5
A183: Auckland (Auckland)-30-6-1960 | B183: Auckland (Auckland) | C183: 1960-06-30 | D183: 0
A184: Auckland (Auckland)-1-7-1960 | B184: Auckland (Auckland) | C184: 1960-07-01 | D184: 3.3
A185: Auckland (Auckland)-2-7-1960 | B185: Auckland (Auckland) | C185: 1960-07-02 | D185: 1.6
A186: Auckland (Auckland)-3-7-1960 | B186: Auckland (Auckland) | C186: 1960-07-03 | D186: 0
A187: Auckland (Auckland)-4-7-1960 | B187: Auckland (Auckland) | C187: 1960-07-04 | D187: 9.5
A188: Auckland (Auckland)-5-7-1960 | B188: Auckland (Auckland) | C188: 1960-07-05 | D188: 22.9
A189: Auckland (Auckland)-6-7-1960 | B189: Auckland (Auckland) | C189: 1960-07-06 | D189: 12.4
A190: Auckland (Auckland)-7-7-1960 | B190: Auckland (Auckland) | C190: 1960-07-07 | D190: 0
A191: Auckland (Auckland)-8-7-1960 | B191: Auckland (Auckland) | C191: 1960-07-08 | D191: 0
A192: Auckland (Auckland)-9-7-1960 | B192: Auckland (Auckland) | C192: 1960-07-09 | D192: 0
A193: Auckland (Auckland)-10-7-1960 | B193: Auckland (Auckland) | C193: 1960-07-10 | D193: 0
A194: Auckland (Auckland)-11-7-1960 | B194: Auckland (Auckland) | C194: 1960-07-11 | D194: 0
A195: =_xlfn.CONCAT(B195,"-",DAY(C195),"-",MONTH(C195),"-",YEAR(C195)) -> Auckland (Auckland)-12-7-1960 | B195: Auckland (Auckland) | C195: 1960-07-12 | D195: 0
A196: Auckland (Auckland)-13-7-1960 | B196: Auckland (Auckland) | C196: 1960-07-13 | D196: 0
A197: Auckland (Auckland)-14-7-1960 | B197: Auckland (Auckland) | C197: 1960-07-14 | D197: 0
A198: Auckland (Auckland)-15-7-1960 | B198: Auckland (Auckland) | C198: 1960-07-15 | D198: 0
A199: Auckland (Auckland)-16-7-1960 | B199: Auckland (Auckland) | C199: 1960-07-16 | D199: 12.9
A200: Auckland (Auckland)-17-7-1960 | B200: Auckland (Auckland) | C200: 1960-07-17 | D200: 1.2
... 4300 more rows

Sheet RAINFALL DATA
B2: Location:
G3: Year | H3: 2011 | I3: 2012 | J3: 2013 | K3: 2014 | L3: 2015 | M3: 2016 | N3: 2017 | O3: 2018 | P3: 2019 | Q3: 2020 | R3: 2021 | S3: 2022
C4: Auckland (Auckland) | E4: Day | F4: Month
C5: Blenheim (Marlborough) | E5: 1 | F5: 1 | H5: =_xlfn.IFNA(VLOOKUP(_xlfn.CONCAT($C$2,"-",$E5,"-",$F5,"-",H$3),'Raw Data'!$A$2:$D$690331,4,FALSE),"N/A") -> N/A | I5: =_xlfn.IFNA(VLOOKUP(_xlfn.CONCAT($C$2,"-",$E5,"-",$F5,"-",I$3),'Raw Data'!$A$2:$D$690331,4,FALSE),"N/A") -> N/A | J5: =_xlfn.IFNA(VLOOKUP(_xlfn.CONCAT($C$2,"-",$E5,"-",$F5,"-",J$3),'Raw Data'!$A$2:$D$690331,4,FALSE),"N/A") -> N/A | K5: =_xlfn.IFNA(VLOOKUP(_xlfn.CONCAT($C$2,"-",$E5,"-",$F5,"-",K$3),'Raw Data'!$A$2:$D$690331,4,FALSE),"N/A") -> N/A | L5: =_xlfn.IFNA(VLOOKUP(_xlfn.CONCAT($C$2,"-",$E5,"-",$F5,"-",L$3),'Raw Data'!$A$2:$D$690331,4,FALSE),"N/A") -> N/A | M5: =_xlfn.IFNA(VLOOKUP(_xlfn.CONCAT($C$2,"-",$E5,"-",$F5,"-",M$3),'Raw Data'!$A$2:$D$690331,4,FALSE),"N/A") -> N/A | N5: =_xlfn.IFNA(VLOOKUP(_xlfn.CONCAT($C$2,"-",$E5,"-",$F5,"-",N$3),'Raw Data'!$A$2:$D$690331,4,FALSE),"N/A") -> N/A | O5: =_xlfn.IFNA(VLOOKUP(_xlfn.CONCAT($C$2,"-",$E5,"-",$F5,"-",O$3),'Raw Data'!$A$2:$D$690331,4,FALSE),"N/A") -> N/A | P5: =_xlfn.IFNA(VLOOKUP(_xlfn.CONCAT($C$2,"-",$E5,"-",$F5,"-",P$3),'Raw Data'!$A$2:$D$690331,4,FALSE),"N/A") -> N/A | Q5: =_xlfn.IFNA(VLOOKUP(_xlfn.CONCAT($C$2,"-",$E5,"-",$F5,"-",Q$3),'Raw Data'!$A$2:$D$690331,4,FALSE),"N/A") -> N/A | R5: =_xlfn.IFNA(VLOOKUP(_xlfn.CONCAT($C$2,"-",$E5,"-",$F5,"-",R$3),'Raw Data'!$A$2:$D$690331,4,FALSE),"N/A") -> N/A | S5: =_xlfn.IFNA(VLOOKUP(_xlfn.CONCAT($C$2,"-",$E5,"-",$F5,"-",S$3),'Raw Data'!$A$2:$D$690331,4,FALSE),"N/A") -> N/A
C6: Christchurch (Canterbury) | E6: 2 | F6: 1 | H6: =_xlfn.IFNA(VLOOKUP(_xlfn.CONCAT($C$2,"-",$E6,"-",$F6,"-",H$3),'Raw Data'!$A$2:$D$690331,4,FALSE),"N/A") -> N/A | I6: =_xlfn.IFNA(VLOOKUP(_xlfn.CONCAT($C$2,"-",$E6,"-",$F6,"-",I$3),'Raw Data'!$A$2:$D$690331,4,FALSE),"N/A") -> N/A | J6: =_xlfn.IFNA(VLOOKUP(_xlfn.CONCAT($C$2,"-",$E6,"-",$F6,"-",J$3),'Raw Data'!$A$2:$D$690331,4,FALSE),"N/A") -> N/A | K6: =_xlfn.IFNA(VLOOKUP(_xlfn.CONCAT($C$2,"-",$E6,"-",$F6,"-",K$3),'Raw Data'!$A$2:$D$690331,4,FALSE),"N/A") -> N/A | L6: =_xlfn.IFNA(VLOOKUP(_xlfn.CONCAT($C$2,"-",$E6,"-",$F6,"-",L$3),'Raw Data'!$A$2:$D$690331,4,FALSE),"N/A") -> N/A | M6: =_xlfn.IFNA(VLOOKUP(_xlfn.CONCAT($C$2,"-",$E6,"-",$F6,"-",M$3),'Raw Data'!$A$2:$D$690331,4,FALSE),"N/A") -> N/A | N6: =_xlfn.IFNA(VLOOKUP(_xlfn.CONCAT($C$2,"-",$E6,"-",$F6,"-",N$3),'Raw Data'!$A$2:$D$690331,4,FALSE),"N/A") -> N/A | O6: =_xlfn.IFNA(VLOOKUP(_xlfn.CONCAT($C$2,"-",$E6,"-",$F6,"-",O$3),'Raw Data'!$A$2:$D$690331,4,FALSE),"N/A") -> N/A | P6: =_xlfn.IFNA(VLOOKUP(_xlfn.CONCAT($C$2,"-",$E6,"-",$F6,"-",P$3),'Raw Data'!$A$2:$D$690331,4,FALSE),"N/A") -> N/A | Q6: =_xlfn.IFNA(VLOOKUP(_xlfn.CONCAT($C$2,"-",$E6,"-",$F6,"-",Q$3),'Raw Data'!$A$2:$D$690331,4,FALSE),"N/A") -> N/A | R6: =_xlfn.IFNA(VLOOKUP(_xlfn.CONCAT($C$2,"-",$E6,"-",$F6,"-",R$3),'Raw Data'!$A$2:$D$690331,4,FALSE),"N/A") -> N/A | S6: =_xlfn.IFNA(VLOOKUP(_xlfn.CONCAT($C$2,"-",$E6,"-",$F6,"-",S$3),'Raw Data'!$A$2:$D$690331,4,FALSE),"N/A") -> N/A
C7: Dannevirke (Manawatū-Whanganui) | E7: 3 | F7: 1 | H7: =_xlfn.IFNA(VLOOKUP(_xlfn.CONCAT($C$2,"-",$E7,"-",$F7,"-",H$3),'Raw Data'!$A$2:$D$690331,4,FALSE),"N/A") -> N/A | I7: =_xlfn.IFNA(VLOOKUP(_xlfn.CONCAT($C$2,"-",$E7,"-",$F7,"-",I$3),'Raw Data'!$A$2:$D$690331,4,FALSE),"N/A") -> N/A | J7: =_xlfn.IFNA(VLOOKUP(_xlfn.CONCAT($C$2,"-",$E7,"-",$F7,"-",J$3),'Raw Data'!$A$2:$D$690331,4,FALSE),"N/A") -> N/A | K7: =_xlfn.IFNA(VLOOKUP(_xlfn.CONCAT($C$2,"-",$E7,"-",$F7,"-",K$3),'Raw Data'!$A$2:$D$690331,4,FALSE),"N/A") -> N/A | L7: =_xlfn.IFNA(VLOOKUP(_xlfn.CONCAT($C$2,"-",$E7,"-",$F7,"-",L$3),'Raw Data'!$A$2:$D$690331,4,FALSE),"N/A") -> N/A | M7: =_xlfn.IFNA(VLOOKUP(_xlfn.CONCAT($C$2,"-",$E7,"-",$F7,"-",M$3),'Raw Data'!$A$2:$D$690331,4,FALSE),"N/A") -> N/A | N7: =_xlfn.IFNA(VLOOKUP(_xlfn.CONCAT($C$2,"-",$E7,"-",$F7,"-",N$3),'Raw Data'!$A$2:$D$690331,4,FALSE),"N/A") -> N/A | O7: =_xlfn.IFNA(VLOOKUP(_xlfn.CONCAT($C$2,"-",$E7,"-",$F7,"-",O$3),'Raw Data'!$A$2:$D$690331,4,FALSE),"N/A") -> N/A | P7: =_xlfn.IFNA(VLOOKUP(_xlfn.CONCAT($C$2,"-",$E7,"-",$F7,"-",P$3),'Raw Data'!$A$2:$D$690331,4,FALSE),"N/A") -> N/A | Q7: =_xlfn.IFNA(VLOOKUP(_xlfn.CONCAT($C$2,"-",$E7,"-",$F7,"-",Q$3),'Raw Data'!$A$2:$D$690331,4,FALSE),"N/A") -> N/A | R7: =_xlfn.IFNA(VLOOKUP(_xlfn.CONCAT($C$2,"-",$E7,"-",$F7,"-",R$3),'Raw Data'!$A$2:$D$690331,4,FALSE),"N/A") -> N/A | S7: =_xlfn.IFNA(VLOOKUP(_xlfn.CONCAT($C$2,"-",$E7,"-",$F7,"-",S$3),'Raw Data'!$A$2:$D$690331,4,FALSE),"N/A") -> N/A
C8: Dunedin (Otago) | E8: 4 | F8: 1 | H8: =_xlfn.IFNA(VLOOKUP(_xlfn.CONCAT($C$2,"-",$E8,"-",$F8,"-",H$3),'Raw Data'!$A$2:$D$690331,4,FALSE),"N/A") -> N/A | I8: =_xlfn.IFNA(VLOOKUP(_xlfn.CONCAT($C$2,"-",$E8,"-",$F8,"-",I$3),'Raw Data'!$A$2:$D$690331,4,FALSE),"N/A") -> N/A | J8: =_xlfn.IFNA(VLOOKUP(_xlfn.CONCAT($C$2,"-",$E8,"-",$F8,"-",J$3),'Raw Data'!$A$2:$D$690331,4,FALSE),"N/A") -> N/A | K8: =_xlfn.IFNA(VLOOKUP(_xlfn.CONCAT($C$2,"-",$E8,"-",$F8,"-",K$3),'Raw Data'!$A$2:$D$690331,4,FALSE),"N/A") -> N/A | L8: =_xlfn.IFNA(VLOOKUP(_xlfn.CONCAT($C$2,"-",$E8,"-",$F8,"-",L$3),'Raw Data'!$A$2:$D$690331,4,FALSE),"N/A") -> N/A | M8: =_xlfn.IFNA(VLOOKUP(_xlfn.CONCAT($C$2,"-",$E8,"-",$F8,"-",M$3),'Raw Data'!$A$2:$D$690331,4,FALSE),"N/A") -> N/A | N8: =_xlfn.IFNA(VLOOKUP(_xlfn.CONCAT($C$2,"-",$E8,"-",$F8,"-",N$3),'Raw Data'!$A$2:$D$690331,4,FALSE),"N/A") -> N/A | O8: =_xlfn.IFNA(VLOOKUP(_xlfn.CONCAT($C$2,"-",$E8,"-",$F8,"-",O$3),'Raw Data'!$A$2:$D$690331,4,FALSE),"N/A") -> N/A | P8: =_xlfn.IFNA(VLOOKUP(_xlfn.CONCAT($C$2,"-",$E8,"-",$F8,"-",P$3),'Raw Data'!$A$2:$D$690331,4,FALSE),"N/A") -> N/A | Q8: =_xlfn.IFNA(VLOOKUP(_xlfn.CONCAT($C$2,"-",$E8,"-",$F8,"-",Q$3),'Raw Data'!$A$2:$D$690331,4,FALSE),"N/A") -> N/A | R8: =_xlfn.IFNA(VLOOKUP(_xlfn.CONCAT($C$2,"-",$E8,"-",$F8,"-",R$3),'Raw Data'!$A$2:$D$690331,4,FALSE),"N/A") -> N/A | S8: =_xlfn.IFNA(VLOOKUP(_xlfn.CONCAT($C$2,"-",$E8,"-",$F8,"-",S$3),'Raw Data'!$A$2:$D$690331,4,FALSE),"N/A") -> N/A
C9: Gisborne (Gisborne) | E9: 5 | F9: 1 | H9: =_xlfn.IFNA(VLOOKUP(_xlfn.CONCAT($C$2,"-",$E9,"-",$F9,"-",H$3),'Raw Data'!$A$2:$D$690331,4,FALSE),"N/A") -> N/A | I9: =_xlfn.IFNA(VLOOKUP(_xlfn.CONCAT($C$2,"-",$E9,"-",$F9,"-",I$3),'Raw Data'!$A$2:$D$690331,4,FALSE),"N/A") -> N/A | J9: =_xlfn.IFNA(VLOOKUP(_xlfn.CONCAT($C$2,"-",$E9,"-",$F9,"-",J$3),'Raw Data'!$A$2:$D$690331,4,FALSE),"N/A") -> N/A | K9: =_xlfn.IFNA(VLOOKUP(_xlfn.CONCAT($C$2,"-",$E9,"-",$F9,"-",K$3),'Raw Data'!$A$2:$D$690331,4,FALSE),"N/A") -> N/A | L9: =_xlfn.IFNA(VLOOKUP(_xlfn.CONCAT($C$2,"-",$E9,"-",$F9,"-",L$3),'Raw Data'!$A$2:$D$690331,4,FALSE),"N/A") -> N/A | M9: =_xlfn.IFNA(VLOOKUP(_xlfn.CONCAT($C$2,"-",$E9,"-",$F9,"-",M$3),'Raw Data'!$A$2:$D$690331,4,FALSE),"N/A") -> N/A | N9: =_xlfn.IFNA(VLOOKUP(_xlfn.CONCAT($C$2,"-",$E9,"-",$F9,"-",N$3),'Raw Data'!$A$2:$D$690331,4,FALSE),"N/A") -> N/A | O9: =_xlfn.IFNA(VLOOKUP(_xlfn.CONCAT($C$2,"-",$E9,"-",$F9,"-",O$3),'Raw Data'!$A$2:$D$690331,4,FALSE),"N/A") -> N/A | P9: =_xlfn.IFNA(VLOOKUP(_xlfn.CONCAT($C$2,"-",$E9,"-",$F9,"-",P$3),'Raw Data'!$A$2:$D$690331,4,FALSE),"N/A") -> N/A | Q9: =_xlfn.IFNA(VLOOKUP(_xlfn.CONCAT($C$2,"-",$E9,"-",$F9,"-",Q$3),'Raw Data'!$A$2:$D$690331,4,FALSE),"N/A") -> N/A | R9: =_xlfn.IFNA(VLOOKUP(_xlfn.CONCAT($C$2,"-",$E9,"-",$F9,"-",R$3),'Raw Data'!$A$2:$D$690331,4,FALSE),"N/A") -> N/A | S9: =_xlfn.IFNA(VLOOKUP(_xlfn.CONCAT($C$2,"-",$E9,"-",$F9,"-",S$3),'Raw Data'!$A$2:$D$690331,4,FALSE),"N/A") -> N/A
C10: Gore (Southland) | E10: 6 | F10: 1 | H10: =_xlfn.IFNA(VLOOKUP(_xlfn.CONCAT($C$2,"-",$E10,"-",$F10,"-",H$3),'Raw Data'!$A$2:$D$690331,4,FALSE),"N/A") -> N/A | I10: =_xlfn.IFNA(VLOOKUP(_xlfn.CONCAT($C$2,"-",$E10,"-",$F10,"-",I$3),'Raw Data'!$A$2:$D$690331,4,FALSE),"N/A") -> N/A | J10: =_xlfn.IFNA(VLOOKUP(_xlfn.CONCAT($C$2,"-",$E10,"-",$F10,"-",J$3),'Raw Data'!$A$2:$D$690331,4,FALSE),"N/A") -> N/A | K10: =_xlfn.IFNA(VLOOKUP(_xlfn.CONCAT($C$2,"-",$E10,"-",$F10,"-",K$3),'Raw Data'!$A$2:$D$690331,4,FALSE),"N/A") -> N/A | L10: =_xlfn.IFNA(VLOOKUP(_xlfn.CONCAT($C$2,"-",$E10,"-",$F10,"-",L$3),'Raw Data'!$A$2:$D$690331,4,FALSE),"N/A") -> N/A | M10: =_xlfn.IFNA(VLOOKUP(_xlfn.CONCAT($C$2,"-",$E10,"-",$F10,"-",M$3),'Raw Data'!$A$2:$D$690331,4,FALSE),"N/A") -> N/A | N10: =_xlfn.IFNA(VLOOKUP(_xlfn.CONCAT($C$2,"-",$E10,"-",$F10,"-",N$3),'Raw Data'!$A$2:$D$690331,4,FALSE),"N/A") -> N/A | O10: =_xlfn.IFNA(VLOOKUP(_xlfn.CONCAT($C$2,"-",$E10,"-",$F10,"-",O$3),'Raw Data'!$A$2:$D$690331,4,FALSE),"N/A") -> N/A | P10: =_xlfn.IFNA(VLOOKUP(_xlfn.CONCAT($C$2,"-",$E10,"-",$F10,"-",P$3),'Raw Data'!$A$2:$D$690331,4,FALSE),"N/A") -> N/A | Q10: =_xlfn.IFNA(VLOOKUP(_xlfn.CONCAT($C$2,"-",$E10,"-",$F10,"-",Q$3),'Raw Data'!$A$2:$D$690331,4,FALSE),"N/A") -> N/A | R10: =_xlfn.IFNA(VLOOKUP(_xlfn.CONCAT($C$2,"-",$E10,"-",$F10,"-",R$3),'Raw Data'!$A$2:$D$690331,4,FALSE),"N/A") -> N/A | S10: =_xlfn.IFNA(VLOOKUP(_xlfn.CONCAT($C$2,"-",$E10,"-",$F10,"-",S$3),'Raw Data'!$A$2:$D$690331,4,FALSE),"N/A") -> N/A
C11: Hamilton (Waikato) | E11: 7 | F11: 1 | H11: =_xlfn.IFNA(VLOOKUP(_xlfn.CONCAT($C$2,"-",$E11,"-",$F11,"-",H$3),'Raw Data'!$A$2:$D$690331,4,FALSE),"N/A") -> N/A | I11: =_xlfn.IFNA(VLOOKUP(_xlfn.CONCAT($C$2,"-",$E11,"-",$F11,"-",I$3),'Raw Data'!$A$2:$D$690331,4,FALSE),"N/A") -> N/A | J11: =_xlfn.IFNA(VLOOKUP(_xlfn.CONCAT($C$2,"-",$E11,"-",$F11,"-",J$3),'Raw Data'!$A$2:$D$690331,4,FALSE),"N/A") -> N/A | K11: =_xlfn.IFNA(VLOOKUP(_xlfn.CONCAT($C$2,"-",$E11,"-",$F11,"-",K$3),'Raw Data'!$A$2:$D$690331,4,FALSE),"N/A") -> N/A | L11: =_xlfn.IFNA(VLOOKUP(_xlfn.CONCAT($C$2,"-",$E11,"-",$F11,"-",L$3),'Raw Data'!$A$2:$D$690331,4,FALSE),"N/A") -> N/A | M11: =_xlfn.IFNA(VLOOKUP(_xlfn.CONCAT($C$2,"-",$E11,"-",$F11,"-",M$3),'Raw Data'!$A$2:$D$690331,4,FALSE),"N/A") -> N/A | N11: =_xlfn.IFNA(VLOOKUP(_xlfn.CONCAT($C$2,"-",$E11,"-",$F11,"-",N$3),'Raw Data'!$A$2:$D$690331,4,FALSE),"N/A") -> N/A | O11: =_xlfn.IFNA(VLOOKUP(_xlfn.CONCAT($C$2,"-",$E11,"-",$F11,"-",O$3),'Raw Data'!$A$2:$D$690331,4,FALSE),"N/A") -> N/A | P11: =_xlfn.IFNA(VLOOKUP(_xlfn.CONCAT($C$2,"-",$E11,"-",$F11,"-",P$3),'Raw Data'!$A$2:$D$690331,4,FALSE),"N/A") -> N/A | Q11: =_xlfn.IFNA(VLOOKUP(_xlfn.CONCAT($C$2,"-",$E11,"-",$F11,"-",Q$3),'Raw Data'!$A$2:$D$690331,4,FALSE),"N/A") -> N/A | R11: =_xlfn.IFNA(VLOOKUP(_xlfn.CONCAT($C$2,"-",$E11,"-",$F11,"-",R$3),'Raw Data'!$A$2:$D$690331,4,FALSE),"N/A") -> N/A | S11: =_xlfn.IFNA(VLOOKUP(_xlfn.CONCAT($C$2,"-",$E11,"-",$F11,"-",S$3),'Raw Data'!$A$2:$D$690331,4,FALSE),"N/A") -> N/A
C12: Hokitika (West Coast) | E12: 8 | F12: 1 | H12: =_xlfn.IFNA(VLOOKUP(_xlfn.CONCAT($C$2,"-",$E12,"-",$F12,"-",H$3),'Raw Data'!$A$2:$D$690331,4,FALSE),"N/A") -> N/A | I12: =_xlfn.IFNA(VLOOKUP(_xlfn.CONCAT($C$2,"-",$E12,"-",$F12,"-",I$3),'Raw Data'!$A$2:$D$690331,4,FALSE),"N/A") -> N/A | J12: =_xlfn.IFNA(VLOOKUP(_xlfn.CONCAT($C$2,"-",$E12,"-",$F12,"-",J$3),'Raw Data'!$A$2:$D$690331,4,FALSE),"N/A") -> N/A | K12: =_xlfn.IFNA(VLOOKUP(_xlfn.CONCAT($C$2,"-",$E12,"-",$F12,"-",K$3),'Raw Data'!$A$2:$D$690331,4,FALSE),"N/A") -> N/A | L12: =_xlfn.IFNA(VLOOKUP(_xlfn.CONCAT($C$2,"-",$E12,"-",$F12,"-",L$3),'Raw Data'!$A$2:$D$690331,4,FALSE),"N/A") -> N/A | M12: =_xlfn.IFNA(VLOOKUP(_xlfn.CONCAT($C$2,"-",$E12,"-",$F12,"-",M$3),'Raw Data'!$A$2:$D$690331,4,FALSE),"N/A") -> N/A | N12: =_xlfn.IFNA(VLOOKUP(_xlfn.CONCAT($C$2,"-",$E12,"-",$F12,"-",N$3),'Raw Data'!$A$2:$D$690331,4,FALSE),"N/A") -> N/A | O12: =_xlfn.IFNA(VLOOKUP(_xlfn.CONCAT($C$2,"-",$E12,"-",$F12,"-",O$3),'Raw Data'!$A$2:$D$690331,4,FALSE),"N/A") -> N/A | P12: =_xlfn.IFNA(VLOOKUP(_xlfn.CONCAT($C$2,"-",$E12,"-",$F12,"-",P$3),'Raw Data'!$A$2:$D$690331,4,FALSE),"N/A") -> N/A | Q12: =_xlfn.IFNA(VLOOKUP(_xlfn.CONCAT($C$2,"-",$E12,"-",$F12,"-",Q$3),'Raw Data'!$A$2:$D$690331,4,FALSE),"N/A") -> N/A | R12: =_xlfn.IFNA(VLOOKUP(_xlfn.CONCAT($C$2,"-",$E12,"-",$F12,"-",R$3),'Raw Data'!$A$2:$D$690331,4,FALSE),"N/A") -> N/A | S12: =_xlfn.IFNA(VLOOKUP(_xlfn.CONCAT($C$2,"-",$E12,"-",$F12,"-",S$3),'Raw Data'!$A$2:$D$690331,4,FALSE),"N/A") -> N/A
C13: Invercargill (Southland) | E13: 9 | F13: 1 | H13: =_xlfn.IFNA(VLOOKUP(_xlfn.CONCAT($C$2,"-",$E13,"-",$F13,"-",H$3),'Raw Data'!$A$2:$D$690331,4,FALSE),"N/A") -> N/A | I13: =_xlfn.IFNA(VLOOKUP(_xlfn.CONCAT($C$2,"-",$E13,"-",$F13,"-",I$3),'Raw Data'!$A$2:$D$690331,4,FALSE),"N/A") -> N/A | J13: =_xlfn.IFNA(VLOOKUP(_xlfn.CONCAT($C$2,"-",$E13,"-",$F13,"-",J$3),'Raw Data'!$A$2:$D$690331,4,FALSE),"N/A") -> N/A | K13: =_xlfn.IFNA(VLOOKUP(_xlfn.CONCAT($C$2,"-",$E13,"-",$F13,"-",K$3),'Raw Data'!$A$2:$D$690331,4,FALSE),"N/A") -> N/A | L13: =_xlfn.IFNA(VLOOKUP(_xlfn.CONCAT($C$2,"-",$E13,"-",$F13,"-",L$3),'Raw Data'!$A$2:$D$690331,4,FALSE),"N/A") -> N/A | M13: =_xlfn.IFNA(VLOOKUP(_xlfn.CONCAT($C$2,"-",$E13,"-",$F13,"-",M$3),'Raw Data'!$A$2:$D$690331,4,FALSE),"N/A") -> N/A | N13: =_xlfn.IFNA(VLOOKUP(_xlfn.CONCAT($C$2,"-",$E13,"-",$F13,"-",N$3),'Raw Data'!$A$2:$D$690331,4,FALSE),"N/A") -> N/A | O13: =_xlfn.IFNA(VLOOKUP(_xlfn.CONCAT($C$2,"-",$E13,"-",$F13,"-",O$3),'Raw Data'!$A$2:$D$690331,4,FALSE),"N/A") -> N/A | P13: =_xlfn.IFNA(VLOOKUP(_xlfn.CONCAT($C$2,"-",$E13,"-",$F13,"-",P$3),'Raw Data'!$A$2:$D$690331,4,FALSE),"N/A") -> N/A | Q13: =_xlfn.IFNA(VLOOKUP(_xlfn.CONCAT($C$2,"-",$E13,"-",$F13,"-",Q$3),'Raw Data'!$A$2:$D$690331,4,FALSE),"N/A") -> N/A | R13: =_xlfn.IFNA(VLOOKUP(_xlfn.CONCAT($C$2,"-",$E13,"-",$F13,"-",R$3),'Raw Data'!$A$2:$D$690331,4,FALSE),"N/A") -> N/A | S13: =_xlfn.IFNA(VLOOKUP(_xlfn.CONCAT($C$2,"-",$E13,"-",$F13,"-",S$3),'Raw Data'!$A$2:$D$690331,4,FALSE),"N/A") -> N/A
C14: Kerikeri (Northland) | E14: 10 | F14: 1 | H14: =_xlfn.IFNA(VLOOKUP(_xlfn.CONCAT($C$2,"-",$E14,"-",$F14,"-",H$3),'Raw Data'!$A$2:$D$690331,4,FALSE),"N/A") -> N/A | I14: =_xlfn.IFNA(VLOOKUP(_xlfn.CONCAT($C$2,"-",$E14,"-",$F14,"-",I$3),'Raw Data'!$A$2:$D$690331,4,FALSE),"N/A") -> N/A | J14: =_xlfn.IFNA(VLOOKUP(_xlfn.CONCAT($C$2,"-",$E14,"-",$F14,"-",J$3),'Raw Data'!$A$2:$D$690331,4,FALSE),"N/A") -> N/A | K14: =_xlfn.IFNA(VLOOKUP(_xlfn.CONCAT($C$2,"-",$E14,"-",$F14,"-",K$3),'Raw Data'!$A$2:$D$690331,4,FALSE),"N/A") -> N/A | L14: =_xlfn.IFNA(VLOOKUP(_xlfn.CONCAT($C$2,"-",$E14,"-",$F14,"-",L$3),'Raw Data'!$A$2:$D$690331,4,FALSE),"N/A") -> N/A | M14: =_xlfn.IFNA(VLOOKUP(_xlfn.CONCAT($C$2,"-",$E14,"-",$F14,"-",M$3),'Raw Data'!$A$2:$D$690331,4,FALSE),"N/A") -> N/A | N14: =_xlfn.IFNA(VLOOKUP(_xlfn.CONCAT($C$2,"-",$E14,"-",$F14,"-",N$3),'Raw Data'!$A$2:$D$690331,4,FALSE),"N/A") -> N/A | O14: =_xlfn.IFNA(VLOOKUP(_xlfn.CONCAT($C$2,"-",$E14,"-",$F14,"-",O$3),'Raw Data'!$A$2:$D$690331,4,FALSE),"N/A") -> N/A | P14: =_xlfn.IFNA(VLOOKUP(_xlfn.CONCAT($C$2,"-",$E14,"-",$F14,"-",P$3),'Raw Data'!$A$2:$D$690331,4,FALSE),"N/A") -> N/A | Q14: =_xlfn.IFNA(VLOOKUP(_xlfn.CONCAT($C$2,"-",$E14,"-",$F14,"-",Q$3),'Raw Data'!$A$2:$D$690331,4,FALSE),"N/A") -> N/A | R14: =_xlfn.IFNA(VLOOKUP(_xlfn.CONCAT($C$2,"-",$E14,"-",$F14,"-",R$3),'Raw Data'!$A$2:$D$690331,4,FALSE),"N/A") -> N/A | S14: =_xlfn.IFNA(VLOOKUP(_xlfn.CONCAT($C$2,"-",$E14,"-",$F14,"-",S$3),'Raw Data'!$A$2:$D$690331,4,FALSE),"N/A") -> N/A
C15: Lake Tekapo (Canterbury) | E15: 11 | F15: 1 | H15: =_xlfn.IFNA(VLOOKUP(_xlfn.CONCAT($C$2,"-",$E15,"-",$F15,"-",H$3),'Raw Data'!$A$2:$D$690331,4,FALSE),"N/A") -> N/A | I15: =_xlfn.IFNA(VLOOKUP(_xlfn.CONCAT($C$2,"-",$E15,"-",$F15,"-",I$3),'Raw Data'!$A$2:$D$690331,4,FALSE),"N/A") -> N/A | J15: =_xlfn.IFNA(VLOOKUP(_xlfn.CONCAT($C$2,"-",$E15,"-",$F15,"-",J$3),'Raw Data'!$A$2:$D$690331,4,FALSE),"N/A") -> N/A | K15: =_xlfn.IFNA(VLOOKUP(_xlfn.CONCAT($C$2,"-",$E15,"-",$F15,"-",K$3),'Raw Data'!$A$2:$D$690331,4,FALSE),"N/A") -> N/A | L15: =_xlfn.IFNA(VLOOKUP(_xlfn.CONCAT($C$2,"-",$E15,"-",$F15,"-",L$3),'Raw Data'!$A$2:$D$690331,4,FALSE),"N/A") -> N/A | M15: =_xlfn.IFNA(VLOOKUP(_xlfn.CONCAT($C$2,"-",$E15,"-",$F15,"-",M$3),'Raw Data'!$A$2:$D$690331,4,FALSE),"N/A") -> N/A | N15: =_xlfn.IFNA(VLOOKUP(_xlfn.CONCAT($C$2,"-",$E15,"-",$F15,"-",N$3),'Raw Data'!$A$2:$D$690331,4,FALSE),"N/A") -> N/A | O15: =_xlfn.IFNA(VLOOKUP(_xlfn.CONCAT($C$2,"-",$E15,"-",$F15,"-",O$3),'Raw Data'!$A$2:$D$690331,4,FALSE),"N/A") -> N/A | P15: =_xlfn.IFNA(VLOOKUP(_xlfn.CONCAT($C$2,"-",$E15,"-",$F15,"-",P$3),'Raw Data'!$A$2:$D$690331,4,FALSE),"N/A") -> N/A | Q15: =_xlfn.IFNA(VLOOKUP(_xlfn.CONCAT($C$2,"-",$E15,"-",$F15,"-",Q$3),'Raw Data'!$A$2:$D$690331,4,FALSE),"N/A") -> N/A | R15: =_xlfn.IFNA(VLOOKUP(_xlfn.CONCAT($C$2,"-",$E15,"-",$F15,"-",R$3),'Raw Data'!$A$2:$D$690331,4,FALSE),"N/A") -> N/A | S15: =_xlfn.IFNA(VLOOKUP(_xlfn.CONCAT($C$2,"-",$E15,"-",$F15,"-",S$3),'Raw Data'!$A$2:$D$690331,4,FALSE),"N/A") -> N/A
C16: Masterton (Wellington) | E16: 12 | F16: 1 | H16: =_xlfn.IFNA(VLOOKUP(_xlfn.CONCAT($C$2,"-",$E16,"-",$F16,"-",H$3),'Raw Data'!$A$2:$D$690331,4,FALSE),"N/A") -> N/A | I16: =_xlfn.IFNA(VLOOKUP(_xlfn.CONCAT($C$2,"-",$E16,"-",$F16,"-",I$3),'Raw Data'!$A$2:$D$690331,4,FALSE),"N/A") -> N/A | J16: =_xlfn.IFNA(VLOOKUP(_xlfn.CONCAT($C$2,"-",$E16,"-",$F16,"-",J$3),'Raw Data'!$A$2:$D$690331,4,FALSE),"N/A") -> N/A | K16: =_xlfn.IFNA(VLOOKUP(_xlfn.CONCAT($C$2,"-",$E16,"-",$F16,"-",K$3),'Raw Data'!$A$2:$D$690331,4,FALSE),"N/A") -> N/A | L16: =_xlfn.IFNA(VLOOKUP(_xlfn.CONCAT($C$2,"-",$E16,"-",$F16,"-",L$3),'Raw Data'!$A$2:$D$690331,4,FALSE),"N/A") -> N/A | M16: =_xlfn.IFNA(VLOOKUP(_xlfn.CONCAT($C$2,"-",$E16,"-",$F16,"-",M$3),'Raw Data'!$A$2:$D$690331,4,FALSE),"N/A") -> N/A | N16: =_xlfn.IFNA(VLOOKUP(_xlfn.CONCAT($C$2,"-",$E16,"-",$F16,"-",N$3),'Raw Data'!$A$2:$D$690331,4,FALSE),"N/A") -> N/A | O16: =_xlfn.IFNA(VLOOKUP(_xlfn.CONCAT($C$2,"-",$E16,"-",$F16,"-",O$3),'Raw Data'!$A$2:$D$690331,4,FALSE),"N/A") -> N/A | P16: =_xlfn.IFNA(VLOOKUP(_xlfn.CONCAT($C$2,"-",$E16,"-",$F16,"-",P$3),'Raw Data'!$A$2:$D$690331,4,FALSE),"N/A") -> N/A | Q16: =_xlfn.IFNA(VLOOKUP(_xlfn.CONCAT($C$2,"-",$E16,"-",$F16,"-",Q$3),'Raw Data'!$A$2:$D$690331,4,FALSE),"N/A") -> N/A | R16: =_xlfn.IFNA(VLOOKUP(_xlfn.CONCAT($C$2,"-",$E16,"-",$F16,"-",R$3),'Raw Data'!$A$2:$D$690331,4,FALSE),"N/A") -> N/A | S16: =_xlfn.IFNA(VLOOKUP(_xlfn.CONCAT($C$2,"-",$E16,"-",$F16,"-",S$3),'Raw Data'!$A$2:$D$690331,4,FALSE),"N/A") -> N/A
C17: Milford Sound (Southland) | E17: 13 | F17: 1 | H17: =_xlfn.IFNA(VLOOKUP(_xlfn.CONCAT($C$2,"-",$E17,"-",$F17,"-",H$3),'Raw Data'!$A$2:$D$690331,4,FALSE),"N/A") -> N/A | I17: =_xlfn.IFNA(VLOOKUP(_xlfn.CONCAT($C$2,"-",$E17,"-",$F17,"-",I$3),'Raw Data'!$A$2:$D$690331,4,FALSE),"N/A") -> N/A | J17: =_xlfn.IFNA(VLOOKUP(_xlfn.CONCAT($C$2,"-",$E17,"-",$F17,"-",J$3),'Raw Data'!$A$2:$D$690331,4,FALSE),"N/A") -> N/A | K17: =_xlfn.IFNA(VLOOKUP(_xlfn.CONCAT($C$2,"-",$E17,"-",$F17,"-",K$3),'Raw Data'!$A$2:$D$690331,4,FALSE),"N/A") -> N/A | L17: =_xlfn.IFNA(VLOOKUP(_xlfn.CONCAT($C$2,"-",$E17,"-",$F17,"-",L$3),'Raw Data'!$A$2:$D$690331,4,FALSE),"N/A") -> N/A | M17: =_xlfn.IFNA(VLOOKUP(_xlfn.CONCAT($C$2,"-",$E17,"-",$F17,"-",M$3),'Raw Data'!$A$2:$D$690331,4,FALSE),"N/A") -> N/A | N17: =_xlfn.IFNA(VLOOKUP(_xlfn.CONCAT($C$2,"-",$E17,"-",$F17,"-",N$3),'Raw Data'!$A$2:$D$690331,4,FALSE),"N/A") -> N/A | O17: =_xlfn.IFNA(VLOOKUP(_xlfn.CONCAT($C$2,"-",$E17,"-",$F17,"-",O$3),'Raw Data'!$A$2:$D$690331,4,FALSE),"N/A") -> N/A | P17: =_xlfn.IFNA(VLOOKUP(_xlfn.CONCAT($C$2,"-",$E17,"-",$F17,"-",P$3),'Raw Data'!$A$2:$D$690331,4,FALSE),"N/A") -> N/A | Q17: =_xlfn.IFNA(VLOOKUP(_xlfn.CONCAT($C$2,"-",$E17,"-",$F17,"-",Q$3),'Raw Data'!$A$2:$D$690331,4,FALSE),"N/A") -> N/A | R17: =_xlfn.IFNA(VLOOKUP(_xlfn.CONCAT($C$2,"-",$E17,"-",$F17,"-",R$3),'Raw Data'!$A$2:$D$690331,4,FALSE),"N/A") -> N/A | S17: =_xlfn.IFNA(VLOOKUP(_xlfn.CONCAT($C$2,"-",$E17,"-",$F17,"-",S$3),'Raw Data'!$A$2:$D$690331,4,FALSE),"N/A") -> N/A
C18: Napier (Hawke's Bay) | E18: 14 | F18: 1 | H18: =_xlfn.IFNA(VLOOKUP(_xlfn.CONCAT($C$2,"-",$E18,"-",$F18,"-",H$3),'Raw Data'!$A$2:$D$690331,4,FALSE),"N/A") -> N/A | I18: =_xlfn.IFNA(VLOOKUP(_xlfn.CONCAT($C$2,"-",$E18,"-",$F18,"-",I$3),'Raw Data'!$A$2:$D$690331,4,FALSE),"N/A") -> N/A | J18: =_xlfn.IFNA(VLOOKUP(_xlfn.CONCAT($C$2,"-",$E18,"-",$F18,"-",J$3),'Raw Data'!$A$2:$D$690331,4,FALSE),"N/A") -> N/A | K18: =_xlfn.IFNA(VLOOKUP(_xlfn.CONCAT($C$2,"-",$E18,"-",$F18,"-",K$3),'Raw Data'!$A$2:$D$690331,4,FALSE),"N/A") -> N/A | L18: =_xlfn.IFNA(VLOOKUP(_xlfn.CONCAT($C$2,"-",$E18,"-",$F18,"-",L$3),'Raw Data'!$A$2:$D$690331,4,FALSE),"N/A") -> N/A | M18: =_xlfn.IFNA(VLOOKUP(_xlfn.CONCAT($C$2,"-",$E18,"-",$F18,"-",M$3),'Raw Data'!$A$2:$D$690331,4,FALSE),"N/A") -> N/A | N18: =_xlfn.IFNA(VLOOKUP(_xlfn.CONCAT($C$2,"-",$E18,"-",$F18,"-",N$3),'Raw Data'!$A$2:$D$690331,4,FALSE),"N/A") -> N/A | O18: =_xlfn.IFNA(VLOOKUP(_xlfn.CONCAT($C$2,"-",$E18,"-",$F18,"-",O$3),'Raw Data'!$A$2:$D$690331,4,FALSE),"N/A") -> N/A | P18: =_xlfn.IFNA(VLOOKUP(_xlfn.CONCAT($C$2,"-",$E18,"-",$F18,"-",P$3),'Raw Data'!$A$2:$D$690331,4,FALSE),"N/A") -> N/A | Q18: =_xlfn.IFNA(VLOOKUP(_xlfn.CONCAT($C$2,"-",$E18,"-",$F18,"-",Q$3),'Raw Data'!$A$2:$D$690331,4,FALSE),"N/A") -> N/A | R18: =_xlfn.IFNA(VLOOKUP(_xlfn.CONCAT($C$2,"-",$E18,"-",$F18,"-",R$3),'Raw Data'!$A$2:$D$690331,4,FALSE),"N/A") -> N/A | S18: =_xlfn.IFNA(VLOOKUP(_xlfn.CONCAT($C$2,"-",$E18,"-",$F18,"-",S$3),'Raw Data'!$A$2:$D$690331,4,FALSE),"N/A") -> N/A
C19: Nelson (Nelson) | E19: 15 | F19: 1 | H19: =_xlfn.IFNA(VLOOKUP(_xlfn.CONCAT($C$2,"-",$E19,"-",$F19,"-",H$3),'Raw Data'!$A$2:$D$690331,4,FALSE),"N/A") -> N/A | I19: =_xlfn.IFNA(VLOOKUP(_xlfn.CONCAT($C$2,"-",$E19,"-",$F19,"-",I$3),'Raw Data'!$A$2:$D$690331,4,FALSE),"N/A") -> N/A | J19: =_xlfn.IFNA(VLOOKUP(_xlfn.CONCAT($C$2,"-",$E19,"-",$F19,"-",J$3),'Raw Data'!$A$2:$D$690331,4,FALSE),"N/A") -> N/A | K19: =_xlfn.IFNA(VLOOKUP(_xlfn.CONCAT($C$2,"-",$E19,"-",$F19,"-",K$3),'Raw Data'!$A$2:$D$690331,4,FALSE),"N/A") -> N/A | L19: =_xlfn.IFNA(VLOOKUP(_xlfn.CONCAT($C$2,"-",$E19,"-",$F19,"-",L$3),'Raw Data'!$A$2:$D$690331,4,FALSE),"N/A") -> N/A | M19: =_xlfn.IFNA(VLOOKUP(_xlfn.CONCAT($C$2,"-",$E19,"-",$F19,"-",M$3),'Raw Data'!$A$2:$D$690331,4,FALSE),"N/A") -> N/A | N19: =_xlfn.IFNA(VLOOKUP(_xlfn.CONCAT($C$2,"-",$E19,"-",$F19,"-",N$3),'Raw Data'!$A$2:$D$690331,4,FALSE),"N/A") -> N/A | O19: =_xlfn.IFNA(VLOOKUP(_xlfn.CONCAT($C$2,"-",$E19,"-",$F19,"-",O$3),'Raw Data'!$A$2:$D$690331,4,FALSE),"N/A") -> N/A | P19: =_xlfn.IFNA(VLOOKUP(_xlfn.CONCAT($C$2,"-",$E19,"-",$F19,"-",P$3),'Raw Data'!$A$2:$D$690331,4,FALSE),"N/A") -> N/A | Q19: =_xlfn.IFNA(VLOOKUP(_xlfn.CONCAT($C$2,"-",$E19,"-",$F19,"-",Q$3),'Raw Data'!$A$2:$D$690331,4,FALSE),"N/A") -> N/A | R19: =_xlfn.IFNA(VLOOKUP(_xlfn.CONCAT($C$2,"-",$E19,"-",$F19,"-",R$3),'Raw Data'!$A$2:$D$690331,4,FALSE),"N/A") -> N/A | S19: =_xlfn.IFNA(VLOOKUP(_xlfn.CONCAT($C$2,"-",$E19,"-",$F19,"-",S$3),'Raw Data'!$A$2:$D$690331,4,FALSE),"N/A") -> N/A
C20: New Plymouth (Taranaki) | E20: 16 | F20: 1 | H20: =_xlfn.IFNA(VLOOKUP(_xlfn.CONCAT($C$2,"-",$E20,"-",$F20,"-",H$3),'Raw Data'!$A$2:$D$690331,4,FALSE),"N/A") -> N/A | I20: =_xlfn.IFNA(VLOOKUP(_xlfn.CONCAT($C$2,"-",$E20,"-",$F20,"-",I$3),'Raw Data'!$A$2:$D$690331,4,FALSE),"N/A") -> N/A | J20: =_xlfn.IFNA(VLOOKUP(_xlfn.CONCAT($C$2,"-",$E20,"-",$F20,"-",J$3),'Raw Data'!$A$2:$D$690331,4,FALSE),"N/A") -> N/A | K20: =_xlfn.IFNA(VLOOKUP(_xlfn.CONCAT($C$2,"-",$E20,"-",$F20,"-",K$3),'Raw Data'!$A$2:$D$690331,4,FALSE),"N/A") -> N/A | L20: =_xlfn.IFNA(VLOOKUP(_xlfn.CONCAT($C$2,"-",$E20,"-",$F20,"-",L$3),'Raw Data'!$A$2:$D$690331,4,FALSE),"N/A") -> N/A | M20: =_xlfn.IFNA(VLOOKUP(_xlfn.CONCAT($C$2,"-",$E20,"-",$F20,"-",M$3),'Raw Data'!$A$2:$D$690331,4,FALSE),"N/A") -> N/A | N20: =_xlfn.IFNA(VLOOKUP(_xlfn.CONCAT($C$2,"-",$E20,"-",$F20,"-",N$3),'Raw Data'!$A$2:$D$690331,4,FALSE),"N/A") -> N/A | O20: =_xlfn.IFNA(VLOOKUP(_xlfn.CONCAT($C$2,"-",$E20,"-",$F20,"-",O$3),'Raw Data'!$A$2:$D$690331,4,FALSE),"N/A") -> N/A | P20: =_xlfn.IFNA(VLOOKUP(_xlfn.CONCAT($C$2,"-",$E20,"-",$F20,"-",P$3),'Raw Data'!$A$2:$D$690331,4,FALSE),"N/A") -> N/A | Q20: =_xlfn.IFNA(VLOOKUP(_xlfn.CONCAT($C$2,"-",$E20,"-",$F20,"-",Q$3),'Raw Data'!$A$2:$D$690331,4,FALSE),"N/A") -> N/A | R20: =_xlfn.IFNA(VLOOKUP(_xlfn.CONCAT($C$2,"-",$E20,"-",$F20,"-",R$3),'Raw Data'!$A$2:$D$690331,4,FALSE),"N/A") -> N/A | S20: =_xlfn.IFNA(VLOOKUP(_xlfn.CONCAT($C$2,"-",$E20,"-",$F20,"-",S$3),'Raw Data'!$A$2:$D$690331,4,FALSE),"N/A") -> N/A
C21: Queenstown (Otago) | E21: 17 | F21: 1 | H21: =_xlfn.IFNA(VLOOKUP(_xlfn.CONCAT($C$2,"-",$E21,"-",$F21,"-",H$3),'Raw Data'!$A$2:$D$690331,4,FALSE),"N/A") -> N/A | I21: =_xlfn.IFNA(VLOOKUP(_xlfn.CONCAT($C$2,"-",$E21,"-",$F21,"-",I$3),'Raw Data'!$A$2:$D$690331,4,FALSE),"N/A") -> N/A | J21: =_xlfn.IFNA(VLOOKUP(_xlfn.CONCAT($C$2,"-",$E21,"-",$F21,"-",J$3),'Raw Data'!$A$2:$D$690331,4,FALSE),"N/A") -> N/A | K21: =_xlfn.IFNA(VLOOKUP(_xlfn.CONCAT($C$2,"-",$E21,"-",$F21,"-",K$3),'Raw Data'!$A$2:$D$690331,4,FALSE),"N/A") -> N/A | L21: =_xlfn.IFNA(VLOOKUP(_xlfn.CONCAT($C$2,"-",$E21,"-",$F21,"-",L$3),'Raw Data'!$A$2:$D$690331,4,FALSE),"N/A") -> N/A | M21: =_xlfn.IFNA(VLOOKUP(_xlfn.CONCAT($C$2,"-",$E21,"-",$F21,"-",M$3),'Raw Data'!$A$2:$D$690331,4,FALSE),"N/A") -> N/A | N21: =_xlfn.IFNA(VLOOKUP(_xlfn.CONCAT($C$2,"-",$E21,"-",$F21,"-",N$3),'Raw Data'!$A$2:$D$690331,4,FALSE),"N/A") -> N/A | O21: =_xlfn.IFNA(VLOOKUP(_xlfn.CONCAT($C$2,"-",$E21,"-",$F21,"-",O$3),'Raw Data'!$A$2:$D$690331,4,FALSE),"N/A") -> N/A | P21: =_xlfn.IFNA(VLOOKUP(_xlfn.CONCAT($C$2,"-",$E21,"-",$F21,"-",P$3),'Raw Data'!$A$2:$D$690331,4,FALSE),"N/A") -> N/A | Q21: =_xlfn.IFNA(VLOOKUP(_xlfn.CONCAT($C$2,"-",$E21,"-",$F21,"-",Q$3),'Raw Data'!$A$2:$D$690331,4,FALSE),"N/A") -> N/A | R21: =_xlfn.IFNA(VLOOKUP(_xlfn.CONCAT($C$2,"-",$E21,"-",$F21,"-",R$3),'Raw Data'!$A$2:$D$690331,4,FALSE),"N/A") -> N/A | S21: =_xlfn.IFNA(VLOOKUP(_xlfn.CONCAT($C$2,"-",$E21,"-",$F21,"-",S$3),'Raw Data'!$A$2:$D$690331,4,FALSE),"N/A") -> N/A
C22: Reefton (West Coast) | E22: 18 | F22: 1 | H22: =_xlfn.IFNA(VLOOKUP(_xlfn.CONCAT($C$2,"-",$E22,"-",$F22,"-",H$3),'Raw Data'!$A$2:$D$690331,4,FALSE),"N/A") -> N/A | I22: =_xlfn.IFNA(VLOOKUP(_xlfn.CONCAT($C$2,"-",$E22,"-",$F22,"-",I$3),'Raw Data'!$A$2:$D$690331,4,FALSE),"N/A") -> N/A | J22: =_xlfn.IFNA(VLOOKUP(_xlfn.CONCAT($C$2,"-",$E22,"-",$F22,"-",J$3),'Raw Data'!$A$2:$D$690331,4,FALSE),"N/A") -> N/A | K22: =_xlfn.IFNA(VLOOKUP(_xlfn.CONCAT($C$2,"-",$E22,"-",$F22,"-",K$3),'Raw Data'!$A$2:$D$690331,4,FALSE),"N/A") -> N/A | L22: =_xlfn.IFNA(VLOOKUP(_xlfn.CONCAT($C$2,"-",$E22,"-",$F22,"-",L$3),'Raw Data'!$A$2:$D$690331,4,FALSE),"N/A") -> N/A | M22: =_xlfn.IFNA(VLOOKUP(_xlfn.CONCAT($C$2,"-",$E22,"-",$F22,"-",M$3),'Raw Data'!$A$2:$D$690331,4,FALSE),"N/A") -> N/A | N22: =_xlfn.IFNA(VLOOKUP(_xlfn.CONCAT($C$2,"-",$E22,"-",$F22,"-",N$3),'Raw Data'!$A$2:$D$690331,4,FALSE),"N/A") -> N/A | O22: =_xlfn.IFNA(VLOOKUP(_xlfn.CONCAT($C$2,"-",$E22,"-",$F22,"-",O$3),'Raw Data'!$A$2:$D$690331,4,FALSE),"N/A") -> N/A | P22: =_xlfn.IFNA(VLOOKUP(_xlfn.CONCAT($C$2,"-",$E22,"-",$F22,"-",P$3),'Raw Data'!$A$2:$D$690331,4,FALSE),"N/A") -> N/A | Q22: =_xlfn.IFNA(VLOOKUP(_xlfn.CONCAT($C$2,"-",$E22,"-",$F22,"-",Q$3),'Raw Data'!$A$2:$D$690331,4,FALSE),"N/A") -> N/A | R22: =_xlfn.IFNA(VLOOKUP(_xlfn.CONCAT($C$2,"-",$E22,"-",$F22,"-",R$3),'Raw Data'!$A$2:$D$690331,4,FALSE),"N/A") -> N/A | S22: =_xlfn.IFNA(VLOOKUP(_xlfn.CONCAT($C$2,"-",$E22,"-",$F22,"-",S$3),'Raw Data'!$A$2:$D$690331,4,FALSE),"N/A") -> N/A
C23: Rotorua (Bay of Plenty) | E23: 19 | F23: 1 | H23: =_xlfn.IFNA(VLOOKUP(_xlfn.CONCAT($C$2,"-",$E23,"-",$F23,"-",H$3),'Raw Data'!$A$2:$D$690331,4,FALSE),"N/A") -> N/A | I23: =_xlfn.IFNA(VLOOKUP(_xlfn.CONCAT($C$2,"-",$E23,"-",$F23,"-",I$3),'Raw Data'!$A$2:$D$690331,4,FALSE),"N/A") -> N/A | J23: =_xlfn.IFNA(VLOOKUP(_xlfn.CONCAT($C$2,"-",$E23,"-",$F23,"-",J$3),'Raw Data'!$A$2:$D$690331,4,FALSE),"N/A") -> N/A | K23: =_xlfn.IFNA(VLOOKUP(_xlfn.CONCAT($C$2,"-",$E23,"-",$F23,"-",K$3),'Raw Data'!$A$2:$D$690331,4,FALSE),"N/A") -> N/A | L23: =_xlfn.IFNA(VLOOKUP(_xlfn.CONCAT($C$2,"-",$E23,"-",$F23,"-",L$3),'Raw Data'!$A$2:$D$690331,4,FALSE),"N/A") -> N/A | M23: =_xlfn.IFNA(VLOOKUP(_xlfn.CONCAT($C$2,"-",$E23,"-",$F23,"-",M$3),'Raw Data'!$A$2:$D$690331,4,FALSE),"N/A") -> N/A | N23: =_xlfn.IFNA(VLOOKUP(_xlfn.CONCAT($C$2,"-",$E23,"-",$F23,"-",N$3),'Raw Data'!$A$2:$D$690331,4,FALSE),"N/A") -> N/A | O23: =_xlfn.IFNA(VLOOKUP(_xlfn.CONCAT($C$2,"-",$E23,"-",$F23,"-",O$3),'Raw Data'!$A$2:$D$690331,4,FALSE),"N/A") -> N/A | P23: =_xlfn.IFNA(VLOOKUP(_xlfn.CONCAT($C$2,"-",$E23,"-",$F23,"-",P$3),'Raw Data'!$A$2:$D$690331,4,FALSE),"N/A") -> N/A | Q23: =_xlfn.IFNA(VLOOKUP(_xlfn.CONCAT($C$2,"-",$E23,"-",$F23,"-",Q$3),'Raw Data'!$A$2:$D$690331,4,FALSE),"N/A") -> N/A | R23: =_xlfn.IFNA(VLOOKUP(_xlfn.CONCAT($C$2,"-",$E23,"-",$F23,"-",R$3),'Raw Data'!$A$2:$D$690331,4,FALSE),"N/A") -> N/A | S23: =_xlfn.IFNA(VLOOKUP(_xlfn.CONCAT($C$2,"-",$E23,"-",$F23,"-",S$3),'Raw Data'!$A$2:$D$690331,4,FALSE),"N/A") -> N/A
C24: Tara Hills (Canterbury) | E24: 20 | F24: 1 | H24: =_xlfn.IFNA(VLOOKUP(_xlfn.CONCAT($C$2,"-",$E24,"-",$F24,"-",H$3),'Raw Data'!$A$2:$D$690331,4,FALSE),"N/A") -> N/A | I24: =_xlfn.IFNA(VLOOKUP(_xlfn.CONCAT($C$2,"-",$E24,"-",$F24,"-",I$3),'Raw Data'!$A$2:$D$690331,4,FALSE),"N/A") -> N/A | J24: =_xlfn.IFNA(VLOOKUP(_xlfn.CONCAT($C$2,"-",$E24,"-",$F24,"-",J$3),'Raw Data'!$A$2:$D$690331,4,FALSE),"N/A") -> N/A | K24: =_xlfn.IFNA(VLOOKUP(_xlfn.CONCAT($C$2,"-",$E24,"-",$F24,"-",K$3),'Raw Data'!$A$2:$D$690331,4,FALSE),"N/A") -> N/A | L24: =_xlfn.IFNA(VLOOKUP(_xlfn.CONCAT($C$2,"-",$E24,"-",$F24,"-",L$3),'Raw Data'!$A$2:$D$690331,4,FALSE),"N/A") -> N/A | M24: =_xlfn.IFNA(VLOOKUP(_xlfn.CONCAT($C$2,"-",$E24,"-",$F24,"-",M$3),'Raw Data'!$A$2:$D$690331,4,FALSE),"N/A") -> N/A | N24: =_xlfn.IFNA(VLOOKUP(_xlfn.CONCAT($C$2,"-",$E24,"-",$F24,"-",N$3),'Raw Data'!$A$2:$D$690331,4,FALSE),"N/A") -> N/A | O24: =_xlfn.IFNA(VLOOKUP(_xlfn.CONCAT($C$2,"-",$E24,"-",$F24,"-",O$3),'Raw Data'!$A$2:$D$690331,4,FALSE),"N/A") -> N/A | P24: =_xlfn.IFNA(VLOOKUP(_xlfn.CONCAT($C$2,"-",$E24,"-",$F24,"-",P$3),'Raw Data'!$A$2:$D$690331,4,FALSE),"N/A") -> N/A | Q24: =_xlfn.IFNA(VLOOKUP(_xlfn.CONCAT($C$2,"-",$E24,"-",$F24,"-",Q$3),'Raw Data'!$A$2:$D$690331,4,FALSE),"N/A") -> N/A | R24: =_xlfn.IFNA(VLOOKUP(_xlfn.CONCAT($C$2,"-",$E24,"-",$F24,"-",R$3),'Raw Data'!$A$2:$D$690331,4,FALSE),"N/A") -> N/A | S24: =_xlfn.IFNA(VLOOKUP(_xlfn.CONCAT($C$2,"-",$E24,"-",$F24,"-",S$3),'Raw Data'!$A$2:$D$690331,4,FALSE),"N/A") -> N/A
C25: Taumarunui (Manawatū-Whanganui) | E25: 21 | F25: 1 | H25: =_xlfn.IFNA(VLOOKUP(_xlfn.CONCAT($C$2,"-",$E25,"-",$F25,"-",H$3),'Raw Data'!$A$2:$D$690331,4,FALSE),"N/A") -> N/A | I25: =_xlfn.IFNA(VLOOKUP(_xlfn.CONCAT($C$2,"-",$E25,"-",$F25,"-",I$3),'Raw Data'!$A$2:$D$690331,4,FALSE),"N/A") -> N/A | J25: =_xlfn.IFNA(VLOOKUP(_xlfn.CONCAT($C$2,"-",$E25,"-",$F25,"-",J$3),'Raw Data'!$A$2:$D$690331,4,FALSE),"N/A") -> N/A | K25: =_xlfn.IFNA(VLOOKUP(_xlfn.CONCAT($C$2,"-",$E25,"-",$F25,"-",K$3),'Raw Data'!$A$2:$D$690331,4,FALSE),"N/A") -> N/A | L25: =_xlfn.IFNA(VLOOKUP(_xlfn.CONCAT($C$2,"-",$E25,"-",$F25,"-",L$3),'Raw Data'!$A$2:$D$690331,4,FALSE),"N/A") -> N/A | M25: =_xlfn.IFNA(VLOOKUP(_xlfn.CONCAT($C$2,"-",$E25,"-",$F25,"-",M$3),'Raw Data'!$A$2:$D$690331,4,FALSE),"N/A") -> N/A | N25: =_xlfn.IFNA(VLOOKUP(_xlfn.CONCAT($C$2,"-",$E25,"-",$F25,"-",N$3),'Raw Data'!$A$2:$D$690331,4,FALSE),"N/A") -> N/A | O25: =_xlfn.IFNA(VLOOKUP(_xlfn.CONCAT($C$2,"-",$E25,"-",$F25,"-",O$3),'Raw Data'!$A$2:$D$690331,4,FALSE),"N/A") -> N/A | P25: =_xlfn.IFNA(VLOOKUP(_xlfn.CONCAT($C$2,"-",$E25,"-",$F25,"-",P$3),'Raw Data'!$A$2:$D$690331,4,FALSE),"N/A") -> N/A | Q25: =_xlfn.IFNA(VLOOKUP(_xlfn.CONCAT($C$2,"-",$E25,"-",$F25,"-",Q$3),'Raw Data'!$A$2:$D$690331,4,FALSE),"N/A") -> N/A | R25: =_xlfn.IFNA(VLOOKUP(_xlfn.CONCAT($C$2,"-",$E25,"-",$F25,"-",R$3),'Raw Data'!$A$2:$D$690331,4,FALSE),"N/A") -> N/A | S25: =_xlfn.IFNA(VLOOKUP(_xlfn.CONCAT($C$2,"-",$E25,"-",$F25,"-",S$3),'Raw Data'!$A$2:$D$690331,4,FALSE),"N/A") -> N/A
C26: Taupō (Waikato) | E26: 22 | F26: 1 | H26: =_xlfn.IFNA(VLOOKUP(_xlfn.CONCAT($C$2,"-",$E26,"-",$F26,"-",H$3),'Raw Data'!$A$2:$D$690331,4,FALSE),"N/A") -> N/A | I26: =_xlfn.IFNA(VLOOKUP(_xlfn.CONCAT($C$2,"-",$E26,"-",$F26,"-",I$3),'Raw Data'!$A$2:$D$690331,4,FALSE),"N/A") -> N/A | J26: =_xlfn.IFNA(VLOOKUP(_xlfn.CONCAT($C$2,"-",$E26,"-",$F26,"-",J$3),'Raw Data'!$A$2:$D$690331,4,FALSE),"N/A") -> N/A | K26: =_xlfn.IFNA(VLOOKUP(_xlfn.CONCAT($C$2,"-",$E26,"-",$F26,"-",K$3),'Raw Data'!$A$2:$D$690331,4,FALSE),"N/A") -> N/A | L26: =_xlfn.IFNA(VLOOKUP(_xlfn.CONCAT($C$2,"-",$E26,"-",$F26,"-",L$3),'Raw Data'!$A$2:$D$690331,4,FALSE),"N/A") -> N/A | M26: =_xlfn.IFNA(VLOOKUP(_xlfn.CONCAT($C$2,"-",$E26,"-",$F26,"-",M$3),'Raw Data'!$A$2:$D$690331,4,FALSE),"N/A") -> N/A | N26: =_xlfn.IFNA(VLOOKUP(_xlfn.CONCAT($C$2,"-",$E26,"-",$F26,"-",N$3),'Raw Data'!$A$2:$D$690331,4,FALSE),"N/A") -> N/A | O26: =_xlfn.IFNA(VLOOKUP(_xlfn.CONCAT($C$2,"-",$E26,"-",$F26,"-",O$3),'Raw Data'!$A$2:$D$690331,4,FALSE),"N/A") -> N/A | P26: =_xlfn.IFNA(VLOOKUP(_xlfn.CONCAT($C$2,"-",$E26,"-",$F26,"-",P$3),'Raw Data'!$A$2:$D$690331,4,FALSE),"N/A") -> N/A | Q26: =_xlfn.IFNA(VLOOKUP(_xlfn.CONCAT($C$2,"-",$E26,"-",$F26,"-",Q$3),'Raw Data'!$A$2:$D$690331,4,FALSE),"N/A") -> N/A | R26: =_xlfn.IFNA(VLOOKUP(_xlfn.CONCAT($C$2,"-",$E26,"-",$F26,"-",R$3),'Raw Data'!$A$2:$D$690331,4,FALSE),"N/A") -> N/A | S26: =_xlfn.IFNA(VLOOKUP(_xlfn.CONCAT($C$2,"-",$E26,"-",$F26,"-",S$3),'Raw Data'!$A$2:$D$690331,4,FALSE),"N/A") -> N/A
C27: Tauranga (Bay of Plenty) | E27: 23 | F27: 1 | H27: =_xlfn.IFNA(VLOOKUP(_xlfn.CONCAT($C$2,"-",$E27,"-",$F27,"-",H$3),'Raw Data'!$A$2:$D$690331,4,FALSE),"N/A") -> N/A | I27: =_xlfn.IFNA(VLOOKUP(_xlfn.CONCAT($C$2,"-",$E27,"-",$F27,"-",I$3),'Raw Data'!$A$2:$D$690331,4,FALSE),"N/A") -> N/A | J27: =_xlfn.IFNA(VLOOKUP(_xlfn.CONCAT($C$2,"-",$E27,"-",$F27,"-",J$3),'Raw Data'!$A$2:$D$690331,4,FALSE),"N/A") -> N/A | K27: =_xlfn.IFNA(VLOOKUP(_xlfn.CONCAT($C$2,"-",$E27,"-",$F27,"-",K$3),'Raw Data'!$A$2:$D$690331,4,FALSE),"N/A") -> N/A | L27: =_xlfn.IFNA(VLOOKUP(_xlfn.CONCAT($C$2,"-",$E27,"-",$F27,"-",L$3),'Raw Data'!$A$2:$D$690331,4,FALSE),"N/A") -> N/A | M27: =_xlfn.IFNA(VLOOKUP(_xlfn.CONCAT($C$2,"-",$E27,"-",$F27,"-",M$3),'Raw Data'!$A$2:$D$690331,4,FALSE),"N/A") -> N/A | N27: =_xlfn.IFNA(VLOOKUP(_xlfn.CONCAT($C$2,"-",$E27,"-",$F27,"-",N$3),'Raw Data'!$A$2:$D$690331,4,FALSE),"N/A") -> N/A | O27: =_xlfn.IFNA(VLOOKUP(_xlfn.CONCAT($C$2,"-",$E27,"-",$F27,"-",O$3),'Raw Data'!$A$2:$D$690331,4,FALSE),"N/A") -> N/A | P27: =_xlfn.IFNA(VLOOKUP(_xlfn.CONCAT($C$2,"-",$E27,"-",$F27,"-",P$3),'Raw Data'!$A$2:$D$690331,4,FALSE),"N/A") -> N/A | Q27: =_xlfn.IFNA(VLOOKUP(_xlfn.CONCAT($C$2,"-",$E27,"-",$F27,"-",Q$3),'Raw Data'!$A$2:$D$690331,4,FALSE),"N/A") -> N/A | R27: =_xlfn.IFNA(VLOOKUP(_xlfn.CONCAT($C$2,"-",$E27,"-",$F27,"-",R$3),'Raw Data'!$A$2:$D$690331,4,FALSE),"N/A") -> N/A | S27: =_xlfn.IFNA(VLOOKUP(_xlfn.CONCAT($C$2,"-",$E27,"-",$F27,"-",S$3),'Raw Data'!$A$2:$D$690331,4,FALSE),"N/A") -> N/A
C28: Timaru (Canterbury) | E28: 24 | F28: 1 | H28: =_xlfn.IFNA(VLOOKUP(_xlfn.CONCAT($C$2,"-",$E28,"-",$F28,"-",H$3),'Raw Data'!$A$2:$D$690331,4,FALSE),"N/A") -> N/A | I28: =_xlfn.IFNA(VLOOKUP(_xlfn.CONCAT($C$2,"-",$E28,"-",$F28,"-",I$3),'Raw Data'!$A$2:$D$690331,4,FALSE),"N/A") -> N/A | J28: =_xlfn.IFNA(VLOOKUP(_xlfn.CONCAT($C$2,"-",$E28,"-",$F28,"-",J$3),'Raw Data'!$A$2:$D$690331,4,FALSE),"N/A") -> N/A | K28: =_xlfn.IFNA(VLOOKUP(_xlfn.CONCAT($C$2,"-",$E28,"-",$F28,"-",K$3),'Raw Data'!$A$2:$D$690331,4,FALSE),"N/A") -> N/A | L28: =_xlfn.IFNA(VLOOKUP(_xlfn.CONCAT($C$2,"-",$E28,"-",$F28,"-",L$3),'Raw Data'!$A$2:$D$690331,4,FALSE),"N/A") -> N/A | M28: =_xlfn.IFNA(VLOOKUP(_xlfn.CONCAT($C$2,"-",$E28,"-",$F28,"-",M$3),'Raw Data'!$A$2:$D$690331,4,FALSE),"N/A") -> N/A | N28: =_xlfn.IFNA(VLOOKUP(_xlfn.CONCAT($C$2,"-",$E28,"-",$F28,"-",N$3),'Raw Data'!$A$2:$D$690331,4,FALSE),"N/A") -> N/A | O28: =_xlfn.IFNA(VLOOKUP(_xlfn.CONCAT($C$2,"-",$E28,"-",$F28,"-",O$3),'Raw Data'!$A$2:$D$690331,4,FALSE),"N/A") -> N/A | P28: =_xlfn.IFNA(VLOOKUP(_xlfn.CONCAT($C$2,"-",$E28,"-",$F28,"-",P$3),'Raw Data'!$A$2:$D$690331,4,FALSE),"N/A") -> N/A | Q28: =_xlfn.IFNA(VLOOKUP(_xlfn.CONCAT($C$2,"-",$E28,"-",$F28,"-",Q$3),'Raw Data'!$A$2:$D$690331,4,FALSE),"N/A") -> N/A | R28: =_xlfn.IFNA(VLOOKUP(_xlfn.CONCAT($C$2,"-",$E28,"-",$F28,"-",R$3),'Raw Data'!$A$2:$D$690331,4,FALSE),"N/A") -> N/A | S28: =_xlfn.IFNA(VLOOKUP(_xlfn.CONCAT($C$2,"-",$E28,"-",$F28,"-",S$3),'Raw Data'!$A$2:$D$690331,4,FALSE),"N/A") -> N/A
C29: Waiouru (Manawatū-Whanganui) | E29: 25 | F29: 1 | H29: =_xlfn.IFNA(VLOOKUP(_xlfn.CONCAT($C$2,"-",$E29,"-",$F29,"-",H$3),'Raw Data'!$A$2:$D$690331,4,FALSE),"N/A") -> N/A | I29: =_xlfn.IFNA(VLOOKUP(_xlfn.CONCAT($C$2,"-",$E29,"-",$F29,"-",I$3),'Raw Data'!$A$2:$D$690331,4,FALSE),"N/A") -> N/A | J29: =_xlfn.IFNA(VLOOKUP(_xlfn.CONCAT($C$2,"-",$E29,"-",$F29,"-",J$3),'Raw Data'!$A$2:$D$690331,4,FALSE),"N/A") -> N/A | K29: =_xlfn.IFNA(VLOOKUP(_xlfn.CONCAT($C$2,"-",$E29,"-",$F29,"-",K$3),'Raw Data'!$A$2:$D$690331,4,FALSE),"N/A") -> N/A | L29: =_xlfn.IFNA(VLOOKUP(_xlfn.CONCAT($C$2,"-",$E29,"-",$F29,"-",L$3),'Raw Data'!$A$2:$D$690331,4,FALSE),"N/A") -> N/A | M29: =_xlfn.IFNA(VLOOKUP(_xlfn.CONCAT($C$2,"-",$E29,"-",$F29,"-",M$3),'Raw Data'!$A$2:$D$690331,4,FALSE),"N/A") -> N/A | N29: =_xlfn.IFNA(VLOOKUP(_xlfn.CONCAT($C$2,"-",$E29,"-",$F29,"-",N$3),'Raw Data'!$A$2:$D$690331,4,FALSE),"N/A") -> N/A | O29: =_xlfn.IFNA(VLOOKUP(_xlfn.CONCAT($C$2,"-",$E29,"-",$F29,"-",O$3),'Raw Data'!$A$2:$D$690331,4,FALSE),"N/A") -> N/A | P29: =_xlfn.IFNA(VLOOKUP(_xlfn.CONCAT($C$2,"-",$E29,"-",$F29,"-",P$3),'Raw Data'!$A$2:$D$690331,4,FALSE),"N/A") -> N/A | Q29: =_xlfn.IFNA(VLOOKUP(_xlfn.CONCAT($C$2,"-",$E29,"-",$F29,"-",Q$3),'Raw Data'!$A$2:$D$690331,4,FALSE),"N/A") -> N/A | R29: =_xlfn.IFNA(VLOOKUP(_xlfn.CONCAT($C$2,"-",$E29,"-",$F29,"-",R$3),'Raw Data'!$A$2:$D$690331,4,FALSE),"N/A") -> N/A | S29: =_xlfn.IFNA(VLOOKUP(_xlfn.CONCAT($C$2,"-",$E29,"-",$F29,"-",S$3),'Raw Data'!$A$2:$D$690331,4,FALSE),"N/A") -> N/A
C30: Wellington (Wellington) | E30: 26 | F30: 1 | H30: =_xlfn.IFNA(VLOOKUP(_xlfn.CONCAT($C$2,"-",$E30,"-",$F30,"-",H$3),'Raw Data'!$A$2:$D$690331,4,FALSE),"N/A") -> N/A | I30: =_xlfn.IFNA(VLOOKUP(_xlfn.CONCAT($C$2,"-",$E30,"-",$F30,"-",I$3),'Raw Data'!$A$2:$D$690331,4,FALSE),"N/A") -> N/A | J30: =_xlfn.IFNA(VLOOKUP(_xlfn.CONCAT($C$2,"-",$E30,"-",$F30,"-",J$3),'Raw Data'!$A$2:$D$690331,4,FALSE),"N/A") -> N/A | K30: =_xlfn.IFNA(VLOOKUP(_xlfn.CONCAT($C$2,"-",$E30,"-",$F30,"-",K$3),'Raw Data'!$A$2:$D$690331,4,FALSE),"N/A") -> N/A | L30: =_xlfn.IFNA(VLOOKUP(_xlfn.CONCAT($C$2,"-",$E30,"-",$F30,"-",L$3),'Raw Data'!$A$2:$D$690331,4,FALSE),"N/A") -> N/A | M30: =_xlfn.IFNA(VLOOKUP(_xlfn.CONCAT($C$2,"-",$E30,"-",$F30,"-",M$3),'Raw Data'!$A$2:$D$690331,4,FALSE),"N/A") -> N/A | N30: =_xlfn.IFNA(VLOOKUP(_xlfn.CONCAT($C$2,"-",$E30,"-",$F30,"-",N$3),'Raw Data'!$A$2:$D$690331,4,FALSE),"N/A") -> N/A | O30: =_xlfn.IFNA(VLOOKUP(_xlfn.CONCAT($C$2,"-",$E30,"-",$F30,"-",O$3),'Raw Data'!$A$2:$D$690331,4,FALSE),"N/A") -> N/A | P30: =_xlfn.IFNA(VLOOKUP(_xlfn.CONCAT($C$2,"-",$E30,"-",$F30,"-",P$3),'Raw Data'!$A$2:$D$690331,4,FALSE),"N/A") -> N/A | Q30: =_xlfn.IFNA(VLOOKUP(_xlfn.CONCAT($C$2,"-",$E30,"-",$F30,"-",Q$3),'Raw Data'!$A$2:$D$690331,4,FALSE),"N/A") -> N/A | R30: =_xlfn.IFNA(VLOOKUP(_xlfn.CONCAT($C$2,"-",$E30,"-",$F30,"-",R$3),'Raw Data'!$A$2:$D$690331,4,FALSE),"N/A") -> N/A | S30: =_xlfn.IFNA(VLOOKUP(_xlfn.CONCAT($C$2,"-",$E30,"-",$F30,"-",S$3),'Raw Data'!$A$2:$D$690331,4,FALSE),"N/A") -> N/A
C31: Whanganui (Manawatū-Whanganui) | E31: 27 | F31: 1 | H31: =_xlfn.IFNA(VLOOKUP(_xlfn.CONCAT($C$2,"-",$E31,"-",$F31,"-",H$3),'Raw Data'!$A$2:$D$690331,4,FALSE),"N/A") -> N/A | I31: =_xlfn.IFNA(VLOOKUP(_xlfn.CONCAT($C$2,"-",$E31,"-",$F31,"-",I$3),'Raw Data'!$A$2:$D$690331,4,FALSE),"N/A") -> N/A | J31: =_xlfn.IFNA(VLOOKUP(_xlfn.CONCAT($C$2,"-",$E31,"-",$F31,"-",J$3),'Raw Data'!$A$2:$D$690331,4,FALSE),"N/A") -> N/A | K31: =_xlfn.IFNA(VLOOKUP(_xlfn.CONCAT($C$2,"-",$E31,"-",$F31,"-",K$3),'Raw Data'!$A$2:$D$690331,4,FALSE),"N/A") -> N/A | L31: =_xlfn.IFNA(VLOOKUP(_xlfn.CONCAT($C$2,"-",$E31,"-",$F31,"-",L$3),'Raw Data'!$A$2:$D$690331,4,FALSE),"N/A") -> N/A | M31: =_xlfn.IFNA(VLOOKUP(_xlfn.CONCAT($C$2,"-",$E31,"-",$F31,"-",M$3),'Raw Data'!$A$2:$D$690331,4,FALSE),"N/A") -> N/A | N31: =_xlfn.IFNA(VLOOKUP(_xlfn.CONCAT($C$2,"-",$E31,"-",$F31,"-",N$3),'Raw Data'!$A$2:$D$690331,4,FALSE),"N/A") -> N/A | O31: =_xlfn.IFNA(VLOOKUP(_xlfn.CONCAT($C$2,"-",$E31,"-",$F31,"-",O$3),'Raw Data'!$A$2:$D$690331,4,FALSE),"N/A") -> N/A | P31: =_xlfn.IFNA(VLOOKUP(_xlfn.CONCAT($C$2,"-",$E31,"-",$F31,"-",P$3),'Raw Data'!$A$2:$D$690331,4,FALSE),"N/A") -> N/A | Q31: =_xlfn.IFNA(VLOOKUP(_xlfn.CONCAT($C$2,"-",$E31,"-",$F31,"-",Q$3),'Raw Data'!$A$2:$D$690331,4,FALSE),"N/A") -> N/A | R31: =_xlfn.IFNA(VLOOKUP(_xlfn.CONCAT($C$2,"-",$E31,"-",$F31,"-",R$3),'Raw Data'!$A$2:$D$690331,4,FALSE),"N/A") -> N/A | S31: =_xlfn.IFNA(VLOOKUP(_xlfn.CONCAT($C$2,"-",$E31,"-",$F31,"-",S$3),'Raw Data'!$A$2:$D$690331,4,FALSE),"N/A") -> N/A
C32: Whangaparāoa (Auckland) | E32: 28 | F32: 1 | H32: =_xlfn.IFNA(VLOOKUP(_xlfn.CONCAT($C$2,"-",$E32,"-",$F32,"-",H$3),'Raw Data'!$A$2:$D$690331,4,FALSE),"N/A") -> N/A | I32: =_xlfn.IFNA(VLOOKUP(_xlfn.CONCAT($C$2,"-",$E32,"-",$F32,"-",I$3),'Raw Data'!$A$2:$D$690331,4,FALSE),"N/A") -> N/A | J32: =_xlfn.IFNA(VLOOKUP(_xlfn.CONCAT($C$2,"-",$E32,"-",$F32,"-",J$3),'Raw Data'!$A$2:$D$690331,4,FALSE),"N/A") -> N/A | K32: =_xlfn.IFNA(VLOOKUP(_xlfn.CONCAT($C$2,"-",$E32,"-",$F32,"-",K$3),'Raw Data'!$A$2:$D$690331,4,FALSE),"N/A") -> N/A | L32: =_xlfn.IFNA(VLOOKUP(_xlfn.CONCAT($C$2,"-",$E32,"-",$F32,"-",L$3),'Raw Data'!$A$2:$D$690331,4,FALSE),"N/A") -> N/A | M32: =_xlfn.IFNA(VLOOKUP(_xlfn.CONCAT($C$2,"-",$E32,"-",$F32,"-",M$3),'Raw Data'!$A$2:$D$690331,4,FALSE),"N/A") -> N/A | N32: =_xlfn.IFNA(VLOOKUP(_xlfn.CONCAT($C$2,"-",$E32,"-",$F32,"-",N$3),'Raw Data'!$A$2:$D$690331,4,FALSE),"N/A") -> N/A | O32: =_xlfn.IFNA(VLOOKUP(_xlfn.CONCAT($C$2,"-",$E32,"-",$F32,"-",O$3),'Raw Data'!$A$2:$D$690331,4,FALSE),"N/A") -> N/A | P32: =_xlfn.IFNA(VLOOKUP(_xlfn.CONCAT($C$2,"-",$E32,"-",$F32,"-",P$3),'Raw Data'!$A$2:$D$690331,4,FALSE),"N/A") -> N/A | Q32: =_xlfn.IFNA(VLOOKUP(_xlfn.CONCAT($C$2,"-",$E32,"-",$F32,"-",Q$3),'Raw Data'!$A$2:$D$690331,4,FALSE),"N/A") -> N/A | R32: =_xlfn.IFNA(VLOOKUP(_xlfn.CONCAT($C$2,"-",$E32,"-",$F32,"-",R$3),'Raw Data'!$A$2:$D$690331,4,FALSE),"N/A") -> N/A | S32: =_xlfn.IFNA(VLOOKUP(_xlfn.CONCAT($C$2,"-",$E32,"-",$F32,"-",S$3),'Raw Data'!$A$2:$D$690331,4,FALSE),"N/A") -> N/A
C33: Whangārei (Northland) | E33: 29 | F33: 1 | H33: =_xlfn.IFNA(VLOOKUP(_xlfn.CONCAT($C$2,"-",$E33,"-",$F33,"-",H$3),'Raw Data'!$A$2:$D$690331,4,FALSE),"N/A") -> N/A | I33: =_xlfn.IFNA(VLOOKUP(_xlfn.CONCAT($C$2,"-",$E33,"-",$F33,"-",I$3),'Raw Data'!$A$2:$D$690331,4,FALSE),"N/A") -> N/A | J33: =_xlfn.IFNA(VLOOKUP(_xlfn.CONCAT($C$2,"-",$E33,"-",$F33,"-",J$3),'Raw Data'!$A$2:$D$690331,4,FALSE),"N/A") -> N/A | K33: =_xlfn.IFNA(VLOOKUP(_xlfn.CONCAT($C$2,"-",$E33,"-",$F33,"-",K$3),'Raw Data'!$A$2:$D$690331,4,FALSE),"N/A") -> N/A | L33: =_xlfn.IFNA(VLOOKUP(_xlfn.CONCAT($C$2,"-",$E33,"-",$F33,"-",L$3),'Raw Data'!$A$2:$D$690331,4,FALSE),"N/A") -> N/A | M33: =_xlfn.IFNA(VLOOKUP(_xlfn.CONCAT($C$2,"-",$E33,"-",$F33,"-",M$3),'Raw Data'!$A$2:$D$690331,4,FALSE),"N/A") -> N/A | N33: =_xlfn.IFNA(VLOOKUP(_xlfn.CONCAT($C$2,"-",$E33,"-",$F33,"-",N$3),'Raw Data'!$A$2:$D$690331,4,FALSE),"N/A") -> N/A | O33: =_xlfn.IFNA(VLOOKUP(_xlfn.CONCAT($C$2,"-",$E33,"-",$F33,"-",O$3),'Raw Data'!$A$2:$D$690331,4,FALSE),"N/A") -> N/A | P33: =_xlfn.IFNA(VLOOKUP(_xlfn.CONCAT($C$2,"-",$E33,"-",$F33,"-",P$3),'Raw Data'!$A$2:$D$690331,4,FALSE),"N/A") -> N/A | Q33: =_xlfn.IFNA(VLOOKUP(_xlfn.CONCAT($C$2,"-",$E33,"-",$F33,"-",Q$3),'Raw Data'!$A$2:$D$690331,4,FALSE),"N/A") -> N/A | R33: =_xlfn.IFNA(VLOOKUP(_xlfn.CONCAT($C$2,"-",$E33,"-",$F33,"-",R$3),'Raw Data'!$A$2:$D$690331,4,FALSE),"N/A") -> N/A | S33: =_xlfn.IFNA(VLOOKUP(_xlfn.CONCAT($C$2,"-",$E33,"-",$F33,"-",S$3),'Raw Data'!$A$2:$D$690331,4,FALSE),"N/A") -> N/A
E34: 30 | F34: 1 | H34: =_xlfn.IFNA(VLOOKUP(_xlfn.CONCAT($C$2,"-",$E34,"-",$F34,"-",H$3),'Raw Data'!$A$2:$D$690331,4,FALSE),"N/A") -> N/A | I34: =_xlfn.IFNA(VLOOKUP(_xlfn.CONCAT($C$2,"-",$E34,"-",$F34,"-",I$3),'Raw Data'!$A$2:$D$690331,4,FALSE),"N/A") -> N/A | J34: =_xlfn.IFNA(VLOOKUP(_xlfn.CONCAT($C$2,"-",$E34,"-",$F34,"-",J$3),'Raw Data'!$A$2:$D$690331,4,FALSE),"N/A") -> N/A | K34: =_xlfn.IFNA(VLOOKUP(_xlfn.CONCAT($C$2,"-",$E34,"-",$F34,"-",K$3),'Raw Data'!$A$2:$D$690331,4,FALSE),"N/A") -> N/A | L34: =_xlfn.IFNA(VLOOKUP(_xlfn.CONCAT($C$2,"-",$E34,"-",$F34,"-",L$3),'Raw Data'!$A$2:$D$690331,4,FALSE),"N/A") -> N/A | M34: =_xlfn.IFNA(VLOOKUP(_xlfn.CONCAT($C$2,"-",$E34,"-",$F34,"-",M$3),'Raw Data'!$A$2:$D$690331,4,FALSE),"N/A") -> N/A | N34: =_xlfn.IFNA(VLOOKUP(_xlfn.CONCAT($C$2,"-",$E34,"-",$F34,"-",N$3),'Raw Data'!$A$2:$D$690331,4,FALSE),"N/A") -> N/A | O34: =_xlfn.IFNA(VLOOKUP(_xlfn.CONCAT($C$2,"-",$E34,"-",$F34,"-",O$3),'Raw Data'!$A$2:$D$690331,4,FALSE),"N/A") -> N/A | P34: =_xlfn.IFNA(VLOOKUP(_xlfn.CONCAT($C$2,"-",$E34,"-",$F34,"-",P$3),'Raw Data'!$A$2:$D$690331,4,FALSE),"N/A") -> N/A | Q34: =_xlfn.IFNA(VLOOKUP(_xlfn.CONCAT($C$2,"-",$E34,"-",$F34,"-",Q$3),'Raw Data'!$A$2:$D$690331,4,FALSE),"N/A") -> N/A | R34: =_xlfn.IFNA(VLOOKUP(_xlfn.CONCAT($C$2,"-",$E34,"-",$F34,"-",R$3),'Raw Data'!$A$2:$D$690331,4,FALSE),"N/A") -> N/A | S34: =_xlfn.IFNA(VLOOKUP(_xlfn.CONCAT($C$2,"-",$E34,"-",$F34,"-",S$3),'Raw Data'!$A$2:$D$690331,4,FALSE),"N/A") -> N/A
E35: 31 | F35: 1 | H35: =_xlfn.IFNA(VLOOKUP(_xlfn.CONCAT($C$2,"-",$E35,"-",$F35,"-",H$3),'Raw Data'!$A$2:$D$690331,4,FALSE),"N/A") -> N/A | I35: =_xlfn.IFNA(VLOOKUP(_xlfn.CONCAT($C$2,"-",$E35,"-",$F35,"-",I$3),'Raw Data'!$A$2:$D$690331,4,FALSE),"N/A") -> N/A | J35: =_xlfn.IFNA(VLOOKUP(_xlfn.CONCAT($C$2,"-",$E35,"-",$F35,"-",J$3),'Raw Data'!$A$2:$D$690331,4,FALSE),"N/A") -> N/A | K35: =_xlfn.IFNA(VLOOKUP(_xlfn.CONCAT($C$2,"-",$E35,"-",$F35,"-",K$3),'Raw Data'!$A$2:$D$690331,4,FALSE),"N/A") -> N/A | L35: =_xlfn.IFNA(VLOOKUP(_xlfn.CONCAT($C$2,"-",$E35,"-",$F35,"-",L$3),'Raw Data'!$A$2:$D$690331,4,FALSE),"N/A") -> N/A | M35: =_xlfn.IFNA(VLOOKUP(_xlfn.CONCAT($C$2,"-",$E35,"-",$F35,"-",M$3),'Raw Data'!$A$2:$D$690331,4,FALSE),"N/A") -> N/A | N35: =_xlfn.IFNA(VLOOKUP(_xlfn.CONCAT($C$2,"-",$E35,"-",$F35,"-",N$3),'Raw Data'!$A$2:$D$690331,4,FALSE),"N/A") -> N/A | O35: =_xlfn.IFNA(VLOOKUP(_xlfn.CONCAT($C$2,"-",$E35,"-",$F35,"-",O$3),'Raw Data'!$A$2:$D$690331,4,FALSE),"N/A") -> N/A | P35: =_xlfn.IFNA(VLOOKUP(_xlfn.CONCAT($C$2,"-",$E35,"-",$F35,"-",P$3),'Raw Data'!$A$2:$D$690331,4,FALSE),"N/A") -> N/A | Q35: =_xlfn.IFNA(VLOOKUP(_xlfn.CONCAT($C$2,"-",$E35,"-",$F35,"-",Q$3),'Raw Data'!$A$2:$D$690331,4,FALSE),"N/A") -> N/A | R35: =_xlfn.IFNA(VLOOKUP(_xlfn.CONCAT($C$2,"-",$E35,"-",$F35,"-",R$3),'Raw Data'!$A$2:$D$690331,4,FALSE),"N/A") -> N/A | S35: =_xlfn.IFNA(VLOOKUP(_xlfn.CONCAT($C$2,"-",$E35,"-",$F35,"-",S$3),'Raw Data'!$A$2:$D$690331,4,FALSE),"N/A") -> N/A
E36: 1 | F36: 2 | H36: =_xlfn.IFNA(VLOOKUP(_xlfn.CONCAT($C$2,"-",$E36,"-",$F36,"-",H$3),'Raw Data'!$A$2:$D$690331,4,FALSE),"N/A") -> N/A | I36: =_xlfn.IFNA(VLOOKUP(_xlfn.CONCAT($C$2,"-",$E36,"-",$F36,"-",I$3),'Raw Data'!$A$2:$D$690331,4,FALSE),"N/A") -> N/A | J36: =_xlfn.IFNA(VLOOKUP(_xlfn.CONCAT($C$2,"-",$E36,"-",$F36,"-",J$3),'Raw Data'!$A$2:$D$690331,4,FALSE),"N/A") -> N/A | K36: =_xlfn.IFNA(VLOOKUP(_xlfn.CONCAT($C$2,"-",$E36,"-",$F36,"-",K$3),'Raw Data'!$A$2:$D$690331,4,FALSE),"N/A") -> N/A | L36: =_xlfn.IFNA(VLOOKUP(_xlfn.CONCAT($C$2,"-",$E36,"-",$F36,"-",L$3),'Raw Data'!$A$2:$D$690331,4,FALSE),"N/A") -> N/A | M36: =_xlfn.IFNA(VLOOKUP(_xlfn.CONCAT($C$2,"-",$E36,"-",$F36,"-",M$3),'Raw Data'!$A$2:$D$690331,4,FALSE),"N/A") -> N/A | N36: =_xlfn.IFNA(VLOOKUP(_xlfn.CONCAT($C$2,"-",$E36,"-",$F36,"-",N$3),'Raw Data'!$A$2:$D$690331,4,FALSE),"N/A") -> N/A | O36: =_xlfn.IFNA(VLOOKUP(_xlfn.CONCAT($C$2,"-",$E36,"-",$F36,"-",O$3),'Raw Data'!$A$2:$D$690331,4,FALSE),"N/A") -> N/A | P36: =_xlfn.IFNA(VLOOKUP(_xlfn.CONCAT($C$2,"-",$E36,"-",$F36,"-",P$3),'Raw Data'!$A$2:$D$690331,4,FALSE),"N/A") -> N/A | Q36: =_xlfn.IFNA(VLOOKUP(_xlfn.CONCAT($C$2,"-",$E36,"-",$F36,"-",Q$3),'Raw Data'!$A$2:$D$690331,4,FALSE),"N/A") -> N/A | R36: =_xlfn.IFNA(VLOOKUP(_xlfn.CONCAT($C$2,"-",$E36,"-",$F36,"-",R$3),'Raw Data'!$A$2:$D$690331,4,FALSE),"N/A") -> N/A | S36: =_xlfn.IFNA(VLOOKUP(_xlfn.CONCAT($C$2,"-",$E36,"-",$F36,"-",S$3),'Raw Data'!$A$2:$D$690331,4,FALSE),"N/A") -> N/A
E37: 2 | F37: 2 | H37: =_xlfn.IFNA(VLOOKUP(_xlfn.CONCAT($C$2,"-",$E37,"-",$F37,"-",H$3),'Raw Data'!$A$2:$D$690331,4,FALSE),"N/A") -> N/A | I37: =_xlfn.IFNA(VLOOKUP(_xlfn.CONCAT($C$2,"-",$E37,"-",$F37,"-",I$3),'Raw Data'!$A$2:$D$690331,4,FALSE),"N/A") -> N/A | J37: =_xlfn.IFNA(VLOOKUP(_xlfn.CONCAT($C$2,"-",$E37,"-",$F37,"-",J$3),'Raw Data'!$A$2:$D$690331,4,FALSE),"N/A") -> N/A | K37: =_xlfn.IFNA(VLOOKUP(_xlfn.CONCAT($C$2,"-",$E37,"-",$F37,"-",K$3),'Raw Data'!$A$2:$D$690331,4,FALSE),"N/A") -> N/A | L37: =_xlfn.IFNA(VLOOKUP(_xlfn.CONCAT($C$2,"-",$E37,"-",$F37,"-",L$3),'Raw Data'!$A$2:$D$690331,4,FALSE),"N/A") -> N/A | M37: =_xlfn.IFNA(VLOOKUP(_xlfn.CONCAT($C$2,"-",$E37,"-",$F37,"-",M$3),'Raw Data'!$A$2:$D$690331,4,FALSE),"N/A") -> N/A | N37: =_xlfn.IFNA(VLOOKUP(_xlfn.CONCAT($C$2,"-",$E37,"-",$F37,"-",N$3),'Raw Data'!$A$2:$D$690331,4,FALSE),"N/A") -> N/A | O37: =_xlfn.IFNA(VLOOKUP(_xlfn.CONCAT($C$2,"-",$E37,"-",$F37,"-",O$3),'Raw Data'!$A$2:$D$690331,4,FALSE),"N/A") -> N/A | P37: =_xlfn.IFNA(VLOOKUP(_xlfn.CONCAT($C$2,"-",$E37,"-",$F37,"-",P$3),'Raw Data'!$A$2:$D$690331,4,FALSE),"N/A") -> N/A | Q37: =_xlfn.IFNA(VLOOKUP(_xlfn.CONCAT($C$2,"-",$E37,"-",$F37,"-",Q$3),'Raw Data'!$A$2:$D$690331,4,FALSE),"N/A") -> N/A | R37: =_xlfn.IFNA(VLOOKUP(_xlfn.CONCAT($C$2,"-",$E37,"-",$F37,"-",R$3),'Raw Data'!$A$2:$D$690331,4,FALSE),"N/A") -> N/A | S37: =_xlfn.IFNA(VLOOKUP(_xlfn.CONCAT($C$2,"-",$E37,"-",$F37,"-",S$3),'Raw Data'!$A$2:$D$690331,4,FALSE),"N/A") -> N/A
E38: 3 | F38: 2 | H38: =_xlfn.IFNA(VLOOKUP(_xlfn.CONCAT($C$2,"-",$E38,"-",$F38,"-",H$3),'Raw Data'!$A$2:$D$690331,4,FALSE),"N/A") -> N/A | I38: =_xlfn.IFNA(VLOOKUP(_xlfn.CONCAT($C$2,"-",$E38,"-",$F38,"-",I$3),'Raw Data'!$A$2:$D$690331,4,FALSE),"N/A") -> N/A | J38: =_xlfn.IFNA(VLOOKUP(_xlfn.CONCAT($C$2,"-",$E38,"-",$F38,"-",J$3),'Raw Data'!$A$2:$D$690331,4,FALSE),"N/A") -> N/A | K38: =_xlfn.IFNA(VLOOKUP(_xlfn.CONCAT($C$2,"-",$E38,"-",$F38,"-",K$3),'Raw Data'!$A$2:$D$690331,4,FALSE),"N/A") -> N/A | L38: =_xlfn.IFNA(VLOOKUP(_xlfn.CONCAT($C$2,"-",$E38,"-",$F38,"-",L$3),'Raw Data'!$A$2:$D$690331,4,FALSE),"N/A") -> N/A | M38: =_xlfn.IFNA(VLOOKUP(_xlfn.CONCAT($C$2,"-",$E38,"-",$F38,"-",M$3),'Raw Data'!$A$2:$D$690331,4,FALSE),"N/A") -> N/A | N38: =_xlfn.IFNA(VLOOKUP(_xlfn.CONCAT($C$2,"-",$E38,"-",$F38,"-",N$3),'Raw Data'!$A$2:$D$690331,4,FALSE),"N/A") -> N/A | O38: =_xlfn.IFNA(VLOOKUP(_xlfn.CONCAT($C$2,"-",$E38,"-",$F38,"-",O$3),'Raw Data'!$A$2:$D$690331,4,FALSE),"N/A") -> N/A | P38: =_xlfn.IFNA(VLOOKUP(_xlfn.CONCAT($C$2,"-",$E38,"-",$F38,"-",P$3),'Raw Data'!$A$2:$D$690331,4,FALSE),"N/A") -> N/A | Q38: =_xlfn.IFNA(VLOOKUP(_xlfn.CONCAT($C$2,"-",$E38,"-",$F38,"-",Q$3),'Raw Data'!$A$2:$D$690331,4,FALSE),"N/A") -> N/A | R38: =_xlfn.IFNA(VLOOKUP(_xlfn.CONCAT($C$2,"-",$E38,"-",$F38,"-",R$3),'Raw Data'!$A$2:$D$690331,4,FALSE),"N/A") -> N/A | S38: =_xlfn.IFNA(VLOOKUP(_xlfn.CONCAT($C$2,"-",$E38,"-",$F38,"-",S$3),'Raw Data'!$A$2:$D$690331,4,FALSE),"N/A") -> N/A
E39: 4 | F39: 2 | H39: =_xlfn.IFNA(VLOOKUP(_xlfn.CONCAT($C$2,"-",$E39,"-",$F39,"-",H$3),'Raw Data'!$A$2:$D$690331,4,FALSE),"N/A") -> N/A | I39: =_xlfn.IFNA(VLOOKUP(_xlfn.CONCAT($C$2,"-",$E39,"-",$F39,"-",I$3),'Raw Data'!$A$2:$D$690331,4,FALSE),"N/A") -> N/A | J39: =_xlfn.IFNA(VLOOKUP(_xlfn.CONCAT($C$2,"-",$E39,"-",$F39,"-",J$3),'Raw Data'!$A$2:$D$690331,4,FALSE),"N/A") -> N/A | K39: =_xlfn.IFNA(VLOOKUP(_xlfn.CONCAT($C$2,"-",$E39,"-",$F39,"-",K$3),'Raw Data'!$A$2:$D$690331,4,FALSE),"N/A") -> N/A | L39: =_xlfn.IFNA(VLOOKUP(_xlfn.CONCAT($C$2,"-",$E39,"-",$F39,"-",L$3),'Raw Data'!$A$2:$D$690331,4,FALSE),"N/A") -> N/A | M39: =_xlfn.IFNA(VLOOKUP(_xlfn.CONCAT($C$2,"-",$E39,"-",$F39,"-",M$3),'Raw Data'!$A$2:$D$690331,4,FALSE),"N/A") -> N/A | N39: =_xlfn.IFNA(VLOOKUP(_xlfn.CONCAT($C$2,"-",$E39,"-",$F39,"-",N$3),'Raw Data'!$A$2:$D$690331,4,FALSE),"N/A") -> N/A | O39: =_xlfn.IFNA(VLOOKUP(_xlfn.CONCAT($C$2,"-",$E39,"-",$F39,"-",O$3),'Raw Data'!$A$2:$D$690331,4,FALSE),"N/A") -> N/A | P39: =_xlfn.IFNA(VLOOKUP(_xlfn.CONCAT($C$2,"-",$E39,"-",$F39,"-",P$3),'Raw Data'!$A$2:$D$690331,4,FALSE),"N/A") -> N/A | Q39: =_xlfn.IFNA(VLOOKUP(_xlfn.CONCAT($C$2,"-",$E39,"-",$F39,"-",Q$3),'Raw Data'!$A$2:$D$690331,4,FALSE),"N/A") -> N/A | R39: =_xlfn.IFNA(VLOOKUP(_xlfn.CONCAT($C$2,"-",$E39,"-",$F39,"-",R$3),'Raw Data'!$A$2:$D$690331,4,FALSE),"N/A") -> N/A | S39: =_xlfn.IFNA(VLOOKUP(_xlfn.CONCAT($C$2,"-",$E39,"-",$F39,"-",S$3),'Raw Data'!$A$2:$D$690331,4,FALSE),"N/A") -> N/A
E40: 5 | F40: 2 | H40: =_xlfn.IFNA(VLOOKUP(_xlfn.CONCAT($C$2,"-",$E40,"-",$F40,"-",H$3),'Raw Data'!$A$2:$D$690331,4,FALSE),"N/A") -> N/A | I40: =_xlfn.IFNA(VLOOKUP(_xlfn.CONCAT($C$2,"-",$E40,"-",$F40,"-",I$3),'Raw Data'!$A$2:$D$690331,4,FALSE),"N/A") -> N/A | J40: =_xlfn.IFNA(VLOOKUP(_xlfn.CONCAT($C$2,"-",$E40,"-",$F40,"-",J$3),'Raw Data'!$A$2:$D$690331,4,FALSE),"N/A") -> N/A | K40: =_xlfn.IFNA(VLOOKUP(_xlfn.CONCAT($C$2,"-",$E40,"-",$F40,"-",K$3),'Raw Data'!$A$2:$D$690331,4,FALSE),"N/A") -> N/A | L40: =_xlfn.IFNA(VLOOKUP(_xlfn.CONCAT($C$2,"-",$E40,"-",$F40,"-",L$3),'Raw Data'!$A$2:$D$690331,4,FALSE),"N/A") -> N/A | M40: =_xlfn.IFNA(VLOOKUP(_xlfn.CONCAT($C$2,"-",$E40,"-",$F40,"-",M$3),'Raw Data'!$A$2:$D$690331,4,FALSE),"N/A") -> N/A | N40: =_xlfn.IFNA(VLOOKUP(_xlfn.CONCAT($C$2,"-",$E40,"-",$F40,"-",N$3),'Raw Data'!$A$2:$D$690331,4,FALSE),"N/A") -> N/A | O40: =_xlfn.IFNA(VLOOKUP(_xlfn.CONCAT($C$2,"-",$E40,"-",$F40,"-",O$3),'Raw Data'!$A$2:$D$690331,4,FALSE),"N/A") -> N/A | P40: =_xlfn.IFNA(VLOOKUP(_xlfn.CONCAT($C$2,"-",$E40,"-",$F40,"-",P$3),'Raw Data'!$A$2:$D$690331,4,FALSE),"N/A") -> N/A | Q40: =_xlfn.IFNA(VLOOKUP(_xlfn.CONCAT($C$2,"-",$E40,"-",$F40,"-",Q$3),'Raw Data'!$A$2:$D$690331,4,FALSE),"N/A") -> N/A | R40: =_xlfn.IFNA(VLOOKUP(_xlfn.CONCAT($C$2,"-",$E40,"-",$F40,"-",R$3),'Raw Data'!$A$2:$D$690331,4,FALSE),"N/A") -> N/A | S40: =_xlfn.IFNA(VLOOKUP(_xlfn.CONCAT($C$2,"-",$E40,"-",$F40,"-",S$3),'Raw Data'!$A$2:$D$690331,4,FALSE),"N/A") -> N/A
E41: 6 | F41: 2 | H41: =_xlfn.IFNA(VLOOKUP(_xlfn.CONCAT($C$2,"-",$E41,"-",$F41,"-",H$3),'Raw Data'!$A$2:$D$690331,4,FALSE),"N/A") -> N/A | I41: =_xlfn.IFNA(VLOOKUP(_xlfn.CONCAT($C$2,"-",$E41,"-",$F41,"-",I$3),'Raw Data'!$A$2:$D$690331,4,FALSE),"N/A") -> N/A | J41: =_xlfn.IFNA(VLOOKUP(_xlfn.CONCAT($C$2,"-",$E41,"-",$F41,"-",J$3),'Raw Data'!$A$2:$D$690331,4,FALSE),"N/A") -> N/A | K41: =_xlfn.IFNA(VLOOKUP(_xlfn.CONCAT($C$2,"-",$E41,"-",$F41,"-",K$3),'Raw Data'!$A$2:$D$690331,4,FALSE),"N/A") -> N/A | L41: =_xlfn.IFNA(VLOOKUP(_xlfn.CONCAT($C$2,"-",$E41,"-",$F41,"-",L$3),'Raw Data'!$A$2:$D$690331,4,FALSE),"N/A") -> N/A | M41: =_xlfn.IFNA(VLOOKUP(_xlfn.CONCAT($C$2,"-",$E41,"-",$F41,"-",M$3),'Raw Data'!$A$2:$D$690331,4,FALSE),"N/A") -> N/A | N41: =_xlfn.IFNA(VLOOKUP(_xlfn.CONCAT($C$2,"-",$E41,"-",$F41,"-",N$3),'Raw Data'!$A$2:$D$690331,4,FALSE),"N/A") -> N/A | O41: =_xlfn.IFNA(VLOOKUP(_xlfn.CONCAT($C$2,"-",$E41,"-",$F41,"-",O$3),'Raw Data'!$A$2:$D$690331,4,FALSE),"N/A") -> N/A | P41: =_xlfn.IFNA(VLOOKUP(_xlfn.CONCAT($C$2,"-",$E41,"-",$F41,"-",P$3),'Raw Data'!$A$2:$D$690331,4,FALSE),"N/A") -> N/A | Q41: =_xlfn.IFNA(VLOOKUP(_xlfn.CONCAT($C$2,"-",$E41,"-",$F41,"-",Q$3),'Raw Data'!$A$2:$D$690331,4,FALSE),"N/A") -> N/A | R41: =_xlfn.IFNA(VLOOKUP(_xlfn.CONCAT($C$2,"-",$E41,"-",$F41,"-",R$3),'Raw Data'!$A$2:$D$690331,4,FALSE),"N/A") -> N/A | S41: =_xlfn.IFNA(VLOOKUP(_xlfn.CONCAT($C$2,"-",$E41,"-",$F41,"-",S$3),'Raw Data'!$A$2:$D$690331,4,FALSE),"N/A") -> N/A
E42: 7 | F42: 2 | H42: =_xlfn.IFNA(VLOOKUP(_xlfn.CONCAT($C$2,"-",$E42,"-",$F42,"-",H$3),'Raw Data'!$A$2:$D$690331,4,FALSE),"N/A") -> N/A | I42: =_xlfn.IFNA(VLOOKUP(_xlfn.CONCAT($C$2,"-",$E42,"-",$F42,"-",I$3),'Raw Data'!$A$2:$D$690331,4,FALSE),"N/A") -> N/A | J42: =_xlfn.IFNA(VLOOKUP(_xlfn.CONCAT($C$2,"-",$E42,"-",$F42,"-",J$3),'Raw Data'!$A$2:$D$690331,4,FALSE),"N/A") -> N/A | K42: =_xlfn.IFNA(VLOOKUP(_xlfn.CONCAT($C$2,"-",$E42,"-",$F42,"-",K$3),'Raw Data'!$A$2:$D$690331,4,FALSE),"N/A") -> N/A | L42: =_xlfn.IFNA(VLOOKUP(_xlfn.CONCAT($C$2,"-",$E42,"-",$F42,"-",L$3),'Raw Data'!$A$2:$D$690331,4,FALSE),"N/A") -> N/A | M42: =_xlfn.IFNA(VLOOKUP(_xlfn.CONCAT($C$2,"-",$E42,"-",$F42,"-",M$3),'Raw Data'!$A$2:$D$690331,4,FALSE),"N/A") -> N/A | N42: =_xlfn.IFNA(VLOOKUP(_xlfn.CONCAT($C$2,"-",$E42,"-",$F42,"-",N$3),'Raw Data'!$A$2:$D$690331,4,FALSE),"N/A") -> N/A | O42: =_xlfn.IFNA(VLOOKUP(_xlfn.CONCAT($C$2,"-",$E42,"-",$F42,"-",O$3),'Raw Data'!$A$2:$D$690331,4,FALSE),"N/A") -> N/A | P42: =_xlfn.IFNA(VLOOKUP(_xlfn.CONCAT($C$2,"-",$E42,"-",$F42,"-",P$3),'Raw Data'!$A$2:$D$690331,4,FALSE),"N/A") -> N/A | Q42: =_xlfn.IFNA(VLOOKUP(_xlfn.CONCAT($C$2,"-",$E42,"-",$F42,"-",Q$3),'Raw Data'!$A$2:$D$690331,4,FALSE),"N/A") -> N/A | R42: =_xlfn.IFNA(VLOOKUP(_xlfn.CONCAT($C$2,"-",$E42,"-",$F42,"-",R$3),'Raw Data'!$A$2:$D$690331,4,FALSE),"N/A") -> N/A | S42: =_xlfn.IFNA(VLOOKUP(_xlfn.CONCAT($C$2,"-",$E42,"-",$F42,"-",S$3),'Raw Data'!$A$2:$D$690331,4,FALSE),"N/A") -> N/A
E43: 8 | F43: 2 | H43: =_xlfn.IFNA(VLOOKUP(_xlfn.CONCAT($C$2,"-",$E43,"-",$F43,"-",H$3),'Raw Data'!$A$2:$D$690331,4,FALSE),"N/A") -> N/A | I43: =_xlfn.IFNA(VLOOKUP(_xlfn.CONCAT($C$2,"-",$E43,"-",$F43,"-",I$3),'Raw Data'!$A$2:$D$690331,4,FALSE),"N/A") -> N/A | J43: =_xlfn.IFNA(VLOOKUP(_xlfn.CONCAT($C$2,"-",$E43,"-",$F43,"-",J$3),'Raw Data'!$A$2:$D$690331,4,FALSE),"N/A") -> N/A | K43: =_xlfn.IFNA(VLOOKUP(_xlfn.CONCAT($C$2,"-",$E43,"-",$F43,"-",K$3),'Raw Data'!$A$2:$D$690331,4,FALSE),"N/A") -> N/A | L43: =_xlfn.IFNA(VLOOKUP(_xlfn.CONCAT($C$2,"-",$E43,"-",$F43,"-",L$3),'Raw Data'!$A$2:$D$690331,4,FALSE),"N/A") -> N/A | M43: =_xlfn.IFNA(VLOOKUP(_xlfn.CONCAT($C$2,"-",$E43,"-",$F43,"-",M$3),'Raw Data'!$A$2:$D$690331,4,FALSE),"N/A") -> N/A | N43: =_xlfn.IFNA(VLOOKUP(_xlfn.CONCAT($C$2,"-",$E43,"-",$F43,"-",N$3),'Raw Data'!$A$2:$D$690331,4,FALSE),"N/A") -> N/A | O43: =_xlfn.IFNA(VLOOKUP(_xlfn.CONCAT($C$2,"-",$E43,"-",$F43,"-",O$3),'Raw Data'!$A$2:$D$690331,4,FALSE),"N/A") -> N/A | P43: =_xlfn.IFNA(VLOOKUP(_xlfn.CONCAT($C$2,"-",$E43,"-",$F43,"-",P$3),'Raw Data'!$A$2:$D$690331,4,FALSE),"N/A") -> N/A | Q43: =_xlfn.IFNA(VLOOKUP(_xlfn.CONCAT($C$2,"-",$E43,"-",$F43,"-",Q$3),'Raw Data'!$A$2:$D$690331,4,FALSE),"N/A") -> N/A | R43: =_xlfn.IFNA(VLOOKUP(_xlfn.CONCAT($C$2,"-",$E43,"-",$F43,"-",R$3),'Raw Data'!$A$2:$D$690331,4,FALSE),"N/A") -> N/A | S43: =_xlfn.IFNA(VLOOKUP(_xlfn.CONCAT($C$2,"-",$E43,"-",$F43,"-",S$3),'Raw Data'!$A$2:$D$690331,4,FALSE),"N/A") -> N/A
E44: 9 | F44: 2 | H44: =_xlfn.IFNA(VLOOKUP(_xlfn.CONCAT($C$2,"-",$E44,"-",$F44,"-",H$3),'Raw Data'!$A$2:$D$690331,4,FALSE),"N/A") -> N/A | I44: =_xlfn.IFNA(VLOOKUP(_xlfn.CONCAT($C$2,"-",$E44,"-",$F44,"-",I$3),'Raw Data'!$A$2:$D$690331,4,FALSE),"N/A") -> N/A | J44: =_xlfn.IFNA(VLOOKUP(_xlfn.CONCAT($C$2,"-",$E44,"-",$F44,"-",J$3),'Raw Data'!$A$2:$D$690331,4,FALSE),"N/A") -> N/A | K44: =_xlfn.IFNA(VLOOKUP(_xlfn.CONCAT($C$2,"-",$E44,"-",$F44,"-",K$3),'Raw Data'!$A$2:$D$690331,4,FALSE),"N/A") -> N/A | L44: =_xlfn.IFNA(VLOOKUP(_xlfn.CONCAT($C$2,"-",$E44,"-",$F44,"-",L$3),'Raw Data'!$A$2:$D$690331,4,FALSE),"N/A") -> N/A | M44: =_xlfn.IFNA(VLOOKUP(_xlfn.CONCAT($C$2,"-",$E44,"-",$F44,"-",M$3),'Raw Data'!$A$2:$D$690331,4,FALSE),"N/A") -> N/A | N44: =_xlfn.IFNA(VLOOKUP(_xlfn.CONCAT($C$2,"-",$E44,"-",$F44,"-",N$3),'Raw Data'!$A$2:$D$690331,4,FALSE),"N/A") -> N/A | O44: =_xlfn.IFNA(VLOOKUP(_xlfn.CONCAT($C$2,"-",$E44,"-",$F44,"-",O$3),'Raw Data'!$A$2:$D$690331,4,FALSE),"N/A") -> N/A | P44: =_xlfn.IFNA(VLOOKUP(_xlfn.CONCAT($C$2,"-",$E44,"-",$F44,"-",P$3),'Raw Data'!$A$2:$D$690331,4,FALSE),"N/A") -> N/A | Q44: =_xlfn.IFNA(VLOOKUP(_xlfn.CONCAT($C$2,"-",$E44,"-",$F44,"-",Q$3),'Raw Data'!$A$2:$D$690331,4,FALSE),"N/A") -> N/A | R44: =_xlfn.IFNA(VLOOKUP(_xlfn.CONCAT($C$2,"-",$E44,"-",$F44,"-",R$3),'Raw Data'!$A$2:$D$690331,4,FALSE),"N/A") -> N/A | S44: =_xlfn.IFNA(VLOOKUP(_xlfn.CONCAT($C$2,"-",$E44,"-",$F44,"-",S$3),'Raw Data'!$A$2:$D$690331,4,FALSE),"N/A") -> N/A
E45: 10 | F45: 2 | H45: =_xlfn.IFNA(VLOOKUP(_xlfn.CONCAT($C$2,"-",$E45,"-",$F45,"-",H$3),'Raw Data'!$A$2:$D$690331,4,FALSE),"N/A") -> N/A | I45: =_xlfn.IFNA(VLOOKUP(_xlfn.CONCAT($C$2,"-",$E45,"-",$F45,"-",I$3),'Raw Data'!$A$2:$D$690331,4,FALSE),"N/A") -> N/A | J45: =_xlfn.IFNA(VLOOKUP(_xlfn.CONCAT($C$2,"-",$E45,"-",$F45,"-",J$3),'Raw Data'!$A$2:$D$690331,4,FALSE),"N/A") -> N/A | K45: =_xlfn.IFNA(VLOOKUP(_xlfn.CONCAT($C$2,"-",$E45,"-",$F45,"-",K$3),'Raw Data'!$A$2:$D$690331,4,FALSE),"N/A") -> N/A | L45: =_xlfn.IFNA(VLOOKUP(_xlfn.CONCAT($C$2,"-",$E45,"-",$F45,"-",L$3),'Raw Data'!$A$2:$D$690331,4,FALSE),"N/A") -> N/A | M45: =_xlfn.IFNA(VLOOKUP(_xlfn.CONCAT($C$2,"-",$E45,"-",$F45,"-",M$3),'Raw Data'!$A$2:$D$690331,4,FALSE),"N/A") -> N/A | N45: =_xlfn.IFNA(VLOOKUP(_xlfn.CONCAT($C$2,"-",$E45,"-",$F45,"-",N$3),'Raw Data'!$A$2:$D$690331,4,FALSE),"N/A") -> N/A | O45: =_xlfn.IFNA(VLOOKUP(_xlfn.CONCAT($C$2,"-",$E45,"-",$F45,"-",O$3),'Raw Data'!$A$2:$D$690331,4,FALSE),"N/A") -> N/A | P45: =_xlfn.IFNA(VLOOKUP(_xlfn.CONCAT($C$2,"-",$E45,"-",$F45,"-",P$3),'Raw Data'!$A$2:$D$690331,4,FALSE),"N/A") -> N/A | Q45: =_xlfn.IFNA(VLOOKUP(_xlfn.CONCAT($C$2,"-",$E45,"-",$F45,"-",Q$3),'Raw Data'!$A$2:$D$690331,4,FALSE),"N/A") -> N/A | R45: =_xlfn.IFNA(VLOOKUP(_xlfn.CONCAT($C$2,"-",$E45,"-",$F45,"-",R$3),'Raw Data'!$A$2:$D$690331,4,FALSE),"N/A") -> N/A | S45: =_xlfn.IFNA(VLOOKUP(_xlfn.CONCAT($C$2,"-",$E45,"-",$F45,"-",S$3),'Raw Data'!$A$2:$D$690331,4,FALSE),"N/A") -> N/A
E46: 11 | F46: 2 | H46: =_xlfn.IFNA(VLOOKUP(_xlfn.CONCAT($C$2,"-",$E46,"-",$F46,"-",H$3),'Raw Data'!$A$2:$D$690331,4,FALSE),"N/A") -> N/A | I46: =_xlfn.IFNA(VLOOKUP(_xlfn.CONCAT($C$2,"-",$E46,"-",$F46,"-",I$3),'Raw Data'!$A$2:$D$690331,4,FALSE),"N/A") -> N/A | J46: =_xlfn.IFNA(VLOOKUP(_xlfn.CONCAT($C$2,"-",$E46,"-",$F46,"-",J$3),'Raw Data'!$A$2:$D$690331,4,FALSE),"N/A") -> N/A | K46: =_xlfn.IFNA(VLOOKUP(_xlfn.CONCAT($C$2,"-",$E46,"-",$F46,"-",K$3),'Raw Data'!$A$2:$D$690331,4,FALSE),"N/A") -> N/A | L46: =_xlfn.IFNA(VLOOKUP(_xlfn.CONCAT($C$2,"-",$E46,"-",$F46,"-",L$3),'Raw Data'!$A$2:$D$690331,4,FALSE),"N/A") -> N/A | M46: =_xlfn.IFNA(VLOOKUP(_xlfn.CONCAT($C$2,"-",$E46,"-",$F46,"-",M$3),'Raw Data'!$A$2:$D$690331,4,FALSE),"N/A") -> N/A | N46: =_xlfn.IFNA(VLOOKUP(_xlfn.CONCAT($C$2,"-",$E46,"-",$F46,"-",N$3),'Raw Data'!$A$2:$D$690331,4,FALSE),"N/A") -> N/A | O46: =_xlfn.IFNA(VLOOKUP(_xlfn.CONCAT($C$2,"-",$E46,"-",$F46,"-",O$3),'Raw Data'!$A$2:$D$690331,4,FALSE),"N/A") -> N/A | P46: =_xlfn.IFNA(VLOOKUP(_xlfn.CONCAT($C$2,"-",$E46,"-",$F46,"-",P$3),'Raw Data'!$A$2:$D$690331,4,FALSE),"N/A") -> N/A | Q46: =_xlfn.IFNA(VLOOKUP(_xlfn.CONCAT($C$2,"-",$E46,"-",$F46,"-",Q$3),'Raw Data'!$A$2:$D$690331,4,FALSE),"N/A") -> N/A | R46: =_xlfn.IFNA(VLOOKUP(_xlfn.CONCAT($C$2,"-",$E46,"-",$F46,"-",R$3),'Raw Data'!$A$2:$D$690331,4,FALSE),"N/A") -> N/A | S46: =_xlfn.IFNA(VLOOKUP(_xlfn.CONCAT($C$2,"-",$E46,"-",$F46,"-",S$3),'Raw Data'!$A$2:$D$690331,4,FALSE),"N/A") -> N/A
E47: 12 | F47: 2 | H47: =_xlfn.IFNA(VLOOKUP(_xlfn.CONCAT($C$2,"-",$E47,"-",$F47,"-",H$3),'Raw Data'!$A$2:$D$690331,4,FALSE),"N/A") -> N/A | I47: =_xlfn.IFNA(VLOOKUP(_xlfn.CONCAT($C$2,"-",$E47,"-",$F47,"-",I$3),'Raw Data'!$A$2:$D$690331,4,FALSE),"N/A") -> N/A | J47: =_xlfn.IFNA(VLOOKUP(_xlfn.CONCAT($C$2,"-",$E47,"-",$F47,"-",J$3),'Raw Data'!$A$2:$D$690331,4,FALSE),"N/A") -> N/A | K47: =_xlfn.IFNA(VLOOKUP(_xlfn.CONCAT($C$2,"-",$E47,"-",$F47,"-",K$3),'Raw Data'!$A$2:$D$690331,4,FALSE),"N/A") -> N/A | L47: =_xlfn.IFNA(VLOOKUP(_xlfn.CONCAT($C$2,"-",$E47,"-",$F47,"-",L$3),'Raw Data'!$A$2:$D$690331,4,FALSE),"N/A") -> N/A | M47: =_xlfn.IFNA(VLOOKUP(_xlfn.CONCAT($C$2,"-",$E47,"-",$F47,"-",M$3),'Raw Data'!$A$2:$D$690331,4,FALSE),"N/A") -> N/A | N47: =_xlfn.IFNA(VLOOKUP(_xlfn.CONCAT($C$2,"-",$E47,"-",$F47,"-",N$3),'Raw Data'!$A$2:$D$690331,4,FALSE),"N/A") -> N/A | O47: =_xlfn.IFNA(VLOOKUP(_xlfn.CONCAT($C$2,"-",$E47,"-",$F47,"-",O$3),'Raw Data'!$A$2:$D$690331,4,FALSE),"N/A") -> N/A | P47: =_xlfn.IFNA(VLOOKUP(_xlfn.CONCAT($C$2,"-",$E47,"-",$F47,"-",P$3),'Raw Data'!$A$2:$D$690331,4,FALSE),"N/A") -> N/A | Q47: =_xlfn.IFNA(VLOOKUP(_xlfn.CONCAT($C$2,"-",$E47,"-",$F47,"-",Q$3),'Raw Data'!$A$2:$D$690331,4,FALSE),"N/A") -> N/A | R47: =_xlfn.IFNA(VLOOKUP(_xlfn.CONCAT($C$2,"-",$E47,"-",$F47,"-",R$3),'Raw Data'!$A$2:$D$690331,4,FALSE),"N/A") -> N/A | S47: =_xlfn.IFNA(VLOOKUP(_xlfn.CONCAT($C$2,"-",$E47,"-",$F47,"-",S$3),'Raw Data'!$A$2:$D$690331,4,FALSE),"N/A") -> N/A
E48: 13 | F48: 2 | H48: =_xlfn.IFNA(VLOOKUP(_xlfn.CONCAT($C$2,"-",$E48,"-",$F48,"-",H$3),'Raw Data'!$A$2:$D$690331,4,FALSE),"N/A") -> N/A | I48: =_xlfn.IFNA(VLOOKUP(_xlfn.CONCAT($C$2,"-",$E48,"-",$F48,"-",I$3),'Raw Data'!$A$2:$D$690331,4,FALSE),"N/A") -> N/A | J48: =_xlfn.IFNA(VLOOKUP(_xlfn.CONCAT($C$2,"-",$E48,"-",$F48,"-",J$3),'Raw Data'!$A$2:$D$690331,4,FALSE),"N/A") -> N/A | K48: =_xlfn.IFNA(VLOOKUP(_xlfn.CONCAT($C$2,"-",$E48,"-",$F48,"-",K$3),'Raw Data'!$A$2:$D$690331,4,FALSE),"N/A") -> N/A | L48: =_xlfn.IFNA(VLOOKUP(_xlfn.CONCAT($C$2,"-",$E48,"-",$F48,"-",L$3),'Raw Data'!$A$2:$D$690331,4,FALSE),"N/A") -> N/A | M48: =_xlfn.IFNA(VLOOKUP(_xlfn.CONCAT($C$2,"-",$E48,"-",$F48,"-",M$3),'Raw Data'!$A$2:$D$690331,4,FALSE),"N/A") -> N/A | N48: =_xlfn.IFNA(VLOOKUP(_xlfn.CONCAT($C$2,"-",$E48,"-",$F48,"-",N$3),'Raw Data'!$A$2:$D$690331,4,FALSE),"N/A") -> N/A | O48: =_xlfn.IFNA(VLOOKUP(_xlfn.CONCAT($C$2,"-",$E48,"-",$F48,"-",O$3),'Raw Data'!$A$2:$D$690331,4,FALSE),"N/A") -> N/A | P48: =_xlfn.IFNA(VLOOKUP(_xlfn.CONCAT($C$2,"-",$E48,"-",$F48,"-",P$3),'Raw Data'!$A$2:$D$690331,4,FALSE),"N/A") -> N/A | Q48: =_xlfn.IFNA(VLOOKUP(_xlfn.CONCAT($C$2,"-",$E48,"-",$F48,"-",Q$3),'Raw Data'!$A$2:$D$690331,4,FALSE),"N/A") -> N/A | R48: =_xlfn.IFNA(VLOOKUP(_xlfn.CONCAT($C$2,"-",$E48,"-",$F48,"-",R$3),'Raw Data'!$A$2:$D$690331,4,FALSE),"N/A") -> N/A | S48: =_xlfn.IFNA(VLOOKUP(_xlfn.CONCAT($C$2,"-",$E48,"-",$F48,"-",S$3),'Raw Data'!$A$2:$D$690331,4,FALSE),"N/A") -> N/A
E49: 14 | F49: 2 | H49: =_xlfn.IFNA(VLOOKUP(_xlfn.CONCAT($C$2,"-",$E49,"-",$F49,"-",H$3),'Raw Data'!$A$2:$D$690331,4,FALSE),"N/A") -> N/A | I49: =_xlfn.IFNA(VLOOKUP(_xlfn.CONCAT($C$2,"-",$E49,"-",$F49,"-",I$3),'Raw Data'!$A$2:$D$690331,4,FALSE),"N/A") -> N/A | J49: =_xlfn.IFNA(VLOOKUP(_xlfn.CONCAT($C$2,"-",$E49,"-",$F49,"-",J$3),'Raw Data'!$A$2:$D$690331,4,FALSE),"N/A") -> N/A | K49: =_xlfn.IFNA(VLOOKUP(_xlfn.CONCAT($C$2,"-",$E49,"-",$F49,"-",K$3),'Raw Data'!$A$2:$D$690331,4,FALSE),"N/A") -> N/A | L49: =_xlfn.IFNA(VLOOKUP(_xlfn.CONCAT($C$2,"-",$E49,"-",$F49,"-",L$3),'Raw Data'!$A$2:$D$690331,4,FALSE),"N/A") -> N/A | M49: =_xlfn.IFNA(VLOOKUP(_xlfn.CONCAT($C$2,"-",$E49,"-",$F49,"-",M$3),'Raw Data'!$A$2:$D$690331,4,FALSE),"N/A") -> N/A | N49: =_xlfn.IFNA(VLOOKUP(_xlfn.CONCAT($C$2,"-",$E49,"-",$F49,"-",N$3),'Raw Data'!$A$2:$D$690331,4,FALSE),"N/A") -> N/A | O49: =_xlfn.IFNA(VLOOKUP(_xlfn.CONCAT($C$2,"-",$E49,"-",$F49,"-",O$3),'Raw Data'!$A$2:$D$690331,4,FALSE),"N/A") -> N/A | P49: =_xlfn.IFNA(VLOOKUP(_xlfn.CONCAT($C$2,"-",$E49,"-",$F49,"-",P$3),'Raw Data'!$A$2:$D$690331,4,FALSE),"N/A") -> N/A | Q49: =_xlfn.IFNA(VLOOKUP(_xlfn.CONCAT($C$2,"-",$E49,"-",$F49,"-",Q$3),'Raw Data'!$A$2:$D$690331,4,FALSE),"N/A") -> N/A | R49: =_xlfn.IFNA(VLOOKUP(_xlfn.CONCAT($C$2,"-",$E49,"-",$F49,"-",R$3),'Raw Data'!$A$2:$D$690331,4,FALSE),"N/A") -> N/A | S49: =_xlfn.IFNA(VLOOKUP(_xlfn.CONCAT($C$2,"-",$E49,"-",$F49,"-",S$3),'Raw Data'!$A$2:$D$690331,4,FALSE),"N/A") -> N/A
E50: 15 | F50: 2 | H50: =_xlfn.IFNA(VLOOKUP(_xlfn.CONCAT($C$2,"-",$E50,"-",$F50,"-",H$3),'Raw Data'!$A$2:$D$690331,4,FALSE),"N/A") -> N/A | I50: =_xlfn.IFNA(VLOOKUP(_xlfn.CONCAT($C$2,"-",$E50,"-",$F50,"-",I$3),'Raw Data'!$A$2:$D$690331,4,FALSE),"N/A") -> N/A | J50: =_xlfn.IFNA(VLOOKUP(_xlfn.CONCAT($C$2,"-",$E50,"-",$F50,"-",J$3),'Raw Data'!$A$2:$D$690331,4,FALSE),"N/A") -> N/A | K50: =_xlfn.IFNA(VLOOKUP(_xlfn.CONCAT($C$2,"-",$E50,"-",$F50,"-",K$3),'Raw Data'!$A$2:$D$690331,4,FALSE),"N/A") -> N/A | L50: =_xlfn.IFNA(VLOOKUP(_xlfn.CONCAT($C$2,"-",$E50,"-",$F50,"-",L$3),'Raw Data'!$A$2:$D$690331,4,FALSE),"N/A") -> N/A | M50: =_xlfn.IFNA(VLOOKUP(_xlfn.CONCAT($C$2,"-",$E50,"-",$F50,"-",M$3),'Raw Data'!$A$2:$D$690331,4,FALSE),"N/A") -> N/A | N50: =_xlfn.IFNA(VLOOKUP(_xlfn.CONCAT($C$2,"-",$E50,"-",$F50,"-",N$3),'Raw Data'!$A$2:$D$690331,4,FALSE),"N/A") -> N/A | O50: =_xlfn.IFNA(VLOOKUP(_xlfn.CONCAT($C$2,"-",$E50,"-",$F50,"-",O$3),'Raw Data'!$A$2:$D$690331,4,FALSE),"N/A") -> N/A | P50: =_xlfn.IFNA(VLOOKUP(_xlfn.CONCAT($C$2,"-",$E50,"-",$F50,"-",P$3),'Raw Data'!$A$2:$D$690331,4,FALSE),"N/A") -> N/A | Q50: =_xlfn.IFNA(VLOOKUP(_xlfn.CONCAT($C$2,"-",$E50,"-",$F50,"-",Q$3),'Raw Data'!$A$2:$D$690331,4,FALSE),"N/A") -> N/A | R50: =_xlfn.IFNA(VLOOKUP(_xlfn.CONCAT($C$2,"-",$E50,"-",$F50,"-",R$3),'Raw Data'!$A$2:$D$690331,4,FALSE),"N/A") -> N/A | S50: =_xlfn.IFNA(VLOOKUP(_xlfn.CONCAT($C$2,"-",$E50,"-",$F50,"-",S$3),'Raw Data'!$A$2:$D$690331,4,FALSE),"N/A") -> N/A
E51: 16 | F51: 2 | H51: =_xlfn.IFNA(VLOOKUP(_xlfn.CONCAT($C$2,"-",$E51,"-",$F51,"-",H$3),'Raw Data'!$A$2:$D$690331,4,FALSE),"N/A") -> N/A | I51: =_xlfn.IFNA(VLOOKUP(_xlfn.CONCAT($C$2,"-",$E51,"-",$F51,"-",I$3),'Raw Data'!$A$2:$D$690331,4,FALSE),"N/A") -> N/A | J51: =_xlfn.IFNA(VLOOKUP(_xlfn.CONCAT($C$2,"-",$E51,"-",$F51,"-",J$3),'Raw Data'!$A$2:$D$690331,4,FALSE),"N/A") -> N/A | K51: =_xlfn.IFNA(VLOOKUP(_xlfn.CONCAT($C$2,"-",$E51,"-",$F51,"-",K$3),'Raw Data'!$A$2:$D$690331,4,FALSE),"N/A") -> N/A | L51: =_xlfn.IFNA(VLOOKUP(_xlfn.CONCAT($C$2,"-",$E51,"-",$F51,"-",L$3),'Raw Data'!$A$2:$D$690331,4,FALSE),"N/A") -> N/A | M51: =_xlfn.IFNA(VLOOKUP(_xlfn.CONCAT($C$2,"-",$E51,"-",$F51,"-",M$3),'Raw Data'!$A$2:$D$690331,4,FALSE),"N/A") -> N/A | N51: =_xlfn.IFNA(VLOOKUP(_xlfn.CONCAT($C$2,"-",$E51,"-",$F51,"-",N$3),'Raw Data'!$A$2:$D$690331,4,FALSE),"N/A") -> N/A | O51: =_xlfn.IFNA(VLOOKUP(_xlfn.CONCAT($C$2,"-",$E51,"-",$F51,"-",O$3),'Raw Data'!$A$2:$D$690331,4,FALSE),"N/A") -> N/A | P51: =_xlfn.IFNA(VLOOKUP(_xlfn.CONCAT($C$2,"-",$E51,"-",$F51,"-",P$3),'Raw Data'!$A$2:$D$690331,4,FALSE),"N/A") -> N/A | Q51: =_xlfn.IFNA(VLOOKUP(_xlfn.CONCAT($C$2,"-",$E51,"-",$F51,"-",Q$3),'Raw Data'!$A$2:$D$690331,4,FALSE),"N/A") -> N/A | R51: =_xlfn.IFNA(VLOOKUP(_xlfn.CONCAT($C$2,"-",$E51,"-",$F51,"-",R$3),'Raw Data'!$A$2:$D$690331,4,FALSE),"N/A") -> N/A | S51: =_xlfn.IFNA(VLOOKUP(_xlfn.CONCAT($C$2,"-",$E51,"-",$F51,"-",S$3),'Raw Data'!$A$2:$D$690331,4,FALSE),"N/A") -> N/A
E52: 17 | F52: 2 | H52: =_xlfn.IFNA(VLOOKUP(_xlfn.CONCAT($C$2,"-",$E52,"-",$F52,"-",H$3),'Raw Data'!$A$2:$D$690331,4,FALSE),"N/A") -> N/A | I52: =_xlfn.IFNA(VLOOKUP(_xlfn.CONCAT($C$2,"-",$E52,"-",$F52,"-",I$3),'Raw Data'!$A$2:$D$690331,4,FALSE),"N/A") -> N/A | J52: =_xlfn.IFNA(VLOOKUP(_xlfn.CONCAT($C$2,"-",$E52,"-",$F52,"-",J$3),'Raw Data'!$A$2:$D$690331,4,FALSE),"N/A") -> N/A | K52: =_xlfn.IFNA(VLOOKUP(_xlfn.CONCAT($C$2,"-",$E52,"-",$F52,"-",K$3),'Raw Data'!$A$2:$D$690331,4,FALSE),"N/A") -> N/A | L52: =_xlfn.IFNA(VLOOKUP(_xlfn.CONCAT($C$2,"-",$E52,"-",$F52,"-",L$3),'Raw Data'!$A$2:$D$690331,4,FALSE),"N/A") -> N/A | M52: =_xlfn.IFNA(VLOOKUP(_xlfn.CONCAT($C$2,"-",$E52,"-",$F52,"-",M$3),'Raw Data'!$A$2:$D$690331,4,FALSE),"N/A") -> N/A | N52: =_xlfn.IFNA(VLOOKUP(_xlfn.CONCAT($C$2,"-",$E52,"-",$F52,"-",N$3),'Raw Data'!$A$2:$D$690331,4,FALSE),"N/A") -> N/A | O52: =_xlfn.IFNA(VLOOKUP(_xlfn.CONCAT($C$2,"-",$E52,"-",$F52,"-",O$3),'Raw Data'!$A$2:$D$690331,4,FALSE),"N/A") -> N/A | P52: =_xlfn.IFNA(VLOOKUP(_xlfn.CONCAT($C$2,"-",$E52,"-",$F52,"-",P$3),'Raw Data'!$A$2:$D$690331,4,FALSE),"N/A") -> N/A | Q52: =_xlfn.IFNA(VLOOKUP(_xlfn.CONCAT($C$2,"-",$E52,"-",$F52,"-",Q$3),'Raw Data'!$A$2:$D$690331,4,FALSE),"N/A") -> N/A | R52: =_xlfn.IFNA(VLOOKUP(_xlfn.CONCAT($C$2,"-",$E52,"-",$F52,"-",R$3),'Raw Data'!$A$2:$D$690331,4,FALSE),"N/A") -> N/A | S52: =_xlfn.IFNA(VLOOKUP(_xlfn.CONCAT($C$2,"-",$E52,"-",$F52,"-",S$3),'Raw Data'!$A$2:$D$690331,4,FALSE),"N/A") -> N/A
E53: 18 | F53: 2 | H53: =_xlfn.IFNA(VLOOKUP(_xlfn.CONCAT($C$2,"-",$E53,"-",$F53,"-",H$3),'Raw Data'!$A$2:$D$690331,4,FALSE),"N/A") -> N/A | I53: =_xlfn.IFNA(VLOOKUP(_xlfn.CONCAT($C$2,"-",$E53,"-",$F53,"-",I$3),'Raw Data'!$A$2:$D$690331,4,FALSE),"N/A") -> N/A | J53: =_xlfn.IFNA(VLOOKUP(_xlfn.CONCAT($C$2,"-",$E53,"-",$F53,"-",J$3),'Raw Data'!$A$2:$D$690331,4,FALSE),"N/A") -> N/A | K53: =_xlfn.IFNA(VLOOKUP(_xlfn.CONCAT($C$2,"-",$E53,"-",$F53,"-",K$3),'Raw Data'!$A$2:$D$690331,4,FALSE),"N/A") -> N/A | L53: =_xlfn.IFNA(VLOOKUP(_xlfn.CONCAT($C$2,"-",$E53,"-",$F53,"-",L$3),'Raw Data'!$A$2:$D$690331,4,FALSE),"N/A") -> N/A | M53: =_xlfn.IFNA(VLOOKUP(_xlfn.CONCAT($C$2,"-",$E53,"-",$F53,"-",M$3),'Raw Data'!$A$2:$D$690331,4,FALSE),"N/A") -> N/A | N53: =_xlfn.IFNA(VLOOKUP(_xlfn.CONCAT($C$2,"-",$E53,"-",$F53,"-",N$3),'Raw Data'!$A$2:$D$690331,4,FALSE),"N/A") -> N/A | O53: =_xlfn.IFNA(VLOOKUP(_xlfn.CONCAT($C$2,"-",$E53,"-",$F53,"-",O$3),'Raw Data'!$A$2:$D$690331,4,FALSE),"N/A") -> N/A | P53: =_xlfn.IFNA(VLOOKUP(_xlfn.CONCAT($C$2,"-",$E53,"-",$F53,"-",P$3),'Raw Data'!$A$2:$D$690331,4,FALSE),"N/A") -> N/A | Q53: =_xlfn.IFNA(VLOOKUP(_xlfn.CONCAT($C$2,"-",$E53,"-",$F53,"-",Q$3),'Raw Data'!$A$2:$D$690331,4,FALSE),"N/A") -> N/A | R53: =_xlfn.IFNA(VLOOKUP(_xlfn.CONCAT($C$2,"-",$E53,"-",$F53,"-",R$3),'Raw Data'!$A$2:$D$690331,4,FALSE),"N/A") -> N/A | S53: =_xlfn.IFNA(VLOOKUP(_xlfn.CONCAT($C$2,"-",$E53,"-",$F53,"-",S$3),'Raw Data'!$A$2:$D$690331,4,FALSE),"N/A") -> N/A
E54: 19 | F54: 2 | H54: =_xlfn.IFNA(VLOOKUP(_xlfn.CONCAT($C$2,"-",$E54,"-",$F54,"-",H$3),'Raw Data'!$A$2:$D$690331,4,FALSE),"N/A") -> N/A | I54: =_xlfn.IFNA(VLOOKUP(_xlfn.CONCAT($C$2,"-",$E54,"-",$F54,"-",I$3),'Raw Data'!$A$2:$D$690331,4,FALSE),"N/A") -> N/A | J54: =_xlfn.IFNA(VLOOKUP(_xlfn.CONCAT($C$2,"-",$E54,"-",$F54,"-",J$3),'Raw Data'!$A$2:$D$690331,4,FALSE),"N/A") -> N/A | K54: =_xlfn.IFNA(VLOOKUP(_xlfn.CONCAT($C$2,"-",$E54,"-",$F54,"-",K$3),'Raw Data'!$A$2:$D$690331,4,FALSE),"N/A") -> N/A | L54: =_xlfn.IFNA(VLOOKUP(_xlfn.CONCAT($C$2,"-",$E54,"-",$F54,"-",L$3),'Raw Data'!$A$2:$D$690331,4,FALSE),"N/A") -> N/A | M54: =_xlfn.IFNA(VLOOKUP(_xlfn.CONCAT($C$2,"-",$E54,"-",$F54,"-",M$3),'Raw Data'!$A$2:$D$690331,4,FALSE),"N/A") -> N/A | N54: =_xlfn.IFNA(VLOOKUP(_xlfn.CONCAT($C$2,"-",$E54,"-",$F54,"-",N$3),'Raw Data'!$A$2:$D$690331,4,FALSE),"N/A") -> N/A | O54: =_xlfn.IFNA(VLOOKUP(_xlfn.CONCAT($C$2,"-",$E54,"-",$F54,"-",O$3),'Raw Data'!$A$2:$D$690331,4,FALSE),"N/A") -> N/A | P54: =_xlfn.IFNA(VLOOKUP(_xlfn.CONCAT($C$2,"-",$E54,"-",$F54,"-",P$3),'Raw Data'!$A$2:$D$690331,4,FALSE),"N/A") -> N/A | Q54: =_xlfn.IFNA(VLOOKUP(_xlfn.CONCAT($C$2,"-",$E54,"-",$F54,"-",Q$3),'Raw Data'!$A$2:$D$690331,4,FALSE),"N/A") -> N/A | R54: =_xlfn.IFNA(VLOOKUP(_xlfn.CONCAT($C$2,"-",$E54,"-",$F54,"-",R$3),'Raw Data'!$A$2:$D$690331,4,FALSE),"N/A") -> N/A | S54: =_xlfn.IFNA(VLOOKUP(_xlfn.CONCAT($C$2,"-",$E54,"-",$F54,"-",S$3),'Raw Data'!$A$2:$D$690331,4,FALSE),"N/A") -> N/A
E55: 20 | F55: 2 | H55: =_xlfn.IFNA(VLOOKUP(_xlfn.CONCAT($C$2,"-",$E55,"-",$F55,"-",H$3),'Raw Data'!$A$2:$D$690331,4,FALSE),"N/A") -> N/A | I55: =_xlfn.IFNA(VLOOKUP(_xlfn.CONCAT($C$2,"-",$E55,"-",$F55,"-",I$3),'Raw Data'!$A$2:$D$690331,4,FALSE),"N/A") -> N/A | J55: =_xlfn.IFNA(VLOOKUP(_xlfn.CONCAT($C$2,"-",$E55,"-",$F55,"-",J$3),'Raw Data'!$A$2:$D$690331,4,FALSE),"N/A") -> N/A | K55: =_xlfn.IFNA(VLOOKUP(_xlfn.CONCAT($C$2,"-",$E55,"-",$F55,"-",K$3),'Raw Data'!$A$2:$D$690331,4,FALSE),"N/A") -> N/A | L55: =_xlfn.IFNA(VLOOKUP(_xlfn.CONCAT($C$2,"-",$E55,"-",$F55,"-",L$3),'Raw Data'!$A$2:$D$690331,4,FALSE),"N/A") -> N/A | M55: =_xlfn.IFNA(VLOOKUP(_xlfn.CONCAT($C$2,"-",$E55,"-",$F55,"-",M$3),'Raw Data'!$A$2:$D$690331,4,FALSE),"N/A") -> N/A | N55: =_xlfn.IFNA(VLOOKUP(_xlfn.CONCAT($C$2,"-",$E55,"-",$F55,"-",N$3),'Raw Data'!$A$2:$D$690331,4,FALSE),"N/A") -> N/A | O55: =_xlfn.IFNA(VLOOKUP(_xlfn.CONCAT($C$2,"-",$E55,"-",$F55,"-",O$3),'Raw Data'!$A$2:$D$690331,4,FALSE),"N/A") -> N/A | P55: =_xlfn.IFNA(VLOOKUP(_xlfn.CONCAT($C$2,"-",$E55,"-",$F55,"-",P$3),'Raw Data'!$A$2:$D$690331,4,FALSE),"N/A") -> N/A | Q55: =_xlfn.IFNA(VLOOKUP(_xlfn.CONCAT($C$2,"-",$E55,"-",$F55,"-",Q$3),'Raw Data'!$A$2:$D$690331,4,FALSE),"N/A") -> N/A | R55: =_xlfn.IFNA(VLOOKUP(_xlfn.CONCAT($C$2,"-",$E55,"-",$F55,"-",R$3),'Raw Data'!$A$2:$D$690331,4,FALSE),"N/A") -> N/A | S55: =_xlfn.IFNA(VLOOKUP(_xlfn.CONCAT($C$2,"-",$E55,"-",$F55,"-",S$3),'Raw Data'!$A$2:$D$690331,4,FALSE),"N/A") -> N/A
E56: 21 | F56: 2 | H56: =_xlfn.IFNA(VLOOKUP(_xlfn.CONCAT($C$2,"-",$E56,"-",$F56,"-",H$3),'Raw Data'!$A$2:$D$690331,4,FALSE),"N/A") -> N/A | I56: =_xlfn.IFNA(VLOOKUP(_xlfn.CONCAT($C$2,"-",$E56,"-",$F56,"-",I$3),'Raw Data'!$A$2:$D$690331,4,FALSE),"N/A") -> N/A | J56: =_xlfn.IFNA(VLOOKUP(_xlfn.CONCAT($C$2,"-",$E56,"-",$F56,"-",J$3),'Raw Data'!$A$2:$D$690331,4,FALSE),"N/A") -> N/A | K56: =_xlfn.IFNA(VLOOKUP(_xlfn.CONCAT($C$2,"-",$E56,"-",$F56,"-",K$3),'Raw Data'!$A$2:$D$690331,4,FALSE),"N/A") -> N/A | L56: =_xlfn.IFNA(VLOOKUP(_xlfn.CONCAT($C$2,"-",$E56,"-",$F56,"-",L$3),'Raw Data'!$A$2:$D$690331,4,FALSE),"N/A") -> N/A | M56: =_xlfn.IFNA(VLOOKUP(_xlfn.CONCAT($C$2,"-",$E56,"-",$F56,"-",M$3),'Raw Data'!$A$2:$D$690331,4,FALSE),"N/A") -> N/A | N56: =_xlfn.IFNA(VLOOKUP(_xlfn.CONCAT($C$2,"-",$E56,"-",$F56,"-",N$3),'Raw Data'!$A$2:$D$690331,4,FALSE),"N/A") -> N/A | O56: =_xlfn.IFNA(VLOOKUP(_xlfn.CONCAT($C$2,"-",$E56,"-",$F56,"-",O$3),'Raw Data'!$A$2:$D$690331,4,FALSE),"N/A") -> N/A | P56: =_xlfn.IFNA(VLOOKUP(_xlfn.CONCAT($C$2,"-",$E56,"-",$F56,"-",P$3),'Raw Data'!$A$2:$D$690331,4,FALSE),"N/A") -> N/A | Q56: =_xlfn.IFNA(VLOOKUP(_xlfn.CONCAT($C$2,"-",$E56,"-",$F56,"-",Q$3),'Raw Data'!$A$2:$D$690331,4,FALSE),"N/A") -> N/A | R56: =_xlfn.IFNA(VLOOKUP(_xlfn.CONCAT($C$2,"-",$E56,"-",$F56,"-",R$3),'Raw Data'!$A$2:$D$690331,4,FALSE),"N/A") -> N/A | S56: =_xlfn.IFNA(VLOOKUP(_xlfn.CONCAT($C$2,"-",$E56,"-",$F56,"-",S$3),'Raw Data'!$A$2:$D$690331,4,FALSE),"N/A") -> N/A
E57: 22 | F57: 2 | H57: =_xlfn.IFNA(VLOOKUP(_xlfn.CONCAT($C$2,"-",$E57,"-",$F57,"-",H$3),'Raw Data'!$A$2:$D$690331,4,FALSE),"N/A") -> N/A | I57: =_xlfn.IFNA(VLOOKUP(_xlfn.CONCAT($C$2,"-",$E57,"-",$F57,"-",I$3),'Raw Data'!$A$2:$D$690331,4,FALSE),"N/A") -> N/A | J57: =_xlfn.IFNA(VLOOKUP(_xlfn.CONCAT($C$2,"-",$E57,"-",$F57,"-",J$3),'Raw Data'!$A$2:$D$690331,4,FALSE),"N/A") -> N/A | K57: =_xlfn.IFNA(VLOOKUP(_xlfn.CONCAT($C$2,"-",$E57,"-",$F57,"-",K$3),'Raw Data'!$A$2:$D$690331,4,FALSE),"N/A") -> N/A | L57: =_xlfn.IFNA(VLOOKUP(_xlfn.CONCAT($C$2,"-",$E57,"-",$F57,"-",L$3),'Raw Data'!$A$2:$D$690331,4,FALSE),"N/A") -> N/A | M57: =_xlfn.IFNA(VLOOKUP(_xlfn.CONCAT($C$2,"-",$E57,"-",$F57,"-",M$3),'Raw Data'!$A$2:$D$690331,4,FALSE),"N/A") -> N/A | N57: =_xlfn.IFNA(VLOOKUP(_xlfn.CONCAT($C$2,"-",$E57,"-",$F57,"-",N$3),'Raw Data'!$A$2:$D$690331,4,FALSE),"N/A") -> N/A | O57: =_xlfn.IFNA(VLOOKUP(_xlfn.CONCAT($C$2,"-",$E57,"-",$F57,"-",O$3),'Raw Data'!$A$2:$D$690331,4,FALSE),"N/A") -> N/A | P57: =_xlfn.IFNA(VLOOKUP(_xlfn.CONCAT($C$2,"-",$E57,"-",$F57,"-",P$3),'Raw Data'!$A$2:$D$690331,4,FALSE),"N/A") -> N/A | Q57: =_xlfn.IFNA(VLOOKUP(_xlfn.CONCAT($C$2,"-",$E57,"-",$F57,"-",Q$3),'Raw Data'!$A$2:$D$690331,4,FALSE),"N/A") -> N/A | R57: =_xlfn.IFNA(VLOOKUP(_xlfn.CONCAT($C$2,"-",$E57,"-",$F57,"-",R$3),'Raw Data'!$A$2:$D$690331,4,FALSE),"N/A") -> N/A | S57: =_xlfn.IFNA(VLOOKUP(_xlfn.CONCAT($C$2,"-",$E57,"-",$F57,"-",S$3),'Raw Data'!$A$2:$D$690331,4,FALSE),"N/A") -> N/A
E58: 23 | F58: 2 | H58: =_xlfn.IFNA(VLOOKUP(_xlfn.CONCAT($C$2,"-",$E58,"-",$F58,"-",H$3),'Raw Data'!$A$2:$D$690331,4,FALSE),"N/A") -> N/A | I58: =_xlfn.IFNA(VLOOKUP(_xlfn.CONCAT($C$2,"-",$E58,"-",$F58,"-",I$3),'Raw Data'!$A$2:$D$690331,4,FALSE),"N/A") -> N/A | J58: =_xlfn.IFNA(VLOOKUP(_xlfn.CONCAT($C$2,"-",$E58,"-",$F58,"-",J$3),'Raw Data'!$A$2:$D$690331,4,FALSE),"N/A") -> N/A | K58: =_xlfn.IFNA(VLOOKUP(_xlfn.CONCAT($C$2,"-",$E58,"-",$F58,"-",K$3),'Raw Data'!$A$2:$D$690331,4,FALSE),"N/A") -> N/A | L58: =_xlfn.IFNA(VLOOKUP(_xlfn.CONCAT($C$2,"-",$E58,"-",$F58,"-",L$3),'Raw Data'!$A$2:$D$690331,4,FALSE),"N/A") -> N/A | M58: =_xlfn.IFNA(VLOOKUP(_xlfn.CONCAT($C$2,"-",$E58,"-",$F58,"-",M$3),'Raw Data'!$A$2:$D$690331,4,FALSE),"N/A") -> N/A | N58: =_xlfn.IFNA(VLOOKUP(_xlfn.CONCAT($C$2,"-",$E58,"-",$F58,"-",N$3),'Raw Data'!$A$2:$D$690331,4,FALSE),"N/A") -> N/A | O58: =_xlfn.IFNA(VLOOKUP(_xlfn.CONCAT($C$2,"-",$E58,"-",$F58,"-",O$3),'Raw Data'!$A$2:$D$690331,4,FALSE),"N/A") -> N/A | P58: =_xlfn.IFNA(VLOOKUP(_xlfn.CONCAT($C$2,"-",$E58,"-",$F58,"-",P$3),'Raw Data'!$A$2:$D$690331,4,FALSE),"N/A") -> N/A | Q58: =_xlfn.IFNA(VLOOKUP(_xlfn.CONCAT($C$2,"-",$E58,"-",$F58,"-",Q$3),'Raw Data'!$A$2:$D$690331,4,FALSE),"N/A") -> N/A | R58: =_xlfn.IFNA(VLOOKUP(_xlfn.CONCAT($C$2,"-",$E58,"-",$F58,"-",R$3),'Raw Data'!$A$2:$D$690331,4,FALSE),"N/A") -> N/A | S58: =_xlfn.IFNA(VLOOKUP(_xlfn.CONCAT($C$2,"-",$E58,"-",$F58,"-",S$3),'Raw Data'!$A$2:$D$690331,4,FALSE),"N/A") -> N/A
E59: 24 | F59: 2 | H59: =_xlfn.IFNA(VLOOKUP(_xlfn.CONCAT($C$2,"-",$E59,"-",$F59,"-",H$3),'Raw Data'!$A$2:$D$690331,4,FALSE),"N/A") -> N/A | I59: =_xlfn.IFNA(VLOOKUP(_xlfn.CONCAT($C$2,"-",$E59,"-",$F59,"-",I$3),'Raw Data'!$A$2:$D$690331,4,FALSE),"N/A") -> N/A | J59: =_xlfn.IFNA(VLOOKUP(_xlfn.CONCAT($C$2,"-",$E59,"-",$F59,"-",J$3),'Raw Data'!$A$2:$D$690331,4,FALSE),"N/A") -> N/A | K59: =_xlfn.IFNA(VLOOKUP(_xlfn.CONCAT($C$2,"-",$E59,"-",$F59,"-",K$3),'Raw Data'!$A$2:$D$690331,4,FALSE),"N/A") -> N/A | L59: =_xlfn.IFNA(VLOOKUP(_xlfn.CONCAT($C$2,"-",$E59,"-",$F59,"-",L$3),'Raw Data'!$A$2:$D$690331,4,FALSE),"N/A") -> N/A | M59: =_xlfn.IFNA(VLOOKUP(_xlfn.CONCAT($C$2,"-",$E59,"-",$F59,"-",M$3),'Raw Data'!$A$2:$D$690331,4,FALSE),"N/A") -> N/A | N59: =_xlfn.IFNA(VLOOKUP(_xlfn.CONCAT($C$2,"-",$E59,"-",$F59,"-",N$3),'Raw Data'!$A$2:$D$690331,4,FALSE),"N/A") -> N/A | O59: =_xlfn.IFNA(VLOOKUP(_xlfn.CONCAT($C$2,"-",$E59,"-",$F59,"-",O$3),'Raw Data'!$A$2:$D$690331,4,FALSE),"N/A") -> N/A | P59: =_xlfn.IFNA(VLOOKUP(_xlfn.CONCAT($C$2,"-",$E59,"-",$F59,"-",P$3),'Raw Data'!$A$2:$D$690331,4,FALSE),"N/A") -> N/A | Q59: =_xlfn.IFNA(VLOOKUP(_xlfn.CONCAT($C$2,"-",$E59,"-",$F59,"-",Q$3),'Raw Data'!$A$2:$D$690331,4,FALSE),"N/A") -> N/A | R59: =_xlfn.IFNA(VLOOKUP(_xlfn.CONCAT($C$2,"-",$E59,"-",$F59,"-",R$3),'Raw Data'!$A$2:$D$690331,4,FALSE),"N/A") -> N/A | S59: =_xlfn.IFNA(VLOOKUP(_xlfn.CONCAT($C$2,"-",$E59,"-",$F59,"-",S$3),'Raw Data'!$A$2:$D$690331,4,FALSE),"N/A") -> N/A
E60: 25 | F60: 2 | H60: =_xlfn.IFNA(VLOOKUP(_xlfn.CONCAT($C$2,"-",$E60,"-",$F60,"-",H$3),'Raw Data'!$A$2:$D$690331,4,FALSE),"N/A") -> N/A | I60: =_xlfn.IFNA(VLOOKUP(_xlfn.CONCAT($C$2,"-",$E60,"-",$F60,"-",I$3),'Raw Data'!$A$2:$D$690331,4,FALSE),"N/A") -> N/A | J60: =_xlfn.IFNA(VLOOKUP(_xlfn.CONCAT($C$2,"-",$E60,"-",$F60,"-",J$3),'Raw Data'!$A$2:$D$690331,4,FALSE),"N/A") -> N/A | K60: =_xlfn.IFNA(VLOOKUP(_xlfn.CONCAT($C$2,"-",$E60,"-",$F60,"-",K$3),'Raw Data'!$A$2:$D$690331,4,FALSE),"N/A") -> N/A | L60: =_xlfn.IFNA(VLOOKUP(_xlfn.CONCAT($C$2,"-",$E60,"-",$F60,"-",L$3),'Raw Data'!$A$2:$D$690331,4,FALSE),"N/A") -> N/A | M60: =_xlfn.IFNA(VLOOKUP(_xlfn.CONCAT($C$2,"-",$E60,"-",$F60,"-",M$3),'Raw Data'!$A$2:$D$690331,4,FALSE),"N/A") -> N/A | N60: =_xlfn.IFNA(VLOOKUP(_xlfn.CONCAT($C$2,"-",$E60,"-",$F60,"-",N$3),'Raw Data'!$A$2:$D$690331,4,FALSE),"N/A") -> N/A | O60: =_xlfn.IFNA(VLOOKUP(_xlfn.CONCAT($C$2,"-",$E60,"-",$F60,"-",O$3),'Raw Data'!$A$2:$D$690331,4,FALSE),"N/A") -> N/A | P60: =_xlfn.IFNA(VLOOKUP(_xlfn.CONCAT($C$2,"-",$E60,"-",$F60,"-",P$3),'Raw Data'!$A$2:$D$690331,4,FALSE),"N/A") -> N/A | Q60: =_xlfn.IFNA(VLOOKUP(_xlfn.CONCAT($C$2,"-",$E60,"-",$F60,"-",Q$3),'Raw Data'!$A$2:$D$690331,4,FALSE),"N/A") -> N/A | R60: =_xlfn.IFNA(VLOOKUP(_xlfn.CONCAT($C$2,"-",$E60,"-",$F60,"-",R$3),'Raw Data'!$A$2:$D$690331,4,FALSE),"N/A") -> N/A | S60: =_xlfn.IFNA(VLOOKUP(_xlfn.CONCAT($C$2,"-",$E60,"-",$F60,"-",S$3),'Raw Data'!$A$2:$D$690331,4,FALSE),"N/A") -> N/A
E61: 26 | F61: 2 | H61: =_xlfn.IFNA(VLOOKUP(_xlfn.CONCAT($C$2,"-",$E61,"-",$F61,"-",H$3),'Raw Data'!$A$2:$D$690331,4,FALSE),"N/A") -> N/A | I61: =_xlfn.IFNA(VLOOKUP(_xlfn.CONCAT($C$2,"-",$E61,"-",$F61,"-",I$3),'Raw Data'!$A$2:$D$690331,4,FALSE),"N/A") -> N/A | J61: =_xlfn.IFNA(VLOOKUP(_xlfn.CONCAT($C$2,"-",$E61,"-",$F61,"-",J$3),'Raw Data'!$A$2:$D$690331,4,FALSE),"N/A") -> N/A | K61: =_xlfn.IFNA(VLOOKUP(_xlfn.CONCAT($C$2,"-",$E61,"-",$F61,"-",K$3),'Raw Data'!$A$2:$D$690331,4,FALSE),"N/A") -> N/A | L61: =_xlfn.IFNA(VLOOKUP(_xlfn.CONCAT($C$2,"-",$E61,"-",$F61,"-",L$3),'Raw Data'!$A$2:$D$690331,4,FALSE),"N/A") -> N/A | M61: =_xlfn.IFNA(VLOOKUP(_xlfn.CONCAT($C$2,"-",$E61,"-",$F61,"-",M$3),'Raw Data'!$A$2:$D$690331,4,FALSE),"N/A") -> N/A | N61: =_xlfn.IFNA(VLOOKUP(_xlfn.CONCAT($C$2,"-",$E61,"-",$F61,"-",N$3),'Raw Data'!$A$2:$D$690331,4,FALSE),"N/A") -> N/A | O61: =_xlfn.IFNA(VLOOKUP(_xlfn.CONCAT($C$2,"-",$E61,"-",$F61,"-",O$3),'Raw Data'!$A$2:$D$690331,4,FALSE),"N/A") -> N/A | P61: =_xlfn.IFNA(VLOOKUP(_xlfn.CONCAT($C$2,"-",$E61,"-",$F61,"-",P$3),'Raw Data'!$A$2:$D$690331,4,FALSE),"N/A") -> N/A | Q61: =_xlfn.IFNA(VLOOKUP(_xlfn.CONCAT($C$2,"-",$E61,"-",$F61,"-",Q$3),'Raw Data'!$A$2:$D$690331,4,FALSE),"N/A") -> N/A | R61: =_xlfn.IFNA(VLOOKUP(_xlfn.CONCAT($C$2,"-",$E61,"-",$F61,"-",R$3),'Raw Data'!$A$2:$D$690331,4,FALSE),"N/A") -> N/A | S61: =_xlfn.IFNA(VLOOKUP(_xlfn.CONCAT($C$2,"-",$E61,"-",$F61,"-",S$3),'Raw Data'!$A$2:$D$690331,4,FALSE),"N/A") -> N/A
E62: 27 | F62: 2 | H62: =_xlfn.IFNA(VLOOKUP(_xlfn.CONCAT($C$2,"-",$E62,"-",$F62,"-",H$3),'Raw Data'!$A$2:$D$690331,4,FALSE),"N/A") -> N/A | I62: =_xlfn.IFNA(VLOOKUP(_xlfn.CONCAT($C$2,"-",$E62,"-",$F62,"-",I$3),'Raw Data'!$A$2:$D$690331,4,FALSE),"N/A") -> N/A | J62: =_xlfn.IFNA(VLOOKUP(_xlfn.CONCAT($C$2,"-",$E62,"-",$F62,"-",J$3),'Raw Data'!$A$2:$D$690331,4,FALSE),"N/A") -> N/A | K62: =_xlfn.IFNA(VLOOKUP(_xlfn.CONCAT($C$2,"-",$E62,"-",$F62,"-",K$3),'Raw Data'!$A$2:$D$690331,4,FALSE),"N/A") -> N/A | L62: =_xlfn.IFNA(VLOOKUP(_xlfn.CONCAT($C$2,"-",$E62,"-",$F62,"-",L$3),'Raw Data'!$A$2:$D$690331,4,FALSE),"N/A") -> N/A | M62: =_xlfn.IFNA(VLOOKUP(_xlfn.CONCAT($C$2,"-",$E62,"-",$F62,"-",M$3),'Raw Data'!$A$2:$D$690331,4,FALSE),"N/A") -> N/A | N62: =_xlfn.IFNA(VLOOKUP(_xlfn.CONCAT($C$2,"-",$E62,"-",$F62,"-",N$3),'Raw Data'!$A$2:$D$690331,4,FALSE),"N/A") -> N/A | O62: =_xlfn.IFNA(VLOOKUP(_xlfn.CONCAT($C$2,"-",$E62,"-",$F62,"-",O$3),'Raw Data'!$A$2:$D$690331,4,FALSE),"N/A") -> N/A | P62: =_xlfn.IFNA(VLOOKUP(_xlfn.CONCAT($C$2,"-",$E62,"-",$F62,"-",P$3),'Raw Data'!$A$2:$D$690331,4,FALSE),"N/A") -> N/A | Q62: =_xlfn.IFNA(VLOOKUP(_xlfn.CONCAT($C$2,"-",$E62,"-",$F62,"-",Q$3),'Raw Data'!$A$2:$D$690331,4,FALSE),"N/A") -> N/A | R62: =_xlfn.IFNA(VLOOKUP(_xlfn.CONCAT($C$2,"-",$E62,"-",$F62,"-",R$3),'Raw Data'!$A$2:$D$690331,4,FALSE),"N/A") -> N/A | S62: =_xlfn.IFNA(VLOOKUP(_xlfn.CONCAT($C$2,"-",$E62,"-",$F62,"-",S$3),'Raw Data'!$A$2:$D$690331,4,FALSE),"N/A") -> N/A
E63: 28 | F63: 2 | H63: =_xlfn.IFNA(VLOOKUP(_xlfn.CONCAT($C$2,"-",$E63,"-",$F63,"-",H$3),'Raw Data'!$A$2:$D$690331,4,FALSE),"N/A") -> N/A | I63: =_xlfn.IFNA(VLOOKUP(_xlfn.CONCAT($C$2,"-",$E63,"-",$F63,"-",I$3),'Raw Data'!$A$2:$D$690331,4,FALSE),"N/A") -> N/A | J63: =_xlfn.IFNA(VLOOKUP(_xlfn.CONCAT($C$2,"-",$E63,"-",$F63,"-",J$3),'Raw Data'!$A$2:$D$690331,4,FALSE),"N/A") -> N/A | K63: =_xlfn.IFNA(VLOOKUP(_xlfn.CONCAT($C$2,"-",$E63,"-",$F63,"-",K$3),'Raw Data'!$A$2:$D$690331,4,FALSE),"N/A") -> N/A | L63: =_xlfn.IFNA(VLOOKUP(_xlfn.CONCAT($C$2,"-",$E63,"-",$F63,"-",L$3),'Raw Data'!$A$2:$D$690331,4,FALSE),"N/A") -> N/A | M63: =_xlfn.IFNA(VLOOKUP(_xlfn.CONCAT($C$2,"-",$E63,"-",$F63,"-",M$3),'Raw Data'!$A$2:$D$690331,4,FALSE),"N/A") -> N/A | N63: =_xlfn.IFNA(VLOOKUP(_xlfn.CONCAT($C$2,"-",$E63,"-",$F63,"-",N$3),'Raw Data'!$A$2:$D$690331,4,FALSE),"N/A") -> N/A | O63: =_xlfn.IFNA(VLOOKUP(_xlfn.CONCAT($C$2,"-",$E63,"-",$F63,"-",O$3),'Raw Data'!$A$2:$D$690331,4,FALSE),"N/A") -> N/A | P63: =_xlfn.IFNA(VLOOKUP(_xlfn.CONCAT($C$2,"-",$E63,"-",$F63,"-",P$3),'Raw Data'!$A$2:$D$690331,4,FALSE),"N/A") -> N/A | Q63: =_xlfn.IFNA(VLOOKUP(_xlfn.CONCAT($C$2,"-",$E63,"-",$F63,"-",Q$3),'Raw Data'!$A$2:$D$690331,4,FALSE),"N/A") -> N/A | R63: =_xlfn.IFNA(VLOOKUP(_xlfn.CONCAT($C$2,"-",$E63,"-",$F63,"-",R$3),'Raw Data'!$A$2:$D$690331,4,FALSE),"N/A") -> N/A | S63: =_xlfn.IFNA(VLOOKUP(_xlfn.CONCAT($C$2,"-",$E63,"-",$F63,"-",S$3),'Raw Data'!$A$2:$D$690331,4,FALSE),"N/A") -> N/A
E64: 1 | F64: 3 | H64: =_xlfn.IFNA(VLOOKUP(_xlfn.CONCAT($C$2,"-",$E64,"-",$F64,"-",H$3),'Raw Data'!$A$2:$D$690331,4,FALSE),"N/A") -> N/A | I64: =_xlfn.IFNA(VLOOKUP(_xlfn.CONCAT($C$2,"-",$E64,"-",$F64,"-",I$3),'Raw Data'!$A$2:$D$690331,4,FALSE),"N/A") -> N/A | J64: =_xlfn.IFNA(VLOOKUP(_xlfn.CONCAT($C$2,"-",$E64,"-",$F64,"-",J$3),'Raw Data'!$A$2:$D$690331,4,FALSE),"N/A") -> N/A | K64: =_xlfn.IFNA(VLOOKUP(_xlfn.CONCAT($C$2,"-",$E64,"-",$F64,"-",K$3),'Raw Data'!$A$2:$D$690331,4,FALSE),"N/A") -> N/A | L64: =_xlfn.IFNA(VLOOKUP(_xlfn.CONCAT($C$2,"-",$E64,"-",$F64,"-",L$3),'Raw Data'!$A$2:$D$690331,4,FALSE),"N/A") -> N/A | M64: =_xlfn.IFNA(VLOOKUP(_xlfn.CONCAT($C$2,"-",$E64,"-",$F64,"-",M$3),'Raw Data'!$A$2:$D$690331,4,FALSE),"N/A") -> N/A | N64: =_xlfn.IFNA(VLOOKUP(_xlfn.CONCAT($C$2,"-",$E64,"-",$F64,"-",N$3),'Raw Data'!$A$2:$D$690331,4,FALSE),"N/A") -> N/A | O64: =_xlfn.IFNA(VLOOKUP(_xlfn.CONCAT($C$2,"-",$E64,"-",$F64,"-",O$3),'Raw Data'!$A$2:$D$690331,4,FALSE),"N/A") -> N/A | P64: =_xlfn.IFNA(VLOOKUP(_xlfn.CONCAT($C$2,"-",$E64,"-",$F64,"-",P$3),'Raw Data'!$A$2:$D$690331,4,FALSE),"N/A") -> N/A | Q64: =_xlfn.IFNA(VLOOKUP(_xlfn.CONCAT($C$2,"-",$E64,"-",$F64,"-",Q$3),'Raw Data'!$A$2:$D$690331,4,FALSE),"N/A") -> N/A | R64: =_xlfn.IFNA(VLOOKUP(_xlfn.CONCAT($C$2,"-",$E64,"-",$F64,"-",R$3),'Raw Data'!$A$2:$D$690331,4,FALSE),"N/A") -> N/A | S64: =_xlfn.IFNA(VLOOKUP(_xlfn.CONCAT($C$2,"-",$E64,"-",$F64,"-",S$3),'Raw Data'!$A$2:$D$690331,4,FALSE),"N/A") -> N/A
E65: 2 | F65: 3 | H65: =_xlfn.IFNA(VLOOKUP(_xlfn.CONCAT($C$2,"-",$E65,"-",$F65,"-",H$3),'Raw Data'!$A$2:$D$690331,4,FALSE),"N/A") -> N/A | I65: =_xlfn.IFNA(VLOOKUP(_xlfn.CONCAT($C$2,"-",$E65,"-",$F65,"-",I$3),'Raw Data'!$A$2:$D$690331,4,FALSE),"N/A") -> N/A | J65: =_xlfn.IFNA(VLOOKUP(_xlfn.CONCAT($C$2,"-",$E65,"-",$F65,"-",J$3),'Raw Data'!$A$2:$D$690331,4,FALSE),"N/A") -> N/A | K65: =_xlfn.IFNA(VLOOKUP(_xlfn.CONCAT($C$2,"-",$E65,"-",$F65,"-",K$3),'Raw Data'!$A$2:$D$690331,4,FALSE),"N/A") -> N/A | L65: =_xlfn.IFNA(VLOOKUP(_xlfn.CONCAT($C$2,"-",$E65,"-",$F65,"-",L$3),'Raw Data'!$A$2:$D$690331,4,FALSE),"N/A") -> N/A | M65: =_xlfn.IFNA(VLOOKUP(_xlfn.CONCAT($C$2,"-",$E65,"-",$F65,"-",M$3),'Raw Data'!$A$2:$D$690331,4,FALSE),"N/A") -> N/A | N65: =_xlfn.IFNA(VLOOKUP(_xlfn.CONCAT($C$2,"-",$E65,"-",$F65,"-",N$3),'Raw Data'!$A$2:$D$690331,4,FALSE),"N/A") -> N/A | O65: =_xlfn.IFNA(VLOOKUP(_xlfn.CONCAT($C$2,"-",$E65,"-",$F65,"-",O$3),'Raw Data'!$A$2:$D$690331,4,FALSE),"N/A") -> N/A | P65: =_xlfn.IFNA(VLOOKUP(_xlfn.CONCAT($C$2,"-",$E65,"-",$F65,"-",P$3),'Raw Data'!$A$2:$D$690331,4,FALSE),"N/A") -> N/A | Q65: =_xlfn.IFNA(VLOOKUP(_xlfn.CONCAT($C$2,"-",$E65,"-",$F65,"-",Q$3),'Raw Data'!$A$2:$D$690331,4,FALSE),"N/A") -> N/A | R65: =_xlfn.IFNA(VLOOKUP(_xlfn.CONCAT($C$2,"-",$E65,"-",$F65,"-",R$3),'Raw Data'!$A$2:$D$690331,4,FALSE),"N/A") -> N/A | S65: =_xlfn.IFNA(VLOOKUP(_xlfn.CONCAT($C$2,"-",$E65,"-",$F65,"-",S$3),'Raw Data'!$A$2:$D$690331,4,FALSE),"N/A") -> N/A
E66: 3 | F66: 3 | H66: =_xlfn.IFNA(VLOOKUP(_xlfn.CONCAT($C$2,"-",$E66,"-",$F66,"-",H$3),'Raw Data'!$A$2:$D$690331,4,FALSE),"N/A") -> N/A | I66: =_xlfn.IFNA(VLOOKUP(_xlfn.CONCAT($C$2,"-",$E66,"-",$F66,"-",I$3),'Raw Data'!$A$2:$D$690331,4,FALSE),"N/A") -> N/A | J66: =_xlfn.IFNA(VLOOKUP(_xlfn.CONCAT($C$2,"-",$E66,"-",$F66,"-",J$3),'Raw Data'!$A$2:$D$690331,4,FALSE),"N/A") -> N/A | K66: =_xlfn.IFNA(VLOOKUP(_xlfn.CONCAT($C$2,"-",$E66,"-",$F66,"-",K$3),'Raw Data'!$A$2:$D$690331,4,FALSE),"N/A") -> N/A | L66: =_xlfn.IFNA(VLOOKUP(_xlfn.CONCAT($C$2,"-",$E66,"-",$F66,"-",L$3),'Raw Data'!$A$2:$D$690331,4,FALSE),"N/A") -> N/A | M66: =_xlfn.IFNA(VLOOKUP(_xlfn.CONCAT($C$2,"-",$E66,"-",$F66,"-",M$3),'Raw Data'!$A$2:$D$690331,4,FALSE),"N/A") -> N/A | N66: =_xlfn.IFNA(VLOOKUP(_xlfn.CONCAT($C$2,"-",$E66,"-",$F66,"-",N$3),'Raw Data'!$A$2:$D$690331,4,FALSE),"N/A") -> N/A | O66: =_xlfn.IFNA(VLOOKUP(_xlfn.CONCAT($C$2,"-",$E66,"-",$F66,"-",O$3),'Raw Data'!$A$2:$D$690331,4,FALSE),"N/A") -> N/A | P66: =_xlfn.IFNA(VLOOKUP(_xlfn.CONCAT($C$2,"-",$E66,"-",$F66,"-",P$3),'Raw Data'!$A$2:$D$690331,4,FALSE),"N/A") -> N/A | Q66: =_xlfn.IFNA(VLOOKUP(_xlfn.CONCAT($C$2,"-",$E66,"-",$F66,"-",Q$3),'Raw Data'!$A$2:$D$690331,4,FALSE),"N/A") -> N/A | R66: =_xlfn.IFNA(VLOOKUP(_xlfn.CONCAT($C$2,"-",$E66,"-",$F66,"-",R$3),'Raw Data'!$A$2:$D$690331,4,FALSE),"N/A") -> N/A | S66: =_xlfn.IFNA(VLOOKUP(_xlfn.CONCAT($C$2,"-",$E66,"-",$F66,"-",S$3),'Raw Data'!$A$2:$D$690331,4,FALSE),"N/A") -> N/A
E67: 4 | F67: 3 | H67: =_xlfn.IFNA(VLOOKUP(_xlfn.CONCAT($C$2,"-",$E67,"-",$F67,"-",H$3),'Raw Data'!$A$2:$D$690331,4,FALSE),"N/A") -> N/A | I67: =_xlfn.IFNA(VLOOKUP(_xlfn.CONCAT($C$2,"-",$E67,"-",$F67,"-",I$3),'Raw Data'!$A$2:$D$690331,4,FALSE),"N/A") -> N/A | J67: =_xlfn.IFNA(VLOOKUP(_xlfn.CONCAT($C$2,"-",$E67,"-",$F67,"-",J$3),'Raw Data'!$A$2:$D$690331,4,FALSE),"N/A") -> N/A | K67: =_xlfn.IFNA(VLOOKUP(_xlfn.CONCAT($C$2,"-",$E67,"-",$F67,"-",K$3),'Raw Data'!$A$2:$D$690331,4,FALSE),"N/A") -> N/A | L67: =_xlfn.IFNA(VLOOKUP(_xlfn.CONCAT($C$2,"-",$E67,"-",$F67,"-",L$3),'Raw Data'!$A$2:$D$690331,4,FALSE),"N/A") -> N/A | M67: =_xlfn.IFNA(VLOOKUP(_xlfn.CONCAT($C$2,"-",$E67,"-",$F67,"-",M$3),'Raw Data'!$A$2:$D$690331,4,FALSE),"N/A") -> N/A | N67: =_xlfn.IFNA(VLOOKUP(_xlfn.CONCAT($C$2,"-",$E67,"-",$F67,"-",N$3),'Raw Data'!$A$2:$D$690331,4,FALSE),"N/A") -> N/A | O67: =_xlfn.IFNA(VLOOKUP(_xlfn.CONCAT($C$2,"-",$E67,"-",$F67,"-",O$3),'Raw Data'!$A$2:$D$690331,4,FALSE),"N/A") -> N/A | P67: =_xlfn.IFNA(VLOOKUP(_xlfn.CONCAT($C$2,"-",$E67,"-",$F67,"-",P$3),'Raw Data'!$A$2:$D$690331,4,FALSE),"N/A") -> N/A | Q67: =_xlfn.IFNA(VLOOKUP(_xlfn.CONCAT($C$2,"-",$E67,"-",$F67,"-",Q$3),'Raw Data'!$A$2:$D$690331,4,FALSE),"N/A") -> N/A | R67: =_xlfn.IFNA(VLOOKUP(_xlfn.CONCAT($C$2,"-",$E67,"-",$F67,"-",R$3),'Raw Data'!$A$2:$D$690331,4,FALSE),"N/A") -> N/A | S67: =_xlfn.IFNA(VLOOKUP(_xlfn.CONCAT($C$2,"-",$E67,"-",$F67,"-",S$3),'Raw Data'!$A$2:$D$690331,4,FALSE),"N/A") -> N/A
E68: 5 | F68: 3 | H68: =_xlfn.IFNA(VLOOKUP(_xlfn.CONCAT($C$2,"-",$E68,"-",$F68,"-",H$3),'Raw Data'!$A$2:$D$690331,4,FALSE),"N/A") -> N/A | I68: =_xlfn.IFNA(VLOOKUP(_xlfn.CONCAT($C$2,"-",$E68,"-",$F68,"-",I$3),'Raw Data'!$A$2:$D$690331,4,FALSE),"N/A") -> N/A | J68: =_xlfn.IFNA(VLOOKUP(_xlfn.CONCAT($C$2,"-",$E68,"-",$F68,"-",J$3),'Raw Data'!$A$2:$D$690331,4,FALSE),"N/A") -> N/A | K68: =_xlfn.IFNA(VLOOKUP(_xlfn.CONCAT($C$2,"-",$E68,"-",$F68,"-",K$3),'Raw Data'!$A$2:$D$690331,4,FALSE),"N/A") -> N/A | L68: =_xlfn.IFNA(VLOOKUP(_xlfn.CONCAT($C$2,"-",$E68,"-",$F68,"-",L$3),'Raw Data'!$A$2:$D$690331,4,FALSE),"N/A") -> N/A | M68: =_xlfn.IFNA(VLOOKUP(_xlfn.CONCAT($C$2,"-",$E68,"-",$F68,"-",M$3),'Raw Data'!$A$2:$D$690331,4,FALSE),"N/A") -> N/A | N68: =_xlfn.IFNA(VLOOKUP(_xlfn.CONCAT($C$2,"-",$E68,"-",$F68,"-",N$3),'Raw Data'!$A$2:$D$690331,4,FALSE),"N/A") -> N/A | O68: =_xlfn.IFNA(VLOOKUP(_xlfn.CONCAT($C$2,"-",$E68,"-",$F68,"-",O$3),'Raw Data'!$A$2:$D$690331,4,FALSE),"N/A") -> N/A | P68: =_xlfn.IFNA(VLOOKUP(_xlfn.CONCAT($C$2,"-",$E68,"-",$F68,"-",P$3),'Raw Data'!$A$2:$D$690331,4,FALSE),"N/A") -> N/A | Q68: =_xlfn.IFNA(VLOOKUP(_xlfn.CONCAT($C$2,"-",$E68,"-",$F68,"-",Q$3),'Raw Data'!$A$2:$D$690331,4,FALSE),"N/A") -> N/A | R68: =_xlfn.IFNA(VLOOKUP(_xlfn.CONCAT($C$2,"-",$E68,"-",$F68,"-",R$3),'Raw Data'!$A$2:$D$690331,4,FALSE),"N/A") -> N/A | S68: =_xlfn.IFNA(VLOOKUP(_xlfn.CONCAT($C$2,"-",$E68,"-",$F68,"-",S$3),'Raw Data'!$A$2:$D$690331,4,FALSE),"N/A") -> N/A
E69: 6 | F69: 3 | H69: =_xlfn.IFNA(VLOOKUP(_xlfn.CONCAT($C$2,"-",$E69,"-",$F69,"-",H$3),'Raw Data'!$A$2:$D$690331,4,FALSE),"N/A") -> N/A | I69: =_xlfn.IFNA(VLOOKUP(_xlfn.CONCAT($C$2,"-",$E69,"-",$F69,"-",I$3),'Raw Data'!$A$2:$D$690331,4,FALSE),"N/A") -> N/A | J69: =_xlfn.IFNA(VLOOKUP(_xlfn.CONCAT($C$2,"-",$E69,"-",$F69,"-",J$3),'Raw Data'!$A$2:$D$690331,4,FALSE),"N/A") -> N/A | K69: =_xlfn.IFNA(VLOOKUP(_xlfn.CONCAT($C$2,"-",$E69,"-",$F69,"-",K$3),'Raw Data'!$A$2:$D$690331,4,FALSE),"N/A") -> N/A | L69: =_xlfn.IFNA(VLOOKUP(_xlfn.CONCAT($C$2,"-",$E69,"-",$F69,"-",L$3),'Raw Data'!$A$2:$D$690331,4,FALSE),"N/A") -> N/A | M69: =_xlfn.IFNA(VLOOKUP(_xlfn.CONCAT($C$2,"-",$E69,"-",$F69,"-",M$3),'Raw Data'!$A$2:$D$690331,4,FALSE),"N/A") -> N/A | N69: =_xlfn.IFNA(VLOOKUP(_xlfn.CONCAT($C$2,"-",$E69,"-",$F69,"-",N$3),'Raw Data'!$A$2:$D$690331,4,FALSE),"N/A") -> N/A | O69: =_xlfn.IFNA(VLOOKUP(_xlfn.CONCAT($C$2,"-",$E69,"-",$F69,"-",O$3),'Raw Data'!$A$2:$D$690331,4,FALSE),"N/A") -> N/A | P69: =_xlfn.IFNA(VLOOKUP(_xlfn.CONCAT($C$2,"-",$E69,"-",$F69,"-",P$3),'Raw Data'!$A$2:$D$690331,4,FALSE),"N/A") -> N/A | Q69: =_xlfn.IFNA(VLOOKUP(_xlfn.CONCAT($C$2,"-",$E69,"-",$F69,"-",Q$3),'Raw Data'!$A$2:$D$690331,4,FALSE),"N/A") -> N/A | R69: =_xlfn.IFNA(VLOOKUP(_xlfn.CONCAT($C$2,"-",$E69,"-",$F69,"-",R$3),'Raw Data'!$A$2:$D$690331,4,FALSE),"N/A") -> N/A | S69: =_xlfn.IFNA(VLOOKUP(_xlfn.CONCAT($C$2,"-",$E69,"-",$F69,"-",S$3),'Raw Data'!$A$2:$D$690331,4,FALSE),"N/A") -> N/A
E70: 7 | F70: 3 | H70: =_xlfn.IFNA(VLOOKUP(_xlfn.CONCAT($C$2,"-",$E70,"-",$F70,"-",H$3),'Raw Data'!$A$2:$D$690331,4,FALSE),"N/A") -> N/A | I70: =_xlfn.IFNA(VLOOKUP(_xlfn.CONCAT($C$2,"-",$E70,"-",$F70,"-",I$3),'Raw Data'!$A$2:$D$690331,4,FALSE),"N/A") -> N/A | J70: =_xlfn.IFNA(VLOOKUP(_xlfn.CONCAT($C$2,"-",$E70,"-",$F70,"-",J$3),'Raw Data'!$A$2:$D$690331,4,FALSE),"N/A") -> N/A | K70: =_xlfn.IFNA(VLOOKUP(_xlfn.CONCAT($C$2,"-",$E70,"-",$F70,"-",K$3),'Raw Data'!$A$2:$D$690331,4,FALSE),"N/A") -> N/A | L70: =_xlfn.IFNA(VLOOKUP(_xlfn.CONCAT($C$2,"-",$E70,"-",$F70,"-",L$3),'Raw Data'!$A$2:$D$690331,4,FALSE),"N/A") -> N/A | M70: =_xlfn.IFNA(VLOOKUP(_xlfn.CONCAT($C$2,"-",$E70,"-",$F70,"-",M$3),'Raw Data'!$A$2:$D$690331,4,FALSE),"N/A") -> N/A | N70: =_xlfn.IFNA(VLOOKUP(_xlfn.CONCAT($C$2,"-",$E70,"-",$F70,"-",N$3),'Raw Data'!$A$2:$D$690331,4,FALSE),"N/A") -> N/A | O70: =_xlfn.IFNA(VLOOKUP(_xlfn.CONCAT($C$2,"-",$E70,"-",$F70,"-",O$3),'Raw Data'!$A$2:$D$690331,4,FALSE),"N/A") -> N/A | P70: =_xlfn.IFNA(VLOOKUP(_xlfn.CONCAT($C$2,"-",$E70,"-",$F70,"-",P$3),'Raw Data'!$A$2:$D$690331,4,FALSE),"N/A") -> N/A | Q70: =_xlfn.IFNA(VLOOKUP(_xlfn.CONCAT($C$2,"-",$E70,"-",$F70,"-",Q$3),'Raw Data'!$A$2:$D$690331,4,FALSE),"N/A") -> N/A | R70: =_xlfn.IFNA(VLOOKUP(_xlfn.CONCAT($C$2,"-",$E70,"-",$F70,"-",R$3),'Raw Data'!$A$2:$D$690331,4,FALSE),"N/A") -> N/A | S70: =_xlfn.IFNA(VLOOKUP(_xlfn.CONCAT($C$2,"-",$E70,"-",$F70,"-",S$3),'Raw Data'!$A$2:$D$690331,4,FALSE),"N/A") -> N/A
E71: 8 | F71: 3 | H71: =_xlfn.IFNA(VLOOKUP(_xlfn.CONCAT($C$2,"-",$E71,"-",$F71,"-",H$3),'Raw Data'!$A$2:$D$690331,4,FALSE),"N/A") -> N/A | I71: =_xlfn.IFNA(VLOOKUP(_xlfn.CONCAT($C$2,"-",$E71,"-",$F71,"-",I$3),'Raw Data'!$A$2:$D$690331,4,FALSE),"N/A") -> N/A | J71: =_xlfn.IFNA(VLOOKUP(_xlfn.CONCAT($C$2,"-",$E71,"-",$F71,"-",J$3),'Raw Data'!$A$2:$D$690331,4,FALSE),"N/A") -> N/A | K71: =_xlfn.IFNA(VLOOKUP(_xlfn.CONCAT($C$2,"-",$E71,"-",$F71,"-",K$3),'Raw Data'!$A$2:$D$690331,4,FALSE),"N/A") -> N/A | L71: =_xlfn.IFNA(VLOOKUP(_xlfn.CONCAT($C$2,"-",$E71,"-",$F71,"-",L$3),'Raw Data'!$A$2:$D$690331,4,FALSE),"N/A") -> N/A | M71: =_xlfn.IFNA(VLOOKUP(_xlfn.CONCAT($C$2,"-",$E71,"-",$F71,"-",M$3),'Raw Data'!$A$2:$D$690331,4,FALSE),"N/A") -> N/A | N71: =_xlfn.IFNA(VLOOKUP(_xlfn.CONCAT($C$2,"-",$E71,"-",$F71,"-",N$3),'Raw Data'!$A$2:$D$690331,4,FALSE),"N/A") -> N/A | O71: =_xlfn.IFNA(VLOOKUP(_xlfn.CONCAT($C$2,"-",$E71,"-",$F71,"-",O$3),'Raw Data'!$A$2:$D$690331,4,FALSE),"N/A") -> N/A | P71: =_xlfn.IFNA(VLOOKUP(_xlfn.CONCAT($C$2,"-",$E71,"-",$F71,"-",P$3),'Raw Data'!$A$2:$D$690331,4,FALSE),"N/A") -> N/A | Q71: =_xlfn.IFNA(VLOOKUP(_xlfn.CONCAT($C$2,"-",$E71,"-",$F71,"-",Q$3),'Raw Data'!$A$2:$D$690331,4,FALSE),"N/A") -> N/A | R71: =_xlfn.IFNA(VLOOKUP(_xlfn.CONCAT($C$2,"-",$E71,"-",$F71,"-",R$3),'Raw Data'!$A$2:$D$690331,4,FALSE),"N/A") -> N/A | S71: =_xlfn.IFNA(VLOOKUP(_xlfn.CONCAT($C$2,"-",$E71,"-",$F71,"-",S$3),'Raw Data'!$A$2:$D$690331,4,FALSE),"N/A") -> N/A
E72: 9 | F72: 3 | H72: =_xlfn.IFNA(VLOOKUP(_xlfn.CONCAT($C$2,"-",$E72,"-",$F72,"-",H$3),'Raw Data'!$A$2:$D$690331,4,FALSE),"N/A") -> N/A | I72: =_xlfn.IFNA(VLOOKUP(_xlfn.CONCAT($C$2,"-",$E72,"-",$F72,"-",I$3),'Raw Data'!$A$2:$D$690331,4,FALSE),"N/A") -> N/A | J72: =_xlfn.IFNA(VLOOKUP(_xlfn.CONCAT($C$2,"-",$E72,"-",$F72,"-",J$3),'Raw Data'!$A$2:$D$690331,4,FALSE),"N/A") -> N/A | K72: =_xlfn.IFNA(VLOOKUP(_xlfn.CONCAT($C$2,"-",$E72,"-",$F72,"-",K$3),'Raw Data'!$A$2:$D$690331,4,FALSE),"N/A") -> N/A | L72: =_xlfn.IFNA(VLOOKUP(_xlfn.CONCAT($C$2,"-",$E72,"-",$F72,"-",L$3),'Raw Data'!$A$2:$D$690331,4,FALSE),"N/A") -> N/A | M72: =_xlfn.IFNA(VLOOKUP(_xlfn.CONCAT($C$2,"-",$E72,"-",$F72,"-",M$3),'Raw Data'!$A$2:$D$690331,4,FALSE),"N/A") -> N/A | N72: =_xlfn.IFNA(VLOOKUP(_xlfn.CONCAT($C$2,"-",$E72,"-",$F72,"-",N$3),'Raw Data'!$A$2:$D$690331,4,FALSE),"N/A") -> N/A | O72: =_xlfn.IFNA(VLOOKUP(_xlfn.CONCAT($C$2,"-",$E72,"-",$F72,"-",O$3),'Raw Data'!$A$2:$D$690331,4,FALSE),"N/A") -> N/A | P72: =_xlfn.IFNA(VLOOKUP(_xlfn.CONCAT($C$2,"-",$E72,"-",$F72,"-",P$3),'Raw Data'!$A$2:$D$690331,4,FALSE),"N/A") -> N/A | Q72: =_xlfn.IFNA(VLOOKUP(_xlfn.CONCAT($C$2,"-",$E72,"-",$F72,"-",Q$3),'Raw Data'!$A$2:$D$690331,4,FALSE),"N/A") -> N/A | R72: =_xlfn.IFNA(VLOOKUP(_xlfn.CONCAT($C$2,"-",$E72,"-",$F72,"-",R$3),'Raw Data'!$A$2:$D$690331,4,FALSE),"N/A") -> N/A | S72: =_xlfn.IFNA(VLOOKUP(_xlfn.CONCAT($C$2,"-",$E72,"-",$F72,"-",S$3),'Raw Data'!$A$2:$D$690331,4,FALSE),"N/A") -> N/A
E73: 10 | F73: 3 | H73: =_xlfn.IFNA(VLOOKUP(_xlfn.CONCAT($C$2,"-",$E73,"-",$F73,"-",H$3),'Raw Data'!$A$2:$D$690331,4,FALSE),"N/A") -> N/A | I73: =_xlfn.IFNA(VLOOKUP(_xlfn.CONCAT($C$2,"-",$E73,"-",$F73,"-",I$3),'Raw Data'!$A$2:$D$690331,4,FALSE),"N/A") -> N/A | J73: =_xlfn.IFNA(VLOOKUP(_xlfn.CONCAT($C$2,"-",$E73,"-",$F73,"-",J$3),'Raw Data'!$A$2:$D$690331,4,FALSE),"N/A") -> N/A | K73: =_xlfn.IFNA(VLOOKUP(_xlfn.CONCAT($C$2,"-",$E73,"-",$F73,"-",K$3),'Raw Data'!$A$2:$D$690331,4,FALSE),"N/A") -> N/A | L73: =_xlfn.IFNA(VLOOKUP(_xlfn.CONCAT($C$2,"-",$E73,"-",$F73,"-",L$3),'Raw Data'!$A$2:$D$690331,4,FALSE),"N/A") -> N/A | M73: =_xlfn.IFNA(VLOOKUP(_xlfn.CONCAT($C$2,"-",$E73,"-",$F73,"-",M$3),'Raw Data'!$A$2:$D$690331,4,FALSE),"N/A") -> N/A | N73: =_xlfn.IFNA(VLOOKUP(_xlfn.CONCAT($C$2,"-",$E73,"-",$F73,"-",N$3),'Raw Data'!$A$2:$D$690331,4,FALSE),"N/A") -> N/A | O73: =_xlfn.IFNA(VLOOKUP(_xlfn.CONCAT($C$2,"-",$E73,"-",$F73,"-",O$3),'Raw Data'!$A$2:$D$690331,4,FALSE),"N/A") -> N/A | P73: =_xlfn.IFNA(VLOOKUP(_xlfn.CONCAT($C$2,"-",$E73,"-",$F73,"-",P$3),'Raw Data'!$A$2:$D$690331,4,FALSE),"N/A") -> N/A | Q73: =_xlfn.IFNA(VLOOKUP(_xlfn.CONCAT($C$2,"-",$E73,"-",$F73,"-",Q$3),'Raw Data'!$A$2:$D$690331,4,FALSE),"N/A") -> N/A | R73: =_xlfn.IFNA(VLOOKUP(_xlfn.CONCAT($C$2,"-",$E73,"-",$F73,"-",R$3),'Raw Data'!$A$2:$D$690331,4,FALSE),"N/A") -> N/A | S73: =_xlfn.IFNA(VLOOKUP(_xlfn.CONCAT($C$2,"-",$E73,"-",$F73,"-",S$3),'Raw Data'!$A$2:$D$690331,4,FALSE),"N/A") -> N/A
E74: 11 | F74: 3 | H74: =_xlfn.IFNA(VLOOKUP(_xlfn.CONCAT($C$2,"-",$E74,"-",$F74,"-",H$3),'Raw Data'!$A$2:$D$690331,4,FALSE),"N/A") -> N/A | I74: =_xlfn.IFNA(VLOOKUP(_xlfn.CONCAT($C$2,"-",$E74,"-",$F74,"-",I$3),'Raw Data'!$A$2:$D$690331,4,FALSE),"N/A") -> N/A | J74: =_xlfn.IFNA(VLOOKUP(_xlfn.CONCAT($C$2,"-",$E74,"-",$F74,"-",J$3),'Raw Data'!$A$2:$D$690331,4,FALSE),"N/A") -> N/A | K74: =_xlfn.IFNA(VLOOKUP(_xlfn.CONCAT($C$2,"-",$E74,"-",$F74,"-",K$3),'Raw Data'!$A$2:$D$690331,4,FALSE),"N/A") -> N/A | L74: =_xlfn.IFNA(VLOOKUP(_xlfn.CONCAT($C$2,"-",$E74,"-",$F74,"-",L$3),'Raw Data'!$A$2:$D$690331,4,FALSE),"N/A") -> N/A | M74: =_xlfn.IFNA(VLOOKUP(_xlfn.CONCAT($C$2,"-",$E74,"-",$F74,"-",M$3),'Raw Data'!$A$2:$D$690331,4,FALSE),"N/A") -> N/A | N74: =_xlfn.IFNA(VLOOKUP(_xlfn.CONCAT($C$2,"-",$E74,"-",$F74,"-",N$3),'Raw Data'!$A$2:$D$690331,4,FALSE),"N/A") -> N/A | O74: =_xlfn.IFNA(VLOOKUP(_xlfn.CONCAT($C$2,"-",$E74,"-",$F74,"-",O$3),'Raw Data'!$A$2:$D$690331,4,FALSE),"N/A") -> N/A | P74: =_xlfn.IFNA(VLOOKUP(_xlfn.CONCAT($C$2,"-",$E74,"-",$F74,"-",P$3),'Raw Data'!$A$2:$D$690331,4,FALSE),"N/A") -> N/A | Q74: =_xlfn.IFNA(VLOOKUP(_xlfn.CONCAT($C$2,"-",$E74,"-",$F74,"-",Q$3),'Raw Data'!$A$2:$D$690331,4,FALSE),"N/A") -> N/A | R74: =_xlfn.IFNA(VLOOKUP(_xlfn.CONCAT($C$2,"-",$E74,"-",$F74,"-",R$3),'Raw Data'!$A$2:$D$690331,4,FALSE),"N/A") -> N/A | S74: =_xlfn.IFNA(VLOOKUP(_xlfn.CONCAT($C$2,"-",$E74,"-",$F74,"-",S$3),'Raw Data'!$A$2:$D$690331,4,FALSE),"N/A") -> N/A
E75: 12 | F75: 3 | H75: =_xlfn.IFNA(VLOOKUP(_xlfn.CONCAT($C$2,"-",$E75,"-",$F75,"-",H$3),'Raw Data'!$A$2:$D$690331,4,FALSE),"N/A") -> N/A | I75: =_xlfn.IFNA(VLOOKUP(_xlfn.CONCAT($C$2,"-",$E75,"-",$F75,"-",I$3),'Raw Data'!$A$2:$D$690331,4,FALSE),"N/A") -> N/A | J75: =_xlfn.IFNA(VLOOKUP(_xlfn.CONCAT($C$2,"-",$E75,"-",$F75,"-",J$3),'Raw Data'!$A$2:$D$690331,4,FALSE),"N/A") -> N/A | K75: =_xlfn.IFNA(VLOOKUP(_xlfn.CONCAT($C$2,"-",$E75,"-",$F75,"-",K$3),'Raw Data'!$A$2:$D$690331,4,FALSE),"N/A") -> N/A | L75: =_xlfn.IFNA(VLOOKUP(_xlfn.CONCAT($C$2,"-",$E75,"-",$F75,"-",L$3),'Raw Data'!$A$2:$D$690331,4,FALSE),"N/A") -> N/A | M75: =_xlfn.IFNA(VLOOKUP(_xlfn.CONCAT($C$2,"-",$E75,"-",$F75,"-",M$3),'Raw Data'!$A$2:$D$690331,4,FALSE),"N/A") -> N/A | N75: =_xlfn.IFNA(VLOOKUP(_xlfn.CONCAT($C$2,"-",$E75,"-",$F75,"-",N$3),'Raw Data'!$A$2:$D$690331,4,FALSE),"N/A") -> N/A | O75: =_xlfn.IFNA(VLOOKUP(_xlfn.CONCAT($C$2,"-",$E75,"-",$F75,"-",O$3),'Raw Data'!$A$2:$D$690331,4,FALSE),"N/A") -> N/A | P75: =_xlfn.IFNA(VLOOKUP(_xlfn.CONCAT($C$2,"-",$E75,"-",$F75,"-",P$3),'Raw Data'!$A$2:$D$690331,4,FALSE),"N/A") -> N/A | Q75: =_xlfn.IFNA(VLOOKUP(_xlfn.CONCAT($C$2,"-",$E75,"-",$F75,"-",Q$3),'Raw Data'!$A$2:$D$690331,4,FALSE),"N/A") -> N/A | R75: =_xlfn.IFNA(VLOOKUP(_xlfn.CONCAT($C$2,"-",$E75,"-",$F75,"-",R$3),'Raw Data'!$A$2:$D$690331,4,FALSE),"N/A") -> N/A | S75: =_xlfn.IFNA(VLOOKUP(_xlfn.CONCAT($C$2,"-",$E75,"-",$F75,"-",S$3),'Raw Data'!$A$2:$D$690331,4,FALSE),"N/A") -> N/A
E76: 13 | F76: 3 | H76: =_xlfn.IFNA(VLOOKUP(_xlfn.CONCAT($C$2,"-",$E76,"-",$F76,"-",H$3),'Raw Data'!$A$2:$D$690331,4,FALSE),"N/A") -> N/A | I76: =_xlfn.IFNA(VLOOKUP(_xlfn.CONCAT($C$2,"-",$E76,"-",$F76,"-",I$3),'Raw Data'!$A$2:$D$690331,4,FALSE),"N/A") -> N/A | J76: =_xlfn.IFNA(VLOOKUP(_xlfn.CONCAT($C$2,"-",$E76,"-",$F76,"-",J$3),'Raw Data'!$A$2:$D$690331,4,FALSE),"N/A") -> N/A | K76: =_xlfn.IFNA(VLOOKUP(_xlfn.CONCAT($C$2,"-",$E76,"-",$F76,"-",K$3),'Raw Data'!$A$2:$D$690331,4,FALSE),"N/A") -> N/A | L76: =_xlfn.IFNA(VLOOKUP(_xlfn.CONCAT($C$2,"-",$E76,"-",$F76,"-",L$3),'Raw Data'!$A$2:$D$690331,4,FALSE),"N/A") -> N/A | M76: =_xlfn.IFNA(VLOOKUP(_xlfn.CONCAT($C$2,"-",$E76,"-",$F76,"-",M$3),'Raw Data'!$A$2:$D$690331,4,FALSE),"N/A") -> N/A | N76: =_xlfn.IFNA(VLOOKUP(_xlfn.CONCAT($C$2,"-",$E76,"-",$F76,"-",N$3),'Raw Data'!$A$2:$D$690331,4,FALSE),"N/A") -> N/A | O76: =_xlfn.IFNA(VLOOKUP(_xlfn.CONCAT($C$2,"-",$E76,"-",$F76,"-",O$3),'Raw Data'!$A$2:$D$690331,4,FALSE),"N/A") -> N/A | P76: =_xlfn.IFNA(VLOOKUP(_xlfn.CONCAT($C$2,"-",$E76,"-",$F76,"-",P$3),'Raw Data'!$A$2:$D$690331,4,FALSE),"N/A") -> N/A | Q76: =_xlfn.IFNA(VLOOKUP(_xlfn.CONCAT($C$2,"-",$E76,"-",$F76,"-",Q$3),'Raw Data'!$A$2:$D$690331,4,FALSE),"N/A") -> N/A | R76: =_xlfn.IFNA(VLOOKUP(_xlfn.CONCAT($C$2,"-",$E76,"-",$F76,"-",R$3),'Raw Data'!$A$2:$D$690331,4,FALSE),"N/A") -> N/A | S76: =_xlfn.IFNA(VLOOKUP(_xlfn.CONCAT($C$2,"-",$E76,"-",$F76,"-",S$3),'Raw Data'!$A$2:$D$690331,4,FALSE),"N/A") -> N/A
E77: 14 | F77: 3 | H77: =_xlfn.IFNA(VLOOKUP(_xlfn.CONCAT($C$2,"-",$E77,"-",$F77,"-",H$3),'Raw Data'!$A$2:$D$690331,4,FALSE),"N/A") -> N/A | I77: =_xlfn.IFNA(VLOOKUP(_xlfn.CONCAT($C$2,"-",$E77,"-",$F77,"-",I$3),'Raw Data'!$A$2:$D$690331,4,FALSE),"N/A") -> N/A | J77: =_xlfn.IFNA(VLOOKUP(_xlfn.CONCAT($C$2,"-",$E77,"-",$F77,"-",J$3),'Raw Data'!$A$2:$D$690331,4,FALSE),"N/A") -> N/A | K77: =_xlfn.IFNA(VLOOKUP(_xlfn.CONCAT($C$2,"-",$E77,"-",$F77,"-",K$3),'Raw Data'!$A$2:$D$690331,4,FALSE),"N/A") -> N/A | L77: =_xlfn.IFNA(VLOOKUP(_xlfn.CONCAT($C$2,"-",$E77,"-",$F77,"-",L$3),'Raw Data'!$A$2:$D$690331,4,FALSE),"N/A") -> N/A | M77: =_xlfn.IFNA(VLOOKUP(_xlfn.CONCAT($C$2,"-",$E77,"-",$F77,"-",M$3),'Raw Data'!$A$2:$D$690331,4,FALSE),"N/A") -> N/A | N77: =_xlfn.IFNA(VLOOKUP(_xlfn.CONCAT($C$2,"-",$E77,"-",$F77,"-",N$3),'Raw Data'!$A$2:$D$690331,4,FALSE),"N/A") -> N/A | O77: =_xlfn.IFNA(VLOOKUP(_xlfn.CONCAT($C$2,"-",$E77,"-",$F77,"-",O$3),'Raw Data'!$A$2:$D$690331,4,FALSE),"N/A") -> N/A | P77: =_xlfn.IFNA(VLOOKUP(_xlfn.CONCAT($C$2,"-",$E77,"-",$F77,"-",P$3),'Raw Data'!$A$2:$D$690331,4,FALSE),"N/A") -> N/A | Q77: =_xlfn.IFNA(VLOOKUP(_xlfn.CONCAT($C$2,"-",$E77,"-",$F77,"-",Q$3),'Raw Data'!$A$2:$D$690331,4,FALSE),"N/A") -> N/A | R77: =_xlfn.IFNA(VLOOKUP(_xlfn.CONCAT($C$2,"-",$E77,"-",$F77,"-",R$3),'Raw Data'!$A$2:$D$690331,4,FALSE),"N/A") -> N/A | S77: =_xlfn.IFNA(VLOOKUP(_xlfn.CONCAT($C$2,"-",$E77,"-",$F77,"-",S$3),'Raw Data'!$A$2:$D$690331,4,FALSE),"N/A") -> N/A
E78: 15 | F78: 3 | H78: =_xlfn.IFNA(VLOOKUP(_xlfn.CONCAT($C$2,"-",$E78,"-",$F78,"-",H$3),'Raw Data'!$A$2:$D$690331,4,FALSE),"N/A") -> N/A | I78: =_xlfn.IFNA(VLOOKUP(_xlfn.CONCAT($C$2,"-",$E78,"-",$F78,"-",I$3),'Raw Data'!$A$2:$D$690331,4,FALSE),"N/A") -> N/A | J78: =_xlfn.IFNA(VLOOKUP(_xlfn.CONCAT($C$2,"-",$E78,"-",$F78,"-",J$3),'Raw Data'!$A$2:$D$690331,4,FALSE),"N/A") -> N/A | K78: =_xlfn.IFNA(VLOOKUP(_xlfn.CONCAT($C$2,"-",$E78,"-",$F78,"-",K$3),'Raw Data'!$A$2:$D$690331,4,FALSE),"N/A") -> N/A | L78: =_xlfn.IFNA(VLOOKUP(_xlfn.CONCAT($C$2,"-",$E78,"-",$F78,"-",L$3),'Raw Data'!$A$2:$D$690331,4,FALSE),"N/A") -> N/A | M78: =_xlfn.IFNA(VLOOKUP(_xlfn.CONCAT($C$2,"-",$E78,"-",$F78,"-",M$3),'Raw Data'!$A$2:$D$690331,4,FALSE),"N/A") -> N/A | N78: =_xlfn.IFNA(VLOOKUP(_xlfn.CONCAT($C$2,"-",$E78,"-",$F78,"-",N$3),'Raw Data'!$A$2:$D$690331,4,FALSE),"N/A") -> N/A | O78: =_xlfn.IFNA(VLOOKUP(_xlfn.CONCAT($C$2,"-",$E78,"-",$F78,"-",O$3),'Raw Data'!$A$2:$D$690331,4,FALSE),"N/A") -> N/A | P78: =_xlfn.IFNA(VLOOKUP(_xlfn.CONCAT($C$2,"-",$E78,"-",$F78,"-",P$3),'Raw Data'!$A$2:$D$690331,4,FALSE),"N/A") -> N/A | Q78: =_xlfn.IFNA(VLOOKUP(_xlfn.CONCAT($C$2,"-",$E78,"-",$F78,"-",Q$3),'Raw Data'!$A$2:$D$690331,4,FALSE),"N/A") -> N/A | R78: =_xlfn.IFNA(VLOOKUP(_xlfn.CONCAT($C$2,"-",$E78,"-",$F78,"-",R$3),'Raw Data'!$A$2:$D$690331,4,FALSE),"N/A") -> N/A | S78: =_xlfn.IFNA(VLOOKUP(_xlfn.CONCAT($C$2,"-",$E78,"-",$F78,"-",S$3),'Raw Data'!$A$2:$D$690331,4,FALSE),"N/A") -> N/A
E79: 16 | F79: 3 | H79: =_xlfn.IFNA(VLOOKUP(_xlfn.CONCAT($C$2,"-",$E79,"-",$F79,"-",H$3),'Raw Data'!$A$2:$D$690331,4,FALSE),"N/A") -> N/A | I79: =_xlfn.IFNA(VLOOKUP(_xlfn.CONCAT($C$2,"-",$E79,"-",$F79,"-",I$3),'Raw Data'!$A$2:$D$690331,4,FALSE),"N/A") -> N/A | J79: =_xlfn.IFNA(VLOOKUP(_xlfn.CONCAT($C$2,"-",$E79,"-",$F79,"-",J$3),'Raw Data'!$A$2:$D$690331,4,FALSE),"N/A") -> N/A | K79: =_xlfn.IFNA(VLOOKUP(_xlfn.CONCAT($C$2,"-",$E79,"-",$F79,"-",K$3),'Raw Data'!$A$2:$D$690331,4,FALSE),"N/A") -> N/A | L79: =_xlfn.IFNA(VLOOKUP(_xlfn.CONCAT($C$2,"-",$E79,"-",$F79,"-",L$3),'Raw Data'!$A$2:$D$690331,4,FALSE),"N/A") -> N/A | M79: =_xlfn.IFNA(VLOOKUP(_xlfn.CONCAT($C$2,"-",$E79,"-",$F79,"-",M$3),'Raw Data'!$A$2:$D$690331,4,FALSE),"N/A") -> N/A | N79: =_xlfn.IFNA(VLOOKUP(_xlfn.CONCAT($C$2,"-",$E79,"-",$F79,"-",N$3),'Raw Data'!$A$2:$D$690331,4,FALSE),"N/A") -> N/A | O79: =_xlfn.IFNA(VLOOKUP(_xlfn.CONCAT($C$2,"-",$E79,"-",$F79,"-",O$3),'Raw Data'!$A$2:$D$690331,4,FALSE),"N/A") -> N/A | P79: =_xlfn.IFNA(VLOOKUP(_xlfn.CONCAT($C$2,"-",$E79,"-",$F79,"-",P$3),'Raw Data'!$A$2:$D$690331,4,FALSE),"N/A") -> N/A | Q79: =_xlfn.IFNA(VLOOKUP(_xlfn.CONCAT($C$2,"-",$E79,"-",$F79,"-",Q$3),'Raw Data'!$A$2:$D$690331,4,FALSE),"N/A") -> N/A | R79: =_xlfn.IFNA(VLOOKUP(_xlfn.CONCAT($C$2,"-",$E79,"-",$F79,"-",R$3),'Raw Data'!$A$2:$D$690331,4,FALSE),"N/A") -> N/A | S79: =_xlfn.IFNA(VLOOKUP(_xlfn.CONCAT($C$2,"-",$E79,"-",$F79,"-",S$3),'Raw Data'!$A$2:$D$690331,4,FALSE),"N/A") -> N/A
E80: 17 | F80: 3 | H80: =_xlfn.IFNA(VLOOKUP(_xlfn.CONCAT($C$2,"-",$E80,"-",$F80,"-",H$3),'Raw Data'!$A$2:$D$690331,4,FALSE),"N/A") -> N/A | I80: =_xlfn.IFNA(VLOOKUP(_xlfn.CONCAT($C$2,"-",$E80,"-",$F80,"-",I$3),'Raw Data'!$A$2:$D$690331,4,FALSE),"N/A") -> N/A | J80: =_xlfn.IFNA(VLOOKUP(_xlfn.CONCAT($C$2,"-",$E80,"-",$F80,"-",J$3),'Raw Data'!$A$2:$D$690331,4,FALSE),"N/A") -> N/A | K80: =_xlfn.IFNA(VLOOKUP(_xlfn.CONCAT($C$2,"-",$E80,"-",$F80,"-",K$3),'Raw Data'!$A$2:$D$690331,4,FALSE),"N/A") -> N/A | L80: =_xlfn.IFNA(VLOOKUP(_xlfn.CONCAT($C$2,"-",$E80,"-",$F80,"-",L$3),'Raw Data'!$A$2:$D$690331,4,FALSE),"N/A") -> N/A | M80: =_xlfn.IFNA(VLOOKUP(_xlfn.CONCAT($C$2,"-",$E80,"-",$F80,"-",M$3),'Raw Data'!$A$2:$D$690331,4,FALSE),"N/A") -> N/A | N80: =_xlfn.IFNA(VLOOKUP(_xlfn.CONCAT($C$2,"-",$E80,"-",$F80,"-",N$3),'Raw Data'!$A$2:$D$690331,4,FALSE),"N/A") -> N/A | O80: =_xlfn.IFNA(VLOOKUP(_xlfn.CONCAT($C$2,"-",$E80,"-",$F80,"-",O$3),'Raw Data'!$A$2:$D$690331,4,FALSE),"N/A") -> N/A | P80: =_xlfn.IFNA(VLOOKUP(_xlfn.CONCAT($C$2,"-",$E80,"-",$F80,"-",P$3),'Raw Data'!$A$2:$D$690331,4,FALSE),"N/A") -> N/A | Q80: =_xlfn.IFNA(VLOOKUP(_xlfn.CONCAT($C$2,"-",$E80,"-",$F80,"-",Q$3),'Raw Data'!$A$2:$D$690331,4,FALSE),"N/A") -> N/A | R80: =_xlfn.IFNA(VLOOKUP(_xlfn.CONCAT($C$2,"-",$E80,"-",$F80,"-",R$3),'Raw Data'!$A$2:$D$690331,4,FALSE),"N/A") -> N/A | S80: =_xlfn.IFNA(VLOOKUP(_xlfn.CONCAT($C$2,"-",$E80,"-",$F80,"-",S$3),'Raw Data'!$A$2:$D$690331,4,FALSE),"N/A") -> N/A
E81: 18 | F81: 3 | H81: =_xlfn.IFNA(VLOOKUP(_xlfn.CONCAT($C$2,"-",$E81,"-",$F81,"-",H$3),'Raw Data'!$A$2:$D$690331,4,FALSE),"N/A") -> N/A | I81: =_xlfn.IFNA(VLOOKUP(_xlfn.CONCAT($C$2,"-",$E81,"-",$F81,"-",I$3),'Raw Data'!$A$2:$D$690331,4,FALSE),"N/A") -> N/A | J81: =_xlfn.IFNA(VLOOKUP(_xlfn.CONCAT($C$2,"-",$E81,"-",$F81,"-",J$3),'Raw Data'!$A$2:$D$690331,4,FALSE),"N/A") -> N/A | K81: =_xlfn.IFNA(VLOOKUP(_xlfn.CONCAT($C$2,"-",$E81,"-",$F81,"-",K$3),'Raw Data'!$A$2:$D$690331,4,FALSE),"N/A") -> N/A | L81: =_xlfn.IFNA(VLOOKUP(_xlfn.CONCAT($C$2,"-",$E81,"-",$F81,"-",L$3),'Raw Data'!$A$2:$D$690331,4,FALSE),"N/A") -> N/A | M81: =_xlfn.IFNA(VLOOKUP(_xlfn.CONCAT($C$2,"-",$E81,"-",$F81,"-",M$3),'Raw Data'!$A$2:$D$690331,4,FALSE),"N/A") -> N/A | N81: =_xlfn.IFNA(VLOOKUP(_xlfn.CONCAT($C$2,"-",$E81,"-",$F81,"-",N$3),'Raw Data'!$A$2:$D$690331,4,FALSE),"N/A") -> N/A | O81: =_xlfn.IFNA(VLOOKUP(_xlfn.CONCAT($C$2,"-",$E81,"-",$F81,"-",O$3),'Raw Data'!$A$2:$D$690331,4,FALSE),"N/A") -> N/A | P81: =_xlfn.IFNA(VLOOKUP(_xlfn.CONCAT($C$2,"-",$E81,"-",$F81,"-",P$3),'Raw Data'!$A$2:$D$690331,4,FALSE),"N/A") -> N/A | Q81: =_xlfn.IFNA(VLOOKUP(_xlfn.CONCAT($C$2,"-",$E81,"-",$F81,"-",Q$3),'Raw Data'!$A$2:$D$690331,4,FALSE),"N/A") -> N/A | R81: =_xlfn.IFNA(VLOOKUP(_xlfn.CONCAT($C$2,"-",$E81,"-",$F81,"-",R$3),'Raw Data'!$A$2:$D$690331,4,FALSE),"N/A") -> N/A | S81: =_xlfn.IFNA(VLOOKUP(_xlfn.CONCAT($C$2,"-",$E81,"-",$F81,"-",S$3),'Raw Data'!$A$2:$D$690331,4,FALSE),"N/A") -> N/A
E82: 19 | F82: 3 | H82: =_xlfn.IFNA(VLOOKUP(_xlfn.CONCAT($C$2,"-",$E82,"-",$F82,"-",H$3),'Raw Data'!$A$2:$D$690331,4,FALSE),"N/A") -> N/A | I82: =_xlfn.IFNA(VLOOKUP(_xlfn.CONCAT($C$2,"-",$E82,"-",$F82,"-",I$3),'Raw Data'!$A$2:$D$690331,4,FALSE),"N/A") -> N/A | J82: =_xlfn.IFNA(VLOOKUP(_xlfn.CONCAT($C$2,"-",$E82,"-",$F82,"-",J$3),'Raw Data'!$A$2:$D$690331,4,FALSE),"N/A") -> N/A | K82: =_xlfn.IFNA(VLOOKUP(_xlfn.CONCAT($C$2,"-",$E82,"-",$F82,"-",K$3),'Raw Data'!$A$2:$D$690331,4,FALSE),"N/A") -> N/A | L82: =_xlfn.IFNA(VLOOKUP(_xlfn.CONCAT($C$2,"-",$E82,"-",$F82,"-",L$3),'Raw Data'!$A$2:$D$690331,4,FALSE),"N/A") -> N/A | M82: =_xlfn.IFNA(VLOOKUP(_xlfn.CONCAT($C$2,"-",$E82,"-",$F82,"-",M$3),'Raw Data'!$A$2:$D$690331,4,FALSE),"N/A") -> N/A | N82: =_xlfn.IFNA(VLOOKUP(_xlfn.CONCAT($C$2,"-",$E82,"-",$F82,"-",N$3),'Raw Data'!$A$2:$D$690331,4,FALSE),"N/A") -> N/A | O82: =_xlfn.IFNA(VLOOKUP(_xlfn.CONCAT($C$2,"-",$E82,"-",$F82,"-",O$3),'Raw Data'!$A$2:$D$690331,4,FALSE),"N/A") -> N/A | P82: =_xlfn.IFNA(VLOOKUP(_xlfn.CONCAT($C$2,"-",$E82,"-",$F82,"-",P$3),'Raw Data'!$A$2:$D$690331,4,FALSE),"N/A") -> N/A | Q82: =_xlfn.IFNA(VLOOKUP(_xlfn.CONCAT($C$2,"-",$E82,"-",$F82,"-",Q$3),'Raw Data'!$A$2:$D$690331,4,FALSE),"N/A") -> N/A | R82: =_xlfn.IFNA(VLOOKUP(_xlfn.CONCAT($C$2,"-",$E82,"-",$F82,"-",R$3),'Raw Data'!$A$2:$D$690331,4,FALSE),"N/A") -> N/A | S82: =_xlfn.IFNA(VLOOKUP(_xlfn.CONCAT($C$2,"-",$E82,"-",$F82,"-",S$3),'Raw Data'!$A$2:$D$690331,4,FALSE),"N/A") -> N/A
E83: 20 | F83: 3 | H83: =_xlfn.IFNA(VLOOKUP(_xlfn.CONCAT($C$2,"-",$E83,"-",$F83,"-",H$3),'Raw Data'!$A$2:$D$690331,4,FALSE),"N/A") -> N/A | I83: =_xlfn.IFNA(VLOOKUP(_xlfn.CONCAT($C$2,"-",$E83,"-",$F83,"-",I$3),'Raw Data'!$A$2:$D$690331,4,FALSE),"N/A") -> N/A | J83: =_xlfn.IFNA(VLOOKUP(_xlfn.CONCAT($C$2,"-",$E83,"-",$F83,"-",J$3),'Raw Data'!$A$2:$D$690331,4,FALSE),"N/A") -> N/A | K83: =_xlfn.IFNA(VLOOKUP(_xlfn.CONCAT($C$2,"-",$E83,"-",$F83,"-",K$3),'Raw Data'!$A$2:$D$690331,4,FALSE),"N/A") -> N/A | L83: =_xlfn.IFNA(VLOOKUP(_xlfn.CONCAT($C$2,"-",$E83,"-",$F83,"-",L$3),'Raw Data'!$A$2:$D$690331,4,FALSE),"N/A") -> N/A | M83: =_xlfn.IFNA(VLOOKUP(_xlfn.CONCAT($C$2,"-",$E83,"-",$F83,"-",M$3),'Raw Data'!$A$2:$D$690331,4,FALSE),"N/A") -> N/A | N83: =_xlfn.IFNA(VLOOKUP(_xlfn.CONCAT($C$2,"-",$E83,"-",$F83,"-",N$3),'Raw Data'!$A$2:$D$690331,4,FALSE),"N/A") -> N/A | O83: =_xlfn.IFNA(VLOOKUP(_xlfn.CONCAT($C$2,"-",$E83,"-",$F83,"-",O$3),'Raw Data'!$A$2:$D$690331,4,FALSE),"N/A") -> N/A | P83: =_xlfn.IFNA(VLOOKUP(_xlfn.CONCAT($C$2,"-",$E83,"-",$F83,"-",P$3),'Raw Data'!$A$2:$D$690331,4,FALSE),"N/A") -> N/A | Q83: =_xlfn.IFNA(VLOOKUP(_xlfn.CONCAT($C$2,"-",$E83,"-",$F83,"-",Q$3),'Raw Data'!$A$2:$D$690331,4,FALSE),"N/A") -> N/A | R83: =_xlfn.IFNA(VLOOKUP(_xlfn.CONCAT($C$2,"-",$E83,"-",$F83,"-",R$3),'Raw Data'!$A$2:$D$690331,4,FALSE),"N/A") -> N/A | S83: =_xlfn.IFNA(VLOOKUP(_xlfn.CONCAT($C$2,"-",$E83,"-",$F83,"-",S$3),'Raw Data'!$A$2:$D$690331,4,FALSE),"N/A") -> N/A
E84: 21 | F84: 3 | H84: =_xlfn.IFNA(VLOOKUP(_xlfn.CONCAT($C$2,"-",$E84,"-",$F84,"-",H$3),'Raw Data'!$A$2:$D$690331,4,FALSE),"N/A") -> N/A | I84: =_xlfn.IFNA(VLOOKUP(_xlfn.CONCAT($C$2,"-",$E84,"-",$F84,"-",I$3),'Raw Data'!$A$2:$D$690331,4,FALSE),"N/A") -> N/A | J84: =_xlfn.IFNA(VLOOKUP(_xlfn.CONCAT($C$2,"-",$E84,"-",$F84,"-",J$3),'Raw Data'!$A$2:$D$690331,4,FALSE),"N/A") -> N/A | K84: =_xlfn.IFNA(VLOOKUP(_xlfn.CONCAT($C$2,"-",$E84,"-",$F84,"-",K$3),'Raw Data'!$A$2:$D$690331,4,FALSE),"N/A") -> N/A | L84: =_xlfn.IFNA(VLOOKUP(_xlfn.CONCAT($C$2,"-",$E84,"-",$F84,"-",L$3),'Raw Data'!$A$2:$D$690331,4,FALSE),"N/A") -> N/A | M84: =_xlfn.IFNA(VLOOKUP(_xlfn.CONCAT($C$2,"-",$E84,"-",$F84,"-",M$3),'Raw Data'!$A$2:$D$690331,4,FALSE),"N/A") -> N/A | N84: =_xlfn.IFNA(VLOOKUP(_xlfn.CONCAT($C$2,"-",$E84,"-",$F84,"-",N$3),'Raw Data'!$A$2:$D$690331,4,FALSE),"N/A") -> N/A | O84: =_xlfn.IFNA(VLOOKUP(_xlfn.CONCAT($C$2,"-",$E84,"-",$F84,"-",O$3),'Raw Data'!$A$2:$D$690331,4,FALSE),"N/A") -> N/A | P84: =_xlfn.IFNA(VLOOKUP(_xlfn.CONCAT($C$2,"-",$E84,"-",$F84,"-",P$3),'Raw Data'!$A$2:$D$690331,4,FALSE),"N/A") -> N/A | Q84: =_xlfn.IFNA(VLOOKUP(_xlfn.CONCAT($C$2,"-",$E84,"-",$F84,"-",Q$3),'Raw Data'!$A$2:$D$690331,4,FALSE),"N/A") -> N/A | R84: =_xlfn.IFNA(VLOOKUP(_xlfn.CONCAT($C$2,"-",$E84,"-",$F84,"-",R$3),'Raw Data'!$A$2:$D$690331,4,FALSE),"N/A") -> N/A | S84: =_xlfn.IFNA(VLOOKUP(_xlfn.CONCAT($C$2,"-",$E84,"-",$F84,"-",S$3),'Raw Data'!$A$2:$D$690331,4,FALSE),"N/A") -> N/A
E85: 22 | F85: 3 | H85: =_xlfn.IFNA(VLOOKUP(_xlfn.CONCAT($C$2,"-",$E85,"-",$F85,"-",H$3),'Raw Data'!$A$2:$D$690331,4,FALSE),"N/A") -> N/A | I85: =_xlfn.IFNA(VLOOKUP(_xlfn.CONCAT($C$2,"-",$E85,"-",$F85,"-",I$3),'Raw Data'!$A$2:$D$690331,4,FALSE),"N/A") -> N/A | J85: =_xlfn.IFNA(VLOOKUP(_xlfn.CONCAT($C$2,"-",$E85,"-",$F85,"-",J$3),'Raw Data'!$A$2:$D$690331,4,FALSE),"N/A") -> N/A | K85: =_xlfn.IFNA(VLOOKUP(_xlfn.CONCAT($C$2,"-",$E85,"-",$F85,"-",K$3),'Raw Data'!$A$2:$D$690331,4,FALSE),"N/A") -> N/A | L85: =_xlfn.IFNA(VLOOKUP(_xlfn.CONCAT($C$2,"-",$E85,"-",$F85,"-",L$3),'Raw Data'!$A$2:$D$690331,4,FALSE),"N/A") -> N/A | M85: =_xlfn.IFNA(VLOOKUP(_xlfn.CONCAT($C$2,"-",$E85,"-",$F85,"-",M$3),'Raw Data'!$A$2:$D$690331,4,FALSE),"N/A") -> N/A | N85: =_xlfn.IFNA(VLOOKUP(_xlfn.CONCAT($C$2,"-",$E85,"-",$F85,"-",N$3),'Raw Data'!$A$2:$D$690331,4,FALSE),"N/A") -> N/A | O85: =_xlfn.IFNA(VLOOKUP(_xlfn.CONCAT($C$2,"-",$E85,"-",$F85,"-",O$3),'Raw Data'!$A$2:$D$690331,4,FALSE),"N/A") -> N/A | P85: =_xlfn.IFNA(VLOOKUP(_xlfn.CONCAT($C$2,"-",$E85,"-",$F85,"-",P$3),'Raw Data'!$A$2:$D$690331,4,FALSE),"N/A") -> N/A | Q85: =_xlfn.IFNA(VLOOKUP(_xlfn.CONCAT($C$2,"-",$E85,"-",$F85,"-",Q$3),'Raw Data'!$A$2:$D$690331,4,FALSE),"N/A") -> N/A | R85: =_xlfn.IFNA(VLOOKUP(_xlfn.CONCAT($C$2,"-",$E85,"-",$F85,"-",R$3),'Raw Data'!$A$2:$D$690331,4,FALSE),"N/A") -> N/A | S85: =_xlfn.IFNA(VLOOKUP(_xlfn.CONCAT($C$2,"-",$E85,"-",$F85,"-",S$3),'Raw Data'!$A$2:$D$690331,4,FALSE),"N/A") -> N/A
E86: 23 | F86: 3 | H86: =_xlfn.IFNA(VLOOKUP(_xlfn.CONCAT($C$2,"-",$E86,"-",$F86,"-",H$3),'Raw Data'!$A$2:$D$690331,4,FALSE),"N/A") -> N/A | I86: =_xlfn.IFNA(VLOOKUP(_xlfn.CONCAT($C$2,"-",$E86,"-",$F86,"-",I$3),'Raw Data'!$A$2:$D$690331,4,FALSE),"N/A") -> N/A | J86: =_xlfn.IFNA(VLOOKUP(_xlfn.CONCAT($C$2,"-",$E86,"-",$F86,"-",J$3),'Raw Data'!$A$2:$D$690331,4,FALSE),"N/A") -> N/A | K86: =_xlfn.IFNA(VLOOKUP(_xlfn.CONCAT($C$2,"-",$E86,"-",$F86,"-",K$3),'Raw Data'!$A$2:$D$690331,4,FALSE),"N/A") -> N/A | L86: =_xlfn.IFNA(VLOOKUP(_xlfn.CONCAT($C$2,"-",$E86,"-",$F86,"-",L$3),'Raw Data'!$A$2:$D$690331,4,FALSE),"N/A") -> N/A | M86: =_xlfn.IFNA(VLOOKUP(_xlfn.CONCAT($C$2,"-",$E86,"-",$F86,"-",M$3),'Raw Data'!$A$2:$D$690331,4,FALSE),"N/A") -> N/A | N86: =_xlfn.IFNA(VLOOKUP(_xlfn.CONCAT($C$2,"-",$E86,"-",$F86,"-",N$3),'Raw Data'!$A$2:$D$690331,4,FALSE),"N/A") -> N/A | O86: =_xlfn.IFNA(VLOOKUP(_xlfn.CONCAT($C$2,"-",$E86,"-",$F86,"-",O$3),'Raw Data'!$A$2:$D$690331,4,FALSE),"N/A") -> N/A | P86: =_xlfn.IFNA(VLOOKUP(_xlfn.CONCAT($C$2,"-",$E86,"-",$F86,"-",P$3),'Raw Data'!$A$2:$D$690331,4,FALSE),"N/A") -> N/A | Q86: =_xlfn.IFNA(VLOOKUP(_xlfn.CONCAT($C$2,"-",$E86,"-",$F86,"-",Q$3),'Raw Data'!$A$2:$D$690331,4,FALSE),"N/A") -> N/A | R86: =_xlfn.IFNA(VLOOKUP(_xlfn.CONCAT($C$2,"-",$E86,"-",$F86,"-",R$3),'Raw Data'!$A$2:$D$690331,4,FALSE),"N/A") -> N/A | S86: =_xlfn.IFNA(VLOOKUP(_xlfn.CONCAT($C$2,"-",$E86,"-",$F86,"-",S$3),'Raw Data'!$A$2:$D$690331,4,FALSE),"N/A") -> N/A
E87: 24 | F87: 3 | H87: =_xlfn.IFNA(VLOOKUP(_xlfn.CONCAT($C$2,"-",$E87,"-",$F87,"-",H$3),'Raw Data'!$A$2:$D$690331,4,FALSE),"N/A") -> N/A | I87: =_xlfn.IFNA(VLOOKUP(_xlfn.CONCAT($C$2,"-",$E87,"-",$F87,"-",I$3),'Raw Data'!$A$2:$D$690331,4,FALSE),"N/A") -> N/A | J87: =_xlfn.IFNA(VLOOKUP(_xlfn.CONCAT($C$2,"-",$E87,"-",$F87,"-",J$3),'Raw Data'!$A$2:$D$690331,4,FALSE),"N/A") -> N/A | K87: =_xlfn.IFNA(VLOOKUP(_xlfn.CONCAT($C$2,"-",$E87,"-",$F87,"-",K$3),'Raw Data'!$A$2:$D$690331,4,FALSE),"N/A") -> N/A | L87: =_xlfn.IFNA(VLOOKUP(_xlfn.CONCAT($C$2,"-",$E87,"-",$F87,"-",L$3),'Raw Data'!$A$2:$D$690331,4,FALSE),"N/A") -> N/A | M87: =_xlfn.IFNA(VLOOKUP(_xlfn.CONCAT($C$2,"-",$E87,"-",$F87,"-",M$3),'Raw Data'!$A$2:$D$690331,4,FALSE),"N/A") -> N/A | N87: =_xlfn.IFNA(VLOOKUP(_xlfn.CONCAT($C$2,"-",$E87,"-",$F87,"-",N$3),'Raw Data'!$A$2:$D$690331,4,FALSE),"N/A") -> N/A | O87: =_xlfn.IFNA(VLOOKUP(_xlfn.CONCAT($C$2,"-",$E87,"-",$F87,"-",O$3),'Raw Data'!$A$2:$D$690331,4,FALSE),"N/A") -> N/A | P87: =_xlfn.IFNA(VLOOKUP(_xlfn.CONCAT($C$2,"-",$E87,"-",$F87,"-",P$3),'Raw Data'!$A$2:$D$690331,4,FALSE),"N/A") -> N/A | Q87: =_xlfn.IFNA(VLOOKUP(_xlfn.CONCAT($C$2,"-",$E87,"-",$F87,"-",Q$3),'Raw Data'!$A$2:$D$690331,4,FALSE),"N/A") -> N/A | R87: =_xlfn.IFNA(VLOOKUP(_xlfn.CONCAT($C$2,"-",$E87,"-",$F87,"-",R$3),'Raw Data'!$A$2:$D$690331,4,FALSE),"N/A") -> N/A | S87: =_xlfn.IFNA(VLOOKUP(_xlfn.CONCAT($C$2,"-",$E87,"-",$F87,"-",S$3),'Raw Data'!$A$2:$D$690331,4,FALSE),"N/A") -> N/A
E88: 25 | F88: 3 | H88: =_xlfn.IFNA(VLOOKUP(_xlfn.CONCAT($C$2,"-",$E88,"-",$F88,"-",H$3),'Raw Data'!$A$2:$D$690331,4,FALSE),"N/A") -> N/A | I88: =_xlfn.IFNA(VLOOKUP(_xlfn.CONCAT($C$2,"-",$E88,"-",$F88,"-",I$3),'Raw Data'!$A$2:$D$690331,4,FALSE),"N/A") -> N/A | J88: =_xlfn.IFNA(VLOOKUP(_xlfn.CONCAT($C$2,"-",$E88,"-",$F88,"-",J$3),'Raw Data'!$A$2:$D$690331,4,FALSE),"N/A") -> N/A | K88: =_xlfn.IFNA(VLOOKUP(_xlfn.CONCAT($C$2,"-",$E88,"-",$F88,"-",K$3),'Raw Data'!$A$2:$D$690331,4,FALSE),"N/A") -> N/A | L88: =_xlfn.IFNA(VLOOKUP(_xlfn.CONCAT($C$2,"-",$E88,"-",$F88,"-",L$3),'Raw Data'!$A$2:$D$690331,4,FALSE),"N/A") -> N/A | M88: =_xlfn.IFNA(VLOOKUP(_xlfn.CONCAT($C$2,"-",$E88,"-",$F88,"-",M$3),'Raw Data'!$A$2:$D$690331,4,FALSE),"N/A") -> N/A | N88: =_xlfn.IFNA(VLOOKUP(_xlfn.CONCAT($C$2,"-",$E88,"-",$F88,"-",N$3),'Raw Data'!$A$2:$D$690331,4,FALSE),"N/A") -> N/A | O88: =_xlfn.IFNA(VLOOKUP(_xlfn.CONCAT($C$2,"-",$E88,"-",$F88,"-",O$3),'Raw Data'!$A$2:$D$690331,4,FALSE),"N/A") -> N/A | P88: =_xlfn.IFNA(VLOOKUP(_xlfn.CONCAT($C$2,"-",$E88,"-",$F88,"-",P$3),'Raw Data'!$A$2:$D$690331,4,FALSE),"N/A") -> N/A | Q88: =_xlfn.IFNA(VLOOKUP(_xlfn.CONCAT($C$2,"-",$E88,"-",$F88,"-",Q$3),'Raw Data'!$A$2:$D$690331,4,FALSE),"N/A") -> N/A | R88: =_xlfn.IFNA(VLOOKUP(_xlfn.CONCAT($C$2,"-",$E88,"-",$F88,"-",R$3),'Raw Data'!$A$2:$D$690331,4,FALSE),"N/A") -> N/A | S88: =_xlfn.IFNA(VLOOKUP(_xlfn.CONCAT($C$2,"-",$E88,"-",$F88,"-",S$3),'Raw Data'!$A$2:$D$690331,4,FALSE),"N/A") -> N/A
E89: 26 | F89: 3 | H89: =_xlfn.IFNA(VLOOKUP(_xlfn.CONCAT($C$2,"-",$E89,"-",$F89,"-",H$3),'Raw Data'!$A$2:$D$690331,4,FALSE),"N/A") -> N/A | I89: =_xlfn.IFNA(VLOOKUP(_xlfn.CONCAT($C$2,"-",$E89,"-",$F89,"-",I$3),'Raw Data'!$A$2:$D$690331,4,FALSE),"N/A") -> N/A | J89: =_xlfn.IFNA(VLOOKUP(_xlfn.CONCAT($C$2,"-",$E89,"-",$F89,"-",J$3),'Raw Data'!$A$2:$D$690331,4,FALSE),"N/A") -> N/A | K89: =_xlfn.IFNA(VLOOKUP(_xlfn.CONCAT($C$2,"-",$E89,"-",$F89,"-",K$3),'Raw Data'!$A$2:$D$690331,4,FALSE),"N/A") -> N/A | L89: =_xlfn.IFNA(VLOOKUP(_xlfn.CONCAT($C$2,"-",$E89,"-",$F89,"-",L$3),'Raw Data'!$A$2:$D$690331,4,FALSE),"N/A") -> N/A | M89: =_xlfn.IFNA(VLOOKUP(_xlfn.CONCAT($C$2,"-",$E89,"-",$F89,"-",M$3),'Raw Data'!$A$2:$D$690331,4,FALSE),"N/A") -> N/A | N89: =_xlfn.IFNA(VLOOKUP(_xlfn.CONCAT($C$2,"-",$E89,"-",$F89,"-",N$3),'Raw Data'!$A$2:$D$690331,4,FALSE),"N/A") -> N/A | O89: =_xlfn.IFNA(VLOOKUP(_xlfn.CONCAT($C$2,"-",$E89,"-",$F89,"-",O$3),'Raw Data'!$A$2:$D$690331,4,FALSE),"N/A") -> N/A | P89: =_xlfn.IFNA(VLOOKUP(_xlfn.CONCAT($C$2,"-",$E89,"-",$F89,"-",P$3),'Raw Data'!$A$2:$D$690331,4,FALSE),"N/A") -> N/A | Q89: =_xlfn.IFNA(VLOOKUP(_xlfn.CONCAT($C$2,"-",$E89,"-",$F89,"-",Q$3),'Raw Data'!$A$2:$D$690331,4,FALSE),"N/A") -> N/A | R89: =_xlfn.IFNA(VLOOKUP(_xlfn.CONCAT($C$2,"-",$E89,"-",$F89,"-",R$3),'Raw Data'!$A$2:$D$690331,4,FALSE),"N/A") -> N/A | S89: =_xlfn.IFNA(VLOOKUP(_xlfn.CONCAT($C$2,"-",$E89,"-",$F89,"-",S$3),'Raw Data'!$A$2:$D$690331,4,FALSE),"N/A") -> N/A
E90: 27 | F90: 3 | H90: =_xlfn.IFNA(VLOOKUP(_xlfn.CONCAT($C$2,"-",$E90,"-",$F90,"-",H$3),'Raw Data'!$A$2:$D$690331,4,FALSE),"N/A") -> N/A | I90: =_xlfn.IFNA(VLOOKUP(_xlfn.CONCAT($C$2,"-",$E90,"-",$F90,"-",I$3),'Raw Data'!$A$2:$D$690331,4,FALSE),"N/A") -> N/A | J90: =_xlfn.IFNA(VLOOKUP(_xlfn.CONCAT($C$2,"-",$E90,"-",$F90,"-",J$3),'Raw Data'!$A$2:$D$690331,4,FALSE),"N/A") -> N/A | K90: =_xlfn.IFNA(VLOOKUP(_xlfn.CONCAT($C$2,"-",$E90,"-",$F90,"-",K$3),'Raw Data'!$A$2:$D$690331,4,FALSE),"N/A") -> N/A | L90: =_xlfn.IFNA(VLOOKUP(_xlfn.CONCAT($C$2,"-",$E90,"-",$F90,"-",L$3),'Raw Data'!$A$2:$D$690331,4,FALSE),"N/A") -> N/A | M90: =_xlfn.IFNA(VLOOKUP(_xlfn.CONCAT($C$2,"-",$E90,"-",$F90,"-",M$3),'Raw Data'!$A$2:$D$690331,4,FALSE),"N/A") -> N/A | N90: =_xlfn.IFNA(VLOOKUP(_xlfn.CONCAT($C$2,"-",$E90,"-",$F90,"-",N$3),'Raw Data'!$A$2:$D$690331,4,FALSE),"N/A") -> N/A | O90: =_xlfn.IFNA(VLOOKUP(_xlfn.CONCAT($C$2,"-",$E90,"-",$F90,"-",O$3),'Raw Data'!$A$2:$D$690331,4,FALSE),"N/A") -> N/A | P90: =_xlfn.IFNA(VLOOKUP(_xlfn.CONCAT($C$2,"-",$E90,"-",$F90,"-",P$3),'Raw Data'!$A$2:$D$690331,4,FALSE),"N/A") -> N/A | Q90: =_xlfn.IFNA(VLOOKUP(_xlfn.CONCAT($C$2,"-",$E90,"-",$F90,"-",Q$3),'Raw Data'!$A$2:$D$690331,4,FALSE),"N/A") -> N/A | R90: =_xlfn.IFNA(VLOOKUP(_xlfn.CONCAT($C$2,"-",$E90,"-",$F90,"-",R$3),'Raw Data'!$A$2:$D$690331,4,FALSE),"N/A") -> N/A | S90: =_xlfn.IFNA(VLOOKUP(_xlfn.CONCAT($C$2,"-",$E90,"-",$F90,"-",S$3),'Raw Data'!$A$2:$D$690331,4,FALSE),"N/A") -> N/A
E91: 28 | F91: 3 | H91: =_xlfn.IFNA(VLOOKUP(_xlfn.CONCAT($C$2,"-",$E91,"-",$F91,"-",H$3),'Raw Data'!$A$2:$D$690331,4,FALSE),"N/A") -> N/A | I91: =_xlfn.IFNA(VLOOKUP(_xlfn.CONCAT($C$2,"-",$E91,"-",$F91,"-",I$3),'Raw Data'!$A$2:$D$690331,4,FALSE),"N/A") -> N/A | J91: =_xlfn.IFNA(VLOOKUP(_xlfn.CONCAT($C$2,"-",$E91,"-",$F91,"-",J$3),'Raw Data'!$A$2:$D$690331,4,FALSE),"N/A") -> N/A | K91: =_xlfn.IFNA(VLOOKUP(_xlfn.CONCAT($C$2,"-",$E91,"-",$F91,"-",K$3),'Raw Data'!$A$2:$D$690331,4,FALSE),"N/A") -> N/A | L91: =_xlfn.IFNA(VLOOKUP(_xlfn.CONCAT($C$2,"-",$E91,"-",$F91,"-",L$3),'Raw Data'!$A$2:$D$690331,4,FALSE),"N/A") -> N/A | M91: =_xlfn.IFNA(VLOOKUP(_xlfn.CONCAT($C$2,"-",$E91,"-",$F91,"-",M$3),'Raw Data'!$A$2:$D$690331,4,FALSE),"N/A") -> N/A | N91: =_xlfn.IFNA(VLOOKUP(_xlfn.CONCAT($C$2,"-",$E91,"-",$F91,"-",N$3),'Raw Data'!$A$2:$D$690331,4,FALSE),"N/A") -> N/A | O91: =_xlfn.IFNA(VLOOKUP(_xlfn.CONCAT($C$2,"-",$E91,"-",$F91,"-",O$3),'Raw Data'!$A$2:$D$690331,4,FALSE),"N/A") -> N/A | P91: =_xlfn.IFNA(VLOOKUP(_xlfn.CONCAT($C$2,"-",$E91,"-",$F91,"-",P$3),'Raw Data'!$A$2:$D$690331,4,FALSE),"N/A") -> N/A | Q91: =_xlfn.IFNA(VLOOKUP(_xlfn.CONCAT($C$2,"-",$E91,"-",$F91,"-",Q$3),'Raw Data'!$A$2:$D$690331,4,FALSE),"N/A") -> N/A | R91: =_xlfn.IFNA(VLOOKUP(_xlfn.CONCAT($C$2,"-",$E91,"-",$F91,"-",R$3),'Raw Data'!$A$2:$D$690331,4,FALSE),"N/A") -> N/A | S91: =_xlfn.IFNA(VLOOKUP(_xlfn.CONCAT($C$2,"-",$E91,"-",$F91,"-",S$3),'Raw Data'!$A$2:$D$690331,4,FALSE),"N/A") -> N/A
E92: 29 | F92: 3 | H92: =_xlfn.IFNA(VLOOKUP(_xlfn.CONCAT($C$2,"-",$E92,"-",$F92,"-",H$3),'Raw Data'!$A$2:$D$690331,4,FALSE),"N/A") -> N/A | I92: =_xlfn.IFNA(VLOOKUP(_xlfn.CONCAT($C$2,"-",$E92,"-",$F92,"-",I$3),'Raw Data'!$A$2:$D$690331,4,FALSE),"N/A") -> N/A | J92: =_xlfn.IFNA(VLOOKUP(_xlfn.CONCAT($C$2,"-",$E92,"-",$F92,"-",J$3),'Raw Data'!$A$2:$D$690331,4,FALSE),"N/A") -> N/A | K92: =_xlfn.IFNA(VLOOKUP(_xlfn.CONCAT($C$2,"-",$E92,"-",$F92,"-",K$3),'Raw Data'!$A$2:$D$690331,4,FALSE),"N/A") -> N/A | L92: =_xlfn.IFNA(VLOOKUP(_xlfn.CONCAT($C$2,"-",$E92,"-",$F92,"-",L$3),'Raw Data'!$A$2:$D$690331,4,FALSE),"N/A") -> N/A | M92: =_xlfn.IFNA(VLOOKUP(_xlfn.CONCAT($C$2,"-",$E92,"-",$F92,"-",M$3),'Raw Data'!$A$2:$D$690331,4,FALSE),"N/A") -> N/A | N92: =_xlfn.IFNA(VLOOKUP(_xlfn.CONCAT($C$2,"-",$E92,"-",$F92,"-",N$3),'Raw Data'!$A$2:$D$690331,4,FALSE),"N/A") -> N/A | O92: =_xlfn.IFNA(VLOOKUP(_xlfn.CONCAT($C$2,"-",$E92,"-",$F92,"-",O$3),'Raw Data'!$A$2:$D$690331,4,FALSE),"N/A") -> N/A | P92: =_xlfn.IFNA(VLOOKUP(_xlfn.CONCAT($C$2,"-",$E92,"-",$F92,"-",P$3),'Raw Data'!$A$2:$D$690331,4,FALSE),"N/A") -> N/A | Q92: =_xlfn.IFNA(VLOOKUP(_xlfn.CONCAT($C$2,"-",$E92,"-",$F92,"-",Q$3),'Raw Data'!$A$2:$D$690331,4,FALSE),"N/A") -> N/A | R92: =_xlfn.IFNA(VLOOKUP(_xlfn.CONCAT($C$2,"-",$E92,"-",$F92,"-",R$3),'Raw Data'!$A$2:$D$690331,4,FALSE),"N/A") -> N/A | S92: =_xlfn.IFNA(VLOOKUP(_xlfn.CONCAT($C$2,"-",$E92,"-",$F92,"-",S$3),'Raw Data'!$A$2:$D$690331,4,FALSE),"N/A") -> N/A
E93: 30 | F93: 3 | H93: =_xlfn.IFNA(VLOOKUP(_xlfn.CONCAT($C$2,"-",$E93,"-",$F93,"-",H$3),'Raw Data'!$A$2:$D$690331,4,FALSE),"N/A") -> N/A | I93: =_xlfn.IFNA(VLOOKUP(_xlfn.CONCAT($C$2,"-",$E93,"-",$F93,"-",I$3),'Raw Data'!$A$2:$D$690331,4,FALSE),"N/A") -> N/A | J93: =_xlfn.IFNA(VLOOKUP(_xlfn.CONCAT($C$2,"-",$E93,"-",$F93,"-",J$3),'Raw Data'!$A$2:$D$690331,4,FALSE),"N/A") -> N/A | K93: =_xlfn.IFNA(VLOOKUP(_xlfn.CONCAT($C$2,"-",$E93,"-",$F93,"-",K$3),'Raw Data'!$A$2:$D$690331,4,FALSE),"N/A") -> N/A | L93: =_xlfn.IFNA(VLOOKUP(_xlfn.CONCAT($C$2,"-",$E93,"-",$F93,"-",L$3),'Raw Data'!$A$2:$D$690331,4,FALSE),"N/A") -> N/A | M93: =_xlfn.IFNA(VLOOKUP(_xlfn.CONCAT($C$2,"-",$E93,"-",$F93,"-",M$3),'Raw Data'!$A$2:$D$690331,4,FALSE),"N/A") -> N/A | N93: =_xlfn.IFNA(VLOOKUP(_xlfn.CONCAT($C$2,"-",$E93,"-",$F93,"-",N$3),'Raw Data'!$A$2:$D$690331,4,FALSE),"N/A") -> N/A | O93: =_xlfn.IFNA(VLOOKUP(_xlfn.CONCAT($C$2,"-",$E93,"-",$F93,"-",O$3),'Raw Data'!$A$2:$D$690331,4,FALSE),"N/A") -> N/A | P93: =_xlfn.IFNA(VLOOKUP(_xlfn.CONCAT($C$2,"-",$E93,"-",$F93,"-",P$3),'Raw Data'!$A$2:$D$690331,4,FALSE),"N/A") -> N/A | Q93: =_xlfn.IFNA(VLOOKUP(_xlfn.CONCAT($C$2,"-",$E93,"-",$F93,"-",Q$3),'Raw Data'!$A$2:$D$690331,4,FALSE),"N/A") -> N/A | R93: =_xlfn.IFNA(VLOOKUP(_xlfn.CONCAT($C$2,"-",$E93,"-",$F93,"-",R$3),'Raw Data'!$A$2:$D$690331,4,FALSE),"N/A") -> N/A | S93: =_xlfn.IFNA(VLOOKUP(_xlfn.CONCAT($C$2,"-",$E93,"-",$F93,"-",S$3),'Raw Data'!$A$2:$D$690331,4,FALSE),"N/A") -> N/A
E94: 31 | F94: 3 | H94: =_xlfn.IFNA(VLOOKUP(_xlfn.CONCAT($C$2,"-",$E94,"-",$F94,"-",H$3),'Raw Data'!$A$2:$D$690331,4,FALSE),"N/A") -> N/A | I94: =_xlfn.IFNA(VLOOKUP(_xlfn.CONCAT($C$2,"-",$E94,"-",$F94,"-",I$3),'Raw Data'!$A$2:$D$690331,4,FALSE),"N/A") -> N/A | J94: =_xlfn.IFNA(VLOOKUP(_xlfn.CONCAT($C$2,"-",$E94,"-",$F94,"-",J$3),'Raw Data'!$A$2:$D$690331,4,FALSE),"N/A") -> N/A | K94: =_xlfn.IFNA(VLOOKUP(_xlfn.CONCAT($C$2,"-",$E94,"-",$F94,"-",K$3),'Raw Data'!$A$2:$D$690331,4,FALSE),"N/A") -> N/A | L94: =_xlfn.IFNA(VLOOKUP(_xlfn.CONCAT($C$2,"-",$E94,"-",$F94,"-",L$3),'Raw Data'!$A$2:$D$690331,4,FALSE),"N/A") -> N/A | M94: =_xlfn.IFNA(VLOOKUP(_xlfn.CONCAT($C$2,"-",$E94,"-",$F94,"-",M$3),'Raw Data'!$A$2:$D$690331,4,FALSE),"N/A") -> N/A | N94: =_xlfn.IFNA(VLOOKUP(_xlfn.CONCAT($C$2,"-",$E94,"-",$F94,"-",N$3),'Raw Data'!$A$2:$D$690331,4,FALSE),"N/A") -> N/A | O94: =_xlfn.IFNA(VLOOKUP(_xlfn.CONCAT($C$2,"-",$E94,"-",$F94,"-",O$3),'Raw Data'!$A$2:$D$690331,4,FALSE),"N/A") -> N/A | P94: =_xlfn.IFNA(VLOOKUP(_xlfn.CONCAT($C$2,"-",$E94,"-",$F94,"-",P$3),'Raw Data'!$A$2:$D$690331,4,FALSE),"N/A") -> N/A | Q94: =_xlfn.IFNA(VLOOKUP(_xlfn.CONCAT($C$2,"-",$E94,"-",$F94,"-",Q$3),'Raw Data'!$A$2:$D$690331,4,FALSE),"N/A") -> N/A | R94: =_xlfn.IFNA(VLOOKUP(_xlfn.CONCAT($C$2,"-",$E94,"-",$F94,"-",R$3),'Raw Data'!$A$2:$D$690331,4,FALSE),"N/A") -> N/A | S94: =_xlfn.IFNA(VLOOKUP(_xlfn.CONCAT($C$2,"-",$E94,"-",$F94,"-",S$3),'Raw Data'!$A$2:$D$690331,4,FALSE),"N/A") -> N/A
E95: 1 | F95: 4 | H95: =_xlfn.IFNA(VLOOKUP(_xlfn.CONCAT($C$2,"-",$E95,"-",$F95,"-",H$3),'Raw Data'!$A$2:$D$690331,4,FALSE),"N/A") -> N/A | I95: =_xlfn.IFNA(VLOOKUP(_xlfn.CONCAT($C$2,"-",$E95,"-",$F95,"-",I$3),'Raw Data'!$A$2:$D$690331,4,FALSE),"N/A") -> N/A | J95: =_xlfn.IFNA(VLOOKUP(_xlfn.CONCAT($C$2,"-",$E95,"-",$F95,"-",J$3),'Raw Data'!$A$2:$D$690331,4,FALSE),"N/A") -> N/A | K95: =_xlfn.IFNA(VLOOKUP(_xlfn.CONCAT($C$2,"-",$E95,"-",$F95,"-",K$3),'Raw Data'!$A$2:$D$690331,4,FALSE),"N/A") -> N/A | L95: =_xlfn.IFNA(VLOOKUP(_xlfn.CONCAT($C$2,"-",$E95,"-",$F95,"-",L$3),'Raw Data'!$A$2:$D$690331,4,FALSE),"N/A") -> N/A | M95: =_xlfn.IFNA(VLOOKUP(_xlfn.CONCAT($C$2,"-",$E95,"-",$F95,"-",M$3),'Raw Data'!$A$2:$D$690331,4,FALSE),"N/A") -> N/A | N95: =_xlfn.IFNA(VLOOKUP(_xlfn.CONCAT($C$2,"-",$E95,"-",$F95,"-",N$3),'Raw Data'!$A$2:$D$690331,4,FALSE),"N/A") -> N/A | O95: =_xlfn.IFNA(VLOOKUP(_xlfn.CONCAT($C$2,"-",$E95,"-",$F95,"-",O$3),'Raw Data'!$A$2:$D$690331,4,FALSE),"N/A") -> N/A | P95: =_xlfn.IFNA(VLOOKUP(_xlfn.CONCAT($C$2,"-",$E95,"-",$F95,"-",P$3),'Raw Data'!$A$2:$D$690331,4,FALSE),"N/A") -> N/A | Q95: =_xlfn.IFNA(VLOOKUP(_xlfn.CONCAT($C$2,"-",$E95,"-",$F95,"-",Q$3),'Raw Data'!$A$2:$D$690331,4,FALSE),"N/A") -> N/A | R95: =_xlfn.IFNA(VLOOKUP(_xlfn.CONCAT($C$2,"-",$E95,"-",$F95,"-",R$3),'Raw Data'!$A$2:$D$690331,4,FALSE),"N/A") -> N/A | S95: =_xlfn.IFNA(VLOOKUP(_xlfn.CONCAT($C$2,"-",$E95,"-",$F95,"-",S$3),'Raw Data'!$A$2:$D$690331,4,FALSE),"N/A") -> N/A
E96: 2 | F96: 4 | H96: =_xlfn.IFNA(VLOOKUP(_xlfn.CONCAT($C$2,"-",$E96,"-",$F96,"-",H$3),'Raw Data'!$A$2:$D$690331,4,FALSE),"N/A") -> N/A | I96: =_xlfn.IFNA(VLOOKUP(_xlfn.CONCAT($C$2,"-",$E96,"-",$F96,"-",I$3),'Raw Data'!$A$2:$D$690331,4,FALSE),"N/A") -> N/A | J96: =_xlfn.IFNA(VLOOKUP(_xlfn.CONCAT($C$2,"-",$E96,"-",$F96,"-",J$3),'Raw Data'!$A$2:$D$690331,4,FALSE),"N/A") -> N/A | K96: =_xlfn.IFNA(VLOOKUP(_xlfn.CONCAT($C$2,"-",$E96,"-",$F96,"-",K$3),'Raw Data'!$A$2:$D$690331,4,FALSE),"N/A") -> N/A | L96: =_xlfn.IFNA(VLOOKUP(_xlfn.CONCAT($C$2,"-",$E96,"-",$F96,"-",L$3),'Raw Data'!$A$2:$D$690331,4,FALSE),"N/A") -> N/A | M96: =_xlfn.IFNA(VLOOKUP(_xlfn.CONCAT($C$2,"-",$E96,"-",$F96,"-",M$3),'Raw Data'!$A$2:$D$690331,4,FALSE),"N/A") -> N/A | N96: =_xlfn.IFNA(VLOOKUP(_xlfn.CONCAT($C$2,"-",$E96,"-",$F96,"-",N$3),'Raw Data'!$A$2:$D$690331,4,FALSE),"N/A") -> N/A | O96: =_xlfn.IFNA(VLOOKUP(_xlfn.CONCAT($C$2,"-",$E96,"-",$F96,"-",O$3),'Raw Data'!$A$2:$D$690331,4,FALSE),"N/A") -> N/A | P96: =_xlfn.IFNA(VLOOKUP(_xlfn.CONCAT($C$2,"-",$E96,"-",$F96,"-",P$3),'Raw Data'!$A$2:$D$690331,4,FALSE),"N/A") -> N/A | Q96: =_xlfn.IFNA(VLOOKUP(_xlfn.CONCAT($C$2,"-",$E96,"-",$F96,"-",Q$3),'Raw Data'!$A$2:$D$690331,4,FALSE),"N/A") -> N/A | R96: =_xlfn.IFNA(VLOOKUP(_xlfn.CONCAT($C$2,"-",$E96,"-",$F96,"-",R$3),'Raw Data'!$A$2:$D$690331,4,FALSE),"N/A") -> N/A | S96: =_xlfn.IFNA(VLOOKUP(_xlfn.CONCAT($C$2,"-",$E96,"-",$F96,"-",S$3),'Raw Data'!$A$2:$D$690331,4,FALSE),"N/A") -> N/A
E97: 3 | F97: 4 | H97: =_xlfn.IFNA(VLOOKUP(_xlfn.CONCAT($C$2,"-",$E97,"-",$F97,"-",H$3),'Raw Data'!$A$2:$D$690331,4,FALSE),"N/A") -> N/A | I97: =_xlfn.IFNA(VLOOKUP(_xlfn.CONCAT($C$2,"-",$E97,"-",$F97,"-",I$3),'Raw Data'!$A$2:$D$690331,4,FALSE),"N/A") -> N/A | J97: =_xlfn.IFNA(VLOOKUP(_xlfn.CONCAT($C$2,"-",$E97,"-",$F97,"-",J$3),'Raw Data'!$A$2:$D$690331,4,FALSE),"N/A") -> N/A | K97: =_xlfn.IFNA(VLOOKUP(_xlfn.CONCAT($C$2,"-",$E97,"-",$F97,"-",K$3),'Raw Data'!$A$2:$D$690331,4,FALSE),"N/A") -> N/A | L97: =_xlfn.IFNA(VLOOKUP(_xlfn.CONCAT($C$2,"-",$E97,"-",$F97,"-",L$3),'Raw Data'!$A$2:$D$690331,4,FALSE),"N/A") -> N/A | M97: =_xlfn.IFNA(VLOOKUP(_xlfn.CONCAT($C$2,"-",$E97,"-",$F97,"-",M$3),'Raw Data'!$A$2:$D$690331,4,FALSE),"N/A") -> N/A | N97: =_xlfn.IFNA(VLOOKUP(_xlfn.CONCAT($C$2,"-",$E97,"-",$F97,"-",N$3),'Raw Data'!$A$2:$D$690331,4,FALSE),"N/A") -> N/A | O97: =_xlfn.IFNA(VLOOKUP(_xlfn.CONCAT($C$2,"-",$E97,"-",$F97,"-",O$3),'Raw Data'!$A$2:$D$690331,4,FALSE),"N/A") -> N/A | P97: =_xlfn.IFNA(VLOOKUP(_xlfn.CONCAT($C$2,"-",$E97,"-",$F97,"-",P$3),'Raw Data'!$A$2:$D$690331,4,FALSE),"N/A") -> N/A | Q97: =_xlfn.IFNA(VLOOKUP(_xlfn.CONCAT($C$2,"-",$E97,"-",$F97,"-",Q$3),'Raw Data'!$A$2:$D$690331,4,FALSE),"N/A") -> N/A | R97: =_xlfn.IFNA(VLOOKUP(_xlfn.CONCAT($C$2,"-",$E97,"-",$F97,"-",R$3),'Raw Data'!$A$2:$D$690331,4,FALSE),"N/A") -> N/A | S97: =_xlfn.IFNA(VLOOKUP(_xlfn.CONCAT($C$2,"-",$E97,"-",$F97,"-",S$3),'Raw Data'!$A$2:$D$690331,4,FALSE),"N/A") -> N/A
E98: 4 | F98: 4 | H98: =_xlfn.IFNA(VLOOKUP(_xlfn.CONCAT($C$2,"-",$E98,"-",$F98,"-",H$3),'Raw Data'!$A$2:$D$690331,4,FALSE),"N/A") -> N/A | I98: =_xlfn.IFNA(VLOOKUP(_xlfn.CONCAT($C$2,"-",$E98,"-",$F98,"-",I$3),'Raw Data'!$A$2:$D$690331,4,FALSE),"N/A") -> N/A | J98: =_xlfn.IFNA(VLOOKUP(_xlfn.CONCAT($C$2,"-",$E98,"-",$F98,"-",J$3),'Raw Data'!$A$2:$D$690331,4,FALSE),"N/A") -> N/A | K98: =_xlfn.IFNA(VLOOKUP(_xlfn.CONCAT($C$2,"-",$E98,"-",$F98,"-",K$3),'Raw Data'!$A$2:$D$690331,4,FALSE),"N/A") -> N/A | L98: =_xlfn.IFNA(VLOOKUP(_xlfn.CONCAT($C$2,"-",$E98,"-",$F98,"-",L$3),'Raw Data'!$A$2:$D$690331,4,FALSE),"N/A") -> N/A | M98: =_xlfn.IFNA(VLOOKUP(_xlfn.CONCAT($C$2,"-",$E98,"-",$F98,"-",M$3),'Raw Data'!$A$2:$D$690331,4,FALSE),"N/A") -> N/A | N98: =_xlfn.IFNA(VLOOKUP(_xlfn.CONCAT($C$2,"-",$E98,"-",$F98,"-",N$3),'Raw Data'!$A$2:$D$690331,4,FALSE),"N/A") -> N/A | O98: =_xlfn.IFNA(VLOOKUP(_xlfn.CONCAT($C$2,"-",$E98,"-",$F98,"-",O$3),'Raw Data'!$A$2:$D$690331,4,FALSE),"N/A") -> N/A | P98: =_xlfn.IFNA(VLOOKUP(_xlfn.CONCAT($C$2,"-",$E98,"-",$F98,"-",P$3),'Raw Data'!$A$2:$D$690331,4,FALSE),"N/A") -> N/A | Q98: =_xlfn.IFNA(VLOOKUP(_xlfn.CONCAT($C$2,"-",$E98,"-",$F98,"-",Q$3),'Raw Data'!$A$2:$D$690331,4,FALSE),"N/A") -> N/A | R98: =_xlfn.IFNA(VLOOKUP(_xlfn.CONCAT($C$2,"-",$E98,"-",$F98,"-",R$3),'Raw Data'!$A$2:$D$690331,4,FALSE),"N/A") -> N/A | S98: =_xlfn.IFNA(VLOOKUP(_xlfn.CONCAT($C$2,"-",$E98,"-",$F98,"-",S$3),'Raw Data'!$A$2:$D$690331,4,FALSE),"N/A") -> N/A
E99: 5 | F99: 4 | H99: =_xlfn.IFNA(VLOOKUP(_xlfn.CONCAT($C$2,"-",$E99,"-",$F99,"-",H$3),'Raw Data'!$A$2:$D$690331,4,FALSE),"N/A") -> N/A | I99: =_xlfn.IFNA(VLOOKUP(_xlfn.CONCAT($C$2,"-",$E99,"-",$F99,"-",I$3),'Raw Data'!$A$2:$D$690331,4,FALSE),"N/A") -> N/A | J99: =_xlfn.IFNA(VLOOKUP(_xlfn.CONCAT($C$2,"-",$E99,"-",$F99,"-",J$3),'Raw Data'!$A$2:$D$690331,4,FALSE),"N/A") -> N/A | K99: =_xlfn.IFNA(VLOOKUP(_xlfn.CONCAT($C$2,"-",$E99,"-",$F99,"-",K$3),'Raw Data'!$A$2:$D$690331,4,FALSE),"N/A") -> N/A | L99: =_xlfn.IFNA(VLOOKUP(_xlfn.CONCAT($C$2,"-",$E99,"-",$F99,"-",L$3),'Raw Data'!$A$2:$D$690331,4,FALSE),"N/A") -> N/A | M99: =_xlfn.IFNA(VLOOKUP(_xlfn.CONCAT($C$2,"-",$E99,"-",$F99,"-",M$3),'Raw Data'!$A$2:$D$690331,4,FALSE),"N/A") -> N/A | N99: =_xlfn.IFNA(VLOOKUP(_xlfn.CONCAT($C$2,"-",$E99,"-",$F99,"-",N$3),'Raw Data'!$A$2:$D$690331,4,FALSE),"N/A") -> N/A | O99: =_xlfn.IFNA(VLOOKUP(_xlfn.CONCAT($C$2,"-",$E99,"-",$F99,"-",O$3),'Raw Data'!$A$2:$D$690331,4,FALSE),"N/A") -> N/A | P99: =_xlfn.IFNA(VLOOKUP(_xlfn.CONCAT($C$2,"-",$E99,"-",$F99,"-",P$3),'Raw Data'!$A$2:$D$690331,4,FALSE),"N/A") -> N/A | Q99: =_xlfn.IFNA(VLOOKUP(_xlfn.CONCAT($C$2,"-",$E99,"-",$F99,"-",Q$3),'Raw Data'!$A$2:$D$690331,4,FALSE),"N/A") -> N/A | R99: =_xlfn.IFNA(VLOOKUP(_xlfn.CONCAT($C$2,"-",$E99,"-",$F99,"-",R$3),'Raw Data'!$A$2:$D$690331,4,FALSE),"N/A") -> N/A | S99: =_xlfn.IFNA(VLOOKUP(_xlfn.CONCAT($C$2,"-",$E99,"-",$F99,"-",S$3),'Raw Data'!$A$2:$D$690331,4,FALSE),"N/A") -> N/A
E100: 6 | F100: 4 | H100: =_xlfn.IFNA(VLOOKUP(_xlfn.CONCAT($C$2,"-",$E100,"-",$F100,"-",H$3),'Raw Data'!$A$2:$D$690331,4,FALSE),"N/A") -> N/A | I100: =_xlfn.IFNA(VLOOKUP(_xlfn.CONCAT($C$2,"-",$E100,"-",$F100,"-",I$3),'Raw Data'!$A$2:$D$690331,4,FALSE),"N/A") -> N/A | J100: =_xlfn.IFNA(VLOOKUP(_xlfn.CONCAT($C$2,"-",$E100,"-",$F100,"-",J$3),'Raw Data'!$A$2:$D$690331,4,FALSE),"N/A") -> N/A | K100: =_xlfn.IFNA(VLOOKUP(_xlfn.CONCAT($C$2,"-",$E100,"-",$F100,"-",K$3),'Raw Data'!$A$2:$D$690331,4,FALSE),"N/A") -> N/A | L100: =_xlfn.IFNA(VLOOKUP(_xlfn.CONCAT($C$2,"-",$E100,"-",$F100,"-",L$3),'Raw Data'!$A$2:$D$690331,4,FALSE),"N/A") -> N/A | M100: =_xlfn.IFNA(VLOOKUP(_xlfn.CONCAT($C$2,"-",$E100,"-",$F100,"-",M$3),'Raw Data'!$A$2:$D$690331,4,FALSE),"N/A") -> N/A | N100: =_xlfn.IFNA(VLOOKUP(_xlfn.CONCAT($C$2,"-",$E100,"-",$F100,"-",N$3),'Raw Data'!$A$2:$D$690331,4,FALSE),"N/A") -> N/A | O100: =_xlfn.IFNA(VLOOKUP(_xlfn.CONCAT($C$2,"-",$E100,"-",$F100,"-",O$3),'Raw Data'!$A$2:$D$690331,4,FALSE),"N/A") -> N/A | P100: =_xlfn.IFNA(VLOOKUP(_xlfn.CONCAT($C$2,"-",$E100,"-",$F100,"-",P$3),'Raw Data'!$A$2:$D$690331,4,FALSE),"N/A") -> N/A | Q100: =_xlfn.IFNA(VLOOKUP(_xlfn.CONCAT($C$2,"-",$E100,"-",$F100,"-",Q$3),'Raw Data'!$A$2:$D$690331,4,FALSE),"N/A") -> N/A | R100: =_xlfn.IFNA(VLOOKUP(_xlfn.CONCAT($C$2,"-",$E100,"-",$F100,"-",R$3),'Raw Data'!$A$2:$D$690331,4,FALSE),"N/A") -> N/A | S100: =_xlfn.IFNA(VLOOKUP(_xlfn.CONCAT($C$2,"-",$E100,"-",$F100,"-",S$3),'Raw Data'!$A$2:$D$690331,4,FALSE),"N/A") -> N/A
E101: 7 | F101: 4 | H101: =_xlfn.IFNA(VLOOKUP(_xlfn.CONCAT($C$2,"-",$E101,"-",$F101,"-",H$3),'Raw Data'!$A$2:$D$690331,4,FALSE),"N/A") -> N/A | I101: =_xlfn.IFNA(VLOOKUP(_xlfn.CONCAT($C$2,"-",$E101,"-",$F101,"-",I$3),'Raw Data'!$A$2:$D$690331,4,FALSE),"N/A") -> N/A | J101: =_xlfn.IFNA(VLOOKUP(_xlfn.CONCAT($C$2,"-",$E101,"-",$F101,"-",J$3),'Raw Data'!$A$2:$D$690331,4,FALSE),"N/A") -> N/A | K101: =_xlfn.IFNA(VLOOKUP(_xlfn.CONCAT($C$2,"-",$E101,"-",$F101,"-",K$3),'Raw Data'!$A$2:$D$690331,4,FALSE),"N/A") -> N/A | L101: =_xlfn.IFNA(VLOOKUP(_xlfn.CONCAT($C$2,"-",$E101,"-",$F101,"-",L$3),'Raw Data'!$A$2:$D$690331,4,FALSE),"N/A") -> N/A | M101: =_xlfn.IFNA(VLOOKUP(_xlfn.CONCAT($C$2,"-",$E101,"-",$F101,"-",M$3),'Raw Data'!$A$2:$D$690331,4,FALSE),"N/A") -> N/A | N101: =_xlfn.IFNA(VLOOKUP(_xlfn.CONCAT($C$2,"-",$E101,"-",$F101,"-",N$3),'Raw Data'!$A$2:$D$690331,4,FALSE),"N/A") -> N/A | O101: =_xlfn.IFNA(VLOOKUP(_xlfn.CONCAT($C$2,"-",$E101,"-",$F101,"-",O$3),'Raw Data'!$A$2:$D$690331,4,FALSE),"N/A") -> N/A | P101: =_xlfn.IFNA(VLOOKUP(_xlfn.CONCAT($C$2,"-",$E101,"-",$F101,"-",P$3),'Raw Data'!$A$2:$D$690331,4,FALSE),"N/A") -> N/A | Q101: =_xlfn.IFNA(VLOOKUP(_xlfn.CONCAT($C$2,"-",$E101,"-",$F101,"-",Q$3),'Raw Data'!$A$2:$D$690331,4,FALSE),"N/A") -> N/A | R101: =_xlfn.IFNA(VLOOKUP(_xlfn.CONCAT($C$2,"-",$E101,"-",$F101,"-",R$3),'Raw Data'!$A$2:$D$690331,4,FALSE),"N/A") -> N/A | S101: =_xlfn.IFNA(VLOOKUP(_xlfn.CONCAT($C$2,"-",$E101,"-",$F101,"-",S$3),'Raw Data'!$A$2:$D$690331,4,FALSE),"N/A") -> N/A
E102: 8 | F102: 4 | H102: =_xlfn.IFNA(VLOOKUP(_xlfn.CONCAT($C$2,"-",$E102,"-",$F102,"-",H$3),'Raw Data'!$A$2:$D$690331,4,FALSE),"N/A") -> N/A | I102: =_xlfn.IFNA(VLOOKUP(_xlfn.CONCAT($C$2,"-",$E102,"-",$F102,"-",I$3),'Raw Data'!$A$2:$D$690331,4,FALSE),"N/A") -> N/A | J102: =_xlfn.IFNA(VLOOKUP(_xlfn.CONCAT($C$2,"-",$E102,"-",$F102,"-",J$3),'Raw Data'!$A$2:$D$690331,4,FALSE),"N/A") -> N/A | K102: =_xlfn.IFNA(VLOOKUP(_xlfn.CONCAT($C$2,"-",$E102,"-",$F102,"-",K$3),'Raw Data'!$A$2:$D$690331,4,FALSE),"N/A") -> N/A | L102: =_xlfn.IFNA(VLOOKUP(_xlfn.CONCAT($C$2,"-",$E102,"-",$F102,"-",L$3),'Raw Data'!$A$2:$D$690331,4,FALSE),"N/A") -> N/A | M102: =_xlfn.IFNA(VLOOKUP(_xlfn.CONCAT($C$2,"-",$E102,"-",$F102,"-",M$3),'Raw Data'!$A$2:$D$690331,4,FALSE),"N/A") -> N/A | N102: =_xlfn.IFNA(VLOOKUP(_xlfn.CONCAT($C$2,"-",$E102,"-",$F102,"-",N$3),'Raw Data'!$A$2:$D$690331,4,FALSE),"N/A") -> N/A | O102: =_xlfn.IFNA(VLOOKUP(_xlfn.CONCAT($C$2,"-",$E102,"-",$F102,"-",O$3),'Raw Data'!$A$2:$D$690331,4,FALSE),"N/A") -> N/A | P102: =_xlfn.IFNA(VLOOKUP(_xlfn.CONCAT($C$2,"-",$E102,"-",$F102,"-",P$3),'Raw Data'!$A$2:$D$690331,4,FALSE),"N/A") -> N/A | Q102: =_xlfn.IFNA(VLOOKUP(_xlfn.CONCAT($C$2,"-",$E102,"-",$F102,"-",Q$3),'Raw Data'!$A$2:$D$690331,4,FALSE),"N/A") -> N/A | R102: =_xlfn.IFNA(VLOOKUP(_xlfn.CONCAT($C$2,"-",$E102,"-",$F102,"-",R$3),'Raw Data'!$A$2:$D$690331,4,FALSE),"N/A") -> N/A | S102: =_xlfn.IFNA(VLOOKUP(_xlfn.CONCAT($C$2,"-",$E102,"-",$F102,"-",S$3),'Raw Data'!$A$2:$D$690331,4,FALSE),"N/A") -> N/A
E103: 9 | F103: 4 | H103: =_xlfn.IFNA(VLOOKUP(_xlfn.CONCAT($C$2,"-",$E103,"-",$F103,"-",H$3),'Raw Data'!$A$2:$D$690331,4,FALSE),"N/A") -> N/A | I103: =_xlfn.IFNA(VLOOKUP(_xlfn.CONCAT($C$2,"-",$E103,"-",$F103,"-",I$3),'Raw Data'!$A$2:$D$690331,4,FALSE),"N/A") -> N/A | J103: =_xlfn.IFNA(VLOOKUP(_xlfn.CONCAT($C$2,"-",$E103,"-",$F103,"-",J$3),'Raw Data'!$A$2:$D$690331,4,FALSE),"N/A") -> N/A | K103: =_xlfn.IFNA(VLOOKUP(_xlfn.CONCAT($C$2,"-",$E103,"-",$F103,"-",K$3),'Raw Data'!$A$2:$D$690331,4,FALSE),"N/A") -> N/A | L103: =_xlfn.IFNA(VLOOKUP(_xlfn.CONCAT($C$2,"-",$E103,"-",$F103,"-",L$3),'Raw Data'!$A$2:$D$690331,4,FALSE),"N/A") -> N/A | M103: =_xlfn.IFNA(VLOOKUP(_xlfn.CONCAT($C$2,"-",$E103,"-",$F103,"-",M$3),'Raw Data'!$A$2:$D$690331,4,FALSE),"N/A") -> N/A | N103: =_xlfn.IFNA(VLOOKUP(_xlfn.CONCAT($C$2,"-",$E103,"-",$F103,"-",N$3),'Raw Data'!$A$2:$D$690331,4,FALSE),"N/A") -> N/A | O103: =_xlfn.IFNA(VLOOKUP(_xlfn.CONCAT($C$2,"-",$E103,"-",$F103,"-",O$3),'Raw Data'!$A$2:$D$690331,4,FALSE),"N/A") -> N/A | P103: =_xlfn.IFNA(VLOOKUP(_xlfn.CONCAT($C$2,"-",$E103,"-",$F103,"-",P$3),'Raw Data'!$A$2:$D$690331,4,FALSE),"N/A") -> N/A | Q103: =_xlfn.IFNA(VLOOKUP(_xlfn.CONCAT($C$2,"-",$E103,"-",$F103,"-",Q$3),'Raw Data'!$A$2:$D$690331,4,FALSE),"N/A") -> N/A | R103: =_xlfn.IFNA(VLOOKUP(_xlfn.CONCAT($C$2,"-",$E103,"-",$F103,"-",R$3),'Raw Data'!$A$2:$D$690331,4,FALSE),"N/A") -> N/A | S103: =_xlfn.IFNA(VLOOKUP(_xlfn.CONCAT($C$2,"-",$E103,"-",$F103,"-",S$3),'Raw Data'!$A$2:$D$690331,4,FALSE),"N/A") -> N/A
E104: 10 | F104: 4 | H104: =_xlfn.IFNA(VLOOKUP(_xlfn.CONCAT($C$2,"-",$E104,"-",$F104,"-",H$3),'Raw Data'!$A$2:$D$690331,4,FALSE),"N/A") -> N/A | I104: =_xlfn.IFNA(VLOOKUP(_xlfn.CONCAT($C$2,"-",$E104,"-",$F104,"-",I$3),'Raw Data'!$A$2:$D$690331,4,FALSE),"N/A") -> N/A | J104: =_xlfn.IFNA(VLOOKUP(_xlfn.CONCAT($C$2,"-",$E104,"-",$F104,"-",J$3),'Raw Data'!$A$2:$D$690331,4,FALSE),"N/A") -> N/A | K104: =_xlfn.IFNA(VLOOKUP(_xlfn.CONCAT($C$2,"-",$E104,"-",$F104,"-",K$3),'Raw Data'!$A$2:$D$690331,4,FALSE),"N/A") -> N/A | L104: =_xlfn.IFNA(VLOOKUP(_xlfn.CONCAT($C$2,"-",$E104,"-",$F104,"-",L$3),'Raw Data'!$A$2:$D$690331,4,FALSE),"N/A") -> N/A | M104: =_xlfn.IFNA(VLOOKUP(_xlfn.CONCAT($C$2,"-",$E104,"-",$F104,"-",M$3),'Raw Data'!$A$2:$D$690331,4,FALSE),"N/A") -> N/A | N104: =_xlfn.IFNA(VLOOKUP(_xlfn.CONCAT($C$2,"-",$E104,"-",$F104,"-",N$3),'Raw Data'!$A$2:$D$690331,4,FALSE),"N/A") -> N/A | O104: =_xlfn.IFNA(VLOOKUP(_xlfn.CONCAT($C$2,"-",$E104,"-",$F104,"-",O$3),'Raw Data'!$A$2:$D$690331,4,FALSE),"N/A") -> N/A | P104: =_xlfn.IFNA(VLOOKUP(_xlfn.CONCAT($C$2,"-",$E104,"-",$F104,"-",P$3),'Raw Data'!$A$2:$D$690331,4,FALSE),"N/A") -> N/A | Q104: =_xlfn.IFNA(VLOOKUP(_xlfn.CONCAT($C$2,"-",$E104,"-",$F104,"-",Q$3),'Raw Data'!$A$2:$D$690331,4,FALSE),"N/A") -> N/A | R104: =_xlfn.IFNA(VLOOKUP(_xlfn.CONCAT($C$2,"-",$E104,"-",$F104,"-",R$3),'Raw Data'!$A$2:$D$690331,4,FALSE),"N/A") -> N/A | S104: =_xlfn.IFNA(VLOOKUP(_xlfn.CONCAT($C$2,"-",$E104,"-",$F104,"-",S$3),'Raw Data'!$A$2:$D$690331,4,FALSE),"N/A") -> N/A
E105: 11 | F105: 4 | H105: =_xlfn.IFNA(VLOOKUP(_xlfn.CONCAT($C$2,"-",$E105,"-",$F105,"-",H$3),'Raw Data'!$A$2:$D$690331,4,FALSE),"N/A") -> N/A | I105: =_xlfn.IFNA(VLOOKUP(_xlfn.CONCAT($C$2,"-",$E105,"-",$F105,"-",I$3),'Raw Data'!$A$2:$D$690331,4,FALSE),"N/A") -> N/A | J105: =_xlfn.IFNA(VLOOKUP(_xlfn.CONCAT($C$2,"-",$E105,"-",$F105,"-",J$3),'Raw Data'!$A$2:$D$690331,4,FALSE),"N/A") -> N/A | K105: =_xlfn.IFNA(VLOOKUP(_xlfn.CONCAT($C$2,"-",$E105,"-",$F105,"-",K$3),'Raw Data'!$A$2:$D$690331,4,FALSE),"N/A") -> N/A | L105: =_xlfn.IFNA(VLOOKUP(_xlfn.CONCAT($C$2,"-",$E105,"-",$F105,"-",L$3),'Raw Data'!$A$2:$D$690331,4,FALSE),"N/A") -> N/A | M105: =_xlfn.IFNA(VLOOKUP(_xlfn.CONCAT($C$2,"-",$E105,"-",$F105,"-",M$3),'Raw Data'!$A$2:$D$690331,4,FALSE),"N/A") -> N/A | N105: =_xlfn.IFNA(VLOOKUP(_xlfn.CONCAT($C$2,"-",$E105,"-",$F105,"-",N$3),'Raw Data'!$A$2:$D$690331,4,FALSE),"N/A") -> N/A | O105: =_xlfn.IFNA(VLOOKUP(_xlfn.CONCAT($C$2,"-",$E105,"-",$F105,"-",O$3),'Raw Data'!$A$2:$D$690331,4,FALSE),"N/A") -> N/A | P105: =_xlfn.IFNA(VLOOKUP(_xlfn.CONCAT($C$2,"-",$E105,"-",$F105,"-",P$3),'Raw Data'!$A$2:$D$690331,4,FALSE),"N/A") -> N/A | Q105: =_xlfn.IFNA(VLOOKUP(_xlfn.CONCAT($C$2,"-",$E105,"-",$F105,"-",Q$3),'Raw Data'!$A$2:$D$690331,4,FALSE),"N/A") -> N/A | R105: =_xlfn.IFNA(VLOOKUP(_xlfn.CONCAT($C$2,"-",$E105,"-",$F105,"-",R$3),'Raw Data'!$A$2:$D$690331,4,FALSE),"N/A") -> N/A | S105: =_xlfn.IFNA(VLOOKUP(_xlfn.CONCAT($C$2,"-",$E105,"-",$F105,"-",S$3),'Raw Data'!$A$2:$D$690331,4,FALSE),"N/A") -> N/A
E106: 12 | F106: 4 | H106: =_xlfn.IFNA(VLOOKUP(_xlfn.CONCAT($C$2,"-",$E106,"-",$F106,"-",H$3),'Raw Data'!$A$2:$D$690331,4,FALSE),"N/A") -> N/A | I106: =_xlfn.IFNA(VLOOKUP(_xlfn.CONCAT($C$2,"-",$E106,"-",$F106,"-",I$3),'Raw Data'!$A$2:$D$690331,4,FALSE),"N/A") -> N/A | J106: =_xlfn.IFNA(VLOOKUP(_xlfn.CONCAT($C$2,"-",$E106,"-",$F106,"-",J$3),'Raw Data'!$A$2:$D$690331,4,FALSE),"N/A") -> N/A | K106: =_xlfn.IFNA(VLOOKUP(_xlfn.CONCAT($C$2,"-",$E106,"-",$F106,"-",K$3),'Raw Data'!$A$2:$D$690331,4,FALSE),"N/A") -> N/A | L106: =_xlfn.IFNA(VLOOKUP(_xlfn.CONCAT($C$2,"-",$E106,"-",$F106,"-",L$3),'Raw Data'!$A$2:$D$690331,4,FALSE),"N/A") -> N/A | M106: =_xlfn.IFNA(VLOOKUP(_xlfn.CONCAT($C$2,"-",$E106,"-",$F106,"-",M$3),'Raw Data'!$A$2:$D$690331,4,FALSE),"N/A") -> N/A | N106: =_xlfn.IFNA(VLOOKUP(_xlfn.CONCAT($C$2,"-",$E106,"-",$F106,"-",N$3),'Raw Data'!$A$2:$D$690331,4,FALSE),"N/A") -> N/A | O106: =_xlfn.IFNA(VLOOKUP(_xlfn.CONCAT($C$2,"-",$E106,"-",$F106,"-",O$3),'Raw Data'!$A$2:$D$690331,4,FALSE),"N/A") -> N/A | P106: =_xlfn.IFNA(VLOOKUP(_xlfn.CONCAT($C$2,"-",$E106,"-",$F106,"-",P$3),'Raw Data'!$A$2:$D$690331,4,FALSE),"N/A") -> N/A | Q106: =_xlfn.IFNA(VLOOKUP(_xlfn.CONCAT($C$2,"-",$E106,"-",$F106,"-",Q$3),'Raw Data'!$A$2:$D$690331,4,FALSE),"N/A") -> N/A | R106: =_xlfn.IFNA(VLOOKUP(_xlfn.CONCAT($C$2,"-",$E106,"-",$F106,"-",R$3),'Raw Data'!$A$2:$D$690331,4,FALSE),"N/A") -> N/A | S106: =_xlfn.IFNA(VLOOKUP(_xlfn.CONCAT($C$2,"-",$E106,"-",$F106,"-",S$3),'Raw Data'!$A$2:$D$690331,4,FALSE),"N/A") -> N/A
E107: 13 | F107: 4 | H107: =_xlfn.IFNA(VLOOKUP(_xlfn.CONCAT($C$2,"-",$E107,"-",$F107,"-",H$3),'Raw Data'!$A$2:$D$690331,4,FALSE),"N/A") -> N/A | I107: =_xlfn.IFNA(VLOOKUP(_xlfn.CONCAT($C$2,"-",$E107,"-",$F107,"-",I$3),'Raw Data'!$A$2:$D$690331,4,FALSE),"N/A") -> N/A | J107: =_xlfn.IFNA(VLOOKUP(_xlfn.CONCAT($C$2,"-",$E107,"-",$F107,"-",J$3),'Raw Data'!$A$2:$D$690331,4,FALSE),"N/A") -> N/A | K107: =_xlfn.IFNA(VLOOKUP(_xlfn.CONCAT($C$2,"-",$E107,"-",$F107,"-",K$3),'Raw Data'!$A$2:$D$690331,4,FALSE),"N/A") -> N/A | L107: =_xlfn.IFNA(VLOOKUP(_xlfn.CONCAT($C$2,"-",$E107,"-",$F107,"-",L$3),'Raw Data'!$A$2:$D$690331,4,FALSE),"N/A") -> N/A | M107: =_xlfn.IFNA(VLOOKUP(_xlfn.CONCAT($C$2,"-",$E107,"-",$F107,"-",M$3),'Raw Data'!$A$2:$D$690331,4,FALSE),"N/A") -> N/A | N107: =_xlfn.IFNA(VLOOKUP(_xlfn.CONCAT($C$2,"-",$E107,"-",$F107,"-",N$3),'Raw Data'!$A$2:$D$690331,4,FALSE),"N/A") -> N/A | O107: =_xlfn.IFNA(VLOOKUP(_xlfn.CONCAT($C$2,"-",$E107,"-",$F107,"-",O$3),'Raw Data'!$A$2:$D$690331,4,FALSE),"N/A") -> N/A | P107: =_xlfn.IFNA(VLOOKUP(_xlfn.CONCAT($C$2,"-",$E107,"-",$F107,"-",P$3),'Raw Data'!$A$2:$D$690331,4,FALSE),"N/A") -> N/A | Q107: =_xlfn.IFNA(VLOOKUP(_xlfn.CONCAT($C$2,"-",$E107,"-",$F107,"-",Q$3),'Raw Data'!$A$2:$D$690331,4,FALSE),"N/A") -> N/A | R107: =_xlfn.IFNA(VLOOKUP(_xlfn.CONCAT($C$2,"-",$E107,"-",$F107,"-",R$3),'Raw Data'!$A$2:$D$690331,4,FALSE),"N/A") -> N/A | S107: =_xlfn.IFNA(VLOOKUP(_xlfn.CONCAT($C$2,"-",$E107,"-",$F107,"-",S$3),'Raw Data'!$A$2:$D$690331,4,FALSE),"N/A") -> N/A
E108: 14 | F108: 4 | H108: =_xlfn.IFNA(VLOOKUP(_xlfn.CONCAT($C$2,"-",$E108,"-",$F108,"-",H$3),'Raw Data'!$A$2:$D$690331,4,FALSE),"N/A") -> N/A | I108: =_xlfn.IFNA(VLOOKUP(_xlfn.CONCAT($C$2,"-",$E108,"-",$F108,"-",I$3),'Raw Data'!$A$2:$D$690331,4,FALSE),"N/A") -> N/A | J108: =_xlfn.IFNA(VLOOKUP(_xlfn.CONCAT($C$2,"-",$E108,"-",$F108,"-",J$3),'Raw Data'!$A$2:$D$690331,4,FALSE),"N/A") -> N/A | K108: =_xlfn.IFNA(VLOOKUP(_xlfn.CONCAT($C$2,"-",$E108,"-",$F108,"-",K$3),'Raw Data'!$A$2:$D$690331,4,FALSE),"N/A") -> N/A | L108: =_xlfn.IFNA(VLOOKUP(_xlfn.CONCAT($C$2,"-",$E108,"-",$F108,"-",L$3),'Raw Data'!$A$2:$D$690331,4,FALSE),"N/A") -> N/A | M108: =_xlfn.IFNA(VLOOKUP(_xlfn.CONCAT($C$2,"-",$E108,"-",$F108,"-",M$3),'Raw Data'!$A$2:$D$690331,4,FALSE),"N/A") -> N/A | N108: =_xlfn.IFNA(VLOOKUP(_xlfn.CONCAT($C$2,"-",$E108,"-",$F108,"-",N$3),'Raw Data'!$A$2:$D$690331,4,FALSE),"N/A") -> N/A | O108: =_xlfn.IFNA(VLOOKUP(_xlfn.CONCAT($C$2,"-",$E108,"-",$F108,"-",O$3),'Raw Data'!$A$2:$D$690331,4,FALSE),"N/A") -> N/A | P108: =_xlfn.IFNA(VLOOKUP(_xlfn.CONCAT($C$2,"-",$E108,"-",$F108,"-",P$3),'Raw Data'!$A$2:$D$690331,4,FALSE),"N/A") -> N/A | Q108: =_xlfn.IFNA(VLOOKUP(_xlfn.CONCAT($C$2,"-",$E108,"-",$F108,"-",Q$3),'Raw Data'!$A$2:$D$690331,4,FALSE),"N/A") -> N/A | R108: =_xlfn.IFNA(VLOOKUP(_xlfn.CONCAT($C$2,"-",$E108,"-",$F108,"-",R$3),'Raw Data'!$A$2:$D$690331,4,FALSE),"N/A") -> N/A | S108: =_xlfn.IFNA(VLOOKUP(_xlfn.CONCAT($C$2,"-",$E108,"-",$F108,"-",S$3),'Raw Data'!$A$2:$D$690331,4,FALSE),"N/A") -> N/A
E109: 15 | F109: 4 | H109: =_xlfn.IFNA(VLOOKUP(_xlfn.CONCAT($C$2,"-",$E109,"-",$F109,"-",H$3),'Raw Data'!$A$2:$D$690331,4,FALSE),"N/A") -> N/A | I109: =_xlfn.IFNA(VLOOKUP(_xlfn.CONCAT($C$2,"-",$E109,"-",$F109,"-",I$3),'Raw Data'!$A$2:$D$690331,4,FALSE),"N/A") -> N/A | J109: =_xlfn.IFNA(VLOOKUP(_xlfn.CONCAT($C$2,"-",$E109,"-",$F109,"-",J$3),'Raw Data'!$A$2:$D$690331,4,FALSE),"N/A") -> N/A | K109: =_xlfn.IFNA(VLOOKUP(_xlfn.CONCAT($C$2,"-",$E109,"-",$F109,"-",K$3),'Raw Data'!$A$2:$D$690331,4,FALSE),"N/A") -> N/A | L109: =_xlfn.IFNA(VLOOKUP(_xlfn.CONCAT($C$2,"-",$E109,"-",$F109,"-",L$3),'Raw Data'!$A$2:$D$690331,4,FALSE),"N/A") -> N/A | M109: =_xlfn.IFNA(VLOOKUP(_xlfn.CONCAT($C$2,"-",$E109,"-",$F109,"-",M$3),'Raw Data'!$A$2:$D$690331,4,FALSE),"N/A") -> N/A | N109: =_xlfn.IFNA(VLOOKUP(_xlfn.CONCAT($C$2,"-",$E109,"-",$F109,"-",N$3),'Raw Data'!$A$2:$D$690331,4,FALSE),"N/A") -> N/A | O109: =_xlfn.IFNA(VLOOKUP(_xlfn.CONCAT($C$2,"-",$E109,"-",$F109,"-",O$3),'Raw Data'!$A$2:$D$690331,4,FALSE),"N/A") -> N/A | P109: =_xlfn.IFNA(VLOOKUP(_xlfn.CONCAT($C$2,"-",$E109,"-",$F109,"-",P$3),'Raw Data'!$A$2:$D$690331,4,FALSE),"N/A") -> N/A | Q109: =_xlfn.IFNA(VLOOKUP(_xlfn.CONCAT($C$2,"-",$E109,"-",$F109,"-",Q$3),'Raw Data'!$A$2:$D$690331,4,FALSE),"N/A") -> N/A | R109: =_xlfn.IFNA(VLOOKUP(_xlfn.CONCAT($C$2,"-",$E109,"-",$F109,"-",R$3),'Raw Data'!$A$2:$D$690331,4,FALSE),"N/A") -> N/A | S109: =_xlfn.IFNA(VLOOKUP(_xlfn.CONCAT($C$2,"-",$E109,"-",$F109,"-",S$3),'Raw Data'!$A$2:$D$690331,4,FALSE),"N/A") -> N/A
E110: 16 | F110: 4 | H110: =_xlfn.IFNA(VLOOKUP(_xlfn.CONCAT($C$2,"-",$E110,"-",$F110,"-",H$3),'Raw Data'!$A$2:$D$690331,4,FALSE),"N/A") -> N/A | I110: =_xlfn.IFNA(VLOOKUP(_xlfn.CONCAT($C$2,"-",$E110,"-",$F110,"-",I$3),'Raw Data'!$A$2:$D$690331,4,FALSE),"N/A") -> N/A | J110: =_xlfn.IFNA(VLOOKUP(_xlfn.CONCAT($C$2,"-",$E110,"-",$F110,"-",J$3),'Raw Data'!$A$2:$D$690331,4,FALSE),"N/A") -> N/A | K110: =_xlfn.IFNA(VLOOKUP(_xlfn.CONCAT($C$2,"-",$E110,"-",$F110,"-",K$3),'Raw Data'!$A$2:$D$690331,4,FALSE),"N/A") -> N/A | L110: =_xlfn.IFNA(VLOOKUP(_xlfn.CONCAT($C$2,"-",$E110,"-",$F110,"-",L$3),'Raw Data'!$A$2:$D$690331,4,FALSE),"N/A") -> N/A | M110: =_xlfn.IFNA(VLOOKUP(_xlfn.CONCAT($C$2,"-",$E110,"-",$F110,"-",M$3),'Raw Data'!$A$2:$D$690331,4,FALSE),"N/A") -> N/A | N110: =_xlfn.IFNA(VLOOKUP(_xlfn.CONCAT($C$2,"-",$E110,"-",$F110,"-",N$3),'Raw Data'!$A$2:$D$690331,4,FALSE),"N/A") -> N/A | O110: =_xlfn.IFNA(VLOOKUP(_xlfn.CONCAT($C$2,"-",$E110,"-",$F110,"-",O$3),'Raw Data'!$A$2:$D$690331,4,FALSE),"N/A") -> N/A | P110: =_xlfn.IFNA(VLOOKUP(_xlfn.CONCAT($C$2,"-",$E110,"-",$F110,"-",P$3),'Raw Data'!$A$2:$D$690331,4,FALSE),"N/A") -> N/A | Q110: =_xlfn.IFNA(VLOOKUP(_xlfn.CONCAT($C$2,"-",$E110,"-",$F110,"-",Q$3),'Raw Data'!$A$2:$D$690331,4,FALSE),"N/A") -> N/A | R110: =_xlfn.IFNA(VLOOKUP(_xlfn.CONCAT($C$2,"-",$E110,"-",$F110,"-",R$3),'Raw Data'!$A$2:$D$690331,4,FALSE),"N/A") -> N/A | S110: =_xlfn.IFNA(VLOOKUP(_xlfn.CONCAT($C$2,"-",$E110,"-",$F110,"-",S$3),'Raw Data'!$A$2:$D$690331,4,FALSE),"N/A") -> N/A
E111: 17 | F111: 4 | H111: =_xlfn.IFNA(VLOOKUP(_xlfn.CONCAT($C$2,"-",$E111,"-",$F111,"-",H$3),'Raw Data'!$A$2:$D$690331,4,FALSE),"N/A") -> N/A | I111: =_xlfn.IFNA(VLOOKUP(_xlfn.CONCAT($C$2,"-",$E111,"-",$F111,"-",I$3),'Raw Data'!$A$2:$D$690331,4,FALSE),"N/A") -> N/A | J111: =_xlfn.IFNA(VLOOKUP(_xlfn.CONCAT($C$2,"-",$E111,"-",$F111,"-",J$3),'Raw Data'!$A$2:$D$690331,4,FALSE),"N/A") -> N/A | K111: =_xlfn.IFNA(VLOOKUP(_xlfn.CONCAT($C$2,"-",$E111,"-",$F111,"-",K$3),'Raw Data'!$A$2:$D$690331,4,FALSE),"N/A") -> N/A | L111: =_xlfn.IFNA(VLOOKUP(_xlfn.CONCAT($C$2,"-",$E111,"-",$F111,"-",L$3),'Raw Data'!$A$2:$D$690331,4,FALSE),"N/A") -> N/A | M111: =_xlfn.IFNA(VLOOKUP(_xlfn.CONCAT($C$2,"-",$E111,"-",$F111,"-",M$3),'Raw Data'!$A$2:$D$690331,4,FALSE),"N/A") -> N/A | N111: =_xlfn.IFNA(VLOOKUP(_xlfn.CONCAT($C$2,"-",$E111,"-",$F111,"-",N$3),'Raw Data'!$A$2:$D$690331,4,FALSE),"N/A") -> N/A | O111: =_xlfn.IFNA(VLOOKUP(_xlfn.CONCAT($C$2,"-",$E111,"-",$F111,"-",O$3),'Raw Data'!$A$2:$D$690331,4,FALSE),"N/A") -> N/A | P111: =_xlfn.IFNA(VLOOKUP(_xlfn.CONCAT($C$2,"-",$E111,"-",$F111,"-",P$3),'Raw Data'!$A$2:$D$690331,4,FALSE),"N/A") -> N/A | Q111: =_xlfn.IFNA(VLOOKUP(_xlfn.CONCAT($C$2,"-",$E111,"-",$F111,"-",Q$3),'Raw Data'!$A$2:$D$690331,4,FALSE),"N/A") -> N/A | R111: =_xlfn.IFNA(VLOOKUP(_xlfn.CONCAT($C$2,"-",$E111,"-",$F111,"-",R$3),'Raw Data'!$A$2:$D$690331,4,FALSE),"N/A") -> N/A | S111: =_xlfn.IFNA(VLOOKUP(_xlfn.CONCAT($C$2,"-",$E111,"-",$F111,"-",S$3),'Raw Data'!$A$2:$D$690331,4,FALSE),"N/A") -> N/A
E112: 18 | F112: 4 | H112: =_xlfn.IFNA(VLOOKUP(_xlfn.CONCAT($C$2,"-",$E112,"-",$F112,"-",H$3),'Raw Data'!$A$2:$D$690331,4,FALSE),"N/A") -> N/A | I112: =_xlfn.IFNA(VLOOKUP(_xlfn.CONCAT($C$2,"-",$E112,"-",$F112,"-",I$3),'Raw Data'!$A$2:$D$690331,4,FALSE),"N/A") -> N/A | J112: =_xlfn.IFNA(VLOOKUP(_xlfn.CONCAT($C$2,"-",$E112,"-",$F112,"-",J$3),'Raw Data'!$A$2:$D$690331,4,FALSE),"N/A") -> N/A | K112: =_xlfn.IFNA(VLOOKUP(_xlfn.CONCAT($C$2,"-",$E112,"-",$F112,"-",K$3),'Raw Data'!$A$2:$D$690331,4,FALSE),"N/A") -> N/A | L112: =_xlfn.IFNA(VLOOKUP(_xlfn.CONCAT($C$2,"-",$E112,"-",$F112,"-",L$3),'Raw Data'!$A$2:$D$690331,4,FALSE),"N/A") -> N/A | M112: =_xlfn.IFNA(VLOOKUP(_xlfn.CONCAT($C$2,"-",$E112,"-",$F112,"-",M$3),'Raw Data'!$A$2:$D$690331,4,FALSE),"N/A") -> N/A | N112: =_xlfn.IFNA(VLOOKUP(_xlfn.CONCAT($C$2,"-",$E112,"-",$F112,"-",N$3),'Raw Data'!$A$2:$D$690331,4,FALSE),"N/A") -> N/A | O112: =_xlfn.IFNA(VLOOKUP(_xlfn.CONCAT($C$2,"-",$E112,"-",$F112,"-",O$3),'Raw Data'!$A$2:$D$690331,4,FALSE),"N/A") -> N/A | P112: =_xlfn.IFNA(VLOOKUP(_xlfn.CONCAT($C$2,"-",$E112,"-",$F112,"-",P$3),'Raw Data'!$A$2:$D$690331,4,FALSE),"N/A") -> N/A | Q112: =_xlfn.IFNA(VLOOKUP(_xlfn.CONCAT($C$2,"-",$E112,"-",$F112,"-",Q$3),'Raw Data'!$A$2:$D$690331,4,FALSE),"N/A") -> N/A | R112: =_xlfn.IFNA(VLOOKUP(_xlfn.CONCAT($C$2,"-",$E112,"-",$F112,"-",R$3),'Raw Data'!$A$2:$D$690331,4,FALSE),"N/A") -> N/A | S112: =_xlfn.IFNA(VLOOKUP(_xlfn.CONCAT($C$2,"-",$E112,"-",$F112,"-",S$3),'Raw Data'!$A$2:$D$690331,4,FALSE),"N/A") -> N/A
E113: 19 | F113: 4 | H113: =_xlfn.IFNA(VLOOKUP(_xlfn.CONCAT($C$2,"-",$E113,"-",$F113,"-",H$3),'Raw Data'!$A$2:$D$690331,4,FALSE),"N/A") -> N/A | I113: =_xlfn.IFNA(VLOOKUP(_xlfn.CONCAT($C$2,"-",$E113,"-",$F113,"-",I$3),'Raw Data'!$A$2:$D$690331,4,FALSE),"N/A") -> N/A | J113: =_xlfn.IFNA(VLOOKUP(_xlfn.CONCAT($C$2,"-",$E113,"-",$F113,"-",J$3),'Raw Data'!$A$2:$D$690331,4,FALSE),"N/A") -> N/A | K113: =_xlfn.IFNA(VLOOKUP(_xlfn.CONCAT($C$2,"-",$E113,"-",$F113,"-",K$3),'Raw Data'!$A$2:$D$690331,4,FALSE),"N/A") -> N/A | L113: =_xlfn.IFNA(VLOOKUP(_xlfn.CONCAT($C$2,"-",$E113,"-",$F113,"-",L$3),'Raw Data'!$A$2:$D$690331,4,FALSE),"N/A") -> N/A | M113: =_xlfn.IFNA(VLOOKUP(_xlfn.CONCAT($C$2,"-",$E113,"-",$F113,"-",M$3),'Raw Data'!$A$2:$D$690331,4,FALSE),"N/A") -> N/A | N113: =_xlfn.IFNA(VLOOKUP(_xlfn.CONCAT($C$2,"-",$E113,"-",$F113,"-",N$3),'Raw Data'!$A$2:$D$690331,4,FALSE),"N/A") -> N/A | O113: =_xlfn.IFNA(VLOOKUP(_xlfn.CONCAT($C$2,"-",$E113,"-",$F113,"-",O$3),'Raw Data'!$A$2:$D$690331,4,FALSE),"N/A") -> N/A | P113: =_xlfn.IFNA(VLOOKUP(_xlfn.CONCAT($C$2,"-",$E113,"-",$F113,"-",P$3),'Raw Data'!$A$2:$D$690331,4,FALSE),"N/A") -> N/A | Q113: =_xlfn.IFNA(VLOOKUP(_xlfn.CONCAT($C$2,"-",$E113,"-",$F113,"-",Q$3),'Raw Data'!$A$2:$D$690331,4,FALSE),"N/A") -> N/A | R113: =_xlfn.IFNA(VLOOKUP(_xlfn.CONCAT($C$2,"-",$E113,"-",$F113,"-",R$3),'Raw Data'!$A$2:$D$690331,4,FALSE),"N/A") -> N/A | S113: =_xlfn.IFNA(VLOOKUP(_xlfn.CONCAT($C$2,"-",$E113,"-",$F113,"-",S$3),'Raw Data'!$A$2:$D$690331,4,FALSE),"N/A") -> N/A
E114: 20 | F114: 4 | H114: =_xlfn.IFNA(VLOOKUP(_xlfn.CONCAT($C$2,"-",$E114,"-",$F114,"-",H$3),'Raw Data'!$A$2:$D$690331,4,FALSE),"N/A") -> N/A | I114: =_xlfn.IFNA(VLOOKUP(_xlfn.CONCAT($C$2,"-",$E114,"-",$F114,"-",I$3),'Raw Data'!$A$2:$D$690331,4,FALSE),"N/A") -> N/A | J114: =_xlfn.IFNA(VLOOKUP(_xlfn.CONCAT($C$2,"-",$E114,"-",$F114,"-",J$3),'Raw Data'!$A$2:$D$690331,4,FALSE),"N/A") -> N/A | K114: =_xlfn.IFNA(VLOOKUP(_xlfn.CONCAT($C$2,"-",$E114,"-",$F114,"-",K$3),'Raw Data'!$A$2:$D$690331,4,FALSE),"N/A") -> N/A | L114: =_xlfn.IFNA(VLOOKUP(_xlfn.CONCAT($C$2,"-",$E114,"-",$F114,"-",L$3),'Raw Data'!$A$2:$D$690331,4,FALSE),"N/A") -> N/A | M114: =_xlfn.IFNA(VLOOKUP(_xlfn.CONCAT($C$2,"-",$E114,"-",$F114,"-",M$3),'Raw Data'!$A$2:$D$690331,4,FALSE),"N/A") -> N/A | N114: =_xlfn.IFNA(VLOOKUP(_xlfn.CONCAT($C$2,"-",$E114,"-",$F114,"-",N$3),'Raw Data'!$A$2:$D$690331,4,FALSE),"N/A") -> N/A | O114: =_xlfn.IFNA(VLOOKUP(_xlfn.CONCAT($C$2,"-",$E114,"-",$F114,"-",O$3),'Raw Data'!$A$2:$D$690331,4,FALSE),"N/A") -> N/A | P114: =_xlfn.IFNA(VLOOKUP(_xlfn.CONCAT($C$2,"-",$E114,"-",$F114,"-",P$3),'Raw Data'!$A$2:$D$690331,4,FALSE),"N/A") -> N/A | Q114: =_xlfn.IFNA(VLOOKUP(_xlfn.CONCAT($C$2,"-",$E114,"-",$F114,"-",Q$3),'Raw Data'!$A$2:$D$690331,4,FALSE),"N/A") -> N/A | R114: =_xlfn.IFNA(VLOOKUP(_xlfn.CONCAT($C$2,"-",$E114,"-",$F114,"-",R$3),'Raw Data'!$A$2:$D$690331,4,FALSE),"N/A") -> N/A | S114: =_xlfn.IFNA(VLOOKUP(_xlfn.CONCAT($C$2,"-",$E114,"-",$F114,"-",S$3),'Raw Data'!$A$2:$D$690331,4,FALSE),"N/A") -> N/A
E115: 21 | F115: 4 | H115: =_xlfn.IFNA(VLOOKUP(_xlfn.CONCAT($C$2,"-",$E115,"-",$F115,"-",H$3),'Raw Data'!$A$2:$D$690331,4,FALSE),"N/A") -> N/A | I115: =_xlfn.IFNA(VLOOKUP(_xlfn.CONCAT($C$2,"-",$E115,"-",$F115,"-",I$3),'Raw Data'!$A$2:$D$690331,4,FALSE),"N/A") -> N/A | J115: =_xlfn.IFNA(VLOOKUP(_xlfn.CONCAT($C$2,"-",$E115,"-",$F115,"-",J$3),'Raw Data'!$A$2:$D$690331,4,FALSE),"N/A") -> N/A | K115: =_xlfn.IFNA(VLOOKUP(_xlfn.CONCAT($C$2,"-",$E115,"-",$F115,"-",K$3),'Raw Data'!$A$2:$D$690331,4,FALSE),"N/A") -> N/A | L115: =_xlfn.IFNA(VLOOKUP(_xlfn.CONCAT($C$2,"-",$E115,"-",$F115,"-",L$3),'Raw Data'!$A$2:$D$690331,4,FALSE),"N/A") -> N/A | M115: =_xlfn.IFNA(VLOOKUP(_xlfn.CONCAT($C$2,"-",$E115,"-",$F115,"-",M$3),'Raw Data'!$A$2:$D$690331,4,FALSE),"N/A") -> N/A | N115: =_xlfn.IFNA(VLOOKUP(_xlfn.CONCAT($C$2,"-",$E115,"-",$F115,"-",N$3),'Raw Data'!$A$2:$D$690331,4,FALSE),"N/A") -> N/A | O115: =_xlfn.IFNA(VLOOKUP(_xlfn.CONCAT($C$2,"-",$E115,"-",$F115,"-",O$3),'Raw Data'!$A$2:$D$690331,4,FALSE),"N/A") -> N/A | P115: =_xlfn.IFNA(VLOOKUP(_xlfn.CONCAT($C$2,"-",$E115,"-",$F115,"-",P$3),'Raw Data'!$A$2:$D$690331,4,FALSE),"N/A") -> N/A | Q115: =_xlfn.IFNA(VLOOKUP(_xlfn.CONCAT($C$2,"-",$E115,"-",$F115,"-",Q$3),'Raw Data'!$A$2:$D$690331,4,FALSE),"N/A") -> N/A | R115: =_xlfn.IFNA(VLOOKUP(_xlfn.CONCAT($C$2,"-",$E115,"-",$F115,"-",R$3),'Raw Data'!$A$2:$D$690331,4,FALSE),"N/A") -> N/A | S115: =_xlfn.IFNA(VLOOKUP(_xlfn.CONCAT($C$2,"-",$E115,"-",$F115,"-",S$3),'Raw Data'!$A$2:$D$690331,4,FALSE),"N/A") -> N/A
E116: 22 | F116: 4 | H116: =_xlfn.IFNA(VLOOKUP(_xlfn.CONCAT($C$2,"-",$E116,"-",$F116,"-",H$3),'Raw Data'!$A$2:$D$690331,4,FALSE),"N/A") -> N/A | I116: =_xlfn.IFNA(VLOOKUP(_xlfn.CONCAT($C$2,"-",$E116,"-",$F116,"-",I$3),'Raw Data'!$A$2:$D$690331,4,FALSE),"N/A") -> N/A | J116: =_xlfn.IFNA(VLOOKUP(_xlfn.CONCAT($C$2,"-",$E116,"-",$F116,"-",J$3),'Raw Data'!$A$2:$D$690331,4,FALSE),"N/A") -> N/A | K116: =_xlfn.IFNA(VLOOKUP(_xlfn.CONCAT($C$2,"-",$E116,"-",$F116,"-",K$3),'Raw Data'!$A$2:$D$690331,4,FALSE),"N/A") -> N/A | L116: =_xlfn.IFNA(VLOOKUP(_xlfn.CONCAT($C$2,"-",$E116,"-",$F116,"-",L$3),'Raw Data'!$A$2:$D$690331,4,FALSE),"N/A") -> N/A | M116: =_xlfn.IFNA(VLOOKUP(_xlfn.CONCAT($C$2,"-",$E116,"-",$F116,"-",M$3),'Raw Data'!$A$2:$D$690331,4,FALSE),"N/A") -> N/A | N116: =_xlfn.IFNA(VLOOKUP(_xlfn.CONCAT($C$2,"-",$E116,"-",$F116,"-",N$3),'Raw Data'!$A$2:$D$690331,4,FALSE),"N/A") -> N/A | O116: =_xlfn.IFNA(VLOOKUP(_xlfn.CONCAT($C$2,"-",$E116,"-",$F116,"-",O$3),'Raw Data'!$A$2:$D$690331,4,FALSE),"N/A") -> N/A | P116: =_xlfn.IFNA(VLOOKUP(_xlfn.CONCAT($C$2,"-",$E116,"-",$F116,"-",P$3),'Raw Data'!$A$2:$D$690331,4,FALSE),"N/A") -> N/A | Q116: =_xlfn.IFNA(VLOOKUP(_xlfn.CONCAT($C$2,"-",$E116,"-",$F116,"-",Q$3),'Raw Data'!$A$2:$D$690331,4,FALSE),"N/A") -> N/A | R116: =_xlfn.IFNA(VLOOKUP(_xlfn.CONCAT($C$2,"-",$E116,"-",$F116,"-",R$3),'Raw Data'!$A$2:$D$690331,4,FALSE),"N/A") -> N/A | S116: =_xlfn.IFNA(VLOOKUP(_xlfn.CONCAT($C$2,"-",$E116,"-",$F116,"-",S$3),'Raw Data'!$A$2:$D$690331,4,FALSE),"N/A") -> N/A
E117: 23 | F117: 4 | H117: =_xlfn.IFNA(VLOOKUP(_xlfn.CONCAT($C$2,"-",$E117,"-",$F117,"-",H$3),'Raw Data'!$A$2:$D$690331,4,FALSE),"N/A") -> N/A | I117: =_xlfn.IFNA(VLOOKUP(_xlfn.CONCAT($C$2,"-",$E117,"-",$F117,"-",I$3),'Raw Data'!$A$2:$D$690331,4,FALSE),"N/A") -> N/A | J117: =_xlfn.IFNA(VLOOKUP(_xlfn.CONCAT($C$2,"-",$E117,"-",$F117,"-",J$3),'Raw Data'!$A$2:$D$690331,4,FALSE),"N/A") -> N/A | K117: =_xlfn.IFNA(VLOOKUP(_xlfn.CONCAT($C$2,"-",$E117,"-",$F117,"-",K$3),'Raw Data'!$A$2:$D$690331,4,FALSE),"N/A") -> N/A | L117: =_xlfn.IFNA(VLOOKUP(_xlfn.CONCAT($C$2,"-",$E117,"-",$F117,"-",L$3),'Raw Data'!$A$2:$D$690331,4,FALSE),"N/A") -> N/A | M117: =_xlfn.IFNA(VLOOKUP(_xlfn.CONCAT($C$2,"-",$E117,"-",$F117,"-",M$3),'Raw Data'!$A$2:$D$690331,4,FALSE),"N/A") -> N/A | N117: =_xlfn.IFNA(VLOOKUP(_xlfn.CONCAT($C$2,"-",$E117,"-",$F117,"-",N$3),'Raw Data'!$A$2:$D$690331,4,FALSE),"N/A") -> N/A | O117: =_xlfn.IFNA(VLOOKUP(_xlfn.CONCAT($C$2,"-",$E117,"-",$F117,"-",O$3),'Raw Data'!$A$2:$D$690331,4,FALSE),"N/A") -> N/A | P117: =_xlfn.IFNA(VLOOKUP(_xlfn.CONCAT($C$2,"-",$E117,"-",$F117,"-",P$3),'Raw Data'!$A$2:$D$690331,4,FALSE),"N/A") -> N/A | Q117: =_xlfn.IFNA(VLOOKUP(_xlfn.CONCAT($C$2,"-",$E117,"-",$F117,"-",Q$3),'Raw Data'!$A$2:$D$690331,4,FALSE),"N/A") -> N/A | R117: =_xlfn.IFNA(VLOOKUP(_xlfn.CONCAT($C$2,"-",$E117,"-",$F117,"-",R$3),'Raw Data'!$A$2:$D$690331,4,FALSE),"N/A") -> N/A | S117: =_xlfn.IFNA(VLOOKUP(_xlfn.CONCAT($C$2,"-",$E117,"-",$F117,"-",S$3),'Raw Data'!$A$2:$D$690331,4,FALSE),"N/A") -> N/A
E118: 24 | F118: 4 | H118: =_xlfn.IFNA(VLOOKUP(_xlfn.CONCAT($C$2,"-",$E118,"-",$F118,"-",H$3),'Raw Data'!$A$2:$D$690331,4,FALSE),"N/A") -> N/A | I118: =_xlfn.IFNA(VLOOKUP(_xlfn.CONCAT($C$2,"-",$E118,"-",$F118,"-",I$3),'Raw Data'!$A$2:$D$690331,4,FALSE),"N/A") -> N/A | J118: =_xlfn.IFNA(VLOOKUP(_xlfn.CONCAT($C$2,"-",$E118,"-",$F118,"-",J$3),'Raw Data'!$A$2:$D$690331,4,FALSE),"N/A") -> N/A | K118: =_xlfn.IFNA(VLOOKUP(_xlfn.CONCAT($C$2,"-",$E118,"-",$F118,"-",K$3),'Raw Data'!$A$2:$D$690331,4,FALSE),"N/A") -> N/A | L118: =_xlfn.IFNA(VLOOKUP(_xlfn.CONCAT($C$2,"-",$E118,"-",$F118,"-",L$3),'Raw Data'!$A$2:$D$690331,4,FALSE),"N/A") -> N/A | M118: =_xlfn.IFNA(VLOOKUP(_xlfn.CONCAT($C$2,"-",$E118,"-",$F118,"-",M$3),'Raw Data'!$A$2:$D$690331,4,FALSE),"N/A") -> N/A | N118: =_xlfn.IFNA(VLOOKUP(_xlfn.CONCAT($C$2,"-",$E118,"-",$F118,"-",N$3),'Raw Data'!$A$2:$D$690331,4,FALSE),"N/A") -> N/A | O118: =_xlfn.IFNA(VLOOKUP(_xlfn.CONCAT($C$2,"-",$E118,"-",$F118,"-",O$3),'Raw Data'!$A$2:$D$690331,4,FALSE),"N/A") -> N/A | P118: =_xlfn.IFNA(VLOOKUP(_xlfn.CONCAT($C$2,"-",$E118,"-",$F118,"-",P$3),'Raw Data'!$A$2:$D$690331,4,FALSE),"N/A") -> N/A | Q118: =_xlfn.IFNA(VLOOKUP(_xlfn.CONCAT($C$2,"-",$E118,"-",$F118,"-",Q$3),'Raw Data'!$A$2:$D$690331,4,FALSE),"N/A") -> N/A | R118: =_xlfn.IFNA(VLOOKUP(_xlfn.CONCAT($C$2,"-",$E118,"-",$F118,"-",R$3),'Raw Data'!$A$2:$D$690331,4,FALSE),"N/A") -> N/A | S118: =_xlfn.IFNA(VLOOKUP(_xlfn.CONCAT($C$2,"-",$E118,"-",$F118,"-",S$3),'Raw Data'!$A$2:$D$690331,4,FALSE),"N/A") -> N/A
E119: 25 | F119: 4 | H119: =_xlfn.IFNA(VLOOKUP(_xlfn.CONCAT($C$2,"-",$E119,"-",$F119,"-",H$3),'Raw Data'!$A$2:$D$690331,4,FALSE),"N/A") -> N/A | I119: =_xlfn.IFNA(VLOOKUP(_xlfn.CONCAT($C$2,"-",$E119,"-",$F119,"-",I$3),'Raw Data'!$A$2:$D$690331,4,FALSE),"N/A") -> N/A | J119: =_xlfn.IFNA(VLOOKUP(_xlfn.CONCAT($C$2,"-",$E119,"-",$F119,"-",J$3),'Raw Data'!$A$2:$D$690331,4,FALSE),"N/A") -> N/A | K119: =_xlfn.IFNA(VLOOKUP(_xlfn.CONCAT($C$2,"-",$E119,"-",$F119,"-",K$3),'Raw Data'!$A$2:$D$690331,4,FALSE),"N/A") -> N/A | L119: =_xlfn.IFNA(VLOOKUP(_xlfn.CONCAT($C$2,"-",$E119,"-",$F119,"-",L$3),'Raw Data'!$A$2:$D$690331,4,FALSE),"N/A") -> N/A | M119: =_xlfn.IFNA(VLOOKUP(_xlfn.CONCAT($C$2,"-",$E119,"-",$F119,"-",M$3),'Raw Data'!$A$2:$D$690331,4,FALSE),"N/A") -> N/A | N119: =_xlfn.IFNA(VLOOKUP(_xlfn.CONCAT($C$2,"-",$E119,"-",$F119,"-",N$3),'Raw Data'!$A$2:$D$690331,4,FALSE),"N/A") -> N/A | O119: =_xlfn.IFNA(VLOOKUP(_xlfn.CONCAT($C$2,"-",$E119,"-",$F119,"-",O$3),'Raw Data'!$A$2:$D$690331,4,FALSE),"N/A") -> N/A | P119: =_xlfn.IFNA(VLOOKUP(_xlfn.CONCAT($C$2,"-",$E119,"-",$F119,"-",P$3),'Raw Data'!$A$2:$D$690331,4,FALSE),"N/A") -> N/A | Q119: =_xlfn.IFNA(VLOOKUP(_xlfn.CONCAT($C$2,"-",$E119,"-",$F119,"-",Q$3),'Raw Data'!$A$2:$D$690331,4,FALSE),"N/A") -> N/A | R119: =_xlfn.IFNA(VLOOKUP(_xlfn.CONCAT($C$2,"-",$E119,"-",$F119,"-",R$3),'Raw Data'!$A$2:$D$690331,4,FALSE),"N/A") -> N/A | S119: =_xlfn.IFNA(VLOOKUP(_xlfn.CONCAT($C$2,"-",$E119,"-",$F119,"-",S$3),'Raw Data'!$A$2:$D$690331,4,FALSE),"N/A") -> N/A
E120: 26 | F120: 4 | H120: =_xlfn.IFNA(VLOOKUP(_xlfn.CONCAT($C$2,"-",$E120,"-",$F120,"-",H$3),'Raw Data'!$A$2:$D$690331,4,FALSE),"N/A") -> N/A | I120: =_xlfn.IFNA(VLOOKUP(_xlfn.CONCAT($C$2,"-",$E120,"-",$F120,"-",I$3),'Raw Data'!$A$2:$D$690331,4,FALSE),"N/A") -> N/A | J120: =_xlfn.IFNA(VLOOKUP(_xlfn.CONCAT($C$2,"-",$E120,"-",$F120,"-",J$3),'Raw Data'!$A$2:$D$690331,4,FALSE),"N/A") -> N/A | K120: =_xlfn.IFNA(VLOOKUP(_xlfn.CONCAT($C$2,"-",$E120,"-",$F120,"-",K$3),'Raw Data'!$A$2:$D$690331,4,FALSE),"N/A") -> N/A | L120: =_xlfn.IFNA(VLOOKUP(_xlfn.CONCAT($C$2,"-",$E120,"-",$F120,"-",L$3),'Raw Data'!$A$2:$D$690331,4,FALSE),"N/A") -> N/A | M120: =_xlfn.IFNA(VLOOKUP(_xlfn.CONCAT($C$2,"-",$E120,"-",$F120,"-",M$3),'Raw Data'!$A$2:$D$690331,4,FALSE),"N/A") -> N/A | N120: =_xlfn.IFNA(VLOOKUP(_xlfn.CONCAT($C$2,"-",$E120,"-",$F120,"-",N$3),'Raw Data'!$A$2:$D$690331,4,FALSE),"N/A") -> N/A | O120: =_xlfn.IFNA(VLOOKUP(_xlfn.CONCAT($C$2,"-",$E120,"-",$F120,"-",O$3),'Raw Data'!$A$2:$D$690331,4,FALSE),"N/A") -> N/A | P120: =_xlfn.IFNA(VLOOKUP(_xlfn.CONCAT($C$2,"-",$E120,"-",$F120,"-",P$3),'Raw Data'!$A$2:$D$690331,4,FALSE),"N/A") -> N/A | Q120: =_xlfn.IFNA(VLOOKUP(_xlfn.CONCAT($C$2,"-",$E120,"-",$F120,"-",Q$3),'Raw Data'!$A$2:$D$690331,4,FALSE),"N/A") -> N/A | R120: =_xlfn.IFNA(VLOOKUP(_xlfn.CONCAT($C$2,"-",$E120,"-",$F120,"-",R$3),'Raw Data'!$A$2:$D$690331,4,FALSE),"N/A") -> N/A | S120: =_xlfn.IFNA(VLOOKUP(_xlfn.CONCAT($C$2,"-",$E120,"-",$F120,"-",S$3),'Raw Data'!$A$2:$D$690331,4,FALSE),"N/A") -> N/A
E121: 27 | F121: 4 | H121: =_xlfn.IFNA(VLOOKUP(_xlfn.CONCAT($C$2,"-",$E121,"-",$F121,"-",H$3),'Raw Data'!$A$2:$D$690331,4,FALSE),"N/A") -> N/A | I121: =_xlfn.IFNA(VLOOKUP(_xlfn.CONCAT($C$2,"-",$E121,"-",$F121,"-",I$3),'Raw Data'!$A$2:$D$690331,4,FALSE),"N/A") -> N/A | J121: =_xlfn.IFNA(VLOOKUP(_xlfn.CONCAT($C$2,"-",$E121,"-",$F121,"-",J$3),'Raw Data'!$A$2:$D$690331,4,FALSE),"N/A") -> N/A | K121: =_xlfn.IFNA(VLOOKUP(_xlfn.CONCAT($C$2,"-",$E121,"-",$F121,"-",K$3),'Raw Data'!$A$2:$D$690331,4,FALSE),"N/A") -> N/A | L121: =_xlfn.IFNA(VLOOKUP(_xlfn.CONCAT($C$2,"-",$E121,"-",$F121,"-",L$3),'Raw Data'!$A$2:$D$690331,4,FALSE),"N/A") -> N/A | M121: =_xlfn.IFNA(VLOOKUP(_xlfn.CONCAT($C$2,"-",$E121,"-",$F121,"-",M$3),'Raw Data'!$A$2:$D$690331,4,FALSE),"N/A") -> N/A | N121: =_xlfn.IFNA(VLOOKUP(_xlfn.CONCAT($C$2,"-",$E121,"-",$F121,"-",N$3),'Raw Data'!$A$2:$D$690331,4,FALSE),"N/A") -> N/A | O121: =_xlfn.IFNA(VLOOKUP(_xlfn.CONCAT($C$2,"-",$E121,"-",$F121,"-",O$3),'Raw Data'!$A$2:$D$690331,4,FALSE),"N/A") -> N/A | P121: =_xlfn.IFNA(VLOOKUP(_xlfn.CONCAT($C$2,"-",$E121,"-",$F121,"-",P$3),'Raw Data'!$A$2:$D$690331,4,FALSE),"N/A") -> N/A | Q121: =_xlfn.IFNA(VLOOKUP(_xlfn.CONCAT($C$2,"-",$E121,"-",$F121,"-",Q$3),'Raw Data'!$A$2:$D$690331,4,FALSE),"N/A") -> N/A | R121: =_xlfn.IFNA(VLOOKUP(_xlfn.CONCAT($C$2,"-",$E121,"-",$F121,"-",R$3),'Raw Data'!$A$2:$D$690331,4,FALSE),"N/A") -> N/A | S121: =_xlfn.IFNA(VLOOKUP(_xlfn.CONCAT($C$2,"-",$E121,"-",$F121,"-",S$3),'Raw Data'!$A$2:$D$690331,4,FALSE),"N/A") -> N/A
E122: 28 | F122: 4 | H122: =_xlfn.IFNA(VLOOKUP(_xlfn.CONCAT($C$2,"-",$E122,"-",$F122,"-",H$3),'Raw Data'!$A$2:$D$690331,4,FALSE),"N/A") -> N/A | I122: =_xlfn.IFNA(VLOOKUP(_xlfn.CONCAT($C$2,"-",$E122,"-",$F122,"-",I$3),'Raw Data'!$A$2:$D$690331,4,FALSE),"N/A") -> N/A | J122: =_xlfn.IFNA(VLOOKUP(_xlfn.CONCAT($C$2,"-",$E122,"-",$F122,"-",J$3),'Raw Data'!$A$2:$D$690331,4,FALSE),"N/A") -> N/A | K122: =_xlfn.IFNA(VLOOKUP(_xlfn.CONCAT($C$2,"-",$E122,"-",$F122,"-",K$3),'Raw Data'!$A$2:$D$690331,4,FALSE),"N/A") -> N/A | L122: =_xlfn.IFNA(VLOOKUP(_xlfn.CONCAT($C$2,"-",$E122,"-",$F122,"-",L$3),'Raw Data'!$A$2:$D$690331,4,FALSE),"N/A") -> N/A | M122: =_xlfn.IFNA(VLOOKUP(_xlfn.CONCAT($C$2,"-",$E122,"-",$F122,"-",M$3),'Raw Data'!$A$2:$D$690331,4,FALSE),"N/A") -> N/A | N122: =_xlfn.IFNA(VLOOKUP(_xlfn.CONCAT($C$2,"-",$E122,"-",$F122,"-",N$3),'Raw Data'!$A$2:$D$690331,4,FALSE),"N/A") -> N/A | O122: =_xlfn.IFNA(VLOOKUP(_xlfn.CONCAT($C$2,"-",$E122,"-",$F122,"-",O$3),'Raw Data'!$A$2:$D$690331,4,FALSE),"N/A") -> N/A | P122: =_xlfn.IFNA(VLOOKUP(_xlfn.CONCAT($C$2,"-",$E122,"-",$F122,"-",P$3),'Raw Data'!$A$2:$D$690331,4,FALSE),"N/A") -> N/A | Q122: =_xlfn.IFNA(VLOOKUP(_xlfn.CONCAT($C$2,"-",$E122,"-",$F122,"-",Q$3),'Raw Data'!$A$2:$D$690331,4,FALSE),"N/A") -> N/A | R122: =_xlfn.IFNA(VLOOKUP(_xlfn.CONCAT($C$2,"-",$E122,"-",$F122,"-",R$3),'Raw Data'!$A$2:$D$690331,4,FALSE),"N/A") -> N/A | S122: =_xlfn.IFNA(VLOOKUP(_xlfn.CONCAT($C$2,"-",$E122,"-",$F122,"-",S$3),'Raw Data'!$A$2:$D$690331,4,FALSE),"N/A") -> N/A
E123: 29 | F123: 4 | H123: =_xlfn.IFNA(VLOOKUP(_xlfn.CONCAT($C$2,"-",$E123,"-",$F123,"-",H$3),'Raw Data'!$A$2:$D$690331,4,FALSE),"N/A") -> N/A | I123: =_xlfn.IFNA(VLOOKUP(_xlfn.CONCAT($C$2,"-",$E123,"-",$F123,"-",I$3),'Raw Data'!$A$2:$D$690331,4,FALSE),"N/A") -> N/A | J123: =_xlfn.IFNA(VLOOKUP(_xlfn.CONCAT($C$2,"-",$E123,"-",$F123,"-",J$3),'Raw Data'!$A$2:$D$690331,4,FALSE),"N/A") -> N/A | K123: =_xlfn.IFNA(VLOOKUP(_xlfn.CONCAT($C$2,"-",$E123,"-",$F123,"-",K$3),'Raw Data'!$A$2:$D$690331,4,FALSE),"N/A") -> N/A | L123: =_xlfn.IFNA(VLOOKUP(_xlfn.CONCAT($C$2,"-",$E123,"-",$F123,"-",L$3),'Raw Data'!$A$2:$D$690331,4,FALSE),"N/A") -> N/A | M123: =_xlfn.IFNA(VLOOKUP(_xlfn.CONCAT($C$2,"-",$E123,"-",$F123,"-",M$3),'Raw Data'!$A$2:$D$690331,4,FALSE),"N/A") -> N/A | N123: =_xlfn.IFNA(VLOOKUP(_xlfn.CONCAT($C$2,"-",$E123,"-",$F123,"-",N$3),'Raw Data'!$A$2:$D$690331,4,FALSE),"N/A") -> N/A | O123: =_xlfn.IFNA(VLOOKUP(_xlfn.CONCAT($C$2,"-",$E123,"-",$F123,"-",O$3),'Raw Data'!$A$2:$D$690331,4,FALSE),"N/A") -> N/A | P123: =_xlfn.IFNA(VLOOKUP(_xlfn.CONCAT($C$2,"-",$E123,"-",$F123,"-",P$3),'Raw Data'!$A$2:$D$690331,4,FALSE),"N/A") -> N/A | Q123: =_xlfn.IFNA(VLOOKUP(_xlfn.CONCAT($C$2,"-",$E123,"-",$F123,"-",Q$3),'Raw Data'!$A$2:$D$690331,4,FALSE),"N/A") -> N/A | R123: =_xlfn.IFNA(VLOOKUP(_xlfn.CONCAT($C$2,"-",$E123,"-",$F123,"-",R$3),'Raw Data'!$A$2:$D$690331,4,FALSE),"N/A") -> N/A | S123: =_xlfn.IFNA(VLOOKUP(_xlfn.CONCAT($C$2,"-",$E123,"-",$F123,"-",S$3),'Raw Data'!$A$2:$D$690331,4,FALSE),"N/A") -> N/A
E124: 30 | F124: 4 | H124: =_xlfn.IFNA(VLOOKUP(_xlfn.CONCAT($C$2,"-",$E124,"-",$F124,"-",H$3),'Raw Data'!$A$2:$D$690331,4,FALSE),"N/A") -> N/A | I124: =_xlfn.IFNA(VLOOKUP(_xlfn.CONCAT($C$2,"-",$E124,"-",$F124,"-",I$3),'Raw Data'!$A$2:$D$690331,4,FALSE),"N/A") -> N/A | J124: =_xlfn.IFNA(VLOOKUP(_xlfn.CONCAT($C$2,"-",$E124,"-",$F124,"-",J$3),'Raw Data'!$A$2:$D$690331,4,FALSE),"N/A") -> N/A | K124: =_xlfn.IFNA(VLOOKUP(_xlfn.CONCAT($C$2,"-",$E124,"-",$F124,"-",K$3),'Raw Data'!$A$2:$D$690331,4,FALSE),"N/A") -> N/A | L124: =_xlfn.IFNA(VLOOKUP(_xlfn.CONCAT($C$2,"-",$E124,"-",$F124,"-",L$3),'Raw Data'!$A$2:$D$690331,4,FALSE),"N/A") -> N/A | M124: =_xlfn.IFNA(VLOOKUP(_xlfn.CONCAT($C$2,"-",$E124,"-",$F124,"-",M$3),'Raw Data'!$A$2:$D$690331,4,FALSE),"N/A") -> N/A | N124: =_xlfn.IFNA(VLOOKUP(_xlfn.CONCAT($C$2,"-",$E124,"-",$F124,"-",N$3),'Raw Data'!$A$2:$D$690331,4,FALSE),"N/A") -> N/A | O124: =_xlfn.IFNA(VLOOKUP(_xlfn.CONCAT($C$2,"-",$E124,"-",$F124,"-",O$3),'Raw Data'!$A$2:$D$690331,4,FALSE),"N/A") -> N/A | P124: =_xlfn.IFNA(VLOOKUP(_xlfn.CONCAT($C$2,"-",$E124,"-",$F124,"-",P$3),'Raw Data'!$A$2:$D$690331,4,FALSE),"N/A") -> N/A | Q124: =_xlfn.IFNA(VLOOKUP(_xlfn.CONCAT($C$2,"-",$E124,"-",$F124,"-",Q$3),'Raw Data'!$A$2:$D$690331,4,FALSE),"N/A") -> N/A | R124: =_xlfn.IFNA(VLOOKUP(_xlfn.CONCAT($C$2,"-",$E124,"-",$F124,"-",R$3),'Raw Data'!$A$2:$D$690331,4,FALSE),"N/A") -> N/A | S124: =_xlfn.IFNA(VLOOKUP(_xlfn.CONCAT($C$2,"-",$E124,"-",$F124,"-",S$3),'Raw Data'!$A$2:$D$690331,4,FALSE),"N/A") -> N/A
E125: 1 | F125: 5 | H125: =_xlfn.IFNA(VLOOKUP(_xlfn.CONCAT($C$2,"-",$E125,"-",$F125,"-",H$3),'Raw Data'!$A$2:$D$690331,4,FALSE),"N/A") -> N/A | I125: =_xlfn.IFNA(VLOOKUP(_xlfn.CONCAT($C$2,"-",$E125,"-",$F125,"-",I$3),'Raw Data'!$A$2:$D$690331,4,FALSE),"N/A") -> N/A | J125: =_xlfn.IFNA(VLOOKUP(_xlfn.CONCAT($C$2,"-",$E125,"-",$F125,"-",J$3),'Raw Data'!$A$2:$D$690331,4,FALSE),"N/A") -> N/A | K125: =_xlfn.IFNA(VLOOKUP(_xlfn.CONCAT($C$2,"-",$E125,"-",$F125,"-",K$3),'Raw Data'!$A$2:$D$690331,4,FALSE),"N/A") -> N/A | L125: =_xlfn.IFNA(VLOOKUP(_xlfn.CONCAT($C$2,"-",$E125,"-",$F125,"-",L$3),'Raw Data'!$A$2:$D$690331,4,FALSE),"N/A") -> N/A | M125: =_xlfn.IFNA(VLOOKUP(_xlfn.CONCAT($C$2,"-",$E125,"-",$F125,"-",M$3),'Raw Data'!$A$2:$D$690331,4,FALSE),"N/A") -> N/A | N125: =_xlfn.IFNA(VLOOKUP(_xlfn.CONCAT($C$2,"-",$E125,"-",$F125,"-",N$3),'Raw Data'!$A$2:$D$690331,4,FALSE),"N/A") -> N/A | O125: =_xlfn.IFNA(VLOOKUP(_xlfn.CONCAT($C$2,"-",$E125,"-",$F125,"-",O$3),'Raw Data'!$A$2:$D$690331,4,FALSE),"N/A") -> N/A | P125: =_xlfn.IFNA(VLOOKUP(_xlfn.CONCAT($C$2,"-",$E125,"-",$F125,"-",P$3),'Raw Data'!$A$2:$D$690331,4,FALSE),"N/A") -> N/A | Q125: =_xlfn.IFNA(VLOOKUP(_xlfn.CONCAT($C$2,"-",$E125,"-",$F125,"-",Q$3),'Raw Data'!$A$2:$D$690331,4,FALSE),"N/A") -> N/A | R125: =_xlfn.IFNA(VLOOKUP(_xlfn.CONCAT($C$2,"-",$E125,"-",$F125,"-",R$3),'Raw Data'!$A$2:$D$690331,4,FALSE),"N/A") -> N/A | S125: =_xlfn.IFNA(VLOOKUP(_xlfn.CONCAT($C$2,"-",$E125,"-",$F125,"-",S$3),'Raw Data'!$A$2:$D$690331,4,FALSE),"N/A") -> N/A
E126: 2 | F126: 5 | H126: =_xlfn.IFNA(VLOOKUP(_xlfn.CONCAT($C$2,"-",$E126,"-",$F126,"-",H$3),'Raw Data'!$A$2:$D$690331,4,FALSE),"N/A") -> N/A | I126: =_xlfn.IFNA(VLOOKUP(_xlfn.CONCAT($C$2,"-",$E126,"-",$F126,"-",I$3),'Raw Data'!$A$2:$D$690331,4,FALSE),"N/A") -> N/A | J126: =_xlfn.IFNA(VLOOKUP(_xlfn.CONCAT($C$2,"-",$E126,"-",$F126,"-",J$3),'Raw Data'!$A$2:$D$690331,4,FALSE),"N/A") -> N/A | K126: =_xlfn.IFNA(VLOOKUP(_xlfn.CONCAT($C$2,"-",$E126,"-",$F126,"-",K$3),'Raw Data'!$A$2:$D$690331,4,FALSE),"N/A") -> N/A | L126: =_xlfn.IFNA(VLOOKUP(_xlfn.CONCAT($C$2,"-",$E126,"-",$F126,"-",L$3),'Raw Data'!$A$2:$D$690331,4,FALSE),"N/A") -> N/A | M126: =_xlfn.IFNA(VLOOKUP(_xlfn.CONCAT($C$2,"-",$E126,"-",$F126,"-",M$3),'Raw Data'!$A$2:$D$690331,4,FALSE),"N/A") -> N/A | N126: =_xlfn.IFNA(VLOOKUP(_xlfn.CONCAT($C$2,"-",$E126,"-",$F126,"-",N$3),'Raw Data'!$A$2:$D$690331,4,FALSE),"N/A") -> N/A | O126: =_xlfn.IFNA(VLOOKUP(_xlfn.CONCAT($C$2,"-",$E126,"-",$F126,"-",O$3),'Raw Data'!$A$2:$D$690331,4,FALSE),"N/A") -> N/A | P126: =_xlfn.IFNA(VLOOKUP(_xlfn.CONCAT($C$2,"-",$E126,"-",$F126,"-",P$3),'Raw Data'!$A$2:$D$690331,4,FALSE),"N/A") -> N/A | Q126: =_xlfn.IFNA(VLOOKUP(_xlfn.CONCAT($C$2,"-",$E126,"-",$F126,"-",Q$3),'Raw Data'!$A$2:$D$690331,4,FALSE),"N/A") -> N/A | R126: =_xlfn.IFNA(VLOOKUP(_xlfn.CONCAT($C$2,"-",$E126,"-",$F126,"-",R$3),'Raw Data'!$A$2:$D$690331,4,FALSE),"N/A") -> N/A | S126: =_xlfn.IFNA(VLOOKUP(_xlfn.CONCAT($C$2,"-",$E126,"-",$F126,"-",S$3),'Raw Data'!$A$2:$D$690331,4,FALSE),"N/A") -> N/A
E127: 3 | F127: 5 | H127: =_xlfn.IFNA(VLOOKUP(_xlfn.CONCAT($C$2,"-",$E127,"-",$F127,"-",H$3),'Raw Data'!$A$2:$D$690331,4,FALSE),"N/A") -> N/A | I127: =_xlfn.IFNA(VLOOKUP(_xlfn.CONCAT($C$2,"-",$E127,"-",$F127,"-",I$3),'Raw Data'!$A$2:$D$690331,4,FALSE),"N/A") -> N/A | J127: =_xlfn.IFNA(VLOOKUP(_xlfn.CONCAT($C$2,"-",$E127,"-",$F127,"-",J$3),'Raw Data'!$A$2:$D$690331,4,FALSE),"N/A") -> N/A | K127: =_xlfn.IFNA(VLOOKUP(_xlfn.CONCAT($C$2,"-",$E127,"-",$F127,"-",K$3),'Raw Data'!$A$2:$D$690331,4,FALSE),"N/A") -> N/A | L127: =_xlfn.IFNA(VLOOKUP(_xlfn.CONCAT($C$2,"-",$E127,"-",$F127,"-",L$3),'Raw Data'!$A$2:$D$690331,4,FALSE),"N/A") -> N/A | M127: =_xlfn.IFNA(VLOOKUP(_xlfn.CONCAT($C$2,"-",$E127,"-",$F127,"-",M$3),'Raw Data'!$A$2:$D$690331,4,FALSE),"N/A") -> N/A | N127: =_xlfn.IFNA(VLOOKUP(_xlfn.CONCAT($C$2,"-",$E127,"-",$F127,"-",N$3),'Raw Data'!$A$2:$D$690331,4,FALSE),"N/A") -> N/A | O127: =_xlfn.IFNA(VLOOKUP(_xlfn.CONCAT($C$2,"-",$E127,"-",$F127,"-",O$3),'Raw Data'!$A$2:$D$690331,4,FALSE),"N/A") -> N/A | P127: =_xlfn.IFNA(VLOOKUP(_xlfn.CONCAT($C$2,"-",$E127,"-",$F127,"-",P$3),'Raw Data'!$A$2:$D$690331,4,FALSE),"N/A") -> N/A | Q127: =_xlfn.IFNA(VLOOKUP(_xlfn.CONCAT($C$2,"-",$E127,"-",$F127,"-",Q$3),'Raw Data'!$A$2:$D$690331,4,FALSE),"N/A") -> N/A | R127: =_xlfn.IFNA(VLOOKUP(_xlfn.CONCAT($C$2,"-",$E127,"-",$F127,"-",R$3),'Raw Data'!$A$2:$D$690331,4,FALSE),"N/A") -> N/A | S127: =_xlfn.IFNA(VLOOKUP(_xlfn.CONCAT($C$2,"-",$E127,"-",$F127,"-",S$3),'Raw Data'!$A$2:$D$690331,4,FALSE),"N/A") -> N/A
E128: 4 | F128: 5 | H128: =_xlfn.IFNA(VLOOKUP(_xlfn.CONCAT($C$2,"-",$E128,"-",$F128,"-",H$3),'Raw Data'!$A$2:$D$690331,4,FALSE),"N/A") -> N/A | I128: =_xlfn.IFNA(VLOOKUP(_xlfn.CONCAT($C$2,"-",$E128,"-",$F128,"-",I$3),'Raw Data'!$A$2:$D$690331,4,FALSE),"N/A") -> N/A | J128: =_xlfn.IFNA(VLOOKUP(_xlfn.CONCAT($C$2,"-",$E128,"-",$F128,"-",J$3),'Raw Data'!$A$2:$D$690331,4,FALSE),"N/A") -> N/A | K128: =_xlfn.IFNA(VLOOKUP(_xlfn.CONCAT($C$2,"-",$E128,"-",$F128,"-",K$3),'Raw Data'!$A$2:$D$690331,4,FALSE),"N/A") -> N/A | L128: =_xlfn.IFNA(VLOOKUP(_xlfn.CONCAT($C$2,"-",$E128,"-",$F128,"-",L$3),'Raw Data'!$A$2:$D$690331,4,FALSE),"N/A") -> N/A | M128: =_xlfn.IFNA(VLOOKUP(_xlfn.CONCAT($C$2,"-",$E128,"-",$F128,"-",M$3),'Raw Data'!$A$2:$D$690331,4,FALSE),"N/A") -> N/A | N128: =_xlfn.IFNA(VLOOKUP(_xlfn.CONCAT($C$2,"-",$E128,"-",$F128,"-",N$3),'Raw Data'!$A$2:$D$690331,4,FALSE),"N/A") -> N/A | O128: =_xlfn.IFNA(VLOOKUP(_xlfn.CONCAT($C$2,"-",$E128,"-",$F128,"-",O$3),'Raw Data'!$A$2:$D$690331,4,FALSE),"N/A") -> N/A | P128: =_xlfn.IFNA(VLOOKUP(_xlfn.CONCAT($C$2,"-",$E128,"-",$F128,"-",P$3),'Raw Data'!$A$2:$D$690331,4,FALSE),"N/A") -> N/A | Q128: =_xlfn.IFNA(VLOOKUP(_xlfn.CONCAT($C$2,"-",$E128,"-",$F128,"-",Q$3),'Raw Data'!$A$2:$D$690331,4,FALSE),"N/A") -> N/A | R128: =_xlfn.IFNA(VLOOKUP(_xlfn.CONCAT($C$2,"-",$E128,"-",$F128,"-",R$3),'Raw Data'!$A$2:$D$690331,4,FALSE),"N/A") -> N/A | S128: =_xlfn.IFNA(VLOOKUP(_xlfn.CONCAT($C$2,"-",$E128,"-",$F128,"-",S$3),'Raw Data'!$A$2:$D$690331,4,FALSE),"N/A") -> N/A
E129: 5 | F129: 5 | H129: =_xlfn.IFNA(VLOOKUP(_xlfn.CONCAT($C$2,"-",$E129,"-",$F129,"-",H$3),'Raw Data'!$A$2:$D$690331,4,FALSE),"N/A") -> N/A | I129: =_xlfn.IFNA(VLOOKUP(_xlfn.CONCAT($C$2,"-",$E129,"-",$F129,"-",I$3),'Raw Data'!$A$2:$D$690331,4,FALSE),"N/A") -> N/A | J129: =_xlfn.IFNA(VLOOKUP(_xlfn.CONCAT($C$2,"-",$E129,"-",$F129,"-",J$3),'Raw Data'!$A$2:$D$690331,4,FALSE),"N/A") -> N/A | K129: =_xlfn.IFNA(VLOOKUP(_xlfn.CONCAT($C$2,"-",$E129,"-",$F129,"-",K$3),'Raw Data'!$A$2:$D$690331,4,FALSE),"N/A") -> N/A | L129: =_xlfn.IFNA(VLOOKUP(_xlfn.CONCAT($C$2,"-",$E129,"-",$F129,"-",L$3),'Raw Data'!$A$2:$D$690331,4,FALSE),"N/A") -> N/A | M129: =_xlfn.IFNA(VLOOKUP(_xlfn.CONCAT($C$2,"-",$E129,"-",$F129,"-",M$3),'Raw Data'!$A$2:$D$690331,4,FALSE),"N/A") -> N/A | N129: =_xlfn.IFNA(VLOOKUP(_xlfn.CONCAT($C$2,"-",$E129,"-",$F129,"-",N$3),'Raw Data'!$A$2:$D$690331,4,FALSE),"N/A") -> N/A | O129: =_xlfn.IFNA(VLOOKUP(_xlfn.CONCAT($C$2,"-",$E129,"-",$F129,"-",O$3),'Raw Data'!$A$2:$D$690331,4,FALSE),"N/A") -> N/A | P129: =_xlfn.IFNA(VLOOKUP(_xlfn.CONCAT($C$2,"-",$E129,"-",$F129,"-",P$3),'Raw Data'!$A$2:$D$690331,4,FALSE),"N/A") -> N/A | Q129: =_xlfn.IFNA(VLOOKUP(_xlfn.CONCAT($C$2,"-",$E129,"-",$F129,"-",Q$3),'Raw Data'!$A$2:$D$690331,4,FALSE),"N/A") -> N/A | R129: =_xlfn.IFNA(VLOOKUP(_xlfn.CONCAT($C$2,"-",$E129,"-",$F129,"-",R$3),'Raw Data'!$A$2:$D$690331,4,FALSE),"N/A") -> N/A | S129: =_xlfn.IFNA(VLOOKUP(_xlfn.CONCAT($C$2,"-",$E129,"-",$F129,"-",S$3),'Raw Data'!$A$2:$D$690331,4,FALSE),"N/A") -> N/A
E130: 6 | F130: 5 | H130: =_xlfn.IFNA(VLOOKUP(_xlfn.CONCAT($C$2,"-",$E130,"-",$F130,"-",H$3),'Raw Data'!$A$2:$D$690331,4,FALSE),"N/A") -> N/A | I130: =_xlfn.IFNA(VLOOKUP(_xlfn.CONCAT($C$2,"-",$E130,"-",$F130,"-",I$3),'Raw Data'!$A$2:$D$690331,4,FALSE),"N/A") -> N/A | J130: =_xlfn.IFNA(VLOOKUP(_xlfn.CONCAT($C$2,"-",$E130,"-",$F130,"-",J$3),'Raw Data'!$A$2:$D$690331,4,FALSE),"N/A") -> N/A | K130: =_xlfn.IFNA(VLOOKUP(_xlfn.CONCAT($C$2,"-",$E130,"-",$F130,"-",K$3),'Raw Data'!$A$2:$D$690331,4,FALSE),"N/A") -> N/A | L130: =_xlfn.IFNA(VLOOKUP(_xlfn.CONCAT($C$2,"-",$E130,"-",$F130,"-",L$3),'Raw Data'!$A$2:$D$690331,4,FALSE),"N/A") -> N/A | M130: =_xlfn.IFNA(VLOOKUP(_xlfn.CONCAT($C$2,"-",$E130,"-",$F130,"-",M$3),'Raw Data'!$A$2:$D$690331,4,FALSE),"N/A") -> N/A | N130: =_xlfn.IFNA(VLOOKUP(_xlfn.CONCAT($C$2,"-",$E130,"-",$F130,"-",N$3),'Raw Data'!$A$2:$D$690331,4,FALSE),"N/A") -> N/A | O130: =_xlfn.IFNA(VLOOKUP(_xlfn.CONCAT($C$2,"-",$E130,"-",$F130,"-",O$3),'Raw Data'!$A$2:$D$690331,4,FALSE),"N/A") -> N/A | P130: =_xlfn.IFNA(VLOOKUP(_xlfn.CONCAT($C$2,"-",$E130,"-",$F130,"-",P$3),'Raw Data'!$A$2:$D$690331,4,FALSE),"N/A") -> N/A | Q130: =_xlfn.IFNA(VLOOKUP(_xlfn.CONCAT($C$2,"-",$E130,"-",$F130,"-",Q$3),'Raw Data'!$A$2:$D$690331,4,FALSE),"N/A") -> N/A | R130: =_xlfn.IFNA(VLOOKUP(_xlfn.CONCAT($C$2,"-",$E130,"-",$F130,"-",R$3),'Raw Data'!$A$2:$D$690331,4,FALSE),"N/A") -> N/A | S130: =_xlfn.IFNA(VLOOKUP(_xlfn.CONCAT($C$2,"-",$E130,"-",$F130,"-",S$3),'Raw Data'!$A$2:$D$690331,4,FALSE),"N/A") -> N/A
E131: 7 | F131: 5 | H131: =_xlfn.IFNA(VLOOKUP(_xlfn.CONCAT($C$2,"-",$E131,"-",$F131,"-",H$3),'Raw Data'!$A$2:$D$690331,4,FALSE),"N/A") -> N/A | I131: =_xlfn.IFNA(VLOOKUP(_xlfn.CONCAT($C$2,"-",$E131,"-",$F131,"-",I$3),'Raw Data'!$A$2:$D$690331,4,FALSE),"N/A") -> N/A | J131: =_xlfn.IFNA(VLOOKUP(_xlfn.CONCAT($C$2,"-",$E131,"-",$F131,"-",J$3),'Raw Data'!$A$2:$D$690331,4,FALSE),"N/A") -> N/A | K131: =_xlfn.IFNA(VLOOKUP(_xlfn.CONCAT($C$2,"-",$E131,"-",$F131,"-",K$3),'Raw Data'!$A$2:$D$690331,4,FALSE),"N/A") -> N/A | L131: =_xlfn.IFNA(VLOOKUP(_xlfn.CONCAT($C$2,"-",$E131,"-",$F131,"-",L$3),'Raw Data'!$A$2:$D$690331,4,FALSE),"N/A") -> N/A | M131: =_xlfn.IFNA(VLOOKUP(_xlfn.CONCAT($C$2,"-",$E131,"-",$F131,"-",M$3),'Raw Data'!$A$2:$D$690331,4,FALSE),"N/A") -> N/A | N131: =_xlfn.IFNA(VLOOKUP(_xlfn.CONCAT($C$2,"-",$E131,"-",$F131,"-",N$3),'Raw Data'!$A$2:$D$690331,4,FALSE),"N/A") -> N/A | O131: =_xlfn.IFNA(VLOOKUP(_xlfn.CONCAT($C$2,"-",$E131,"-",$F131,"-",O$3),'Raw Data'!$A$2:$D$690331,4,FALSE),"N/A") -> N/A | P131: =_xlfn.IFNA(VLOOKUP(_xlfn.CONCAT($C$2,"-",$E131,"-",$F131,"-",P$3),'Raw Data'!$A$2:$D$690331,4,FALSE),"N/A") -> N/A | Q131: =_xlfn.IFNA(VLOOKUP(_xlfn.CONCAT($C$2,"-",$E131,"-",$F131,"-",Q$3),'Raw Data'!$A$2:$D$690331,4,FALSE),"N/A") -> N/A | R131: =_xlfn.IFNA(VLOOKUP(_xlfn.CONCAT($C$2,"-",$E131,"-",$F131,"-",R$3),'Raw Data'!$A$2:$D$690331,4,FALSE),"N/A") -> N/A | S131: =_xlfn.IFNA(VLOOKUP(_xlfn.CONCAT($C$2,"-",$E131,"-",$F131,"-",S$3),'Raw Data'!$A$2:$D$690331,4,FALSE),"N/A") -> N/A
E132: 8 | F132: 5 | H132: =_xlfn.IFNA(VLOOKUP(_xlfn.CONCAT($C$2,"-",$E132,"-",$F132,"-",H$3),'Raw Data'!$A$2:$D$690331,4,FALSE),"N/A") -> N/A | I132: =_xlfn.IFNA(VLOOKUP(_xlfn.CONCAT($C$2,"-",$E132,"-",$F132,"-",I$3),'Raw Data'!$A$2:$D$690331,4,FALSE),"N/A") -> N/A | J132: =_xlfn.IFNA(VLOOKUP(_xlfn.CONCAT($C$2,"-",$E132,"-",$F132,"-",J$3),'Raw Data'!$A$2:$D$690331,4,FALSE),"N/A") -> N/A | K132: =_xlfn.IFNA(VLOOKUP(_xlfn.CONCAT($C$2,"-",$E132,"-",$F132,"-",K$3),'Raw Data'!$A$2:$D$690331,4,FALSE),"N/A") -> N/A | L132: =_xlfn.IFNA(VLOOKUP(_xlfn.CONCAT($C$2,"-",$E132,"-",$F132,"-",L$3),'Raw Data'!$A$2:$D$690331,4,FALSE),"N/A") -> N/A | M132: =_xlfn.IFNA(VLOOKUP(_xlfn.CONCAT($C$2,"-",$E132,"-",$F132,"-",M$3),'Raw Data'!$A$2:$D$690331,4,FALSE),"N/A") -> N/A | N132: =_xlfn.IFNA(VLOOKUP(_xlfn.CONCAT($C$2,"-",$E132,"-",$F132,"-",N$3),'Raw Data'!$A$2:$D$690331,4,FALSE),"N/A") -> N/A | O132: =_xlfn.IFNA(VLOOKUP(_xlfn.CONCAT($C$2,"-",$E132,"-",$F132,"-",O$3),'Raw Data'!$A$2:$D$690331,4,FALSE),"N/A") -> N/A | P132: =_xlfn.IFNA(VLOOKUP(_xlfn.CONCAT($C$2,"-",$E132,"-",$F132,"-",P$3),'Raw Data'!$A$2:$D$690331,4,FALSE),"N/A") -> N/A | Q132: =_xlfn.IFNA(VLOOKUP(_xlfn.CONCAT($C$2,"-",$E132,"-",$F132,"-",Q$3),'Raw Data'!$A$2:$D$690331,4,FALSE),"N/A") -> N/A | R132: =_xlfn.IFNA(VLOOKUP(_xlfn.CONCAT($C$2,"-",$E132,"-",$F132,"-",R$3),'Raw Data'!$A$2:$D$690331,4,FALSE),"N/A") -> N/A | S132: =_xlfn.IFNA(VLOOKUP(_xlfn.CONCAT($C$2,"-",$E132,"-",$F132,"-",S$3),'Raw Data'!$A$2:$D$690331,4,FALSE),"N/A") -> N/A
E133: 9 | F133: 5 | H133: =_xlfn.IFNA(VLOOKUP(_xlfn.CONCAT($C$2,"-",$E133,"-",$F133,"-",H$3),'Raw Data'!$A$2:$D$690331,4,FALSE),"N/A") -> N/A | I133: =_xlfn.IFNA(VLOOKUP(_xlfn.CONCAT($C$2,"-",$E133,"-",$F133,"-",I$3),'Raw Data'!$A$2:$D$690331,4,FALSE),"N/A") -> N/A | J133: =_xlfn.IFNA(VLOOKUP(_xlfn.CONCAT($C$2,"-",$E133,"-",$F133,"-",J$3),'Raw Data'!$A$2:$D$690331,4,FALSE),"N/A") -> N/A | K133: =_xlfn.IFNA(VLOOKUP(_xlfn.CONCAT($C$2,"-",$E133,"-",$F133,"-",K$3),'Raw Data'!$A$2:$D$690331,4,FALSE),"N/A") -> N/A | L133: =_xlfn.IFNA(VLOOKUP(_xlfn.CONCAT($C$2,"-",$E133,"-",$F133,"-",L$3),'Raw Data'!$A$2:$D$690331,4,FALSE),"N/A") -> N/A | M133: =_xlfn.IFNA(VLOOKUP(_xlfn.CONCAT($C$2,"-",$E133,"-",$F133,"-",M$3),'Raw Data'!$A$2:$D$690331,4,FALSE),"N/A") -> N/A | N133: =_xlfn.IFNA(VLOOKUP(_xlfn.CONCAT($C$2,"-",$E133,"-",$F133,"-",N$3),'Raw Data'!$A$2:$D$690331,4,FALSE),"N/A") -> N/A | O133: =_xlfn.IFNA(VLOOKUP(_xlfn.CONCAT($C$2,"-",$E133,"-",$F133,"-",O$3),'Raw Data'!$A$2:$D$690331,4,FALSE),"N/A") -> N/A | P133: =_xlfn.IFNA(VLOOKUP(_xlfn.CONCAT($C$2,"-",$E133,"-",$F133,"-",P$3),'Raw Data'!$A$2:$D$690331,4,FALSE),"N/A") -> N/A | Q133: =_xlfn.IFNA(VLOOKUP(_xlfn.CONCAT($C$2,"-",$E133,"-",$F133,"-",Q$3),'Raw Data'!$A$2:$D$690331,4,FALSE),"N/A") -> N/A | R133: =_xlfn.IFNA(VLOOKUP(_xlfn.CONCAT($C$2,"-",$E133,"-",$F133,"-",R$3),'Raw Data'!$A$2:$D$690331,4,FALSE),"N/A") -> N/A | S133: =_xlfn.IFNA(VLOOKUP(_xlfn.CONCAT($C$2,"-",$E133,"-",$F133,"-",S$3),'Raw Data'!$A$2:$D$690331,4,FALSE),"N/A") -> N/A
E134: 10 | F134: 5 | H134: =_xlfn.IFNA(VLOOKUP(_xlfn.CONCAT($C$2,"-",$E134,"-",$F134,"-",H$3),'Raw Data'!$A$2:$D$690331,4,FALSE),"N/A") -> N/A | I134: =_xlfn.IFNA(VLOOKUP(_xlfn.CONCAT($C$2,"-",$E134,"-",$F134,"-",I$3),'Raw Data'!$A$2:$D$690331,4,FALSE),"N/A") -> N/A | J134: =_xlfn.IFNA(VLOOKUP(_xlfn.CONCAT($C$2,"-",$E134,"-",$F134,"-",J$3),'Raw Data'!$A$2:$D$690331,4,FALSE),"N/A") -> N/A | K134: =_xlfn.IFNA(VLOOKUP(_xlfn.CONCAT($C$2,"-",$E134,"-",$F134,"-",K$3),'Raw Data'!$A$2:$D$690331,4,FALSE),"N/A") -> N/A | L134: =_xlfn.IFNA(VLOOKUP(_xlfn.CONCAT($C$2,"-",$E134,"-",$F134,"-",L$3),'Raw Data'!$A$2:$D$690331,4,FALSE),"N/A") -> N/A | M134: =_xlfn.IFNA(VLOOKUP(_xlfn.CONCAT($C$2,"-",$E134,"-",$F134,"-",M$3),'Raw Data'!$A$2:$D$690331,4,FALSE),"N/A") -> N/A | N134: =_xlfn.IFNA(VLOOKUP(_xlfn.CONCAT($C$2,"-",$E134,"-",$F134,"-",N$3),'Raw Data'!$A$2:$D$690331,4,FALSE),"N/A") -> N/A | O134: =_xlfn.IFNA(VLOOKUP(_xlfn.CONCAT($C$2,"-",$E134,"-",$F134,"-",O$3),'Raw Data'!$A$2:$D$690331,4,FALSE),"N/A") -> N/A | P134: =_xlfn.IFNA(VLOOKUP(_xlfn.CONCAT($C$2,"-",$E134,"-",$F134,"-",P$3),'Raw Data'!$A$2:$D$690331,4,FALSE),"N/A") -> N/A | Q134: =_xlfn.IFNA(VLOOKUP(_xlfn.CONCAT($C$2,"-",$E134,"-",$F134,"-",Q$3),'Raw Data'!$A$2:$D$690331,4,FALSE),"N/A") -> N/A | R134: =_xlfn.IFNA(VLOOKUP(_xlfn.CONCAT($C$2,"-",$E134,"-",$F134,"-",R$3),'Raw Data'!$A$2:$D$690331,4,FALSE),"N/A") -> N/A | S134: =_xlfn.IFNA(VLOOKUP(_xlfn.CONCAT($C$2,"-",$E134,"-",$F134,"-",S$3),'Raw Data'!$A$2:$D$690331,4,FALSE),"N/A") -> N/A
E135: 11 | F135: 5 | H135: =_xlfn.IFNA(VLOOKUP(_xlfn.CONCAT($C$2,"-",$E135,"-",$F135,"-",H$3),'Raw Data'!$A$2:$D$690331,4,FALSE),"N/A") -> N/A | I135: =_xlfn.IFNA(VLOOKUP(_xlfn.CONCAT($C$2,"-",$E135,"-",$F135,"-",I$3),'Raw Data'!$A$2:$D$690331,4,FALSE),"N/A") -> N/A | J135: =_xlfn.IFNA(VLOOKUP(_xlfn.CONCAT($C$2,"-",$E135,"-",$F135,"-",J$3),'Raw Data'!$A$2:$D$690331,4,FALSE),"N/A") -> N/A | K135: =_xlfn.IFNA(VLOOKUP(_xlfn.CONCAT($C$2,"-",$E135,"-",$F135,"-",K$3),'Raw Data'!$A$2:$D$690331,4,FALSE),"N/A") -> N/A | L135: =_xlfn.IFNA(VLOOKUP(_xlfn.CONCAT($C$2,"-",$E135,"-",$F135,"-",L$3),'Raw Data'!$A$2:$D$690331,4,FALSE),"N/A") -> N/A | M135: =_xlfn.IFNA(VLOOKUP(_xlfn.CONCAT($C$2,"-",$E135,"-",$F135,"-",M$3),'Raw Data'!$A$2:$D$690331,4,FALSE),"N/A") -> N/A | N135: =_xlfn.IFNA(VLOOKUP(_xlfn.CONCAT($C$2,"-",$E135,"-",$F135,"-",N$3),'Raw Data'!$A$2:$D$690331,4,FALSE),"N/A") -> N/A | O135: =_xlfn.IFNA(VLOOKUP(_xlfn.CONCAT($C$2,"-",$E135,"-",$F135,"-",O$3),'Raw Data'!$A$2:$D$690331,4,FALSE),"N/A") -> N/A | P135: =_xlfn.IFNA(VLOOKUP(_xlfn.CONCAT($C$2,"-",$E135,"-",$F135,"-",P$3),'Raw Data'!$A$2:$D$690331,4,FALSE),"N/A") -> N/A | Q135: =_xlfn.IFNA(VLOOKUP(_xlfn.CONCAT($C$2,"-",$E135,"-",$F135,"-",Q$3),'Raw Data'!$A$2:$D$690331,4,FALSE),"N/A") -> N/A | R135: =_xlfn.IFNA(VLOOKUP(_xlfn.CONCAT($C$2,"-",$E135,"-",$F135,"-",R$3),'Raw Data'!$A$2:$D$690331,4,FALSE),"N/A") -> N/A | S135: =_xlfn.IFNA(VLOOKUP(_xlfn.CONCAT($C$2,"-",$E135,"-",$F135,"-",S$3),'Raw Data'!$A$2:$D$690331,4,FALSE),"N/A") -> N/A
E136: 12 | F136: 5 | H136: =_xlfn.IFNA(VLOOKUP(_xlfn.CONCAT($C$2,"-",$E136,"-",$F136,"-",H$3),'Raw Data'!$A$2:$D$690331,4,FALSE),"N/A") -> N/A | I136: =_xlfn.IFNA(VLOOKUP(_xlfn.CONCAT($C$2,"-",$E136,"-",$F136,"-",I$3),'Raw Data'!$A$2:$D$690331,4,FALSE),"N/A") -> N/A | J136: =_xlfn.IFNA(VLOOKUP(_xlfn.CONCAT($C$2,"-",$E136,"-",$F136,"-",J$3),'Raw Data'!$A$2:$D$690331,4,FALSE),"N/A") -> N/A | K136: =_xlfn.IFNA(VLOOKUP(_xlfn.CONCAT($C$2,"-",$E136,"-",$F136,"-",K$3),'Raw Data'!$A$2:$D$690331,4,FALSE),"N/A") -> N/A | L136: =_xlfn.IFNA(VLOOKUP(_xlfn.CONCAT($C$2,"-",$E136,"-",$F136,"-",L$3),'Raw Data'!$A$2:$D$690331,4,FALSE),"N/A") -> N/A | M136: =_xlfn.IFNA(VLOOKUP(_xlfn.CONCAT($C$2,"-",$E136,"-",$F136,"-",M$3),'Raw Data'!$A$2:$D$690331,4,FALSE),"N/A") -> N/A | N136: =_xlfn.IFNA(VLOOKUP(_xlfn.CONCAT($C$2,"-",$E136,"-",$F136,"-",N$3),'Raw Data'!$A$2:$D$690331,4,FALSE),"N/A") -> N/A | O136: =_xlfn.IFNA(VLOOKUP(_xlfn.CONCAT($C$2,"-",$E136,"-",$F136,"-",O$3),'Raw Data'!$A$2:$D$690331,4,FALSE),"N/A") -> N/A | P136: =_xlfn.IFNA(VLOOKUP(_xlfn.CONCAT($C$2,"-",$E136,"-",$F136,"-",P$3),'Raw Data'!$A$2:$D$690331,4,FALSE),"N/A") -> N/A | Q136: =_xlfn.IFNA(VLOOKUP(_xlfn.CONCAT($C$2,"-",$E136,"-",$F136,"-",Q$3),'Raw Data'!$A$2:$D$690331,4,FALSE),"N/A") -> N/A | R136: =_xlfn.IFNA(VLOOKUP(_xlfn.CONCAT($C$2,"-",$E136,"-",$F136,"-",R$3),'Raw Data'!$A$2:$D$690331,4,FALSE),"N/A") -> N/A | S136: =_xlfn.IFNA(VLOOKUP(_xlfn.CONCAT($C$2,"-",$E136,"-",$F136,"-",S$3),'Raw Data'!$A$2:$D$690331,4,FALSE),"N/A") -> N/A
E137: 13 | F137: 5 | H137: =_xlfn.IFNA(VLOOKUP(_xlfn.CONCAT($C$2,"-",$E137,"-",$F137,"-",H$3),'Raw Data'!$A$2:$D$690331,4,FALSE),"N/A") -> N/A | I137: =_xlfn.IFNA(VLOOKUP(_xlfn.CONCAT($C$2,"-",$E137,"-",$F137,"-",I$3),'Raw Data'!$A$2:$D$690331,4,FALSE),"N/A") -> N/A | J137: =_xlfn.IFNA(VLOOKUP(_xlfn.CONCAT($C$2,"-",$E137,"-",$F137,"-",J$3),'Raw Data'!$A$2:$D$690331,4,FALSE),"N/A") -> N/A | K137: =_xlfn.IFNA(VLOOKUP(_xlfn.CONCAT($C$2,"-",$E137,"-",$F137,"-",K$3),'Raw Data'!$A$2:$D$690331,4,FALSE),"N/A") -> N/A | L137: =_xlfn.IFNA(VLOOKUP(_xlfn.CONCAT($C$2,"-",$E137,"-",$F137,"-",L$3),'Raw Data'!$A$2:$D$690331,4,FALSE),"N/A") -> N/A | M137: =_xlfn.IFNA(VLOOKUP(_xlfn.CONCAT($C$2,"-",$E137,"-",$F137,"-",M$3),'Raw Data'!$A$2:$D$690331,4,FALSE),"N/A") -> N/A | N137: =_xlfn.IFNA(VLOOKUP(_xlfn.CONCAT($C$2,"-",$E137,"-",$F137,"-",N$3),'Raw Data'!$A$2:$D$690331,4,FALSE),"N/A") -> N/A | O137: =_xlfn.IFNA(VLOOKUP(_xlfn.CONCAT($C$2,"-",$E137,"-",$F137,"-",O$3),'Raw Data'!$A$2:$D$690331,4,FALSE),"N/A") -> N/A | P137: =_xlfn.IFNA(VLOOKUP(_xlfn.CONCAT($C$2,"-",$E137,"-",$F137,"-",P$3),'Raw Data'!$A$2:$D$690331,4,FALSE),"N/A") -> N/A | Q137: =_xlfn.IFNA(VLOOKUP(_xlfn.CONCAT($C$2,"-",$E137,"-",$F137,"-",Q$3),'Raw Data'!$A$2:$D$690331,4,FALSE),"N/A") -> N/A | R137: =_xlfn.IFNA(VLOOKUP(_xlfn.CONCAT($C$2,"-",$E137,"-",$F137,"-",R$3),'Raw Data'!$A$2:$D$690331,4,FALSE),"N/A") -> N/A | S137: =_xlfn.IFNA(VLOOKUP(_xlfn.CONCAT($C$2,"-",$E137,"-",$F137,"-",S$3),'Raw Data'!$A$2:$D$690331,4,FALSE),"N/A") -> N/A
E138: 14 | F138: 5 | H138: =_xlfn.IFNA(VLOOKUP(_xlfn.CONCAT($C$2,"-",$E138,"-",$F138,"-",H$3),'Raw Data'!$A$2:$D$690331,4,FALSE),"N/A") -> N/A | I138: =_xlfn.IFNA(VLOOKUP(_xlfn.CONCAT($C$2,"-",$E138,"-",$F138,"-",I$3),'Raw Data'!$A$2:$D$690331,4,FALSE),"N/A") -> N/A | J138: =_xlfn.IFNA(VLOOKUP(_xlfn.CONCAT($C$2,"-",$E138,"-",$F138,"-",J$3),'Raw Data'!$A$2:$D$690331,4,FALSE),"N/A") -> N/A | K138: =_xlfn.IFNA(VLOOKUP(_xlfn.CONCAT($C$2,"-",$E138,"-",$F138,"-",K$3),'Raw Data'!$A$2:$D$690331,4,FALSE),"N/A") -> N/A | L138: =_xlfn.IFNA(VLOOKUP(_xlfn.CONCAT($C$2,"-",$E138,"-",$F138,"-",L$3),'Raw Data'!$A$2:$D$690331,4,FALSE),"N/A") -> N/A | M138: =_xlfn.IFNA(VLOOKUP(_xlfn.CONCAT($C$2,"-",$E138,"-",$F138,"-",M$3),'Raw Data'!$A$2:$D$690331,4,FALSE),"N/A") -> N/A | N138: =_xlfn.IFNA(VLOOKUP(_xlfn.CONCAT($C$2,"-",$E138,"-",$F138,"-",N$3),'Raw Data'!$A$2:$D$690331,4,FALSE),"N/A") -> N/A | O138: =_xlfn.IFNA(VLOOKUP(_xlfn.CONCAT($C$2,"-",$E138,"-",$F138,"-",O$3),'Raw Data'!$A$2:$D$690331,4,FALSE),"N/A") -> N/A | P138: =_xlfn.IFNA(VLOOKUP(_xlfn.CONCAT($C$2,"-",$E138,"-",$F138,"-",P$3),'Raw Data'!$A$2:$D$690331,4,FALSE),"N/A") -> N/A | Q138: =_xlfn.IFNA(VLOOKUP(_xlfn.CONCAT($C$2,"-",$E138,"-",$F138,"-",Q$3),'Raw Data'!$A$2:$D$690331,4,FALSE),"N/A") -> N/A | R138: =_xlfn.IFNA(VLOOKUP(_xlfn.CONCAT($C$2,"-",$E138,"-",$F138,"-",R$3),'Raw Data'!$A$2:$D$690331,4,FALSE),"N/A") -> N/A | S138: =_xlfn.IFNA(VLOOKUP(_xlfn.CONCAT($C$2,"-",$E138,"-",$F138,"-",S$3),'Raw Data'!$A$2:$D$690331,4,FALSE),"N/A") -> N/A
E139: 15 | F139: 5 | H139: =_xlfn.IFNA(VLOOKUP(_xlfn.CONCAT($C$2,"-",$E139,"-",$F139,"-",H$3),'Raw Data'!$A$2:$D$690331,4,FALSE),"N/A") -> N/A | I139: =_xlfn.IFNA(VLOOKUP(_xlfn.CONCAT($C$2,"-",$E139,"-",$F139,"-",I$3),'Raw Data'!$A$2:$D$690331,4,FALSE),"N/A") -> N/A | J139: =_xlfn.IFNA(VLOOKUP(_xlfn.CONCAT($C$2,"-",$E139,"-",$F139,"-",J$3),'Raw Data'!$A$2:$D$690331,4,FALSE),"N/A") -> N/A | K139: =_xlfn.IFNA(VLOOKUP(_xlfn.CONCAT($C$2,"-",$E139,"-",$F139,"-",K$3),'Raw Data'!$A$2:$D$690331,4,FALSE),"N/A") -> N/A | L139: =_xlfn.IFNA(VLOOKUP(_xlfn.CONCAT($C$2,"-",$E139,"-",$F139,"-",L$3),'Raw Data'!$A$2:$D$690331,4,FALSE),"N/A") -> N/A | M139: =_xlfn.IFNA(VLOOKUP(_xlfn.CONCAT($C$2,"-",$E139,"-",$F139,"-",M$3),'Raw Data'!$A$2:$D$690331,4,FALSE),"N/A") -> N/A | N139: =_xlfn.IFNA(VLOOKUP(_xlfn.CONCAT($C$2,"-",$E139,"-",$F139,"-",N$3),'Raw Data'!$A$2:$D$690331,4,FALSE),"N/A") -> N/A | O139: =_xlfn.IFNA(VLOOKUP(_xlfn.CONCAT($C$2,"-",$E139,"-",$F139,"-",O$3),'Raw Data'!$A$2:$D$690331,4,FALSE),"N/A") -> N/A | P139: =_xlfn.IFNA(VLOOKUP(_xlfn.CONCAT($C$2,"-",$E139,"-",$F139,"-",P$3),'Raw Data'!$A$2:$D$690331,4,FALSE),"N/A") -> N/A | Q139: =_xlfn.IFNA(VLOOKUP(_xlfn.CONCAT($C$2,"-",$E139,"-",$F139,"-",Q$3),'Raw Data'!$A$2:$D$690331,4,FALSE),"N/A") -> N/A | R139: =_xlfn.IFNA(VLOOKUP(_xlfn.CONCAT($C$2,"-",$E139,"-",$F139,"-",R$3),'Raw Data'!$A$2:$D$690331,4,FALSE),"N/A") -> N/A | S139: =_xlfn.IFNA(VLOOKUP(_xlfn.CONCAT($C$2,"-",$E139,"-",$F139,"-",S$3),'Raw Data'!$A$2:$D$690331,4,FALSE),"N/A") -> N/A
E140: 16 | F140: 5 | H140: =_xlfn.IFNA(VLOOKUP(_xlfn.CONCAT($C$2,"-",$E140,"-",$F140,"-",H$3),'Raw Data'!$A$2:$D$690331,4,FALSE),"N/A") -> N/A | I140: =_xlfn.IFNA(VLOOKUP(_xlfn.CONCAT($C$2,"-",$E140,"-",$F140,"-",I$3),'Raw Data'!$A$2:$D$690331,4,FALSE),"N/A") -> N/A | J140: =_xlfn.IFNA(VLOOKUP(_xlfn.CONCAT($C$2,"-",$E140,"-",$F140,"-",J$3),'Raw Data'!$A$2:$D$690331,4,FALSE),"N/A") -> N/A | K140: =_xlfn.IFNA(VLOOKUP(_xlfn.CONCAT($C$2,"-",$E140,"-",$F140,"-",K$3),'Raw Data'!$A$2:$D$690331,4,FALSE),"N/A") -> N/A | L140: =_xlfn.IFNA(VLOOKUP(_xlfn.CONCAT($C$2,"-",$E140,"-",$F140,"-",L$3),'Raw Data'!$A$2:$D$690331,4,FALSE),"N/A") -> N/A | M140: =_xlfn.IFNA(VLOOKUP(_xlfn.CONCAT($C$2,"-",$E140,"-",$F140,"-",M$3),'Raw Data'!$A$2:$D$690331,4,FALSE),"N/A") -> N/A | N140: =_xlfn.IFNA(VLOOKUP(_xlfn.CONCAT($C$2,"-",$E140,"-",$F140,"-",N$3),'Raw Data'!$A$2:$D$690331,4,FALSE),"N/A") -> N/A | O140: =_xlfn.IFNA(VLOOKUP(_xlfn.CONCAT($C$2,"-",$E140,"-",$F140,"-",O$3),'Raw Data'!$A$2:$D$690331,4,FALSE),"N/A") -> N/A | P140: =_xlfn.IFNA(VLOOKUP(_xlfn.CONCAT($C$2,"-",$E140,"-",$F140,"-",P$3),'Raw Data'!$A$2:$D$690331,4,FALSE),"N/A") -> N/A | Q140: =_xlfn.IFNA(VLOOKUP(_xlfn.CONCAT($C$2,"-",$E140,"-",$F140,"-",Q$3),'Raw Data'!$A$2:$D$690331,4,FALSE),"N/A") -> N/A | R140: =_xlfn.IFNA(VLOOKUP(_xlfn.CONCAT($C$2,"-",$E140,"-",$F140,"-",R$3),'Raw Data'!$A$2:$D$690331,4,FALSE),"N/A") -> N/A | S140: =_xlfn.IFNA(VLOOKUP(_xlfn.CONCAT($C$2,"-",$E140,"-",$F140,"-",S$3),'Raw Data'!$A$2:$D$690331,4,FALSE),"N/A") -> N/A
E141: 17 | F141: 5 | H141: =_xlfn.IFNA(VLOOKUP(_xlfn.CONCAT($C$2,"-",$E141,"-",$F141,"-",H$3),'Raw Data'!$A$2:$D$690331,4,FALSE),"N/A") -> N/A | I141: =_xlfn.IFNA(VLOOKUP(_xlfn.CONCAT($C$2,"-",$E141,"-",$F141,"-",I$3),'Raw Data'!$A$2:$D$690331,4,FALSE),"N/A") -> N/A | J141: =_xlfn.IFNA(VLOOKUP(_xlfn.CONCAT($C$2,"-",$E141,"-",$F141,"-",J$3),'Raw Data'!$A$2:$D$690331,4,FALSE),"N/A") -> N/A | K141: =_xlfn.IFNA(VLOOKUP(_xlfn.CONCAT($C$2,"-",$E141,"-",$F141,"-",K$3),'Raw Data'!$A$2:$D$690331,4,FALSE),"N/A") -> N/A | L141: =_xlfn.IFNA(VLOOKUP(_xlfn.CONCAT($C$2,"-",$E141,"-",$F141,"-",L$3),'Raw Data'!$A$2:$D$690331,4,FALSE),"N/A") -> N/A | M141: =_xlfn.IFNA(VLOOKUP(_xlfn.CONCAT($C$2,"-",$E141,"-",$F141,"-",M$3),'Raw Data'!$A$2:$D$690331,4,FALSE),"N/A") -> N/A | N141: =_xlfn.IFNA(VLOOKUP(_xlfn.CONCAT($C$2,"-",$E141,"-",$F141,"-",N$3),'Raw Data'!$A$2:$D$690331,4,FALSE),"N/A") -> N/A | O141: =_xlfn.IFNA(VLOOKUP(_xlfn.CONCAT($C$2,"-",$E141,"-",$F141,"-",O$3),'Raw Data'!$A$2:$D$690331,4,FALSE),"N/A") -> N/A | P141: =_xlfn.IFNA(VLOOKUP(_xlfn.CONCAT($C$2,"-",$E141,"-",$F141,"-",P$3),'Raw Data'!$A$2:$D$690331,4,FALSE),"N/A") -> N/A | Q141: =_xlfn.IFNA(VLOOKUP(_xlfn.CONCAT($C$2,"-",$E141,"-",$F141,"-",Q$3),'Raw Data'!$A$2:$D$690331,4,FALSE),"N/A") -> N/A | R141: =_xlfn.IFNA(VLOOKUP(_xlfn.CONCAT($C$2,"-",$E141,"-",$F141,"-",R$3),'Raw Data'!$A$2:$D$690331,4,FALSE),"N/A") -> N/A | S141: =_xlfn.IFNA(VLOOKUP(_xlfn.CONCAT($C$2,"-",$E141,"-",$F141,"-",S$3),'Raw Data'!$A$2:$D$690331,4,FALSE),"N/A") -> N/A
E142: 18 | F142: 5 | H142: =_xlfn.IFNA(VLOOKUP(_xlfn.CONCAT($C$2,"-",$E142,"-",$F142,"-",H$3),'Raw Data'!$A$2:$D$690331,4,FALSE),"N/A") -> N/A | I142: =_xlfn.IFNA(VLOOKUP(_xlfn.CONCAT($C$2,"-",$E142,"-",$F142,"-",I$3),'Raw Data'!$A$2:$D$690331,4,FALSE),"N/A") -> N/A | J142: =_xlfn.IFNA(VLOOKUP(_xlfn.CONCAT($C$2,"-",$E142,"-",$F142,"-",J$3),'Raw Data'!$A$2:$D$690331,4,FALSE),"N/A") -> N/A | K142: =_xlfn.IFNA(VLOOKUP(_xlfn.CONCAT($C$2,"-",$E142,"-",$F142,"-",K$3),'Raw Data'!$A$2:$D$690331,4,FALSE),"N/A") -> N/A | L142: =_xlfn.IFNA(VLOOKUP(_xlfn.CONCAT($C$2,"-",$E142,"-",$F142,"-",L$3),'Raw Data'!$A$2:$D$690331,4,FALSE),"N/A") -> N/A | M142: =_xlfn.IFNA(VLOOKUP(_xlfn.CONCAT($C$2,"-",$E142,"-",$F142,"-",M$3),'Raw Data'!$A$2:$D$690331,4,FALSE),"N/A") -> N/A | N142: =_xlfn.IFNA(VLOOKUP(_xlfn.CONCAT($C$2,"-",$E142,"-",$F142,"-",N$3),'Raw Data'!$A$2:$D$690331,4,FALSE),"N/A") -> N/A | O142: =_xlfn.IFNA(VLOOKUP(_xlfn.CONCAT($C$2,"-",$E142,"-",$F142,"-",O$3),'Raw Data'!$A$2:$D$690331,4,FALSE),"N/A") -> N/A | P142: =_xlfn.IFNA(VLOOKUP(_xlfn.CONCAT($C$2,"-",$E142,"-",$F142,"-",P$3),'Raw Data'!$A$2:$D$690331,4,FALSE),"N/A") -> N/A | Q142: =_xlfn.IFNA(VLOOKUP(_xlfn.CONCAT($C$2,"-",$E142,"-",$F142,"-",Q$3),'Raw Data'!$A$2:$D$690331,4,FALSE),"N/A") -> N/A | R142: =_xlfn.IFNA(VLOOKUP(_xlfn.CONCAT($C$2,"-",$E142,"-",$F142,"-",R$3),'Raw Data'!$A$2:$D$690331,4,FALSE),"N/A") -> N/A | S142: =_xlfn.IFNA(VLOOKUP(_xlfn.CONCAT($C$2,"-",$E142,"-",$F142,"-",S$3),'Raw Data'!$A$2:$D$690331,4,FALSE),"N/A") -> N/A
E143: 19 | F143: 5 | H143: =_xlfn.IFNA(VLOOKUP(_xlfn.CONCAT($C$2,"-",$E143,"-",$F143,"-",H$3),'Raw Data'!$A$2:$D$690331,4,FALSE),"N/A") -> N/A | I143: =_xlfn.IFNA(VLOOKUP(_xlfn.CONCAT($C$2,"-",$E143,"-",$F143,"-",I$3),'Raw Data'!$A$2:$D$690331,4,FALSE),"N/A") -> N/A | J143: =_xlfn.IFNA(VLOOKUP(_xlfn.CONCAT($C$2,"-",$E143,"-",$F143,"-",J$3),'Raw Data'!$A$2:$D$690331,4,FALSE),"N/A") -> N/A | K143: =_xlfn.IFNA(VLOOKUP(_xlfn.CONCAT($C$2,"-",$E143,"-",$F143,"-",K$3),'Raw Data'!$A$2:$D$690331,4,FALSE),"N/A") -> N/A | L143: =_xlfn.IFNA(VLOOKUP(_xlfn.CONCAT($C$2,"-",$E143,"-",$F143,"-",L$3),'Raw Data'!$A$2:$D$690331,4,FALSE),"N/A") -> N/A | M143: =_xlfn.IFNA(VLOOKUP(_xlfn.CONCAT($C$2,"-",$E143,"-",$F143,"-",M$3),'Raw Data'!$A$2:$D$690331,4,FALSE),"N/A") -> N/A | N143: =_xlfn.IFNA(VLOOKUP(_xlfn.CONCAT($C$2,"-",$E143,"-",$F143,"-",N$3),'Raw Data'!$A$2:$D$690331,4,FALSE),"N/A") -> N/A | O143: =_xlfn.IFNA(VLOOKUP(_xlfn.CONCAT($C$2,"-",$E143,"-",$F143,"-",O$3),'Raw Data'!$A$2:$D$690331,4,FALSE),"N/A") -> N/A | P143: =_xlfn.IFNA(VLOOKUP(_xlfn.CONCAT($C$2,"-",$E143,"-",$F143,"-",P$3),'Raw Data'!$A$2:$D$690331,4,FALSE),"N/A") -> N/A | Q143: =_xlfn.IFNA(VLOOKUP(_xlfn.CONCAT($C$2,"-",$E143,"-",$F143,"-",Q$3),'Raw Data'!$A$2:$D$690331,4,FALSE),"N/A") -> N/A | R143: =_xlfn.IFNA(VLOOKUP(_xlfn.CONCAT($C$2,"-",$E143,"-",$F143,"-",R$3),'Raw Data'!$A$2:$D$690331,4,FALSE),"N/A") -> N/A | S143: =_xlfn.IFNA(VLOOKUP(_xlfn.CONCAT($C$2,"-",$E143,"-",$F143,"-",S$3),'Raw Data'!$A$2:$D$690331,4,FALSE),"N/A") -> N/A
E144: 20 | F144: 5 | H144: =_xlfn.IFNA(VLOOKUP(_xlfn.CONCAT($C$2,"-",$E144,"-",$F144,"-",H$3),'Raw Data'!$A$2:$D$690331,4,FALSE),"N/A") -> N/A | I144: =_xlfn.IFNA(VLOOKUP(_xlfn.CONCAT($C$2,"-",$E144,"-",$F144,"-",I$3),'Raw Data'!$A$2:$D$690331,4,FALSE),"N/A") -> N/A | J144: =_xlfn.IFNA(VLOOKUP(_xlfn.CONCAT($C$2,"-",$E144,"-",$F144,"-",J$3),'Raw Data'!$A$2:$D$690331,4,FALSE),"N/A") -> N/A | K144: =_xlfn.IFNA(VLOOKUP(_xlfn.CONCAT($C$2,"-",$E144,"-",$F144,"-",K$3),'Raw Data'!$A$2:$D$690331,4,FALSE),"N/A") -> N/A | L144: =_xlfn.IFNA(VLOOKUP(_xlfn.CONCAT($C$2,"-",$E144,"-",$F144,"-",L$3),'Raw Data'!$A$2:$D$690331,4,FALSE),"N/A") -> N/A | M144: =_xlfn.IFNA(VLOOKUP(_xlfn.CONCAT($C$2,"-",$E144,"-",$F144,"-",M$3),'Raw Data'!$A$2:$D$690331,4,FALSE),"N/A") -> N/A | N144: =_xlfn.IFNA(VLOOKUP(_xlfn.CONCAT($C$2,"-",$E144,"-",$F144,"-",N$3),'Raw Data'!$A$2:$D$690331,4,FALSE),"N/A") -> N/A | O144: =_xlfn.IFNA(VLOOKUP(_xlfn.CONCAT($C$2,"-",$E144,"-",$F144,"-",O$3),'Raw Data'!$A$2:$D$690331,4,FALSE),"N/A") -> N/A | P144: =_xlfn.IFNA(VLOOKUP(_xlfn.CONCAT($C$2,"-",$E144,"-",$F144,"-",P$3),'Raw Data'!$A$2:$D$690331,4,FALSE),"N/A") -> N/A | Q144: =_xlfn.IFNA(VLOOKUP(_xlfn.CONCAT($C$2,"-",$E144,"-",$F144,"-",Q$3),'Raw Data'!$A$2:$D$690331,4,FALSE),"N/A") -> N/A | R144: =_xlfn.IFNA(VLOOKUP(_xlfn.CONCAT($C$2,"-",$E144,"-",$F144,"-",R$3),'Raw Data'!$A$2:$D$690331,4,FALSE),"N/A") -> N/A | S144: =_xlfn.IFNA(VLOOKUP(_xlfn.CONCAT($C$2,"-",$E144,"-",$F144,"-",S$3),'Raw Data'!$A$2:$D$690331,4,FALSE),"N/A") -> N/A
E145: 21 | F145: 5 | H145: =_xlfn.IFNA(VLOOKUP(_xlfn.CONCAT($C$2,"-",$E145,"-",$F145,"-",H$3),'Raw Data'!$A$2:$D$690331,4,FALSE),"N/A") -> N/A | I145: =_xlfn.IFNA(VLOOKUP(_xlfn.CONCAT($C$2,"-",$E145,"-",$F145,"-",I$3),'Raw Data'!$A$2:$D$690331,4,FALSE),"N/A") -> N/A | J145: =_xlfn.IFNA(VLOOKUP(_xlfn.CONCAT($C$2,"-",$E145,"-",$F145,"-",J$3),'Raw Data'!$A$2:$D$690331,4,FALSE),"N/A") -> N/A | K145: =_xlfn.IFNA(VLOOKUP(_xlfn.CONCAT($C$2,"-",$E145,"-",$F145,"-",K$3),'Raw Data'!$A$2:$D$690331,4,FALSE),"N/A") -> N/A | L145: =_xlfn.IFNA(VLOOKUP(_xlfn.CONCAT($C$2,"-",$E145,"-",$F145,"-",L$3),'Raw Data'!$A$2:$D$690331,4,FALSE),"N/A") -> N/A | M145: =_xlfn.IFNA(VLOOKUP(_xlfn.CONCAT($C$2,"-",$E145,"-",$F145,"-",M$3),'Raw Data'!$A$2:$D$690331,4,FALSE),"N/A") -> N/A | N145: =_xlfn.IFNA(VLOOKUP(_xlfn.CONCAT($C$2,"-",$E145,"-",$F145,"-",N$3),'Raw Data'!$A$2:$D$690331,4,FALSE),"N/A") -> N/A | O145: =_xlfn.IFNA(VLOOKUP(_xlfn.CONCAT($C$2,"-",$E145,"-",$F145,"-",O$3),'Raw Data'!$A$2:$D$690331,4,FALSE),"N/A") -> N/A | P145: =_xlfn.IFNA(VLOOKUP(_xlfn.CONCAT($C$2,"-",$E145,"-",$F145,"-",P$3),'Raw Data'!$A$2:$D$690331,4,FALSE),"N/A") -> N/A | Q145: =_xlfn.IFNA(VLOOKUP(_xlfn.CONCAT($C$2,"-",$E145,"-",$F145,"-",Q$3),'Raw Data'!$A$2:$D$690331,4,FALSE),"N/A") -> N/A | R145: =_xlfn.IFNA(VLOOKUP(_xlfn.CONCAT($C$2,"-",$E145,"-",$F145,"-",R$3),'Raw Data'!$A$2:$D$690331,4,FALSE),"N/A") -> N/A | S145: =_xlfn.IFNA(VLOOKUP(_xlfn.CONCAT($C$2,"-",$E145,"-",$F145,"-",S$3),'Raw Data'!$A$2:$D$690331,4,FALSE),"N/A") -> N/A
E146: 22 | F146: 5 | H146: =_xlfn.IFNA(VLOOKUP(_xlfn.CONCAT($C$2,"-",$E146,"-",$F146,"-",H$3),'Raw Data'!$A$2:$D$690331,4,FALSE),"N/A") -> N/A | I146: =_xlfn.IFNA(VLOOKUP(_xlfn.CONCAT($C$2,"-",$E146,"-",$F146,"-",I$3),'Raw Data'!$A$2:$D$690331,4,FALSE),"N/A") -> N/A | J146: =_xlfn.IFNA(VLOOKUP(_xlfn.CONCAT($C$2,"-",$E146,"-",$F146,"-",J$3),'Raw Data'!$A$2:$D$690331,4,FALSE),"N/A") -> N/A | K146: =_xlfn.IFNA(VLOOKUP(_xlfn.CONCAT($C$2,"-",$E146,"-",$F146,"-",K$3),'Raw Data'!$A$2:$D$690331,4,FALSE),"N/A") -> N/A | L146: =_xlfn.IFNA(VLOOKUP(_xlfn.CONCAT($C$2,"-",$E146,"-",$F146,"-",L$3),'Raw Data'!$A$2:$D$690331,4,FALSE),"N/A") -> N/A | M146: =_xlfn.IFNA(VLOOKUP(_xlfn.CONCAT($C$2,"-",$E146,"-",$F146,"-",M$3),'Raw Data'!$A$2:$D$690331,4,FALSE),"N/A") -> N/A | N146: =_xlfn.IFNA(VLOOKUP(_xlfn.CONCAT($C$2,"-",$E146,"-",$F146,"-",N$3),'Raw Data'!$A$2:$D$690331,4,FALSE),"N/A") -> N/A | O146: =_xlfn.IFNA(VLOOKUP(_xlfn.CONCAT($C$2,"-",$E146,"-",$F146,"-",O$3),'Raw Data'!$A$2:$D$690331,4,FALSE),"N/A") -> N/A | P146: =_xlfn.IFNA(VLOOKUP(_xlfn.CONCAT($C$2,"-",$E146,"-",$F146,"-",P$3),'Raw Data'!$A$2:$D$690331,4,FALSE),"N/A") -> N/A | Q146: =_xlfn.IFNA(VLOOKUP(_xlfn.CONCAT($C$2,"-",$E146,"-",$F146,"-",Q$3),'Raw Data'!$A$2:$D$690331,4,FALSE),"N/A") -> N/A | R146: =_xlfn.IFNA(VLOOKUP(_xlfn.CONCAT($C$2,"-",$E146,"-",$F146,"-",R$3),'Raw Data'!$A$2:$D$690331,4,FALSE),"N/A") -> N/A | S146: =_xlfn.IFNA(VLOOKUP(_xlfn.CONCAT($C$2,"-",$E146,"-",$F146,"-",S$3),'Raw Data'!$A$2:$D$690331,4,FALSE),"N/A") -> N/A
E147: 23 | F147: 5 | H147: =_xlfn.IFNA(VLOOKUP(_xlfn.CONCAT($C$2,"-",$E147,"-",$F147,"-",H$3),'Raw Data'!$A$2:$D$690331,4,FALSE),"N/A") -> N/A | I147: =_xlfn.IFNA(VLOOKUP(_xlfn.CONCAT($C$2,"-",$E147,"-",$F147,"-",I$3),'Raw Data'!$A$2:$D$690331,4,FALSE),"N/A") -> N/A | J147: =_xlfn.IFNA(VLOOKUP(_xlfn.CONCAT($C$2,"-",$E147,"-",$F147,"-",J$3),'Raw Data'!$A$2:$D$690331,4,FALSE),"N/A") -> N/A | K147: =_xlfn.IFNA(VLOOKUP(_xlfn.CONCAT($C$2,"-",$E147,"-",$F147,"-",K$3),'Raw Data'!$A$2:$D$690331,4,FALSE),"N/A") -> N/A | L147: =_xlfn.IFNA(VLOOKUP(_xlfn.CONCAT($C$2,"-",$E147,"-",$F147,"-",L$3),'Raw Data'!$A$2:$D$690331,4,FALSE),"N/A") -> N/A | M147: =_xlfn.IFNA(VLOOKUP(_xlfn.CONCAT($C$2,"-",$E147,"-",$F147,"-",M$3),'Raw Data'!$A$2:$D$690331,4,FALSE),"N/A") -> N/A | N147: =_xlfn.IFNA(VLOOKUP(_xlfn.CONCAT($C$2,"-",$E147,"-",$F147,"-",N$3),'Raw Data'!$A$2:$D$690331,4,FALSE),"N/A") -> N/A | O147: =_xlfn.IFNA(VLOOKUP(_xlfn.CONCAT($C$2,"-",$E147,"-",$F147,"-",O$3),'Raw Data'!$A$2:$D$690331,4,FALSE),"N/A") -> N/A | P147: =_xlfn.IFNA(VLOOKUP(_xlfn.CONCAT($C$2,"-",$E147,"-",$F147,"-",P$3),'Raw Data'!$A$2:$D$690331,4,FALSE),"N/A") -> N/A | Q147: =_xlfn.IFNA(VLOOKUP(_xlfn.CONCAT($C$2,"-",$E147,"-",$F147,"-",Q$3),'Raw Data'!$A$2:$D$690331,4,FALSE),"N/A") -> N/A | R147: =_xlfn.IFNA(VLOOKUP(_xlfn.CONCAT($C$2,"-",$E147,"-",$F147,"-",R$3),'Raw Data'!$A$2:$D$690331,4,FALSE),"N/A") -> N/A | S147: =_xlfn.IFNA(VLOOKUP(_xlfn.CONCAT($C$2,"-",$E147,"-",$F147,"-",S$3),'Raw Data'!$A$2:$D$690331,4,FALSE),"N/A") -> N/A
E148: 24 | F148: 5 | H148: =_xlfn.IFNA(VLOOKUP(_xlfn.CONCAT($C$2,"-",$E148,"-",$F148,"-",H$3),'Raw Data'!$A$2:$D$690331,4,FALSE),"N/A") -> N/A | I148: =_xlfn.IFNA(VLOOKUP(_xlfn.CONCAT($C$2,"-",$E148,"-",$F148,"-",I$3),'Raw Data'!$A$2:$D$690331,4,FALSE),"N/A") -> N/A | J148: =_xlfn.IFNA(VLOOKUP(_xlfn.CONCAT($C$2,"-",$E148,"-",$F148,"-",J$3),'Raw Data'!$A$2:$D$690331,4,FALSE),"N/A") -> N/A | K148: =_xlfn.IFNA(VLOOKUP(_xlfn.CONCAT($C$2,"-",$E148,"-",$F148,"-",K$3),'Raw Data'!$A$2:$D$690331,4,FALSE),"N/A") -> N/A | L148: =_xlfn.IFNA(VLOOKUP(_xlfn.CONCAT($C$2,"-",$E148,"-",$F148,"-",L$3),'Raw Data'!$A$2:$D$690331,4,FALSE),"N/A") -> N/A | M148: =_xlfn.IFNA(VLOOKUP(_xlfn.CONCAT($C$2,"-",$E148,"-",$F148,"-",M$3),'Raw Data'!$A$2:$D$690331,4,FALSE),"N/A") -> N/A | N148: =_xlfn.IFNA(VLOOKUP(_xlfn.CONCAT($C$2,"-",$E148,"-",$F148,"-",N$3),'Raw Data'!$A$2:$D$690331,4,FALSE),"N/A") -> N/A | O148: =_xlfn.IFNA(VLOOKUP(_xlfn.CONCAT($C$2,"-",$E148,"-",$F148,"-",O$3),'Raw Data'!$A$2:$D$690331,4,FALSE),"N/A") -> N/A | P148: =_xlfn.IFNA(VLOOKUP(_xlfn.CONCAT($C$2,"-",$E148,"-",$F148,"-",P$3),'Raw Data'!$A$2:$D$690331,4,FALSE),"N/A") -> N/A | Q148: =_xlfn.IFNA(VLOOKUP(_xlfn.CONCAT($C$2,"-",$E148,"-",$F148,"-",Q$3),'Raw Data'!$A$2:$D$690331,4,FALSE),"N/A") -> N/A | R148: =_xlfn.IFNA(VLOOKUP(_xlfn.CONCAT($C$2,"-",$E148,"-",$F148,"-",R$3),'Raw Data'!$A$2:$D$690331,4,FALSE),"N/A") -> N/A | S148: =_xlfn.IFNA(VLOOKUP(_xlfn.CONCAT($C$2,"-",$E148,"-",$F148,"-",S$3),'Raw Data'!$A$2:$D$690331,4,FALSE),"N/A") -> N/A
E149: 25 | F149: 5 | H149: =_xlfn.IFNA(VLOOKUP(_xlfn.CONCAT($C$2,"-",$E149,"-",$F149,"-",H$3),'Raw Data'!$A$2:$D$690331,4,FALSE),"N/A") -> N/A | I149: =_xlfn.IFNA(VLOOKUP(_xlfn.CONCAT($C$2,"-",$E149,"-",$F149,"-",I$3),'Raw Data'!$A$2:$D$690331,4,FALSE),"N/A") -> N/A | J149: =_xlfn.IFNA(VLOOKUP(_xlfn.CONCAT($C$2,"-",$E149,"-",$F149,"-",J$3),'Raw Data'!$A$2:$D$690331,4,FALSE),"N/A") -> N/A | K149: =_xlfn.IFNA(VLOOKUP(_xlfn.CONCAT($C$2,"-",$E149,"-",$F149,"-",K$3),'Raw Data'!$A$2:$D$690331,4,FALSE),"N/A") -> N/A | L149: =_xlfn.IFNA(VLOOKUP(_xlfn.CONCAT($C$2,"-",$E149,"-",$F149,"-",L$3),'Raw Data'!$A$2:$D$690331,4,FALSE),"N/A") -> N/A | M149: =_xlfn.IFNA(VLOOKUP(_xlfn.CONCAT($C$2,"-",$E149,"-",$F149,"-",M$3),'Raw Data'!$A$2:$D$690331,4,FALSE),"N/A") -> N/A | N149: =_xlfn.IFNA(VLOOKUP(_xlfn.CONCAT($C$2,"-",$E149,"-",$F149,"-",N$3),'Raw Data'!$A$2:$D$690331,4,FALSE),"N/A") -> N/A | O149: =_xlfn.IFNA(VLOOKUP(_xlfn.CONCAT($C$2,"-",$E149,"-",$F149,"-",O$3),'Raw Data'!$A$2:$D$690331,4,FALSE),"N/A") -> N/A | P149: =_xlfn.IFNA(VLOOKUP(_xlfn.CONCAT($C$2,"-",$E149,"-",$F149,"-",P$3),'Raw Data'!$A$2:$D$690331,4,FALSE),"N/A") -> N/A | Q149: =_xlfn.IFNA(VLOOKUP(_xlfn.CONCAT($C$2,"-",$E149,"-",$F149,"-",Q$3),'Raw Data'!$A$2:$D$690331,4,FALSE),"N/A") -> N/A | R149: =_xlfn.IFNA(VLOOKUP(_xlfn.CONCAT($C$2,"-",$E149,"-",$F149,"-",R$3),'Raw Data'!$A$2:$D$690331,4,FALSE),"N/A") -> N/A | S149: =_xlfn.IFNA(VLOOKUP(_xlfn.CONCAT($C$2,"-",$E149,"-",$F149,"-",S$3),'Raw Data'!$A$2:$D$690331,4,FALSE),"N/A") -> N/A
E150: 26 | F150: 5 | H150: =_xlfn.IFNA(VLOOKUP(_xlfn.CONCAT($C$2,"-",$E150,"-",$F150,"-",H$3),'Raw Data'!$A$2:$D$690331,4,FALSE),"N/A") -> N/A | I150: =_xlfn.IFNA(VLOOKUP(_xlfn.CONCAT($C$2,"-",$E150,"-",$F150,"-",I$3),'Raw Data'!$A$2:$D$690331,4,FALSE),"N/A") -> N/A | J150: =_xlfn.IFNA(VLOOKUP(_xlfn.CONCAT($C$2,"-",$E150,"-",$F150,"-",J$3),'Raw Data'!$A$2:$D$690331,4,FALSE),"N/A") -> N/A | K150: =_xlfn.IFNA(VLOOKUP(_xlfn.CONCAT($C$2,"-",$E150,"-",$F150,"-",K$3),'Raw Data'!$A$2:$D$690331,4,FALSE),"N/A") -> N/A | L150: =_xlfn.IFNA(VLOOKUP(_xlfn.CONCAT($C$2,"-",$E150,"-",$F150,"-",L$3),'Raw Data'!$A$2:$D$690331,4,FALSE),"N/A") -> N/A | M150: =_xlfn.IFNA(VLOOKUP(_xlfn.CONCAT($C$2,"-",$E150,"-",$F150,"-",M$3),'Raw Data'!$A$2:$D$690331,4,FALSE),"N/A") -> N/A | N150: =_xlfn.IFNA(VLOOKUP(_xlfn.CONCAT($C$2,"-",$E150,"-",$F150,"-",N$3),'Raw Data'!$A$2:$D$690331,4,FALSE),"N/A") -> N/A | O150: =_xlfn.IFNA(VLOOKUP(_xlfn.CONCAT($C$2,"-",$E150,"-",$F150,"-",O$3),'Raw Data'!$A$2:$D$690331,4,FALSE),"N/A") -> N/A | P150: =_xlfn.IFNA(VLOOKUP(_xlfn.CONCAT($C$2,"-",$E150,"-",$F150,"-",P$3),'Raw Data'!$A$2:$D$690331,4,FALSE),"N/A") -> N/A | Q150: =_xlfn.IFNA(VLOOKUP(_xlfn.CONCAT($C$2,"-",$E150,"-",$F150,"-",Q$3),'Raw Data'!$A$2:$D$690331,4,FALSE),"N/A") -> N/A | R150: =_xlfn.IFNA(VLOOKUP(_xlfn.CONCAT($C$2,"-",$E150,"-",$F150,"-",R$3),'Raw Data'!$A$2:$D$690331,4,FALSE),"N/A") -> N/A | S150: =_xlfn.IFNA(VLOOKUP(_xlfn.CONCAT($C$2,"-",$E150,"-",$F150,"-",S$3),'Raw Data'!$A$2:$D$690331,4,FALSE),"N/A") -> N/A
E151: 27 | F151: 5 | H151: =_xlfn.IFNA(VLOOKUP(_xlfn.CONCAT($C$2,"-",$E151,"-",$F151,"-",H$3),'Raw Data'!$A$2:$D$690331,4,FALSE),"N/A") -> N/A | I151: =_xlfn.IFNA(VLOOKUP(_xlfn.CONCAT($C$2,"-",$E151,"-",$F151,"-",I$3),'Raw Data'!$A$2:$D$690331,4,FALSE),"N/A") -> N/A | J151: =_xlfn.IFNA(VLOOKUP(_xlfn.CONCAT($C$2,"-",$E151,"-",$F151,"-",J$3),'Raw Data'!$A$2:$D$690331,4,FALSE),"N/A") -> N/A | K151: =_xlfn.IFNA(VLOOKUP(_xlfn.CONCAT($C$2,"-",$E151,"-",$F151,"-",K$3),'Raw Data'!$A$2:$D$690331,4,FALSE),"N/A") -> N/A | L151: =_xlfn.IFNA(VLOOKUP(_xlfn.CONCAT($C$2,"-",$E151,"-",$F151,"-",L$3),'Raw Data'!$A$2:$D$690331,4,FALSE),"N/A") -> N/A | M151: =_xlfn.IFNA(VLOOKUP(_xlfn.CONCAT($C$2,"-",$E151,"-",$F151,"-",M$3),'Raw Data'!$A$2:$D$690331,4,FALSE),"N/A") -> N/A | N151: =_xlfn.IFNA(VLOOKUP(_xlfn.CONCAT($C$2,"-",$E151,"-",$F151,"-",N$3),'Raw Data'!$A$2:$D$690331,4,FALSE),"N/A") -> N/A | O151: =_xlfn.IFNA(VLOOKUP(_xlfn.CONCAT($C$2,"-",$E151,"-",$F151,"-",O$3),'Raw Data'!$A$2:$D$690331,4,FALSE),"N/A") -> N/A | P151: =_xlfn.IFNA(VLOOKUP(_xlfn.CONCAT($C$2,"-",$E151,"-",$F151,"-",P$3),'Raw Data'!$A$2:$D$690331,4,FALSE),"N/A") -> N/A | Q151: =_xlfn.IFNA(VLOOKUP(_xlfn.CONCAT($C$2,"-",$E151,"-",$F151,"-",Q$3),'Raw Data'!$A$2:$D$690331,4,FALSE),"N/A") -> N/A | R151: =_xlfn.IFNA(VLOOKUP(_xlfn.CONCAT($C$2,"-",$E151,"-",$F151,"-",R$3),'Raw Data'!$A$2:$D$690331,4,FALSE),"N/A") -> N/A | S151: =_xlfn.IFNA(VLOOKUP(_xlfn.CONCAT($C$2,"-",$E151,"-",$F151,"-",S$3),'Raw Data'!$A$2:$D$690331,4,FALSE),"N/A") -> N/A
E152: 28 | F152: 5 | H152: =_xlfn.IFNA(VLOOKUP(_xlfn.CONCAT($C$2,"-",$E152,"-",$F152,"-",H$3),'Raw Data'!$A$2:$D$690331,4,FALSE),"N/A") -> N/A | I152: =_xlfn.IFNA(VLOOKUP(_xlfn.CONCAT($C$2,"-",$E152,"-",$F152,"-",I$3),'Raw Data'!$A$2:$D$690331,4,FALSE),"N/A") -> N/A | J152: =_xlfn.IFNA(VLOOKUP(_xlfn.CONCAT($C$2,"-",$E152,"-",$F152,"-",J$3),'Raw Data'!$A$2:$D$690331,4,FALSE),"N/A") -> N/A | K152: =_xlfn.IFNA(VLOOKUP(_xlfn.CONCAT($C$2,"-",$E152,"-",$F152,"-",K$3),'Raw Data'!$A$2:$D$690331,4,FALSE),"N/A") -> N/A | L152: =_xlfn.IFNA(VLOOKUP(_xlfn.CONCAT($C$2,"-",$E152,"-",$F152,"-",L$3),'Raw Data'!$A$2:$D$690331,4,FALSE),"N/A") -> N/A | M152: =_xlfn.IFNA(VLOOKUP(_xlfn.CONCAT($C$2,"-",$E152,"-",$F152,"-",M$3),'Raw Data'!$A$2:$D$690331,4,FALSE),"N/A") -> N/A | N152: =_xlfn.IFNA(VLOOKUP(_xlfn.CONCAT($C$2,"-",$E152,"-",$F152,"-",N$3),'Raw Data'!$A$2:$D$690331,4,FALSE),"N/A") -> N/A | O152: =_xlfn.IFNA(VLOOKUP(_xlfn.CONCAT($C$2,"-",$E152,"-",$F152,"-",O$3),'Raw Data'!$A$2:$D$690331,4,FALSE),"N/A") -> N/A | P152: =_xlfn.IFNA(VLOOKUP(_xlfn.CONCAT($C$2,"-",$E152,"-",$F152,"-",P$3),'Raw Data'!$A$2:$D$690331,4,FALSE),"N/A") -> N/A | Q152: =_xlfn.IFNA(VLOOKUP(_xlfn.CONCAT($C$2,"-",$E152,"-",$F152,"-",Q$3),'Raw Data'!$A$2:$D$690331,4,FALSE),"N/A") -> N/A | R152: =_xlfn.IFNA(VLOOKUP(_xlfn.CONCAT($C$2,"-",$E152,"-",$F152,"-",R$3),'Raw Data'!$A$2:$D$690331,4,FALSE),"N/A") -> N/A | S152: =_xlfn.IFNA(VLOOKUP(_xlfn.CONCAT($C$2,"-",$E152,"-",$F152,"-",S$3),'Raw Data'!$A$2:$D$690331,4,FALSE),"N/A") -> N/A
E153: 29 | F153: 5 | H153: =_xlfn.IFNA(VLOOKUP(_xlfn.CONCAT($C$2,"-",$E153,"-",$F153,"-",H$3),'Raw Data'!$A$2:$D$690331,4,FALSE),"N/A") -> N/A | I153: =_xlfn.IFNA(VLOOKUP(_xlfn.CONCAT($C$2,"-",$E153,"-",$F153,"-",I$3),'Raw Data'!$A$2:$D$690331,4,FALSE),"N/A") -> N/A | J153: =_xlfn.IFNA(VLOOKUP(_xlfn.CONCAT($C$2,"-",$E153,"-",$F153,"-",J$3),'Raw Data'!$A$2:$D$690331,4,FALSE),"N/A") -> N/A | K153: =_xlfn.IFNA(VLOOKUP(_xlfn.CONCAT($C$2,"-",$E153,"-",$F153,"-",K$3),'Raw Data'!$A$2:$D$690331,4,FALSE),"N/A") -> N/A | L153: =_xlfn.IFNA(VLOOKUP(_xlfn.CONCAT($C$2,"-",$E153,"-",$F153,"-",L$3),'Raw Data'!$A$2:$D$690331,4,FALSE),"N/A") -> N/A | M153: =_xlfn.IFNA(VLOOKUP(_xlfn.CONCAT($C$2,"-",$E153,"-",$F153,"-",M$3),'Raw Data'!$A$2:$D$690331,4,FALSE),"N/A") -> N/A | N153: =_xlfn.IFNA(VLOOKUP(_xlfn.CONCAT($C$2,"-",$E153,"-",$F153,"-",N$3),'Raw Data'!$A$2:$D$690331,4,FALSE),"N/A") -> N/A | O153: =_xlfn.IFNA(VLOOKUP(_xlfn.CONCAT($C$2,"-",$E153,"-",$F153,"-",O$3),'Raw Data'!$A$2:$D$690331,4,FALSE),"N/A") -> N/A | P153: =_xlfn.IFNA(VLOOKUP(_xlfn.CONCAT($C$2,"-",$E153,"-",$F153,"-",P$3),'Raw Data'!$A$2:$D$690331,4,FALSE),"N/A") -> N/A | Q153: =_xlfn.IFNA(VLOOKUP(_xlfn.CONCAT($C$2,"-",$E153,"-",$F153,"-",Q$3),'Raw Data'!$A$2:$D$690331,4,FALSE),"N/A") -> N/A | R153: =_xlfn.IFNA(VLOOKUP(_xlfn.CONCAT($C$2,"-",$E153,"-",$F153,"-",R$3),'Raw Data'!$A$2:$D$690331,4,FALSE),"N/A") -> N/A | S153: =_xlfn.IFNA(VLOOKUP(_xlfn.CONCAT($C$2,"-",$E153,"-",$F153,"-",S$3),'Raw Data'!$A$2:$D$690331,4,FALSE),"N/A") -> N/A
E154: 30 | F154: 5 | H154: =_xlfn.IFNA(VLOOKUP(_xlfn.CONCAT($C$2,"-",$E154,"-",$F154,"-",H$3),'Raw Data'!$A$2:$D$690331,4,FALSE),"N/A") -> N/A | I154: =_xlfn.IFNA(VLOOKUP(_xlfn.CONCAT($C$2,"-",$E154,"-",$F154,"-",I$3),'Raw Data'!$A$2:$D$690331,4,FALSE),"N/A") -> N/A | J154: =_xlfn.IFNA(VLOOKUP(_xlfn.CONCAT($C$2,"-",$E154,"-",$F154,"-",J$3),'Raw Data'!$A$2:$D$690331,4,FALSE),"N/A") -> N/A | K154: =_xlfn.IFNA(VLOOKUP(_xlfn.CONCAT($C$2,"-",$E154,"-",$F154,"-",K$3),'Raw Data'!$A$2:$D$690331,4,FALSE),"N/A") -> N/A | L154: =_xlfn.IFNA(VLOOKUP(_xlfn.CONCAT($C$2,"-",$E154,"-",$F154,"-",L$3),'Raw Data'!$A$2:$D$690331,4,FALSE),"N/A") -> N/A | M154: =_xlfn.IFNA(VLOOKUP(_xlfn.CONCAT($C$2,"-",$E154,"-",$F154,"-",M$3),'Raw Data'!$A$2:$D$690331,4,FALSE),"N/A") -> N/A | N154: =_xlfn.IFNA(VLOOKUP(_xlfn.CONCAT($C$2,"-",$E154,"-",$F154,"-",N$3),'Raw Data'!$A$2:$D$690331,4,FALSE),"N/A") -> N/A | O154: =_xlfn.IFNA(VLOOKUP(_xlfn.CONCAT($C$2,"-",$E154,"-",$F154,"-",O$3),'Raw Data'!$A$2:$D$690331,4,FALSE),"N/A") -> N/A | P154: =_xlfn.IFNA(VLOOKUP(_xlfn.CONCAT($C$2,"-",$E154,"-",$F154,"-",P$3),'Raw Data'!$A$2:$D$690331,4,FALSE),"N/A") -> N/A | Q154: =_xlfn.IFNA(VLOOKUP(_xlfn.CONCAT($C$2,"-",$E154,"-",$F154,"-",Q$3),'Raw Data'!$A$2:$D$690331,4,FALSE),"N/A") -> N/A | R154: =_xlfn.IFNA(VLOOKUP(_xlfn.CONCAT($C$2,"-",$E154,"-",$F154,"-",R$3),'Raw Data'!$A$2:$D$690331,4,FALSE),"N/A") -> N/A | S154: =_xlfn.IFNA(VLOOKUP(_xlfn.CONCAT($C$2,"-",$E154,"-",$F154,"-",S$3),'Raw Data'!$A$2:$D$690331,4,FALSE),"N/A") -> N/A
